Workbook

Sheet Sheet1 (hidden)
A3: 1 | B3: Check to see if there are any changes to existing report/template
B4: https://www.dmhc.ca.gov/
B5: Licensing & Reporting > Submit Financial Reports > scroll down to 'Annual Dental Medical Loss Ratio (MLR)' section
B6: Save most recent version down to folder for reference next year.
B7: As of RY2020 per current DMHC template
A10: 2 | B10: Report is due July 31st
B12: Differences b/w CMS and DMHC:
B13: DMHC Ln 4.3b / CMS Ln 5.5b is made up of a77100 & a77105. subtracted from Net Inv Inc (DMHC Ln 6 / CMS Ln 8)
B14: DMHC does not include CMS Ln 1.2, Ln 1.3, Ln 1.4
B15: DMHC Ln 4.4 does not contain "Bad Debt" which is an adj to CMS Ln 5.6 from Ln 1.5
B19: Open Questions:
B20: Is there a reason we only ran out 15 months of claims in PY2 and PY1 col and not 39 and 27, respectively?
B21: Why are we consolidating GRI & UHCLIC to DPPO IND on Parts 1 & 2 but not 4?
B22: Why doesn't DMHC include CMS Ln 1.2, Ln 1.3, Ln 1.4

Sheet CHGS (hidden)
A1: Yrly Maintenance
A2: OTHER
A4: Date | B4: EE | C4: RY | D4: Version | E4: Tab | F4: Row(s) | G4: Col(s) | H4: Description of Change/Action | I4: Reason for Change/Action
A5: RY2021
A6: 2022-03-25 | B6: RM | C6: 2021 | D6: v1 | E6: Table (Hidden) | F6: 4-10 | G6: P-S | H6: Updated Years | I6: New year
A7: 2022-03-25 | B7: RM | C7: 2021 | D7: v1 | E7: Essbase Input | F7: C16-D19 | H7: Updated Years | I7: New year
A8: 2022-03-25 | B8: RM | C8: 2021 | D8: v1 | E8: Essbase Input | F8: A1 | H8: Updated Reporting Year and "Warning" | I8: New year
A9: 2022-03-25 | B9: RM | C9: 2021 | D9: v1 | E9: Cover Page | F9: C2 | H9: Updates description from "Enter DMHC Health Plan ID. Insurers may leave this field blank" to "DMHC Health Plan ID / CDI NAIC No." | I9: Per new template dated 12/16/21
A10: 2022-03-25 | B10: RM | C10: 2021 | D10: v1 | E10: Pt 1 Summary of Data Pt 1 Summary of Data - Final | F10: n/a | G10: AX | H10: Update "Pt 2" to "Pt 1" | I10: Error
A11: 2022-03-25 | B11: RM | C11: 2021 | D11: v1 | E11: EB PT 1 EB PT 2 | F11: n/a | G11: A | H11: Added the CMS Annual Line tie back. | I11: To help with quick review.
A12: 2022-05-18 | B12: RM | C12: 2021 | D12: v2 | E12: Pt 1 Summary of Data | F12: 7 | G12: 1 | H12: Fixed formula to grab from correct cell From =-'EB PT 1'!BE64 To =-'EB PT 1'!BE63 | I12: Error. Sugandha brought to my attention in her testing.
A13: 2022-05-18 | B13: RM | C13: 2021 | D13: v2 | E13: Pt 1 Summary of Data - Adj | F13: n/a | G13: n/a | H13: Removed Row 51 | I13: To align the 3 tabs.
A14: 2022-05-27 | B14: RM | C14: 2021 | D14: v3 | E14: EB PT 1 | F14: 5.2 | G14: All | H14: Updated IDB Date from IDB 2020 to IDB 2021 | I14: Wrong IDB year
A16: RY2022
A17: 2023-05-10 | B17: RM | C17: 2022 | D17: v1 | E17: Table (Hidden) | F17: 4-10 | G17: P-S | H17: Updated Years | I17: New year
A18: 2023-05-10 | B18: RM | C18: 2022 | D18: v1 | E18: Essbase Input | F18: C12 | H18: Updated Reporting Year to current reporting year | I18: New year
A19: 2023-05-10 | B19: RM | C19: 2022 | D19: v1 | E19: Essbase Input | F19: C16-D19 | H19: Updated Years | I19: New year
A20: 2023-05-10 | B20: RM | C20: 2022 | D20: v1 | E20: Essbase Input | F20: A1 & D2 | H20: Updated Reporting Year and "Warning" | I20: New year
A21: 2023-05-10 | B21: RM | C21: 2022 | D21: v1 | E21: EB PT1, EB PT2, EB PT4, EB PT4 PY2, EB PT4 PY1, EB PT4 CY | F21: SV Ranges | H21: Updated SV pull ranges | I21: SV upgrade
A22: Instructions after yearly maintenance
A23: 1. Confirm Smartview pulls refresh
A24: 2023-05-10 | B24: RM | C24: 2022 | D24: v1 | E24: Pt 1 Summary of Data | F24: All | G24: AU-AW | H24: REVIEW to confirm no variances.
A25: 2023-05-10 | B25: RM | C25: 2022 | D25: v1 | E25: Pt 2 Premium and Claims | F25: All | G25: AU-AW | H25: REVIEW to confirm no variances.

Sheet Essbase Input (hidden)
A1: Reporting Year 2022, Version 1 (posted 05/10/2023) | D1: WARNING!
A2: Instructions: | D2: The CMS MLR form which drives the programming of this file won't be finalized until 6/25/2022. Changes to the underlying program in that report MAY affect this report. Any changes made to this report will be applied and saved as a new version (e.g. v1 to v2, etc.)
A3: 1. Update Chartfields below: Legal Entity, Reporting Year, Period
A4: 2. Connect to the UHGRMLR cube
A5: 3. Refresh the "EB" tabs: EB PT 1, EB PT 2, EB PT 4, EB PT 4 PY2, EB PT 4 PY1, EB PT 4 CY
A7: Smart View Retrieve Values (All 'EB PT x' tabs) | F7: Recommended Legal Entity / Location Combinations
A8: Legal Entity | C8: UnitedHealthcare Life Ins Co | D8: <<< Select One | F8: Dental Benefit Prov CA Inc | H8: Locations
A9: Location | C9: =VLOOKUP($C$8,Tables!$B:$K,6,FALSE) -> California - CA | D9: Verify Location | F9: Golden Rule Insurance Company | H9: California - CA
A10: Operating Unit | C10: =VLOOKUP($C$8,Tables!$B:$K,7,FALSE) -> UnitedHealthcare Domestic | D10: Verify Operating Unit | F10: Unimerica Insurance Company | H10: California - CA
A11: Product | C11: =VLOOKUP($C$8,Tables!$B:$K,8,FALSE) -> Stand Alone Dental | D11: Verify Product | F11: UnitedHealthcare Ins Co | H11: California - CA
A12: Reporting Year | C12: 2022 | D12: <<< Select One | F12: UnitedHealthcare Life Ins Co | H12: California - CA
A13: Period | C13: 4th Quarter | D13: <<< Select One
A15: For Use in 'EB PT 4' tab only
A16: Current Year | C16: 2023 | D16: IDB 2023
A17: Reporting Year | C17: 2022 | D17: IDB 2022
A18: PY 1 | C18: 2021 | D18: IDB 2021
A19: PY 2 | C19: 2020 | D19: IDB 2020
B26: Save file here:
B27: F:\01_Reporting\Working_Groups\HCR_WG\YYYY Initiatives\42_Dental CA MLR Filing\DMHC Template, Guidance, instructions, updates
B28: RY2022:
B29: F:\01_Reporting\Working_Groups\HCR_WG\2022 Initiatives\42_Dental CA MLR Filing\DMHC Template, Guidance, instructions, updates

Sheet Tables (hidden)
P1: Updated 05/10/2023
P2: Current | Q2: Prior | R2: Future | S2: Prior | U2: Current Year | V2: Current Year | W2: Current Year
A3: Blank | B3: Legal Entity (Essbase) | C3: Legal Entity (Full Name) | D3: DMHC # | E3: DBAs | F3: DPPO/DHMO | G3: Location | H3: Operating Unit | I3: Product | J3: Operating Unit (Other) | L3: Locations | M3: Abbrv | O3: Customers | P3: Year | Q3: Year | R3: Year | S3: Year 2 | T3: Period | U3: Balance (Essbase) | V3: Month (Essbase) | W3: YTD (Essbase)
A4: DMHC | B4: Dental Benefit Prov CA Inc | C4: Dental Benefit Providers of California, Inc. | D4: 933-0255 | E4: N/A | F4: DHMO | G4: Locations | H4: Operating Units | I4: Stand Alone Dental | J4: 07210 - UHIC - Dental | L4: Alabama - AL | M4: =RIGHT(L4,2) -> AL | O4: Individual | P4: 2022 | Q4: 2021 | R4: 2023 | S4: 2020 | T4: January | U4: January_Bal | V4: January | W4: January_YTD
A5: BLUE | B5: Unimerica Insurance Company | C5: Unimerica Insurance Company | E5: Unimerica Life Insurance Company | F5: DPPO | G5: California - CA | H5: UnitedHealthcare Domestic | I5: Stand Alone Dental | J5: 07211 - UHIC-AMSLIC-DENTAL | L5: Alaska - AK | M5: =RIGHT(L5,2) -> AK | O5: Small Group Employer | P5: 2021 | Q5: 2020 | R5: 2022 | S5: 2019 | T5: February | U5: February_Bal | V5: February | W5: February_YTD
A6: BLUE | B6: UnitedHealthcare Ins Co | C6: UnitedHealthcare Insurance Company | E6: N/A | F6: DPPO | G6: California - CA | H6: UnitedHealthcare Domestic | I6: Stand Alone Dental | J6: UHIC Dental | L6: Arizona - AZ | M6: AZ | O6: Large Group Employer | P6: 2020 | Q6: 2019 | R6: 2021 | S6: 2018 | T6: 1st Quarter | U6: March_Bal | V6: March | W6: March_YTD
A7: BLUE | B7: Golden Rule Insurance Company | C7: Golden Rule Insurance Company | E7: UnitedHealthOne | F7: DPPO | G7: California - CA | H7: UnitedHealthcare Domestic | I7: Stand Alone Dental | J7: 07220 - NATL PACIFIC DENTAL, INC. TX | L7: Arkansas - AR | M7: AR | O7: Blank Customer | P7: 2019 | Q7: 2018 | R7: 2020 | S7: 2017 | T7: April | U7: April_Bal | V7: April | W7: April_YTD
A8: BLUE | B8: UnitedHealthcare Life Ins Co | C8: UnitedHealthcare Life Insurance Company | E8: N/A | F8: DPPO | G8: California - CA | H8: UnitedHealthcare Domestic | I8: Stand Alone Dental | J8: 07221 - NATL PACIFIC DENTAL, INC. MD | L8: California - CA | M8: CA | O8: MLR Customers | P8: 2018 | Q8: 2017 | R8: 2019 | S8: 2016 | T8: May | U8: May_Bal | V8: May | W8: May_YTD
A9: BLUE | B9: Mid-West Nat Life Ins Co of TN | C9: Mid-West National Life Insurance Company of Tennessee | E9: N/A | F9: DPPO | G9: California - CA | H9: UnitedHealthcare Domestic | I9: Stand Alone Dental | J9: National Pacifice Dental, Inc. | L9: Colorado - CO | M9: CO | P9: 2017 | Q9: 2016 | R9: 2018 | S9: 2015 | T9: 2nd Quarter | U9: June_Bal | V9: June | W9: June_YTD
A10: BLUE | B10: The Chesapeake Life Ins. Co. | C10: The Chesapeake Life Insurance Company | E10: N/A | F10: DPPO | G10: California - CA | H10: UnitedHealthcare Domestic | I10: Stand Alone Dental | J10: 07230 - PACIFIC UNION DENTAL, INC. | L10: Connecticut - CT | M10: CT | P10: 2016 | Q10: 2015 | R10: 2017 | S10: 2014 | T10: July | U10: July_Bal | V10: July | W10: July_YTD
J11: 07231 - DENTAL BENEFIT PROVIDERS, INC. | L11: Delaware - DE | M11: DE | T11: August | U11: August_Bal | V11: August | W11: August_YTD
J12: 07232 - PACIFICARE DENTAL | L12: Florida - FL | M12: FL | T12: 3rd Quarter | U12: September_Bal | V12: September | W12: September_YTD
J13: Dental Benefit Providers of CA | L13: Georgia - GA | M13: GA | T13: October | U13: October_Bal | V13: October | W13: October_YTD
J14: 07200 - Dental E&I | L14: Hawaii - HI | M14: HI | T14: November | U14: November_Bal | V14: November | W14: November_YTD
J15: 07234 - Dental C&S | L15: Idaho - ID | M15: ID | T15: 4th Quarter | U15: December_Bal | V15: December | W15: December_YTD
J16: 07235 - Dental M&R | L16: Illinois - IL | M16: IL
J17: 27200 - Dental Exchanges | L17: Indiana - IN | M17: IN
J18: Dental OU | L18: Iowa - IA | M18: IA
J19: Operating Units | L19: Kansas - KS | M19: KS
L20: Kentucky - KY | M20: KY
L21: Louisiana - LA | M21: LA
L22: Maine - ME | M22: ME
L23: Maryland - MD | M23: MD
L24: Massachusetts - MA | M24: MA
L25: Michigan - MI | M25: MI
L26: Minnesota - MN | M26: MN
L27: Mississippi - MS | M27: MS
L28: Missouri - MO | M28: MO
L29: Montana - MT | M29: MT
L30: Nebraska - NE | M30: NE
L31: Nevada - NV | M31: NV
L32: New Hampshire - NH | M32: NH
L33: New Jersey - NJ | M33: NJ
L34: New Mexico - NM | M34: NM
L35: New York - NY | M35: NY
L36: North Carolina - NC | M36: NC
L37: North Dakota - ND | M37: ND
L38: Ohio - OH | M38: OH
L39: Oklahoma - OK | M39: OK
L40: Oregon - OR | M40: OR
L41: Pennsylvania - PA | M41: PA
L42: Rhode Island - RI | M42: RI
L43: South Carolina - SC | M43: SC
L44: South Dakota - SD | M44: SD
L45: Tennessee - TN | M45: TN
L46: Texas - TX | M46: TX
L47: Utah - UT | M47: UT
L48: Vermont - VT | M48: VT
L49: Virginia - VA | M49: VA
L50: Washington - WA | M50: WA
L51: West Virginia - WV | M51: WV
L52: Wisconsin - WI | M52: WI
L53: Wyoming - WY | M53: WY
L54: District Of Columbia - DC | M54: DC
L56: American Samoa | M56: AS
L57: Canada | M57: CA
L58: Virgin Islands | M58: VI
L60: Total Central Regional | M60: XX
L61: Total Northeast Regional | M61: XX
L62: Total Southeast Regional | M62: XX
L63: Total West Regional | M63: XX
L65: US Regions States | M65: XX
L66: US Regions Other | M66: XX
L68: Central Region US | M68: XX
L69: Northeast Region US | M69: XX
L70: Southeast Region US | M70: XX
L71: West Region US | M71: XX
L73: Corporate Other Region | M73: XX
L74: Segment Support | M74: XX
L75: Corporate Segment | M75: XX

Sheet Dashboard (hidden)
A1: ='Essbase Input'!C8 -> UnitedHealthcare Life Ins Co
A2: =+'Essbase Input'!$C$9 -> California - CA
A3: =+'Essbase Input'!$C$11 -> Stand Alone Dental
A4: ='Essbase Input'!$C$12 -> 2022
B5: Health Insurance Coverage
B6: DHMO Products | H6: DPPO & Indemnity Products
B7: Individual | D7: Small Group | F7: Large Group | H7: Individual | J7: Small Group | L7: Large Group
B8: Total as of | C8: Total as of | D8: Total as of | E8: Total as of | F8: Total as of | G8: Total as of | H8: Total as of | I8: Total as of | J8: Total as of | K8: Total as of | L8: Total as of | M8: Total as of
A9: Metrics | B9: ="12/31/"&RIGHT('Essbase Input'!$C$17,2) -> 12/31/22 | C9: ="3/31/"&RIGHT('Essbase Input'!$C$16,2) -> 3/31/23 | D9: ="12/31/"&RIGHT('Essbase Input'!$C$17,2) -> 12/31/22 | E9: ="3/31/"&RIGHT('Essbase Input'!$C$16,2) -> 3/31/23 | F9: ="12/31/"&RIGHT('Essbase Input'!$C$17,2) -> 12/31/22 | G9: ="3/31/"&RIGHT('Essbase Input'!$C$16,2) -> 3/31/23 | H9: ="12/31/"&RIGHT('Essbase Input'!$C$17,2) -> 12/31/22 | I9: ="3/31/"&RIGHT('Essbase Input'!$C$16,2) -> 3/31/23 | J9: ="12/31/"&RIGHT('Essbase Input'!$C$17,2) -> 12/31/22 | K9: ="3/31/"&RIGHT('Essbase Input'!$C$16,2) -> 3/31/23 | L9: ="12/31/"&RIGHT('Essbase Input'!$C$17,2) -> 12/31/22 | M9: ="3/31/"&RIGHT('Essbase Input'!$C$16,2) -> 3/31/23
A10: Gross Margin
A11: Health Premiums Earned PMPM (Line 1.1 / Member Months) | B11: =IF(ISERROR('Pt 1 Summary of Data - Final'!E21/'Pt 1 Summary of Data - Final'!E48),0,'Pt 1 Summary of Data - Final'!E21/'Pt 1 Summary of Data - Final'!E48) -> 0 | C11: =IF(ISERROR('Pt 1 Summary of Data - Final'!F21/'Pt 1 Summary of Data - Final'!F48),0,'Pt 1 Summary of Data - Final'!F21/'Pt 1 Summary of Data - Final'!F48) -> 0 | D11: =IF(ISERROR('Pt 1 Summary of Data - Final'!G21/'Pt 1 Summary of Data - Final'!G48),0,'Pt 1 Summary of Data - Final'!G21/'Pt 1 Summary of Data - Final'!G48) -> 0 | E11: =IF(ISERROR('Pt 1 Summary of Data - Final'!H21/'Pt 1 Summary of Data - Final'!H48),0,'Pt 1 Summary of Data - Final'!H21/'Pt 1 Summary of Data - Final'!H48) -> 0 | F11: =IF(ISERROR('Pt 1 Summary of Data - Final'!I21/'Pt 1 Summary of Data - Final'!I48),0,'Pt 1 Summary of Data - Final'!I21/'Pt 1 Summary of Data - Final'!I48) -> 0 | G11: =IF(ISERROR('Pt 1 Summary of Data - Final'!J21/'Pt 1 Summary of Data - Final'!J48),0,'Pt 1 Summary of Data - Final'!J21/'Pt 1 Summary of Data - Final'!J48) -> 0 | H11: =IF(ISERROR('Pt 1 Summary of Data - Final'!K21/'Pt 1 Summary of Data - Final'!K48),0,'Pt 1 Summary of Data - Final'!K21/'Pt 1 Summary of Data - Final'!K48) -> 49.92012367 | I11: =IF(ISERROR('Pt 1 Summary of Data - Final'!L21/'Pt 1 Summary of Data - Final'!L48),0,'Pt 1 Summary of Data - Final'!L21/'Pt 1 Summary of Data - Final'!L48) -> 49.92100516 | J11: =IF(ISERROR('Pt 1 Summary of Data - Final'!M21/'Pt 1 Summary of Data - Final'!M48),0,'Pt 1 Summary of Data - Final'!M21/'Pt 1 Summary of Data - Final'!M48) -> 0 | K11: =IF(ISERROR('Pt 1 Summary of Data - Final'!N21/'Pt 1 Summary of Data - Final'!N48),0,'Pt 1 Summary of Data - Final'!N21/'Pt 1 Summary of Data - Final'!N48) -> 0 | L11: =IF(ISERROR('Pt 1 Summary of Data - Final'!O21/'Pt 1 Summary of Data - Final'!O48),0,'Pt 1 Summary of Data - Final'!O21/'Pt 1 Summary of Data - Final'!O48) -> 0 | M11: =IF(ISERROR('Pt 1 Summary of Data - Final'!P21/'Pt 1 Summary of Data - Final'!P48),0,'Pt 1 Summary of Data - Final'!P21/'Pt 1 Summary of Data - Final'!P48) -> 0
A12: Total Incurred Claims PMPM (Line 2.1 / Member Months) | B12: =IF(ISERROR('Pt 1 Summary of Data - Final'!E24/'Pt 1 Summary of Data - Final'!E48),0,'Pt 1 Summary of Data - Final'!E24/'Pt 1 Summary of Data - Final'!E48) -> 0 | C12: =IF(ISERROR('Pt 1 Summary of Data - Final'!F24/'Pt 1 Summary of Data - Final'!F48),0,'Pt 1 Summary of Data - Final'!F24/'Pt 1 Summary of Data - Final'!F48) -> 0 | D12: =IF(ISERROR('Pt 1 Summary of Data - Final'!G24/'Pt 1 Summary of Data - Final'!G48),0,'Pt 1 Summary of Data - Final'!G24/'Pt 1 Summary of Data - Final'!G48) -> 0 | E12: =IF(ISERROR('Pt 1 Summary of Data - Final'!H24/'Pt 1 Summary of Data - Final'!H48),0,'Pt 1 Summary of Data - Final'!H24/'Pt 1 Summary of Data - Final'!H48) -> 0 | F12: =IF(ISERROR('Pt 1 Summary of Data - Final'!I24/'Pt 1 Summary of Data - Final'!I48),0,'Pt 1 Summary of Data - Final'!I24/'Pt 1 Summary of Data - Final'!I48) -> 0 | G12: =IF(ISERROR('Pt 1 Summary of Data - Final'!J24/'Pt 1 Summary of Data - Final'!J48),0,'Pt 1 Summary of Data - Final'!J24/'Pt 1 Summary of Data - Final'!J48) -> 0 | H12: =IF(ISERROR('Pt 1 Summary of Data - Final'!K24/'Pt 1 Summary of Data - Final'!K48),0,'Pt 1 Summary of Data - Final'!K24/'Pt 1 Summary of Data - Final'!K48) -> 26.01542769 | I12: =IF(ISERROR('Pt 1 Summary of Data - Final'!L24/'Pt 1 Summary of Data - Final'!L48),0,'Pt 1 Summary of Data - Final'!L24/'Pt 1 Summary of Data - Final'!L48) -> 27.55907057 | J12: =IF(ISERROR('Pt 1 Summary of Data - Final'!M24/'Pt 1 Summary of Data - Final'!M48),0,'Pt 1 Summary of Data - Final'!M24/'Pt 1 Summary of Data - Final'!M48) -> 0 | K12: =IF(ISERROR('Pt 1 Summary of Data - Final'!N24/'Pt 1 Summary of Data - Final'!N48),0,'Pt 1 Summary of Data - Final'!N24/'Pt 1 Summary of Data - Final'!N48) -> 0 | L12: =IF(ISERROR('Pt 1 Summary of Data - Final'!O24/'Pt 1 Summary of Data - Final'!O48),0,'Pt 1 Summary of Data - Final'!O24/'Pt 1 Summary of Data - Final'!O48) -> 0 | M12: =IF(ISERROR('Pt 1 Summary of Data - Final'!P24/'Pt 1 Summary of Data - Final'!P48),0,'Pt 1 Summary of Data - Final'!P24/'Pt 1 Summary of Data - Final'!P48) -> 0
A13: Non-Claims Costs
A14: Total Non-Claims Costs % of Premiums (Line 4.5 / Line 1.1) | B14: =IF(ISERROR('Pt 1 Summary of Data - Final'!E44/'Pt 1 Summary of Data - Final'!E21),0,'Pt 1 Summary of Data - Final'!E44/'Pt 1 Summary of Data - Final'!E21) -> 0 | C14: =IF(ISERROR('Pt 1 Summary of Data - Final'!F44/'Pt 1 Summary of Data - Final'!F21),0,'Pt 1 Summary of Data - Final'!F44/'Pt 1 Summary of Data - Final'!F21) -> 0 | D14: =IF(ISERROR('Pt 1 Summary of Data - Final'!G44/'Pt 1 Summary of Data - Final'!G21),0,'Pt 1 Summary of Data - Final'!G44/'Pt 1 Summary of Data - Final'!G21) -> 0 | E14: =IF(ISERROR('Pt 1 Summary of Data - Final'!H44/'Pt 1 Summary of Data - Final'!H21),0,'Pt 1 Summary of Data - Final'!H44/'Pt 1 Summary of Data - Final'!H21) -> 0 | F14: =IF(ISERROR('Pt 1 Summary of Data - Final'!I44/'Pt 1 Summary of Data - Final'!I21),0,'Pt 1 Summary of Data - Final'!I44/'Pt 1 Summary of Data - Final'!I21) -> 0 | G14: =IF(ISERROR('Pt 1 Summary of Data - Final'!J44/'Pt 1 Summary of Data - Final'!J21),0,'Pt 1 Summary of Data - Final'!J44/'Pt 1 Summary of Data - Final'!J21) -> 0 | H14: =IF(ISERROR('Pt 1 Summary of Data - Final'!K44/'Pt 1 Summary of Data - Final'!K21),0,'Pt 1 Summary of Data - Final'!K44/'Pt 1 Summary of Data - Final'!K21) -> 0.2417168946 | I14: =IF(ISERROR('Pt 1 Summary of Data - Final'!L44/'Pt 1 Summary of Data - Final'!L21),0,'Pt 1 Summary of Data - Final'!L44/'Pt 1 Summary of Data - Final'!L21) -> 0.2422118608 | J14: =IF(ISERROR('Pt 1 Summary of Data - Final'!M44/'Pt 1 Summary of Data - Final'!M21),0,'Pt 1 Summary of Data - Final'!M44/'Pt 1 Summary of Data - Final'!M21) -> 0 | K14: =IF(ISERROR('Pt 1 Summary of Data - Final'!N44/'Pt 1 Summary of Data - Final'!N21),0,'Pt 1 Summary of Data - Final'!N44/'Pt 1 Summary of Data - Final'!N21) -> 0 | L14: =IF(ISERROR('Pt 1 Summary of Data - Final'!O44/'Pt 1 Summary of Data - Final'!O21),0,'Pt 1 Summary of Data - Final'!O44/'Pt 1 Summary of Data - Final'!O21) -> 0 | M14: =IF(ISERROR('Pt 1 Summary of Data - Final'!P44/'Pt 1 Summary of Data - Final'!P21),0,'Pt 1 Summary of Data - Final'!P44/'Pt 1 Summary of Data - Final'!P21) -> 0
A15: Direct Sal. & Benefits % of Premiums (Line 4.1 / Line 1.1) | B15: =IF(ISERROR('Pt 1 Summary of Data - Final'!E38/'Pt 1 Summary of Data - Final'!E$21),0,'Pt 1 Summary of Data - Final'!E38/'Pt 1 Summary of Data - Final'!E$21) -> 0 | C15: =IF(ISERROR('Pt 1 Summary of Data - Final'!F38/'Pt 1 Summary of Data - Final'!F$21),0,'Pt 1 Summary of Data - Final'!F38/'Pt 1 Summary of Data - Final'!F$21) -> 0 | D15: =IF(ISERROR('Pt 1 Summary of Data - Final'!G38/'Pt 1 Summary of Data - Final'!G$21),0,'Pt 1 Summary of Data - Final'!G38/'Pt 1 Summary of Data - Final'!G$21) -> 0 | E15: =IF(ISERROR('Pt 1 Summary of Data - Final'!H38/'Pt 1 Summary of Data - Final'!H$21),0,'Pt 1 Summary of Data - Final'!H38/'Pt 1 Summary of Data - Final'!H$21) -> 0 | F15: =IF(ISERROR('Pt 1 Summary of Data - Final'!I38/'Pt 1 Summary of Data - Final'!I$21),0,'Pt 1 Summary of Data - Final'!I38/'Pt 1 Summary of Data - Final'!I$21) -> 0 | G15: =IF(ISERROR('Pt 1 Summary of Data - Final'!J38/'Pt 1 Summary of Data - Final'!J$21),0,'Pt 1 Summary of Data - Final'!J38/'Pt 1 Summary of Data - Final'!J$21) -> 0 | H15: =IF(ISERROR('Pt 1 Summary of Data - Final'!K38/'Pt 1 Summary of Data - Final'!K$21),0,'Pt 1 Summary of Data - Final'!K38/'Pt 1 Summary of Data - Final'!K$21) -> 0 | I15: =IF(ISERROR('Pt 1 Summary of Data - Final'!L38/'Pt 1 Summary of Data - Final'!L$21),0,'Pt 1 Summary of Data - Final'!L38/'Pt 1 Summary of Data - Final'!L$21) -> 0 | J15: =IF(ISERROR('Pt 1 Summary of Data - Final'!M38/'Pt 1 Summary of Data - Final'!M$21),0,'Pt 1 Summary of Data - Final'!M38/'Pt 1 Summary of Data - Final'!M$21) -> 0 | K15: =IF(ISERROR('Pt 1 Summary of Data - Final'!N38/'Pt 1 Summary of Data - Final'!N$21),0,'Pt 1 Summary of Data - Final'!N38/'Pt 1 Summary of Data - Final'!N$21) -> 0 | L15: =IF(ISERROR('Pt 1 Summary of Data - Final'!O38/'Pt 1 Summary of Data - Final'!O$21),0,'Pt 1 Summary of Data - Final'!O38/'Pt 1 Summary of Data - Final'!O$21) -> 0 | M15: =IF(ISERROR('Pt 1 Summary of Data - Final'!P38/'Pt 1 Summary of Data - Final'!P$21),0,'Pt 1 Summary of Data - Final'!P38/'Pt 1 Summary of Data - Final'!P$21) -> 0
A16: Agents, Broker Fees & Comm. % of Premiums (Line 4.2 / Line 1.1) | B16: =IF(ISERROR('Pt 1 Summary of Data - Final'!E39/'Pt 1 Summary of Data - Final'!E$21),0,'Pt 1 Summary of Data - Final'!E39/'Pt 1 Summary of Data - Final'!E$21) -> 0 | C16: =IF(ISERROR('Pt 1 Summary of Data - Final'!F39/'Pt 1 Summary of Data - Final'!F$21),0,'Pt 1 Summary of Data - Final'!F39/'Pt 1 Summary of Data - Final'!F$21) -> 0 | D16: =IF(ISERROR('Pt 1 Summary of Data - Final'!G39/'Pt 1 Summary of Data - Final'!G$21),0,'Pt 1 Summary of Data - Final'!G39/'Pt 1 Summary of Data - Final'!G$21) -> 0 | E16: =IF(ISERROR('Pt 1 Summary of Data - Final'!H39/'Pt 1 Summary of Data - Final'!H$21),0,'Pt 1 Summary of Data - Final'!H39/'Pt 1 Summary of Data - Final'!H$21) -> 0 | F16: =IF(ISERROR('Pt 1 Summary of Data - Final'!I39/'Pt 1 Summary of Data - Final'!I$21),0,'Pt 1 Summary of Data - Final'!I39/'Pt 1 Summary of Data - Final'!I$21) -> 0 | G16: =IF(ISERROR('Pt 1 Summary of Data - Final'!J39/'Pt 1 Summary of Data - Final'!J$21),0,'Pt 1 Summary of Data - Final'!J39/'Pt 1 Summary of Data - Final'!J$21) -> 0 | H16: =IF(ISERROR('Pt 1 Summary of Data - Final'!K39/'Pt 1 Summary of Data - Final'!K$21),0,'Pt 1 Summary of Data - Final'!K39/'Pt 1 Summary of Data - Final'!K$21) -> 0.06320292645 | I16: =IF(ISERROR('Pt 1 Summary of Data - Final'!L39/'Pt 1 Summary of Data - Final'!L$21),0,'Pt 1 Summary of Data - Final'!L39/'Pt 1 Summary of Data - Final'!L$21) -> 0.06333234773 | J16: =IF(ISERROR('Pt 1 Summary of Data - Final'!M39/'Pt 1 Summary of Data - Final'!M$21),0,'Pt 1 Summary of Data - Final'!M39/'Pt 1 Summary of Data - Final'!M$21) -> 0 | K16: =IF(ISERROR('Pt 1 Summary of Data - Final'!N39/'Pt 1 Summary of Data - Final'!N$21),0,'Pt 1 Summary of Data - Final'!N39/'Pt 1 Summary of Data - Final'!N$21) -> 0 | L16: =IF(ISERROR('Pt 1 Summary of Data - Final'!O39/'Pt 1 Summary of Data - Final'!O$21),0,'Pt 1 Summary of Data - Final'!O39/'Pt 1 Summary of Data - Final'!O$21) -> 0 | M16: =IF(ISERROR('Pt 1 Summary of Data - Final'!P39/'Pt 1 Summary of Data - Final'!P$21),0,'Pt 1 Summary of Data - Final'!P39/'Pt 1 Summary of Data - Final'!P$21) -> 0
A17: Management Fee % of Premiums (Acct 76000 / Line 1.1) | B17: =IF(VLOOKUP('Essbase Input'!$C$8,Tables!$B:$F,5,FALSE)="DPPO",0,IF(ISERROR('EB PT 1'!K64/'Pt 1 Summary of Data - Final'!E21),0,'EB PT 1'!K64/'Pt 1 Summary of Data - Final'!E21)) -> 0 | C17: =+B17 -> 0 | D17: =IF(VLOOKUP('Essbase Input'!$C$8,Tables!$B:$F,5,FALSE)="DPPO",0,IF(ISERROR('EB PT 1'!M64/'Pt 1 Summary of Data - Final'!G21),0,'EB PT 1'!M64/'Pt 1 Summary of Data - Final'!G21)) -> 0 | E17: =+D17 -> 0 | F17: =IF(VLOOKUP('Essbase Input'!$C$8,Tables!$B:$F,5,FALSE)="DPPO",0,IF(ISERROR('EB PT 1'!O64/'Pt 1 Summary of Data - Final'!I21),0,'EB PT 1'!O64/'Pt 1 Summary of Data - Final'!I21)) -> 0 | G17: =+F17 -> 0 | H17: =IF(VLOOKUP('Essbase Input'!$C$8,Tables!$B:$F,5,FALSE)="DHMO",0,IF('Essbase Input'!$C$8="Golden Rule Insurance Company",'EB PT 1'!Q64/'Pt 1 Summary of Data - Final'!K21,IF(ISERROR('EB PT 1'!K64/'Pt 1 Summary of Data - Final'!K21),0,'EB PT 1'!K64/'Pt 1 Summary of Data - Final'!K21))) -> 0.1155999953 | I17: =+H17 -> 0.1155999953 | J17: =IF(VLOOKUP('Essbase Input'!$C$8,Tables!$B:$F,5,FALSE)="DHMO",0,IF('Essbase Input'!$C$8="Golden Rule Insurance Company",0,IF(ISERROR('EB PT 1'!M64/'Pt 1 Summary of Data - Final'!M21),0,'EB PT 1'!M64/'Pt 1 Summary of Data - Final'!M21))) -> 0 | K17: =+J17 -> 0 | L17: =IF(VLOOKUP('Essbase Input'!$C$8,Tables!$B:$F,5,FALSE)="DHMO",0,IF('Essbase Input'!$C$8="Golden Rule Insurance Company",0,IF(ISERROR('EB PT 1'!O64/'Pt 1 Summary of Data - Final'!O21),0,'EB PT 1'!O64/'Pt 1 Summary of Data - Final'!O21))) -> 0 | M17: =+L17 -> 0
A18: Salaries as a % of MGMT Fees (Line 4.1 / Acct 76000) | B18: =IF(VLOOKUP('Essbase Input'!$C$8,Tables!$B:$F,5,FALSE)="DPPO",0,IF(ISERROR('Pt 1 Summary of Data - Final'!E38/'EB PT 1'!K64),0,'Pt 1 Summary of Data - Final'!E38/'EB PT 1'!K64)) -> 0 | C18: =+B18 -> 0 | D18: =IF(VLOOKUP('Essbase Input'!$C$8,Tables!$B:$F,5,FALSE)="DPPO",0,IF(ISERROR('Pt 1 Summary of Data - Final'!G38/'EB PT 1'!M64),0,'Pt 1 Summary of Data - Final'!G38/'EB PT 1'!M64)) -> 0 | E18: =+D18 -> 0 | F18: =IF(VLOOKUP('Essbase Input'!$C$8,Tables!$B:$F,5,FALSE)="DPPO",0,IF(ISERROR('Pt 1 Summary of Data - Final'!I38/'EB PT 1'!O64),0,'Pt 1 Summary of Data - Final'!I38/'EB PT 1'!O64)) -> 0 | G18: =+F18 -> 0 | H18: =IF(VLOOKUP('Essbase Input'!$C$8,Tables!$B:$F,5,FALSE)="DHMO",0,IF('Essbase Input'!$C$8="Golden Rule Insurance Company",'Pt 1 Summary of Data - Final'!K38/'EB PT 1'!Q64,IF(ISERROR('Pt 1 Summary of Data - Final'!K38/'EB PT 1'!K64),0,'Pt 1 Summary of Data - Final'!K38/'EB PT 1'!K64))) -> 0 | I18: =+H18 -> 0 | J18: =IF(VLOOKUP('Essbase Input'!$C$8,Tables!$B:$F,5,FALSE)="DHMO",0,IF('Essbase Input'!$C$8="Golden Rule Insurance Company",0,IF(ISERROR('Pt 1 Summary of Data - Final'!M38/'EB PT 1'!M64),0,'Pt 1 Summary of Data - Final'!M38/'EB PT 1'!M64))) -> 0 | K18: =+J18 -> 0 | L18: =IF(VLOOKUP('Essbase Input'!$C$8,Tables!$B:$F,5,FALSE)="DHMO",0,IF('Essbase Input'!$C$8="Golden Rule Insurance Company",0,IF(ISERROR('Pt 1 Summary of Data - Final'!O38/'EB PT 1'!O64),0,'Pt 1 Summary of Data - Final'!O38/'EB PT 1'!O64))) -> 0 | M18: =+L18 -> 0
A19: Taxes
A20: Effective Tax Rate - Federal (Line 3.1 / (Line 1.1 - 2.1 - 4.5)) | B20: =IF(ISERROR(SUM('Pt 1 Summary of Data - Final'!E28:E29)/('Pt 1 Summary of Data - Final'!E21-'Pt 1 Summary of Data - Final'!E24-'Pt 1 Summary of Data - Final'!E44)),0,SUM('Pt 1 Summary of Data - Final'!E28:E29)/('Pt 1 Summary of Data - Final'!E21-'Pt 1 Summary of Data - Final'!E24-'Pt 1 Summary of Data - Final'!E44)) -> 0 | C20: =IF(ISERROR(SUM('Pt 1 Summary of Data - Final'!F28:F29)/('Pt 1 Summary of Data - Final'!F21-'Pt 1 Summary of Data - Final'!F24-'Pt 1 Summary of Data - Final'!F44)),0,SUM('Pt 1 Summary of Data - Final'!F28:F29)/('Pt 1 Summary of Data - Final'!F21-'Pt 1 Summary of Data - Final'!F24-'Pt 1 Summary of Data - Final'!F44)) -> 0 | D20: =IF(ISERROR(SUM('Pt 1 Summary of Data - Final'!G28:G29)/('Pt 1 Summary of Data - Final'!G21-'Pt 1 Summary of Data - Final'!G24-'Pt 1 Summary of Data - Final'!G44)),0,SUM('Pt 1 Summary of Data - Final'!G28:G29)/('Pt 1 Summary of Data - Final'!G21-'Pt 1 Summary of Data - Final'!G24-'Pt 1 Summary of Data - Final'!G44)) -> 0 | E20: =IF(ISERROR(SUM('Pt 1 Summary of Data - Final'!H28:H29)/('Pt 1 Summary of Data - Final'!H21-'Pt 1 Summary of Data - Final'!H24-'Pt 1 Summary of Data - Final'!H44)),0,SUM('Pt 1 Summary of Data - Final'!H28:H29)/('Pt 1 Summary of Data - Final'!H21-'Pt 1 Summary of Data - Final'!H24-'Pt 1 Summary of Data - Final'!H44)) -> 0 | F20: =IF(ISERROR(SUM('Pt 1 Summary of Data - Final'!I28:I29)/('Pt 1 Summary of Data - Final'!I21-'Pt 1 Summary of Data - Final'!I24-'Pt 1 Summary of Data - Final'!I44)),0,SUM('Pt 1 Summary of Data - Final'!I28:I29)/('Pt 1 Summary of Data - Final'!I21-'Pt 1 Summary of Data - Final'!I24-'Pt 1 Summary of Data - Final'!I44)) -> 0 | G20: =IF(ISERROR(SUM('Pt 1 Summary of Data - Final'!J28:J29)/('Pt 1 Summary of Data - Final'!J21-'Pt 1 Summary of Data - Final'!J24-'Pt 1 Summary of Data - Final'!J44)),0,SUM('Pt 1 Summary of Data - Final'!J28:J29)/('Pt 1 Summary of Data - Final'!J21-'Pt 1 Summary of Data - Final'!J24-'Pt 1 Summary of Data - Final'!J44)) -> 0 | H20: =IF(ISERROR(SUM('Pt 1 Summary of Data - Final'!K28:K29)/('Pt 1 Summary of Data - Final'!K21-'Pt 1 Summary of Data - Final'!K24-'Pt 1 Summary of Data - Final'!K44)),0,SUM('Pt 1 Summary of Data - Final'!K28:K29)/('Pt 1 Summary of Data - Final'!K21-'Pt 1 Summary of Data - Final'!K24-'Pt 1 Summary of Data - Final'!K44)) -> 0.1615965698 | I20: =IF(ISERROR(SUM('Pt 1 Summary of Data - Final'!L28:L29)/('Pt 1 Summary of Data - Final'!L21-'Pt 1 Summary of Data - Final'!L24-'Pt 1 Summary of Data - Final'!L44)),0,SUM('Pt 1 Summary of Data - Final'!L28:L29)/('Pt 1 Summary of Data - Final'!L21-'Pt 1 Summary of Data - Final'!L24-'Pt 1 Summary of Data - Final'!L44)) -> 0.186647352 | J20: =IF(ISERROR(SUM('Pt 1 Summary of Data - Final'!M28:M29)/('Pt 1 Summary of Data - Final'!M21-'Pt 1 Summary of Data - Final'!M24-'Pt 1 Summary of Data - Final'!M44)),0,SUM('Pt 1 Summary of Data - Final'!M28:M29)/('Pt 1 Summary of Data - Final'!M21-'Pt 1 Summary of Data - Final'!M24-'Pt 1 Summary of Data - Final'!M44)) -> 0 | K20: =IF(ISERROR(SUM('Pt 1 Summary of Data - Final'!N28:N29)/('Pt 1 Summary of Data - Final'!N21-'Pt 1 Summary of Data - Final'!N24-'Pt 1 Summary of Data - Final'!N44)),0,SUM('Pt 1 Summary of Data - Final'!N28:N29)/('Pt 1 Summary of Data - Final'!N21-'Pt 1 Summary of Data - Final'!N24-'Pt 1 Summary of Data - Final'!N44)) -> 0 | L20: =IF(ISERROR(SUM('Pt 1 Summary of Data - Final'!O28:O29)/('Pt 1 Summary of Data - Final'!O21-'Pt 1 Summary of Data - Final'!O24-'Pt 1 Summary of Data - Final'!O44)),0,SUM('Pt 1 Summary of Data - Final'!O28:O29)/('Pt 1 Summary of Data - Final'!O21-'Pt 1 Summary of Data - Final'!O24-'Pt 1 Summary of Data - Final'!O44)) -> 0 | M20: =IF(ISERROR(SUM('Pt 1 Summary of Data - Final'!P28:P29)/('Pt 1 Summary of Data - Final'!P21-'Pt 1 Summary of Data - Final'!P24-'Pt 1 Summary of Data - Final'!P44)),0,SUM('Pt 1 Summary of Data - Final'!P28:P29)/('Pt 1 Summary of Data - Final'!P21-'Pt 1 Summary of Data - Final'!P24-'Pt 1 Summary of Data - Final'!P44)) -> 0
A21: Effective Tax Rate - State & Local (Line 3.2 / (Line 1.1 - 2.1 - 4.5)) | B21: =IF(ISERROR(SUM('Pt 1 Summary of Data - Final'!E31:E34)/('Pt 1 Summary of Data - Final'!E21-'Pt 1 Summary of Data - Final'!E24-'Pt 1 Summary of Data - Final'!E44)),0,SUM('Pt 1 Summary of Data - Final'!E31:E34)/('Pt 1 Summary of Data - Final'!E21-'Pt 1 Summary of Data - Final'!E24-'Pt 1 Summary of Data - Final'!E44)) -> 0 | C21: =IF(ISERROR(SUM('Pt 1 Summary of Data - Final'!F31:F34)/('Pt 1 Summary of Data - Final'!F21-'Pt 1 Summary of Data - Final'!F24-'Pt 1 Summary of Data - Final'!F44)),0,SUM('Pt 1 Summary of Data - Final'!F31:F34)/('Pt 1 Summary of Data - Final'!F21-'Pt 1 Summary of Data - Final'!F24-'Pt 1 Summary of Data - Final'!F44)) -> 0 | D21: =IF(ISERROR(SUM('Pt 1 Summary of Data - Final'!G31:G34)/('Pt 1 Summary of Data - Final'!G21-'Pt 1 Summary of Data - Final'!G24-'Pt 1 Summary of Data - Final'!G44)),0,SUM('Pt 1 Summary of Data - Final'!G31:G34)/('Pt 1 Summary of Data - Final'!G21-'Pt 1 Summary of Data - Final'!G24-'Pt 1 Summary of Data - Final'!G44)) -> 0 | E21: =IF(ISERROR(SUM('Pt 1 Summary of Data - Final'!H31:H34)/('Pt 1 Summary of Data - Final'!H21-'Pt 1 Summary of Data - Final'!H24-'Pt 1 Summary of Data - Final'!H44)),0,SUM('Pt 1 Summary of Data - Final'!H31:H34)/('Pt 1 Summary of Data - Final'!H21-'Pt 1 Summary of Data - Final'!H24-'Pt 1 Summary of Data - Final'!H44)) -> 0 | F21: =IF(ISERROR(SUM('Pt 1 Summary of Data - Final'!I31:I34)/('Pt 1 Summary of Data - Final'!I21-'Pt 1 Summary of Data - Final'!I24-'Pt 1 Summary of Data - Final'!I44)),0,SUM('Pt 1 Summary of Data - Final'!I31:I34)/('Pt 1 Summary of Data - Final'!I21-'Pt 1 Summary of Data - Final'!I24-'Pt 1 Summary of Data - Final'!I44)) -> 0 | G21: =IF(ISERROR(SUM('Pt 1 Summary of Data - Final'!J31:J34)/('Pt 1 Summary of Data - Final'!J21-'Pt 1 Summary of Data - Final'!J24-'Pt 1 Summary of Data - Final'!J44)),0,SUM('Pt 1 Summary of Data - Final'!J31:J34)/('Pt 1 Summary of Data - Final'!J21-'Pt 1 Summary of Data - Final'!J24-'Pt 1 Summary of Data - Final'!J44)) -> 0 | H21: =IF(ISERROR(SUM('Pt 1 Summary of Data - Final'!K31:K34)/('Pt 1 Summary of Data - Final'!K21-'Pt 1 Summary of Data - Final'!K24-'Pt 1 Summary of Data - Final'!K44)),0,SUM('Pt 1 Summary of Data - Final'!K31:K34)/('Pt 1 Summary of Data - Final'!K21-'Pt 1 Summary of Data - Final'!K24-'Pt 1 Summary of Data - Final'!K44)) -> 0.2495415091 | I21: =IF(ISERROR(SUM('Pt 1 Summary of Data - Final'!L31:L34)/('Pt 1 Summary of Data - Final'!L21-'Pt 1 Summary of Data - Final'!L24-'Pt 1 Summary of Data - Final'!L44)),0,SUM('Pt 1 Summary of Data - Final'!L31:L34)/('Pt 1 Summary of Data - Final'!L21-'Pt 1 Summary of Data - Final'!L24-'Pt 1 Summary of Data - Final'!L44)) -> 0.2882255604 | J21: =IF(ISERROR(SUM('Pt 1 Summary of Data - Final'!M31:M34)/('Pt 1 Summary of Data - Final'!M21-'Pt 1 Summary of Data - Final'!M24-'Pt 1 Summary of Data - Final'!M44)),0,SUM('Pt 1 Summary of Data - Final'!M31:M34)/('Pt 1 Summary of Data - Final'!M21-'Pt 1 Summary of Data - Final'!M24-'Pt 1 Summary of Data - Final'!M44)) -> 0 | K21: =IF(ISERROR(SUM('Pt 1 Summary of Data - Final'!N31:N34)/('Pt 1 Summary of Data - Final'!N21-'Pt 1 Summary of Data - Final'!N24-'Pt 1 Summary of Data - Final'!N44)),0,SUM('Pt 1 Summary of Data - Final'!N31:N34)/('Pt 1 Summary of Data - Final'!N21-'Pt 1 Summary of Data - Final'!N24-'Pt 1 Summary of Data - Final'!N44)) -> 0 | L21: =IF(ISERROR(SUM('Pt 1 Summary of Data - Final'!O31:O34)/('Pt 1 Summary of Data - Final'!O21-'Pt 1 Summary of Data - Final'!O24-'Pt 1 Summary of Data - Final'!O44)),0,SUM('Pt 1 Summary of Data - Final'!O31:O34)/('Pt 1 Summary of Data - Final'!O21-'Pt 1 Summary of Data - Final'!O24-'Pt 1 Summary of Data - Final'!O44)) -> 0 | M21: =IF(ISERROR(SUM('Pt 1 Summary of Data - Final'!P31:P34)/('Pt 1 Summary of Data - Final'!P21-'Pt 1 Summary of Data - Final'!P24-'Pt 1 Summary of Data - Final'!P44)),0,SUM('Pt 1 Summary of Data - Final'!P31:P34)/('Pt 1 Summary of Data - Final'!P21-'Pt 1 Summary of Data - Final'!P24-'Pt 1 Summary of Data - Final'!P44)) -> 0
A22: Non-Claims Costs - QI/HIT
A23: QI/HIT % of Premiums | B23: =IF(VLOOKUP('Essbase Input'!$C$8,Tables!$B:$F,5,FALSE)="DPPO",0,IF(ISERROR(SUM('EB PT 1'!$K$45:$K$50)/'Pt 1 Summary of Data - Final'!E21),0,SUM('EB PT 1'!$K$45:$K$50)/'Pt 1 Summary of Data - Final'!E21)) -> 0 | C23: =+B23 -> 0 | D23: =IF(VLOOKUP('Essbase Input'!$C$8,Tables!$B:$F,5,FALSE)="DPPO",0,IF(ISERROR(SUM('EB PT 1'!$M$45:$M$50)/'Pt 1 Summary of Data - Final'!G21),0,SUM('EB PT 1'!$M$45:$M$50)/'Pt 1 Summary of Data - Final'!G21)) -> 0 | E23: =+D23 -> 0 | F23: =IF(VLOOKUP('Essbase Input'!$C$8,Tables!$B:$F,5,FALSE)="DPPO",0,IF(ISERROR(SUM('EB PT 1'!$O$45:$O$50)/'Pt 1 Summary of Data - Final'!I21),0,SUM('EB PT 1'!$O$45:$O$50)/'Pt 1 Summary of Data - Final'!I21)) -> 0 | G23: =+F23 -> 0 | H23: =IF(VLOOKUP('Essbase Input'!$C$8,Tables!$B:$F,5,FALSE)="DHMO",0,IF('Essbase Input'!$C$8="Golden Rule Insurance Company",SUM('EB PT 1'!$Q$45:$Q$50)/'Pt 1 Summary of Data - Final'!K21,IF(ISERROR(SUM('EB PT 1'!$K$45:$K$50)/'Pt 1 Summary of Data - Final'!K21),0,SUM('EB PT 1'!$K$45:$K$50)/'Pt 1 Summary of Data - Final'!K21))) -> 0 | I23: =+H23 -> 0 | J23: =IF(VLOOKUP('Essbase Input'!$C$8,Tables!$B:$F,5,FALSE)="DHMO",0,IF('Essbase Input'!$C$8="Golden Rule Insurance Company",0,IF(ISERROR(SUM('EB PT 1'!$M$45:$M$50)/'Pt 1 Summary of Data - Final'!M21),0,SUM('EB PT 1'!$M$45:$M$50)/'Pt 1 Summary of Data - Final'!M21))) -> 0 | K23: =+J23 -> 0 | L23: =IF(VLOOKUP('Essbase Input'!$C$8,Tables!$B:$F,5,FALSE)="DHMO",0,IF('Essbase Input'!$C$8="Golden Rule Insurance Company",0,IF(ISERROR(SUM('EB PT 1'!$O$45:$O$50)/'Pt 1 Summary of Data - Final'!O21),0,SUM('EB PT 1'!$O$45:$O$50)/'Pt 1 Summary of Data - Final'!O21))) -> 0 | M23: =+L23 -> 0
A24: QI/HIT % of Non-Claims Costs | B24: =IF(VLOOKUP('Essbase Input'!$C$8,Tables!$B:$F,5,FALSE)="DPPO",0,IF(ISERROR(SUM('EB PT 1'!$K$45:$K$50)/'Pt 1 Summary of Data - Final'!E44),0,SUM('EB PT 1'!$K$45:$K$50)/'Pt 1 Summary of Data - Final'!E44)) -> 0 | C24: =+B24 -> 0 | D24: =IF(VLOOKUP('Essbase Input'!$C$8,Tables!$B:$F,5,FALSE)="DPPO",0,IF(ISERROR(SUM('EB PT 1'!$M$45:$M$50)/'Pt 1 Summary of Data - Final'!G44),0,SUM('EB PT 1'!$M$45:$M$50)/'Pt 1 Summary of Data - Final'!G44)) -> 0 | E24: =+D24 -> 0 | F24: =IF(VLOOKUP('Essbase Input'!$C$8,Tables!$B:$F,5,FALSE)="DPPO",0,IF(ISERROR(SUM('EB PT 1'!$O$45:$O$50)/'Pt 1 Summary of Data - Final'!I44),0,SUM('EB PT 1'!$O$45:$O$50)/'Pt 1 Summary of Data - Final'!I44)) -> 0 | G24: =+F24 -> 0 | H24: =IF(VLOOKUP('Essbase Input'!$C$8,Tables!$B:$F,5,FALSE)="DHMO",0,IF('Essbase Input'!$C$8="Golden Rule Insurance Company",SUM('EB PT 1'!$Q$45:$Q$50)/'Pt 1 Summary of Data - Final'!K44,IF(ISERROR(SUM('EB PT 1'!$K$45:$K$50)/'Pt 1 Summary of Data - Final'!K44),0,SUM('EB PT 1'!$K$45:$K$50)/'Pt 1 Summary of Data - Final'!K44))) -> 0 | I24: =+H24 -> 0 | J24: =IF(VLOOKUP('Essbase Input'!$C$8,Tables!$B:$F,5,FALSE)="DHMO",0,IF('Essbase Input'!$C$8="Golden Rule Insurance Company",0,IF(ISERROR(SUM('EB PT 1'!$M$45:$M$50)/'Pt 1 Summary of Data - Final'!M44),0,SUM('EB PT 1'!$M$45:$M$50)/'Pt 1 Summary of Data - Final'!M44))) -> 0 | K24: =+J24 -> 0 | L24: =IF(VLOOKUP('Essbase Input'!$C$8,Tables!$B:$F,5,FALSE)="DHMO",0,IF('Essbase Input'!$C$8="Golden Rule Insurance Company",0,IF(ISERROR(SUM('EB PT 1'!$O$45:$O$50)/'Pt 1 Summary of Data - Final'!O44),0,SUM('EB PT 1'!$O$45:$O$50)/'Pt 1 Summary of Data - Final'!O44))) -> 0 | M24: =+L24 -> 0
A25: QI/HIT PMPM | B25: =IF(VLOOKUP('Essbase Input'!$C$8,Tables!$B:$F,5,FALSE)="DPPO",0,IF(ISERROR(SUM('EB PT 1'!$K$45:$K$50)/'Pt 1 Summary of Data - Final'!E48),0,SUM('EB PT 1'!$K$45:$K$50)/'Pt 1 Summary of Data - Final'!E48)) -> 0 | C25: =+B25 -> 0 | D25: =IF(VLOOKUP('Essbase Input'!$C$8,Tables!$B:$F,5,FALSE)="DPPO",0,IF(ISERROR(SUM('EB PT 1'!$M$45:$M$50)/'Pt 1 Summary of Data - Final'!G48),0,SUM('EB PT 1'!$M$45:$M$50)/'Pt 1 Summary of Data - Final'!G48)) -> 0 | E25: =+D25 -> 0 | F25: =IF(VLOOKUP('Essbase Input'!$C$8,Tables!$B:$F,5,FALSE)="DPPO",0,IF(ISERROR(SUM('EB PT 1'!$O$45:$O$50)/'Pt 1 Summary of Data - Final'!I48),0,SUM('EB PT 1'!$O$45:$O$50)/'Pt 1 Summary of Data - Final'!I48)) -> 0 | G25: =+F25 -> 0 | H25: =IF(VLOOKUP('Essbase Input'!$C$8,Tables!$B:$F,5,FALSE)="DHMO",0,IF('Essbase Input'!$C$8="Golden Rule Insurance Company",SUM('EB PT 1'!$Q$45:$Q$50)/'Pt 1 Summary of Data - Final'!K48,IF(ISERROR(SUM('EB PT 1'!$K$45:$K$50)/'Pt 1 Summary of Data - Final'!K48),0,SUM('EB PT 1'!$K$45:$K$50)/'Pt 1 Summary of Data - Final'!K48))) -> 0 | I25: =+H25 -> 0 | J25: =IF(VLOOKUP('Essbase Input'!$C$8,Tables!$B:$F,5,FALSE)="DHMO",0,IF('Essbase Input'!$C$8="Golden Rule Insurance Company",0,IF(ISERROR(SUM('EB PT 1'!$M$45:$M$50)/'Pt 1 Summary of Data - Final'!M48),0,SUM('EB PT 1'!$M$45:$M$50)/'Pt 1 Summary of Data - Final'!M48))) -> 0 | K25: =+J25 -> 0 | L25: =IF(VLOOKUP('Essbase Input'!$C$8,Tables!$B:$F,5,FALSE)="DHMO",0,IF('Essbase Input'!$C$8="Golden Rule Insurance Company",0,IF(ISERROR(SUM('EB PT 1'!$O$45:$O$50)/'Pt 1 Summary of Data - Final'!O48),0,SUM('EB PT 1'!$O$45:$O$50)/'Pt 1 Summary of Data - Final'!O48))) -> 0 | M25: =+L25 -> 0
A26: MLR
A27: MLR % (Part 4 Line 4.1) | B27: =IF(ISERROR('Pt 4 MLR Calculation - Final'!$H$33),0,'Pt 4 MLR Calculation - Final'!$H$33) ->  | C27: =+B27 ->  | D27: =IF(ISERROR('Pt 4 MLR Calculation - Final'!$L$33),0,'Pt 4 MLR Calculation - Final'!$L$33) ->  | E27: =+D27 ->  | F27: =IF(ISERROR('Pt 4 MLR Calculation - Final'!$P$33),0,'Pt 4 MLR Calculation - Final'!$P$33) ->  | G27: =+F27 ->  | H27: =IF(ISERROR('Pt 4 MLR Calculation - Final'!$T$33),0,'Pt 4 MLR Calculation - Final'!$T$33) ->  | I27: =+H27 ->  | J27: =IF(ISERROR('Pt 4 MLR Calculation - Final'!$X$33),0,'Pt 4 MLR Calculation - Final'!$X$33) ->  | K27: =+J27 ->  | L27: =IF(ISERROR('Pt 4 MLR Calculation - Final'!$AB$33),0,'Pt 4 MLR Calculation - Final'!$AB$33) ->  | M27: =+L27 -> 
A28: Membership
A29: Member Months per Covered Life (Other Indicators: Line 5.2 / Line 5.1) | B29: =IF(ISERROR('Pt 1 Summary of Data - Final'!E48/'Pt 1 Summary of Data - Final'!E47),0,'Pt 1 Summary of Data - Final'!E48/'Pt 1 Summary of Data - Final'!E47) -> 0 | C29: =IF(ISERROR('Pt 1 Summary of Data - Final'!F48/'Pt 1 Summary of Data - Final'!F47),0,'Pt 1 Summary of Data - Final'!F48/'Pt 1 Summary of Data - Final'!F47) -> 0 | D29: =IF(ISERROR('Pt 1 Summary of Data - Final'!G48/'Pt 1 Summary of Data - Final'!G47),0,'Pt 1 Summary of Data - Final'!G48/'Pt 1 Summary of Data - Final'!G47) -> 0 | E29: =IF(ISERROR('Pt 1 Summary of Data - Final'!H48/'Pt 1 Summary of Data - Final'!H47),0,'Pt 1 Summary of Data - Final'!H48/'Pt 1 Summary of Data - Final'!H47) -> 0 | F29: =IF(ISERROR('Pt 1 Summary of Data - Final'!I48/'Pt 1 Summary of Data - Final'!I47),0,'Pt 1 Summary of Data - Final'!I48/'Pt 1 Summary of Data - Final'!I47) -> 0 | G29: =IF(ISERROR('Pt 1 Summary of Data - Final'!J48/'Pt 1 Summary of Data - Final'!J47),0,'Pt 1 Summary of Data - Final'!J48/'Pt 1 Summary of Data - Final'!J47) -> 0 | H29: =IF(ISERROR('Pt 1 Summary of Data - Final'!K48/'Pt 1 Summary of Data - Final'!K47),0,'Pt 1 Summary of Data - Final'!K48/'Pt 1 Summary of Data - Final'!K47) -> 12.99553571 | I29: =IF(ISERROR('Pt 1 Summary of Data - Final'!L48/'Pt 1 Summary of Data - Final'!L47),0,'Pt 1 Summary of Data - Final'!L48/'Pt 1 Summary of Data - Final'!L47) -> 12.96875 | J29: =IF(ISERROR('Pt 1 Summary of Data - Final'!M48/'Pt 1 Summary of Data - Final'!M47),0,'Pt 1 Summary of Data - Final'!M48/'Pt 1 Summary of Data - Final'!M47) -> 0 | K29: =IF(ISERROR('Pt 1 Summary of Data - Final'!N48/'Pt 1 Summary of Data - Final'!N47),0,'Pt 1 Summary of Data - Final'!N48/'Pt 1 Summary of Data - Final'!N47) -> 0 | L29: =IF(ISERROR('Pt 1 Summary of Data - Final'!O48/'Pt 1 Summary of Data - Final'!O47),0,'Pt 1 Summary of Data - Final'!O48/'Pt 1 Summary of Data - Final'!O47) -> 0 | M29: =IF(ISERROR('Pt 1 Summary of Data - Final'!P48/'Pt 1 Summary of Data - Final'!P47),0,'Pt 1 Summary of Data - Final'!P48/'Pt 1 Summary of Data - Final'!P47) -> 0

Sheet Cover Page
B1: Department of Managed Health Care/Department of Insurance
B2: Medical Loss Ratio Reporting Form
B3: Dental Coverage
A6: 1. | B6: MLR Reporting Year | C6: ='Essbase Input'!$C$12 -> 2022
A7: 2. | B7: DMHC Health Plan ID / CDI NAIC No. | C7: 97179
A8: 3. | B8: Legal Name | C8: =VLOOKUP('Essbase Input'!$C$8,Tables!$B$4:$E$21,2,FALSE) -> UnitedHealthcare Life Insurance Company
A9: 4. | B9: DBA | C9: =IF(VLOOKUP('Essbase Input'!$C$8,Tables!$B$4:$E$21,4,FALSE)="","N/A",VLOOKUP('Essbase Input'!$C$8,Tables!$B$4:$E$21,4,FALSE)) -> N/A
A10: 5. | B10: Federal Tax Exempt Status? Please enter Yes or No | C10: No
B14: Cell Key:
B15: Blank cells require input from Health plan or Health insurer

Sheet EB PT 1 (hidden)
A1: CMS | B1: Ln | C1: Col | D1: Adjmt | E1: Rev | F1: ="Account" -> Account | G1: ="IDB Period" -> IDB Period | H1: ="Period" -> Period | I1: ="Reinsurance" -> Reinsurance | J1: ="Project" -> Project | K1: 1 | L1: 2 | M1: 3 | N1: 4 | O1: 5 | P1: 6 | Q1: GRIC, UHLIC, MWLIC-TN, TCLIC DPPO Sec. / INDIVIDUAL Col. | S1: Vision | T1: Life/Disability | U1: Stop Loss (1) | X1: Stop Loss (2) | AB1: Supp Hospital | AF1: Medicare Supp | AJ1: Student Health | AL1: Wrap | AM1: Ind Short Term | AN1: Oth Bus (excl by Stat) | AO1: UHC Domestic Stand Alone Dental Blank Cust | AP1: UHC Domestic Stand Alone Dental Not Comp Health | AQ1: UHC International Stand Alone Dental MLR Customer | AR1: Optum Stand Alone Dental MLR Customer | AS1: Elims Mkt Grp Stand Alone Dental MLR Customer | AT1: Corp Mkt Grp Stand Alone Dental MLR Customer | AU1: Non-UHG Stand Alone Dental MLR Customer | AV1: =CONCATENATE("All OUs p",LEFT(AV9,6)," MLR Customers") -> All OUs p306155 MLR Customers | AW1: =CONCATENATE("All OUs p",LEFT(AW9,6)," MLR Customers") -> All OUs p306156 MLR Customers | AX1: All OUs p305402 MLR Customers | AY1: All OUs p430083 MLR Customers | AZ1: All OUs p430084 MLR Customers | BA1: All OUs p430087 MLR Customers | BB1: All OUs p430088 MLR Customers | BC1: All OUs p430089 MLR Customers | BD1: Other Health Bus per MLR (Col 41) | BE1: -NII & FIT Oth-
K2: Views | L2: Views | M2: Views | N2: Views | O2: Views | P2: Views | Q2: Views | R2: Views | S2: Views | T2: Views | U2: Views | V2: Views | W2: Views | X2: Views | Y2: Views | Z2: Views | AA2: Views | AB2: Views | AC2: Views | AD2: Views | AE2: Views | AF2: Views | AG2: Views | AH2: Views | AI2: Views | AJ2: Views | AK2: Views | AL2: Views | AM2: Views | AN2: Views | AO2: Views | AP2: Views | AQ2: Views | AR2: Views | AS2: Views | AT2: Views | AU2: Views | AV2: Views | AW2: Views | AX2: Views | AY2: Views | AZ2: Views | BA2: Views | BB2: Views | BC2: Views | BD2: Views | BE2: Views
K3: Sources | L3: Sources | M3: Sources | N3: Sources | O3: Sources | P3: Sources | Q3: Sources | R3: Sources | S3: Sources | T3: Sources | U3: Sources | V3: Sources | W3: Sources | X3: Sources | Y3: Sources | Z3: Sources | AA3: Sources | AB3: Sources | AC3: Sources | AD3: Sources | AE3: Sources | AF3: Sources | AG3: Sources | AH3: Sources | AI3: Sources | AJ3: Sources | AK3: Sources | AL3: Sources | AM3: Sources | AN3: Sources | AO3: Sources | AP3: Sources | AQ3: Sources | AR3: Sources | AS3: Sources | AT3: Sources | AU3: Sources | AV3: Sources | AW3: Sources | AX3: Sources | AY3: Sources | AZ3: Sources | BA3: Sources | BB3: Sources | BC3: Sources | BD3: Sources | BE3: Sources
K4: Departments | L4: Departments | M4: Departments | N4: Departments | O4: Departments | P4: Departments | Q4: Departments | R4: Departments | S4: Departments | T4: Departments | U4: Departments | V4: Departments | W4: Departments | X4: Departments | Y4: Departments | Z4: Departments | AA4: Departments | AB4: Departments | AC4: Departments | AD4: Departments | AE4: Departments | AF4: Departments | AG4: Departments | AH4: Departments | AI4: Departments | AJ4: Departments | AK4: Departments | AL4: Departments | AM4: Departments | AN4: Departments | AO4: Departments | AP4: Departments | AQ4: Departments | AR4: Departments | AS4: Departments | AT4: Departments | AU4: Departments | AV4: Departments | AW4: Departments | AX4: Departments | AY4: Departments | AZ4: Departments | BA4: Departments | BB4: Departments | BC4: Departments | BD4: Departments | BE4: Departments
K5: NAIC Supp HC Exhibit | L5: NAIC Supp HC Exhibit | M5: NAIC Supp HC Exhibit | N5: NAIC Supp HC Exhibit | O5: NAIC Supp HC Exhibit | P5: NAIC Supp HC Exhibit | Q5: NAIC Supp HC Exhibit | R5: NAIC Supp HC Exhibit | S5: NAIC Supp HC Exhibit | T5: NAIC Supp HC Exhibit | U5: NAIC Supp HC Exhibit | V5: NAIC Supp HC Exhibit | W5: NAIC Supp HC Exhibit | X5: NAIC Supp HC Exhibit | Y5: NAIC Supp HC Exhibit | Z5: NAIC Supp HC Exhibit | AA5: NAIC Supp HC Exhibit | AB5: NAIC Supp HC Exhibit | AC5: NAIC Supp HC Exhibit | AD5: NAIC Supp HC Exhibit | AE5: NAIC Supp HC Exhibit | AF5: NAIC Supp HC Exhibit | AG5: NAIC Supp HC Exhibit | AH5: NAIC Supp HC Exhibit | AI5: NAIC Supp HC Exhibit | AJ5: NAIC Supp HC Exhibit | AK5: NAIC Supp HC Exhibit | AL5: NAIC Supp HC Exhibit | AM5: NAIC Supp HC Exhibit | AN5: NAIC Supp HC Exhibit | AO5: NAIC Supp HC Exhibit | AP5: NAIC Supp HC Exhibit | AQ5: NAIC Supp HC Exhibit | AR5: NAIC Supp HC Exhibit | AS5: NAIC Supp HC Exhibit | AT5: NAIC Supp HC Exhibit | AU5: NAIC Supp HC Exhibit | AV5: NAIC Supp HC Exhibit | AW5: NAIC Supp HC Exhibit | AX5: NAIC Supp HC Exhibit | AY5: NAIC Supp HC Exhibit | AZ5: NAIC Supp HC Exhibit | BA5: NAIC Supp HC Exhibit | BB5: NAIC Supp HC Exhibit | BC5: NAIC Supp HC Exhibit | BD5: NAIC Supp HC Exhibit | BE5: NAIC Supp HC Exhibit
K6: ='Essbase Input'!$C$8 -> UnitedHealthcare Life Ins Co | L6: ='Essbase Input'!$C$8 -> UnitedHealthcare Life Ins Co | M6: ='Essbase Input'!$C$8 -> UnitedHealthcare Life Ins Co | N6: ='Essbase Input'!$C$8 -> UnitedHealthcare Life Ins Co | O6: ='Essbase Input'!$C$8 -> UnitedHealthcare Life Ins Co | P6: ='Essbase Input'!$C$8 -> UnitedHealthcare Life Ins Co | Q6: ='Essbase Input'!$C$8 -> UnitedHealthcare Life Ins Co | R6: ='Essbase Input'!$C$8 -> UnitedHealthcare Life Ins Co | S6: ='Essbase Input'!$C$8 -> UnitedHealthcare Life Ins Co | T6: ='Essbase Input'!$C$8 -> UnitedHealthcare Life Ins Co | U6: ='Essbase Input'!$C$8 -> UnitedHealthcare Life Ins Co | V6: ='Essbase Input'!$C$8 -> UnitedHealthcare Life Ins Co | W6: ='Essbase Input'!$C$8 -> UnitedHealthcare Life Ins Co | X6: ='Essbase Input'!$C$8 -> UnitedHealthcare Life Ins Co | Y6: ='Essbase Input'!$C$8 -> UnitedHealthcare Life Ins Co | Z6: ='Essbase Input'!$C$8 -> UnitedHealthcare Life Ins Co | AA6: ='Essbase Input'!$C$8 -> UnitedHealthcare Life Ins Co | AB6: ='Essbase Input'!$C$8 -> UnitedHealthcare Life Ins Co | AC6: ='Essbase Input'!$C$8 -> UnitedHealthcare Life Ins Co | AD6: ='Essbase Input'!$C$8 -> UnitedHealthcare Life Ins Co | AE6: ='Essbase Input'!$C$8 -> UnitedHealthcare Life Ins Co | AF6: ='Essbase Input'!$C$8 -> UnitedHealthcare Life Ins Co | AG6: ='Essbase Input'!$C$8 -> UnitedHealthcare Life Ins Co | AH6: ='Essbase Input'!$C$8 -> UnitedHealthcare Life Ins Co | AI6: ='Essbase Input'!$C$8 -> UnitedHealthcare Life Ins Co | AJ6: ='Essbase Input'!$C$8 -> UnitedHealthcare Life Ins Co | AK6: ='Essbase Input'!$C$8 -> UnitedHealthcare Life Ins Co | AL6: ='Essbase Input'!$C$8 -> UnitedHealthcare Life Ins Co | AM6: ='Essbase Input'!$C$8 -> UnitedHealthcare Life Ins Co | AN6: ='Essbase Input'!$C$8 -> UnitedHealthcare Life Ins Co | AO6: ='Essbase Input'!$C$8 -> UnitedHealthcare Life Ins Co | AP6: ='Essbase Input'!$C$8 -> UnitedHealthcare Life Ins Co | AQ6: ='Essbase Input'!$C$8 -> UnitedHealthcare Life Ins Co | AR6: ='Essbase Input'!$C$8 -> UnitedHealthcare Life Ins Co | AS6: ='Essbase Input'!$C$8 -> UnitedHealthcare Life Ins Co | AT6: ='Essbase Input'!$C$8 -> UnitedHealthcare Life Ins Co | AU6: ='Essbase Input'!$C$8 -> UnitedHealthcare Life Ins Co | AV6: ='Essbase Input'!$C$8 -> UnitedHealthcare Life Ins Co | AW6: ='Essbase Input'!$C$8 -> UnitedHealthcare Life Ins Co | AX6: ='Essbase Input'!$C$8 -> UnitedHealthcare Life Ins Co | AY6: ='Essbase Input'!$C$8 -> UnitedHealthcare Life Ins Co | AZ6: ='Essbase Input'!$C$8 -> UnitedHealthcare Life Ins Co | BA6: ='Essbase Input'!$C$8 -> UnitedHealthcare Life Ins Co | BB6: ='Essbase Input'!$C$8 -> UnitedHealthcare Life Ins Co | BC6: ='Essbase Input'!$C$8 -> UnitedHealthcare Life Ins Co | BD6: ='Essbase Input'!$C$8 -> UnitedHealthcare Life Ins Co | BE6: ='Essbase Input'!$C$8 -> UnitedHealthcare Life Ins Co
K7: ='Essbase Input'!$C$9 -> California - CA | L7: ='Essbase Input'!$C$9 -> California - CA | M7: ='Essbase Input'!$C$9 -> California - CA | N7: ='Essbase Input'!$C$9 -> California - CA | O7: ='Essbase Input'!$C$9 -> California - CA | P7: ='Essbase Input'!$C$9 -> California - CA | Q7: ='Essbase Input'!$C$9 -> California - CA | R7: ='Essbase Input'!$C$9 -> California - CA | S7: ='Essbase Input'!$C$9 -> California - CA | T7: ='Essbase Input'!$C$9 -> California - CA | U7: ='Essbase Input'!$C$9 -> California - CA | V7: ='Essbase Input'!$C$9 -> California - CA | W7: ='Essbase Input'!$C$9 -> California - CA | X7: ='Essbase Input'!$C$9 -> California - CA | Y7: ='Essbase Input'!$C$9 -> California - CA | Z7: ='Essbase Input'!$C$9 -> California - CA | AA7: ='Essbase Input'!$C$9 -> California - CA | AB7: ='Essbase Input'!$C$9 -> California - CA | AC7: ='Essbase Input'!$C$9 -> California - CA | AD7: ='Essbase Input'!$C$9 -> California - CA | AE7: ='Essbase Input'!$C$9 -> California - CA | AF7: ='Essbase Input'!$C$9 -> California - CA | AG7: ='Essbase Input'!$C$9 -> California - CA | AH7: ='Essbase Input'!$C$9 -> California - CA | AI7: ='Essbase Input'!$C$9 -> California - CA | AJ7: ='Essbase Input'!$C$9 -> California - CA | AK7: ='Essbase Input'!$C$9 -> California - CA | AL7: ='Essbase Input'!$C$9 -> California - CA | AM7: ='Essbase Input'!$C$9 -> California - CA | AN7: ='Essbase Input'!$C$9 -> California - CA | AO7: ='Essbase Input'!$C$9 -> California - CA | AP7: ='Essbase Input'!$C$9 -> California - CA | AQ7: ='Essbase Input'!$C$9 -> California - CA | AR7: ='Essbase Input'!$C$9 -> California - CA | AS7: ='Essbase Input'!$C$9 -> California - CA | AT7: ='Essbase Input'!$C$9 -> California - CA | AU7: ='Essbase Input'!$C$9 -> California - CA | AV7: ='Essbase Input'!$C$9 -> California - CA | AW7: ='Essbase Input'!$C$9 -> California - CA | AX7: ='Essbase Input'!$C$9 -> California - CA | AY7: ='Essbase Input'!$C$9 -> California - CA | AZ7: ='Essbase Input'!$C$9 -> California - CA | BA7: ='Essbase Input'!$C$9 -> California - CA | BB7: ='Essbase Input'!$C$9 -> California - CA | BC7: ='Essbase Input'!$C$9 -> California - CA | BD7: ='Essbase Input'!$C$9 -> California - CA | BE7: ='Essbase Input'!$C$9 -> California - CA
K8: ='Essbase Input'!$C$10 -> UnitedHealthcare Domestic | L8: ='Essbase Input'!$C$10 -> UnitedHealthcare Domestic | M8: ='Essbase Input'!$C$10 -> UnitedHealthcare Domestic | N8: ='Essbase Input'!$C$10 -> UnitedHealthcare Domestic | O8: ='Essbase Input'!$C$10 -> UnitedHealthcare Domestic | P8: ='Essbase Input'!$C$10 -> UnitedHealthcare Domestic | Q8: Operating Units | R8: Operating Units | S8: Operating Units | T8: Operating Units | U8: Operating Units | V8: Operating Units | W8: Operating Units | X8: Operating Units | Y8: Operating Units | Z8: Operating Units | AA8: Operating Units | AB8: Operating Units | AC8: Operating Units | AD8: Operating Units | AE8: Operating Units | AF8: Operating Units | AG8: Operating Units | AH8: Operating Units | AI8: Operating Units | AJ8: Operating Units | AK8: Operating Units | AL8: Operating Units | AM8: Operating Units | AN8: Operating Units | AO8: UnitedHealthcare Domestic | AP8: UnitedHealthcare Domestic | AQ8: UnitedHealthcare International | AR8: Optum | AS8: Eliminations Market Group | AT8: Corp Market Group Rollup | AU8: Non UnitedHealth Group Rollup | AV8: Operating Units | AW8: Operating Units | AX8: Operating Units | AY8: Operating Units | AZ8: Operating Units | BA8: Operating Units | BB8: Operating Units | BC8: Operating Units | BD8: Operating Units | BE8: Operating Units
K9: ='Essbase Input'!$C$11 -> Stand Alone Dental | L9: ='Essbase Input'!$C$11 -> Stand Alone Dental | M9: ='Essbase Input'!$C$11 -> Stand Alone Dental | N9: ='Essbase Input'!$C$11 -> Stand Alone Dental | O9: ='Essbase Input'!$C$11 -> Stand Alone Dental | P9: ='Essbase Input'!$C$11 -> Stand Alone Dental | Q9: ='Essbase Input'!$C$11 -> Stand Alone Dental | R9: ='Essbase Input'!$C$11 -> Stand Alone Dental | S9: Stand Alone Vision | T9: Non Stand Alone Dental/Vision | U9: 322000 - Stop Loss - Individual | V9: 322010 - Stop Loss PEL | W9: 322100 - Stop Loss - Aggregate | X9: 150000 - Stop Loss - Individual | Y9: 150010 - Stop Loss - Terminal Ind | Z9: 151000 - Stop Loss - Aggregate | AA9: 151010 - Stop Loss - Terminal Aggregate | AB9: 204000 - Supplemental Hospital Insur | AC9: 204010 - Hospital Advantage Plans | AD9: 204020 - Essential Health Insurance Pln | AE9: 204030 - Essential Plus Health Insur | AF9: 203000 - Medicare Supplement - Indiv | AG9: 203010 - Medicare Supplement - Group | AH9: 203100 - Natl Acct Med Supp/Retiree | AI9: 203510 - Medicare Supplement - Pre-Std | AJ9: 112000 - Student Health Plans | AK9: 113000 - Student Health - Accident Only | AL9: 202080 - Wrap - NonGap | AM9: 106410 - Individual Short Term | AN9: Other Bus(excluded by Statute) | AO9: Stand Alone Dental | AP9: Stand Alone Dental | AQ9: Stand Alone Dental | AR9: Stand Alone Dental | AS9: Stand Alone Dental | AT9: Stand Alone Dental | AU9: Stand Alone Dental | AV9: 306155 - Package Savings Disc - Vision | AW9: 306156 - Package Savings - Dental | AX9: 305402 - Managed Transplant Risk SD | AY9: 430083 - PBM ePrescribe | AZ9: 430084 - PreCheck My Script Fee | BA9: 430087 - PBM EGWP | BB9: 430088 - PBM ECOB | BC9: 430089 - PBM Clinical | BD9: Other Health Business | BE9: ='Essbase Input'!$C$11 -> Stand Alone Dental
K10: Individual | L10: Individual | M10: Small Group Employer | N10: Small Group Employer | O10: Large Group Employer | P10: Large Group Employer | Q10: MLR Customers | R10: MLR Customers | S10: MLR Customers | T10: MLR Customers | U10: MLR Customers | V10: MLR Customers | W10: MLR Customers | X10: MLR Customers | Y10: MLR Customers | Z10: MLR Customers | AA10: MLR Customers | AB10: MLR Customers | AC10: MLR Customers | AD10: MLR Customers | AE10: MLR Customers | AF10: MLR Customers | AG10: MLR Customers | AH10: MLR Customers | AI10: MLR Customers | AJ10: MLR Customers | AK10: MLR Customers | AL10: MLR Customers | AM10: MLR Customers | AN10: MLR Customers | AO10: Blank Customer | AP10: Not Comp Health Coverage | AQ10: MLR Customers | AR10: MLR Customers | AS10: MLR Customers | AT10: MLR Customers | AU10: MLR Customers | AV10: MLR Customers | AW10: MLR Customers | AX10: MLR Customers | AY10: MLR Customers | AZ10: MLR Customers | BA10: MLR Customers | BB10: MLR Customers | BC10: MLR Customers | BD10: MLR Customers | BE10: MLR Customers
K11: ='Essbase Input'!$C$17 -> 2022 | L11: ='Essbase Input'!$C$16 -> 2023 | M11: ='Essbase Input'!$C$17 -> 2022 | N11: ='Essbase Input'!$C$16 -> 2023 | O11: ='Essbase Input'!$C$17 -> 2022 | P11: ='Essbase Input'!$C$16 -> 2023 | Q11: ='Essbase Input'!$C$17 -> 2022 | R11: ='Essbase Input'!$C$16 -> 2023 | S11: ='Essbase Input'!$C$17 -> 2022 | T11: ='Essbase Input'!$C$17 -> 2022 | U11: ='Essbase Input'!$C$17 -> 2022 | V11: ='Essbase Input'!$C$17 -> 2022 | W11: ='Essbase Input'!$C$17 -> 2022 | X11: ='Essbase Input'!$C$17 -> 2022 | Y11: ='Essbase Input'!$C$17 -> 2022 | Z11: ='Essbase Input'!$C$17 -> 2022 | AA11: ='Essbase Input'!$C$17 -> 2022 | AB11: ='Essbase Input'!$C$17 -> 2022 | AC11: ='Essbase Input'!$C$17 -> 2022 | AD11: ='Essbase Input'!$C$17 -> 2022 | AE11: ='Essbase Input'!$C$17 -> 2022 | AF11: ='Essbase Input'!$C$17 -> 2022 | AG11: ='Essbase Input'!$C$17 -> 2022 | AH11: ='Essbase Input'!$C$17 -> 2022 | AI11: ='Essbase Input'!$C$17 -> 2022 | AJ11: ='Essbase Input'!$C$17 -> 2022 | AK11: ='Essbase Input'!$C$17 -> 2022 | AL11: ='Essbase Input'!$C$17 -> 2022 | AM11: ='Essbase Input'!$C$17 -> 2022 | AN11: ='Essbase Input'!$C$17 -> 2022 | AO11: ='Essbase Input'!$C$17 -> 2022 | AP11: ='Essbase Input'!$C$17 -> 2022 | AQ11: ='Essbase Input'!$C$17 -> 2022 | AR11: ='Essbase Input'!$C$17 -> 2022 | AS11: ='Essbase Input'!$C$17 -> 2022 | AT11: ='Essbase Input'!$C$17 -> 2022 | AU11: ='Essbase Input'!$C$17 -> 2022 | AV11: ='Essbase Input'!$C$17 -> 2022 | AW11: ='Essbase Input'!$C$17 -> 2022 | AX11: ='Essbase Input'!$C$17 -> 2022 | AY11: ='Essbase Input'!$C$17 -> 2022 | AZ11: ='Essbase Input'!$C$17 -> 2022 | BA11: ='Essbase Input'!$C$17 -> 2022 | BB11: ='Essbase Input'!$C$17 -> 2022 | BC11: ='Essbase Input'!$C$17 -> 2022 | BD11: ='Essbase Input'!$C$17 -> 2022 | BE11: ='Essbase Input'!$C$17 -> 2022 | BG11: -CHECK 1- | BH11: -CHECK 2-
B12: 1.1 | C12: 12/31 | D12: -- | E12: -- | F12: Calc: from Pt 2 | BG12: =AN12-SUM(U12:AM12) -> 0 | BH12: =K12+M12+O12+S12+T12+AN12+SUM(AO12:BC12)-BD12 -> 0
B13: 1.1 | C13: 03/31 | D13: -- | E13: -- | F13: Calc: from Pt 2
B14: 2.1 | C14: 12/31 | D14: -- | E14: -- | F14: Calc: from Pt 2 | BG14: =AN14-SUM(U14:AM14) -> 0 | BH14: =K14+M14+O14+S14+T14+AN14+SUM(AO14:BC14)-BD14 -> 0
B15: 2.1 | C15: 03/31 | D15: -- | E15: -- | F15: Calc: from Pt 2
A16: 3.1a | B16: 3.1a | C16: 12/31 | D16: -- | E16: -- | F16: Fed Tax & Assess - Nontaxable | G16: IDB Periods | H16: Total Year | I16: Reinsurance | J16: All Other Projects | K16: 0 | L16: 0 | M16: 0 | N16: 0 | O16: 5568.76 | P16: 0 | Q16: 5568.76 | R16: 0 | S16: 798.31 | T16: -143.59 | U16: 0 | V16: 0 | W16: 0 | X16: 0 | Y16: 0 | Z16: 0 | AA16: 0 | AB16: 0 | AC16: 0 | AD16: 0 | AE16: 0 | AF16: 0 | AG16: 0 | AH16: 0 | AI16: 0 | AJ16: 0 | AK16: 0 | AL16: 0 | AM16: 0 | AN16: 0 | AO16: 0 | AP16: 0 | AQ16: 0 | AR16: 0 | AS16: 0 | AT16: 0 | AU16: 0 | AV16: 0 | AW16: 0 | AX16: 0 | AY16: 0 | AZ16: 0 | BA16: 0 | BB16: 0 | BC16: 0 | BD16: 6223.48 | BE16: 5568.76 | BG16: =AN16-SUM(U16:AM16) -> 0 | BH16: =K16+M16+O16+S16+T16+AN16+SUM(AO16:BC16)-BD16 -> 0
B17: 3.1a | C17: 03/31 | D17: -- | E17: -- | F17: Calc: =12/31
A18: 3.1d | B18: 3.1b | C18: 12/31 | D18: ADD | E18: -- | F18: Fed Tax & Assess - Taxable | G18: IDB Periods | H18: Total Year | I18: Reinsurance | J18: All Other Projects | K18: 0 | L18: 0 | M18: 0 | N18: 0 | O18: 0 | P18: 0 | Q18: 0 | R18: 0 | S18: 0 | T18: 0 | U18: 0 | V18: 0 | W18: 0 | X18: 0 | Y18: 0 | Z18: 0 | AA18: 0 | AB18: 0 | AC18: 0 | AD18: 0 | AE18: 0 | AF18: 0 | AG18: 0 | AH18: 0 | AI18: 0 | AJ18: 0 | AK18: 0 | AL18: 0 | AM18: 0 | AN18: 0 | AO18: 0 | AP18: 0 | AQ18: 0 | AR18: 0 | AS18: 0 | AT18: 0 | AU18: 0 | AV18: 0 | AW18: 0 | AX18: 0 | AY18: 0 | AZ18: 0 | BA18: 0 | BB18: 0 | BC18: 0 | BD18: 0 | BE18: 0 | BG18: =AN18-SUM(U18:AM18) -> 0 | BH18: =K18+M18+O18+S18+T18+AN18+SUM(AO18:BC18)-BD18 -> 0
B19: 3.1b | C19: 12/31 | D19: SUB | E19: -- | F19: 92016 - Reinsur Contrib Fee - Pool | G19: IDB Periods | H19: Total Year | I19: Reinsurance | J19: 0000004362 - OR-CHIP-Med Ins Pool (MIP) | K19: 0 | L19: 0 | M19: 0 | N19: 0 | O19: 0 | P19: 0 | Q19: 0 | R19: 0 | S19: 0 | T19: 0 | U19: 0 | V19: 0 | W19: 0 | X19: 0 | Y19: 0 | Z19: 0 | AA19: 0 | AB19: 0 | AC19: 0 | AD19: 0 | AE19: 0 | AF19: 0 | AG19: 0 | AH19: 0 | AI19: 0 | AJ19: 0 | AK19: 0 | AL19: 0 | AM19: 0 | AN19: 0 | AO19: 0 | AP19: 0 | AQ19: 0 | AR19: 0 | AS19: 0 | AT19: 0 | AU19: 0 | AV19: 0 | AW19: 0 | AX19: 0 | AY19: 0 | AZ19: 0 | BA19: 0 | BB19: 0 | BC19: 0 | BD19: 0 | BE19: 0 | BG19: =AN19-SUM(U19:AM19) -> 0 | BH19: =K19+M19+O19+S19+T19+AN19+SUM(AO19:BC19)-BD19 -> 0
B20: 3.1b | C20: 03/31 | D20: -- | E20: -- | F20: Calc: =12/31
A21: 3.2a | B21: 3.2a | C21: 12/31 | D21: ADD | E21: -- | F21: State Ins & Other Taxes | G21: IDB Periods | H21: Total Year | I21: Reinsurance | J21: All Other Projects | K21: 0 | L21: 0 | M21: 0 | N21: 0 | O21: 0 | P21: 0 | Q21: 5164.8 | R21: 0 | S21: 0 | T21: 0 | U21: 0 | V21: 0 | W21: 0 | X21: 0 | Y21: 0 | Z21: 0 | AA21: 0 | AB21: 0 | AC21: 0 | AD21: 0 | AE21: 0 | AF21: 0 | AG21: 0 | AH21: 0 | AI21: 0 | AJ21: 0 | AK21: 0 | AL21: 0 | AM21: 0 | AN21: 0 | AO21: 0 | AP21: 5164.8 | AQ21: 0 | AR21: 0 | AS21: 0 | AT21: 0 | AU21: 0 | AV21: 0 | AW21: 0 | AX21: 0 | AY21: 0 | AZ21: 0 | BA21: 0 | BB21: 0 | BC21: 0 | BD21: 5164.8 | BE21: 5164.8 | BG21: =AN21-SUM(U21:AM21) -> 0 | BH21: =K21+M21+O21+S21+T21+AN21+SUM(AO21:BC21)-BD21 -> 0
B22: 3.2a | C22: 12/31 | D22: ADD | E22: -- | F22: State Local Taxes | G22: IDB Periods | H22: Total Year | I22: Reinsurance | J22: All Other Projects | K22: 30.24 | L22: 0 | M22: 0 | N22: 0 | O22: 0 | P22: 0 | Q22: 30.24 | R22: 0 | S22: 2.27 | T22: 0 | U22: 0 | V22: 0 | W22: 0 | X22: 0 | Y22: 0 | Z22: 0 | AA22: 0 | AB22: 0 | AC22: 0 | AD22: 0 | AE22: 0 | AF22: 0 | AG22: 0 | AH22: 0 | AI22: 0 | AJ22: 0 | AK22: 0 | AL22: 0 | AM22: 0 | AN22: 0 | AO22: 0 | AP22: 0 | AQ22: 0 | AR22: 0 | AS22: 0 | AT22: 0 | AU22: 0 | AV22: 0 | AW22: 0 | AX22: 0 | AY22: 0 | AZ22: 0 | BA22: 0 | BB22: 0 | BC22: 0 | BD22: 32.51 | BE22: 30.24 | BG22: =AN22-SUM(U22:AM22) -> 0 | BH22: =K22+M22+O22+S22+T22+AN22+SUM(AO22:BC22)-BD22 -> 0
B23: 3.2a | C23: 12/31 | D23: ADD | E23: -- | F23: 92016 - Reinsur Contrib Fee - Pool | G23: IDB Periods | H23: Total Year | I23: Reinsurance | J23: 0000004362 - OR-CHIP-Med Ins Pool (MIP) | K23: 0 | L23: 0 | M23: 0 | N23: 0 | O23: 0 | P23: 0 | Q23: 0 | R23: 0 | S23: 0 | T23: 0 | U23: 0 | V23: 0 | W23: 0 | X23: 0 | Y23: 0 | Z23: 0 | AA23: 0 | AB23: 0 | AC23: 0 | AD23: 0 | AE23: 0 | AF23: 0 | AG23: 0 | AH23: 0 | AI23: 0 | AJ23: 0 | AK23: 0 | AL23: 0 | AM23: 0 | AN23: 0 | AO23: 0 | AP23: 0 | AQ23: 0 | AR23: 0 | AS23: 0 | AT23: 0 | AU23: 0 | AV23: 0 | AW23: 0 | AX23: 0 | AY23: 0 | AZ23: 0 | BA23: 0 | BB23: 0 | BC23: 0 | BD23: 0 | BE23: 0 | BG23: =AN23-SUM(U23:AM23) -> 0 | BH23: =K23+M23+O23+S23+T23+AN23+SUM(AO23:BC23)-BD23 -> 0
B24: 3.2a | C24: 12/31 | D24: ADD | E24: -- | F24: 92010 - Other Premium Assessments | G24: IDB Periods | H24: Total Year | I24: Reinsurance | J24: All Other Projects | K24: 0 | L24: 0 | M24: 0 | N24: 0 | O24: 0 | P24: 0 | Q24: 0 | R24: 0 | S24: 0 | T24: 0 | U24: 0 | V24: 0 | W24: 0 | X24: 0 | Y24: 0 | Z24: 0 | AA24: 0 | AB24: 0 | AC24: 0 | AD24: 0 | AE24: 0 | AF24: 0 | AG24: 0 | AH24: 0 | AI24: 0 | AJ24: 0 | AK24: 0 | AL24: 0 | AM24: 0 | AN24: 0 | AO24: 0 | AP24: 0 | AQ24: 0 | AR24: 0 | AS24: 0 | AT24: 0 | AU24: 0 | AV24: 0 | AW24: 0 | AX24: 0 | AY24: 0 | AZ24: 0 | BA24: 0 | BB24: 0 | BC24: 0 | BD24: 0 | BE24: 0 | BG24: =AN24-SUM(U24:AM24) -> 0 | BH24: =K24+M24+O24+S24+T24+AN24+SUM(AO24:BC24)-BD24 -> 0
B25: 3.2a | C25: 03/31 | D25: -- | E25: -- | F25: Calc: =12/31
A26: 3.2b | B26: 3.2b | C26: 12/31 | D26: ADD | E26: -- | F26: State Premium Taxes | G26: IDB Periods | H26: Total Year | I26: Reinsurance | J26: All Other Projects | K26: 0 | L26: 0 | M26: 0 | N26: 0 | O26: 0 | P26: 0 | Q26: 3404.38 | R26: 0.35 | S26: 255.08 | T26: 0 | U26: 0 | V26: 0 | W26: 0 | X26: 0 | Y26: 0 | Z26: 0 | AA26: 0 | AB26: 0 | AC26: 0 | AD26: 0 | AE26: 0 | AF26: 0 | AG26: 0 | AH26: 0 | AI26: 0 | AJ26: 0 | AK26: 0 | AL26: 0 | AM26: 0 | AN26: 0 | AO26: 0 | AP26: 3404.38 | AQ26: 0 | AR26: 0 | AS26: 0 | AT26: 0 | AU26: 0 | AV26: 0 | AW26: 0 | AX26: 0 | AY26: 0 | AZ26: 0 | BA26: 0 | BB26: 0 | BC26: 0 | BD26: 3659.46 | BE26: 3404.38 | BG26: =AN26-SUM(U26:AM26) -> 0 | BH26: =K26+M26+O26+S26+T26+AN26+SUM(AO26:BC26)-BD26 -> 0
B27: 3.2b | C27: 12/31 | D27: SUB | E27: -- | F27: 92010 - Other Premium Assessments | G27: IDB Periods | H27: Total Year | I27: Reinsurance | J27: All Other Projects | K27: 0 | L27: 0 | M27: 0 | N27: 0 | O27: 0 | P27: 0 | Q27: 0 | R27: 0 | S27: 0 | T27: 0 | U27: 0 | V27: 0 | W27: 0 | X27: 0 | Y27: 0 | Z27: 0 | AA27: 0 | AB27: 0 | AC27: 0 | AD27: 0 | AE27: 0 | AF27: 0 | AG27: 0 | AH27: 0 | AI27: 0 | AJ27: 0 | AK27: 0 | AL27: 0 | AM27: 0 | AN27: 0 | AO27: 0 | AP27: 0 | AQ27: 0 | AR27: 0 | AS27: 0 | AT27: 0 | AU27: 0 | AV27: 0 | AW27: 0 | AX27: 0 | AY27: 0 | AZ27: 0 | BA27: 0 | BB27: 0 | BC27: 0 | BD27: 0 | BE27: 0 | BG27: =AN27-SUM(U27:AM27) -> 0 | BH27: =K27+M27+O27+S27+T27+AN27+SUM(AO27:BC27)-BD27 -> 0
B28: 3.2b | C28: 03/31 | D28: -- | E28: -- | F28: Calc: =12/31
A29: 3.2c | B29: 3.2c | C29: 12/31 | D29: -- | E29: -- | F29: Zero Out | BG29: =AN29-SUM(U29:AM29) -> 0 | BH29: =K29+M29+O29+S29+T29+AN29+SUM(AO29:BC29)-BD29 -> 0
B30: 3.2c | C30: 03/31 | D30: -- | E30: -- | F30: Calc: =12/31
A31: 3.3a+3.3b | B31: 3.3 | C31: 12/31 | F31: Reg Authority Licenses & Fees | G31: IDB Periods | H31: Total Year | I31: Reinsurance | J31: All Other Projects | K31: 0 | L31: 0 | M31: 0 | N31: 0 | O31: 0 | P31: 0 | Q31: 0 | R31: 0 | S31: 0 | T31: 0 | U31: 0 | V31: 0 | W31: 0 | X31: 0 | Y31: 0 | Z31: 0 | AA31: 0 | AB31: 0 | AC31: 0 | AD31: 0 | AE31: 0 | AF31: 0 | AG31: 0 | AH31: 0 | AI31: 0 | AJ31: 0 | AK31: 0 | AL31: 0 | AM31: 0 | AN31: 0 | AO31: 0 | AP31: 0 | AQ31: 0 | AR31: 0 | AS31: 0 | AT31: 0 | AU31: 0 | AV31: 0 | AW31: 0 | AX31: 0 | AY31: 0 | AZ31: 0 | BA31: 0 | BB31: 0 | BC31: 0 | BD31: 0 | BE31: 0 | BG31: =AN31-SUM(U31:AM31) -> 0 | BH31: =K31+M31+O31+S31+T31+AN31+SUM(AO31:BC31)-BD31 -> 0
B32: 3.3 | C32: 03/31 | D32: -- | E32: -- | F32: Calc: =12/31
B33: 3.4 | C33: 12/31 | D33: -- | E33: -- | F33: Calc: from DMHC Form | BG33: =AN33-SUM(U33:AM33) -> 0 | BH33: =K33+M33+O33+S33+T33+AN33+SUM(AO33:BC33)-BD33 -> 0
B34: 3.4 | C34: 03/31 | D34: -- | E34: -- | F34: Calc: from DMHC Form
A35: 5.3 | B35: 4.1 | C35: 12/31 | D35: -- | E35: -- | F35: General & Admin Expenses | G35: IDB Periods | H35: Total Year | I35: Reinsurance | J35: Direct Sales Salaries Benefits | K35: 0 | L35: 0 | M35: 0 | N35: 0 | O35: 0 | P35: 0 | Q35: 0 | R35: 0 | S35: 0 | T35: 0 | U35: 0 | V35: 0 | W35: 0 | X35: 0 | Y35: 0 | Z35: 0 | AA35: 0 | AB35: 0 | AC35: 0 | AD35: 0 | AE35: 0 | AF35: 0 | AG35: 0 | AH35: 0 | AI35: 0 | AJ35: 0 | AK35: 0 | AL35: 0 | AM35: 0 | AN35: 0 | AO35: 0 | AP35: 0 | AQ35: 0 | AR35: 0 | AS35: 0 | AT35: 0 | AU35: 0 | AV35: 0 | AW35: 0 | AX35: 0 | AY35: 0 | AZ35: 0 | BA35: 0 | BB35: 0 | BC35: 0 | BD35: 0 | BE35: 0 | BG35: =AN35-SUM(U35:AM35) -> 0 | BH35: =K35+M35+O35+S35+T35+AN35+SUM(AO35:BC35)-BD35 -> 0
B36: 4.1 | C36: 03/31 | D36: -- | E36: -- | F36: Calc: =12/31
A37: 5.4 | B37: 4.2 | C37: 12/31 | D37: -- | E37: -- | F37: Agents & Brokers Fees & Comms | G37: IDB Periods | H37: Total Year | I37: Reinsurance | J37: GAAP Reported Projects | K37: 0 | L37: 0 | M37: 0 | N37: 0 | O37: 0 | P37: 0 | Q37: 9184.49 | R37: 3241.06 | S37: 166.6 | T37: 0 | U37: 0 | V37: 0 | W37: 0 | X37: 0 | Y37: 0 | Z37: 0 | AA37: 0 | AB37: 0 | AC37: 0 | AD37: 0 | AE37: 0 | AF37: 0 | AG37: 0 | AH37: 0 | AI37: 0 | AJ37: 0 | AK37: 0 | AL37: 0 | AM37: 0 | AN37: 0 | AO37: 0 | AP37: 9184.49 | AQ37: 0 | AR37: 0 | AS37: 0 | AT37: 0 | AU37: 0 | AV37: 0 | AW37: 0 | AX37: 0 | AY37: 0 | AZ37: 0 | BA37: 0 | BB37: 0 | BC37: 0 | BD37: 9351.09 | BE37: 9184.49 | BG37: =AN37-SUM(U37:AM37) -> 0 | BH37: =K37+M37+O37+S37+T37+AN37+SUM(AO37:BC37)-BD37 -> 0
B38: 4.2 | C38: 03/31 | D38: -- | E38: -- | F38: Calc: =12/31
A39: 5.5a | B39: 4.3a | C39: 12/31 | D39: -- | E39: -- | F39: Other Taxes | G39: IDB Periods | H39: Total Year | I39: Reinsurance | J39: GAAP Reported Projects | K39: 606.43 | L39: 0 | M39: 0 | N39: 0 | O39: 0 | P39: 0 | Q39: 3488.43 | R39: 985.35 | S39: 45.44 | T39: 667 | U39: 0 | V39: 0 | W39: 0 | X39: 0 | Y39: 0 | Z39: 0 | AA39: 0 | AB39: 0 | AC39: 0 | AD39: 0 | AE39: 0 | AF39: 0 | AG39: 0 | AH39: 0 | AI39: 0 | AJ39: 0 | AK39: 0 | AL39: 0 | AM39: 0 | AN39: 0 | AO39: 0 | AP39: 2882 | AQ39: 0 | AR39: 0 | AS39: 0 | AT39: 0 | AU39: 0 | AV39: 0 | AW39: 0 | AX39: 0 | AY39: 0 | AZ39: 0 | BA39: 0 | BB39: 0 | BC39: 0 | BD39: 4200.87 | BE39: 3488.43 | BG39: =AN39-SUM(U39:AM39) -> 0 | BH39: =K39+M39+O39+S39+T39+AN39+SUM(AO39:BC39)-BD39 -> 0
B40: 4.3a | C40: 03/31 | D40: -- | E40: -- | F40: Calc: =12/31
A41: 5.5b | B41: 4.3b | C41: 12/31 | D41: -- | E41: -- | F41: Zero Out | BG41: =AN41-SUM(U41:AM41) -> 0 | BH41: =K41+M41+O41+S41+T41+AN41+SUM(AO41:BC41)-BD41 -> 0
B42: 4.3b | C42: 03/31 | D42: -- | E42: -- | F42: Calc: =12/31
A43: 4.1-4.5+5.1+5.2+5.6 | B43: 4.4 | C43: 12/31 | D43: ADD | E43: -- | F43: Other Gen & Admin Expenses | G43: IDB Periods | H43: Total Year | I43: Reinsurance | J43: GAAP Reported Projects | K43: 16162.03 | L43: 7079.08 | M43: 0 | N43: 0 | O43: 0 | P43: 0 | Q43: 19332.69 | R43: 8323.05 | S43: 1839.84 | T43: 0 | U43: 0 | V43: 0 | W43: 0 | X43: 0 | Y43: 0 | Z43: 0 | AA43: 0 | AB43: 0 | AC43: 0 | AD43: 0 | AE43: 0 | AF43: 0 | AG43: 0 | AH43: 0 | AI43: 0 | AJ43: 0 | AK43: 0 | AL43: 0 | AM43: 0 | AN43: 0 | AO43: 0 | AP43: 3170.66 | AQ43: 0 | AR43: 0 | AS43: 0 | AT43: 0 | AU43: 0 | AV43: 0 | AW43: 0 | AX43: 0 | AY43: 0 | AZ43: 0 | BA43: 0 | BB43: 0 | BC43: 0 | BD43: 21172.53 | BE43: 19332.69 | BG43: =AN43-SUM(U43:AM43) -> 0 | BH43: =K43+M43+O43+S43+T43+AN43+SUM(AO43:BC43)-BD43 -> 0
B44: 4.4 | C44: 12/31 | D44: ADD | E44: -- | F44: General & Admin Expenses | G44: IDB Periods | H44: Total Year | I44: REINSURANCE GROUP | J44: Health Care Reform | K44: 0 | L44: 0 | M44: 0 | N44: 0 | O44: 0 | P44: 0 | Q44: 0 | R44: 0 | S44: 0 | T44: 0 | U44: 0 | V44: 0 | W44: 0 | X44: 0 | Y44: 0 | Z44: 0 | AA44: 0 | AB44: 0 | AC44: 0 | AD44: 0 | AE44: 0 | AF44: 0 | AG44: 0 | AH44: 0 | AI44: 0 | AJ44: 0 | AK44: 0 | AL44: 0 | AM44: 0 | AN44: 0 | AO44: 0 | AP44: 0 | AQ44: 0 | AR44: 0 | AS44: 0 | AT44: 0 | AU44: 0 | AV44: 0 | AW44: 0 | AX44: 0 | AY44: 0 | AZ44: 0 | BA44: 0 | BB44: 0 | BC44: 0 | BD44: 0 | BE44: 0 | BG44: =AN44-SUM(U44:AM44) -> 0 | BH44: 0
B45: 4.4 | C45: 12/31 | D45: ADD | E45: -- | F45: General & Admin Expenses | G45: IDB Periods | H45: Total Year | I45: NO REINSURANCE | J45: 0000003400 - QI - Imprv Outcomes | K45: 0 | L45: 0 | M45: 0 | N45: 0 | O45: 0 | P45: 0 | Q45: 0 | R45: 0 | S45: 0 | T45: 0 | U45: 0 | V45: 0 | W45: 0 | X45: 0 | Y45: 0 | Z45: 0 | AA45: 0 | AB45: 0 | AC45: 0 | AD45: 0 | AE45: 0 | AF45: 0 | AG45: 0 | AH45: 0 | AI45: 0 | AJ45: 0 | AK45: 0 | AL45: 0 | AM45: 0 | AN45: 0 | AO45: 0 | AP45: 0 | AQ45: 0 | AR45: 0 | AS45: 0 | AT45: 0 | AU45: 0 | AV45: 0 | AW45: 0 | AX45: 0 | AY45: 0 | AZ45: 0 | BA45: 0 | BB45: 0 | BC45: 0 | BD45: 0 | BE45: 0 | BG45: =AN45-SUM(U45:AM45) -> 0 | BH45: 0
B46: 4.4 | C46: 12/31 | D46: ADD | E46: -- | F46: General & Admin Expenses | G46: IDB Periods | H46: Total Year | I46: NO REINSURANCE | J46: 0000003401 - QI - Prevent Hosp Readmission | K46: 0 | L46: 0 | M46: 0 | N46: 0 | O46: 0 | P46: 0 | Q46: 0 | R46: 0 | S46: 0 | T46: 0 | U46: 0 | V46: 0 | W46: 0 | X46: 0 | Y46: 0 | Z46: 0 | AA46: 0 | AB46: 0 | AC46: 0 | AD46: 0 | AE46: 0 | AF46: 0 | AG46: 0 | AH46: 0 | AI46: 0 | AJ46: 0 | AK46: 0 | AL46: 0 | AM46: 0 | AN46: 0 | AO46: 0 | AP46: 0 | AQ46: 0 | AR46: 0 | AS46: 0 | AT46: 0 | AU46: 0 | AV46: 0 | AW46: 0 | AX46: 0 | AY46: 0 | AZ46: 0 | BA46: 0 | BB46: 0 | BC46: 0 | BD46: 0 | BE46: 0 | BG46: 0 | BH46: 0
B47: 4.4 | C47: 12/31 | D47: ADD | E47: -- | F47: General & Admin Expenses | G47: IDB Periods | H47: Total Year | I47: NO REINSURANCE | J47: 0000003402 - QI - Imp Pat Saf & Red Med Err | K47: 0 | L47: 0 | M47: 0 | N47: 0 | O47: 0 | P47: 0 | Q47: 0 | R47: 0 | S47: 0 | T47: 0 | U47: 0 | V47: 0 | W47: 0 | X47: 0 | Y47: 0 | Z47: 0 | AA47: 0 | AB47: 0 | AC47: 0 | AD47: 0 | AE47: 0 | AF47: 0 | AG47: 0 | AH47: 0 | AI47: 0 | AJ47: 0 | AK47: 0 | AL47: 0 | AM47: 0 | AN47: 0 | AO47: 0 | AP47: 0 | AQ47: 0 | AR47: 0 | AS47: 0 | AT47: 0 | AU47: 0 | AV47: 0 | AW47: 0 | AX47: 0 | AY47: 0 | AZ47: 0 | BA47: 0 | BB47: 0 | BC47: 0 | BD47: 0 | BE47: 0 | BG47: 0 | BH47: 0
B48: 4.4 | C48: 12/31 | D48: ADD | E48: -- | F48: General & Admin Expenses | G48: IDB Periods | H48: Total Year | I48: NO REINSURANCE | J48: 0000003403 - QI - Wellness & Health Promo | K48: 0 | L48: 0 | M48: 0 | N48: 0 | O48: 0 | P48: 0 | Q48: 0 | R48: 0 | S48: 0 | T48: 0 | U48: 0 | V48: 0 | W48: 0 | X48: 0 | Y48: 0 | Z48: 0 | AA48: 0 | AB48: 0 | AC48: 0 | AD48: 0 | AE48: 0 | AF48: 0 | AG48: 0 | AH48: 0 | AI48: 0 | AJ48: 0 | AK48: 0 | AL48: 0 | AM48: 0 | AN48: 0 | AO48: 0 | AP48: 0 | AQ48: 0 | AR48: 0 | AS48: 0 | AT48: 0 | AU48: 0 | AV48: 0 | AW48: 0 | AX48: 0 | AY48: 0 | AZ48: 0 | BA48: 0 | BB48: 0 | BC48: 0 | BD48: 0 | BE48: 0 | BG48: 0 | BH48: 0
B49: 4.4 | C49: 12/31 | D49: ADD | E49: -- | F49: General & Admin Expenses | G49: IDB Periods | H49: Total Year | I49: NO REINSURANCE | J49: Health Information Technology | K49: 0 | L49: 0 | M49: 0 | N49: 0 | O49: 0 | P49: 0 | Q49: 0 | R49: 0 | S49: 0 | T49: 0 | U49: 0 | V49: 0 | W49: 0 | X49: 0 | Y49: 0 | Z49: 0 | AA49: 0 | AB49: 0 | AC49: 0 | AD49: 0 | AE49: 0 | AF49: 0 | AG49: 0 | AH49: 0 | AI49: 0 | AJ49: 0 | AK49: 0 | AL49: 0 | AM49: 0 | AN49: 0 | AO49: 0 | AP49: 0 | AQ49: 0 | AR49: 0 | AS49: 0 | AT49: 0 | AU49: 0 | AV49: 0 | AW49: 0 | AX49: 0 | AY49: 0 | AZ49: 0 | BA49: 0 | BB49: 0 | BC49: 0 | BD49: 0 | BE49: 0 | BG49: 0 | BH49: 0
B50: 4.4 | C50: 12/31 | D50: ADD | E50: -- | F50: General & Admin Expenses | G50: IDB Periods | H50: Total Year | I50: Reinsurance | J50: Cost Containment | K50: 0 | L50: 0 | M50: 0 | N50: 0 | O50: 0 | P50: 0 | Q50: 2004.21 | R50: 770.28 | S50: 67.6 | T50: 0 | U50: 0 | V50: 0 | W50: 0 | X50: 0 | Y50: 0 | Z50: 0 | AA50: 0 | AB50: 0 | AC50: 0 | AD50: 0 | AE50: 0 | AF50: 0 | AG50: 0 | AH50: 0 | AI50: 0 | AJ50: 0 | AK50: 0 | AL50: 0 | AM50: 0 | AN50: 0 | AO50: 0 | AP50: 2004.21 | AQ50: 0 | AR50: 0 | AS50: 0 | AT50: 0 | AU50: 0 | AV50: 0 | AW50: 0 | AX50: 0 | AY50: 0 | AZ50: 0 | BA50: 0 | BB50: 0 | BC50: 0 | BD50: 2071.81 | BE50: 2004.21 | BG50: 0 | BH50: 0
B51: 4.4 | C51: 12/31 | D51: ADD | E51: -- | F51: General & Admin Expenses | G51: IDB Periods | H51: Total Year | I51: Reinsurance | J51: Other Claim Adj | K51: 0 | L51: 0 | M51: 0 | N51: 0 | O51: 0 | P51: 0 | Q51: 1115.87 | R51: 380.38 | S51: 135.22 | T51: 0 | U51: 0 | V51: 0 | W51: 0 | X51: 0 | Y51: 0 | Z51: 0 | AA51: 0 | AB51: 0 | AC51: 0 | AD51: 0 | AE51: 0 | AF51: 0 | AG51: 0 | AH51: 0 | AI51: 0 | AJ51: 0 | AK51: 0 | AL51: 0 | AM51: 0 | AN51: 0 | AO51: 0 | AP51: 1115.87 | AQ51: 0 | AR51: 0 | AS51: 0 | AT51: 0 | AU51: 0 | AV51: 0 | AW51: 0 | AX51: 0 | AY51: 0 | AZ51: 0 | BA51: 0 | BB51: 0 | BC51: 0 | BD51: 1251.09 | BE51: 1115.87 | BG51: 0 | BH51: 0
B52: 4.4 | C52: 03/31 | D52: -- | E52: -- | F52: Calc: =12/31
B53: 4.5 | C53: 12/31 | D53: -- | E53: -- | F53: Calc: 4.1-4.4 | BG53: =AN53-SUM(U53:AM53) -> 0 | BH53: =K53+M53+O53+S53+T53+AN53+SUM(AO53:BC53)-BD53 -> 0
B54: 4.5 | C54: 03/31 | D54: -- | E54: -- | F54: Calc: 4.1-4.4
A55: 7.2 | B55: 5.1 | C55: 12/31 | D55: -- | E55: -- | F55: Number of Covered Lives | G55: IDB Periods | H55: December | I55: Reinsurance | J55: All Other Projects | K55: 0 | L55: 0 | M55: 0 | N55: 0 | O55: 0 | P55: 0 | Q55: 224 | R55: 0 | S55: 102 | T55: 0 | U55: 0 | V55: 0 | W55: 0 | X55: 0 | Y55: 0 | Z55: 0 | AA55: 0 | AB55: 0 | AC55: 0 | AD55: 0 | AE55: 0 | AF55: 0 | AG55: 0 | AH55: 0 | AI55: 0 | AJ55: 0 | AK55: 0 | AL55: 0 | AM55: 0 | AN55: 0 | AO55: 0 | AP55: 224 | AQ55: 0 | AR55: 0 | AS55: 0 | AT55: 0 | AU55: 0 | AV55: 0 | AW55: 0 | AX55: 0 | AY55: 0 | AZ55: 0 | BA55: 0 | BB55: 0 | BC55: 0 | BD55: 326 | BE55: 224 | BG55: =AN55-SUM(U55:AM55) -> 0 | BH55: =K55+M55+O55+S55+T55+AN55+SUM(AO55:BC55)-BD55 -> 0
B56: 5.1 | C56: 03/31 | D56: -- | E56: -- | F56: Calc: =12/31
A57: 7.4 | B57: 5.2 | C57: 12/31 | D57: -- | E57: -- | F57: SHCE Member Months | G57: IDB Periods | H57: Total Year | I57: NO REINSURANCE | J57: All Other Projects | K57: 0 | L57: 0 | M57: 0 | N57: 0 | O57: 0 | P57: 0 | Q57: 2911 | R57: 1059 | S57: 1265 | T57: 0 | U57: 0 | V57: 0 | W57: 0 | X57: 0 | Y57: 0 | Z57: 0 | AA57: 0 | AB57: 0 | AC57: 0 | AD57: 0 | AE57: 0 | AF57: 0 | AG57: 0 | AH57: 0 | AI57: 0 | AJ57: 0 | AK57: 0 | AL57: 0 | AM57: 0 | AN57: 0 | AO57: 0 | AP57: 2911 | AQ57: 0 | AR57: 0 | AS57: 0 | AT57: 0 | AU57: 0 | AV57: 0 | AW57: 0 | AX57: 0 | AY57: 0 | AZ57: 0 | BA57: 0 | BB57: 0 | BC57: 0 | BD57: 4176 | BE57: 2911 | BG57: =AN57-SUM(U57:AM57) -> 0 | BH57: =K57+M57+O57+S57+T57+AN57+SUM(AO57:BC57)-BD57 -> 0
B58: 5.2 | C58: 03/31 | D58: ADD | E58: -- | F58: SHCE Member Months | G58: ='Essbase Input'!$D$17 -> IDB 2022 | H58: Total Year | I58: NO REINSURANCE | J58: All Other Projects | K58: 0 | L58: 0 | M58: 0 | N58: 0 | O58: 0 | P58: 0 | Q58: 2908 | R58: -4 | S58: 1288 | T58: 0 | U58: 0 | V58: 0 | W58: 0 | X58: 0 | Y58: 0 | Z58: 0 | AA58: 0 | AB58: 0 | AC58: 0 | AD58: 0 | AE58: 0 | AF58: 0 | AG58: 0 | AH58: 0 | AI58: 0 | AJ58: 0 | AK58: 0 | AL58: 0 | AM58: 0 | AN58: 0 | AO58: 0 | AP58: 2908 | AQ58: 0 | AR58: 0 | AS58: 0 | AT58: 0 | AU58: 0 | AV58: 0 | AW58: 0 | AX58: 0 | AY58: 0 | AZ58: 0 | BA58: 0 | BB58: 0 | BC58: 0 | BD58: 4196 | BE58: 2908
B59: 5.2 | C59: 03/31 | D59: ADD | E59: -- | F59: SHCE Member Months | G59: ='Essbase Input'!$D$17 -> IDB 2022 | H59: March_Bal | I59: NO REINSURANCE | J59: All Other Projects | K59: 0 | L59: 0 | M59: 0 | N59: 0 | O59: 0 | P59: 0 | Q59: 777 | R59: -3 | S59: 350 | T59: 0 | U59: 0 | V59: 0 | W59: 0 | X59: 0 | Y59: 0 | Z59: 0 | AA59: 0 | AB59: 0 | AC59: 0 | AD59: 0 | AE59: 0 | AF59: 0 | AG59: 0 | AH59: 0 | AI59: 0 | AJ59: 0 | AK59: 0 | AL59: 0 | AM59: 0 | AN59: 0 | AO59: 0 | AP59: 777 | AQ59: 0 | AR59: 0 | AS59: 0 | AT59: 0 | AU59: 0 | AV59: 0 | AW59: 0 | AX59: 0 | AY59: 0 | AZ59: 0 | BA59: 0 | BB59: 0 | BC59: 0 | BD59: 1127 | BE59: 777
A60: 7.5 | B60: 5.3 | C60: 12/31 | D60: -- | E60: -- | F60: Calc: Ln 5.2/12 | BG60: =AN60-SUM(U60:AM60) -> 0 | BH60: =K60+M60+O60+S60+T60+AN60+SUM(AO60:BC60)-BD60 -> 0
B61: 5.3 | C61: 03/31 | D61: -- | E61: -- | F61: Calc: Ln 5.2/12
B62: 6 | C62: 12/31 | D62: Col T | F62: Net Invest and Oth Gain/(Loss) | G62: IDB Periods | H62: Total Year | I62: Reinsurance | J62: All Other Projects | K62: 0 | L62: 0 | M62: 0 | N62: 0 | O62: 0 | P62: 0 | Q62: -198.43 | R62: 0 | S62: -14.44 | T62: 0 | U62: 0 | V62: 0 | W62: 0 | X62: 0 | Y62: 0 | Z62: 0 | AA62: 0 | AB62: 0 | AC62: 0 | AD62: 0 | AE62: 0 | AF62: 0 | AG62: 0 | AH62: 0 | AI62: 0 | AJ62: 0 | AK62: 0 | AL62: 0 | AM62: 0 | AN62: 0 | AO62: 0 | AP62: -198.43 | AQ62: 0 | AR62: 0 | AS62: 0 | AT62: 0 | AU62: 0 | AV62: 0 | AW62: 0 | AX62: 0 | AY62: 0 | AZ62: 0 | BA62: 0 | BB62: 0 | BC62: 0 | BD62: -212.87 | BE62: -198.43 | BG62: =AN62-SUM(U62:AM62) -> 0 | BH62: =K62+M62+O62+S62+T62+AN62+SUM(AO62:BC62)-BD62 -> 0
B63: 7 | C63: 12/31 | D63: Col T | F63: Federal Income Taxes(Excl 1.5) | G63: IDB Periods | H63: Total Year | I63: Reinsurance | J63: All Other Projects | K63: 0 | L63: 0 | M63: 0 | N63: 0 | O63: 0 | P63: 0 | Q63: 0 | R63: 0 | S63: 0 | T63: 17 | U63: 0 | V63: 0 | W63: 0 | X63: 0 | Y63: 0 | Z63: 0 | AA63: 0 | AB63: 0 | AC63: 0 | AD63: 0 | AE63: 0 | AF63: 0 | AG63: 0 | AH63: 0 | AI63: 0 | AJ63: 0 | AK63: 0 | AL63: 0 | AM63: 0 | AN63: 0 | AO63: 0 | AP63: 0 | AQ63: 0 | AR63: 0 | AS63: 0 | AT63: 0 | AU63: 0 | AV63: 0 | AW63: 0 | AX63: 0 | AY63: 0 | AZ63: 0 | BA63: 0 | BB63: 0 | BC63: 0 | BD63: 17 | BE63: 0
A64: DB | B64: R18 | C64: 12/31 | D64: -- | E64: -- | F64: 76000 - Management Fees | G64: IDB Periods | H64: Total Year | I64: Reinsurance | J64: All Other Projects | K64: 16798.7 | L64: 7079.08 | M64: 0 | N64: 0 | O64: 0 | P64: 0 | Q64: 16798.7 | R64: 7079.08 | S64: 1258.65 | T64: 0 | U64: 0 | V64: 0 | W64: 0 | X64: 0 | Y64: 0 | Z64: 0 | AA64: 0 | AB64: 0 | AC64: 0 | AD64: 0 | AE64: 0 | AF64: 0 | AG64: 0 | AH64: 0 | AI64: 0 | AJ64: 0 | AK64: 0 | AL64: 0 | AM64: 0 | AN64: 0 | AO64: 0 | AP64: 0 | AQ64: 0 | AR64: 0 | AS64: 0 | AT64: 0 | AU64: 0 | AV64: 0 | AW64: 0 | AX64: 0 | AY64: 0 | AZ64: 0 | BA64: 0 | BB64: 0 | BC64: 0 | BD64: 18057.35 | BE64: 16798.7 | BG64: =AN64-SUM(U64:AM64) -> 0 | BH64: =K64+M64+O64+S64+T64+AN64+SUM(AO64:BC64)-BD64 -> 0
F67: ="Not Used" -> Not Used
F68: ="Linked Cell" -> Linked Cell

Sheet EB PT 2 (hidden)
A1: CMS | B1: Ln | C1: Col | D1: Adjmt | E1: Rev | F1: ="Account" -> Account | G1: ="IDB Period" -> IDB Period | H1: ="Period" -> Period | I1: ="Reinsurance" -> Reinsurance | J1: ="Project" -> Project | K1: 1 | L1: 2 | M1: 3 | N1: 4 | O1: 5 | P1: 6 | Q1: GRIC, UHLIC, MWLIC-TN, TCLIC DPPO Sec. / INDIVIDUAL Col. | S1: Vision | T1: Life/Disability | U1: Stop Loss (1) | X1: Stop Loss (2) | AB1: Supp Hospital | AF1: Medicare Supp | AJ1: Student Health | AL1: Wrap | AM1: Ind Short Term | AN1: Oth Bus (excl by Stat) | AO1: UHC Domestic Stand Alone Dental Blank Cust | AP1: UHC Domestic Stand Alone Dental Not Comp Health | AQ1: UHC International Stand Alone Dental MLR Customer | AR1: Optum Stand Alone Dental MLR Customer | AS1: Elims Mkt Grp Stand Alone Dental MLR Customer | AT1: Corp Mkt Grp Stand Alone Dental MLR Customer | AU1: Non-UHG Stand Alone Dental MLR Customer | AV1: =CONCATENATE("All OUs p",LEFT(AV9,6)," MLR Customers") -> All OUs p306155 MLR Customers | AW1: =CONCATENATE("All OUs p",LEFT(AW9,6)," MLR Customers") -> All OUs p306156 MLR Customers | AX1: All OUs p305402 MLR Customers | AY1: All OUs p430083 MLR Customers | AZ1: All OUs p430084 MLR Customers | BA1: All OUs p430087 MLR Customers | BB1: All OUs p430088 MLR Customers | BC1: All OUs p430089 MLR Customers | BD1: Other Health Bus per MLR (Col 41)
K2: Views | L2: Views | M2: Views | N2: Views | O2: Views | P2: Views | Q2: Views | R2: Views | S2: Views | T2: Views | U2: Views | V2: Views | W2: Views | X2: Views | Y2: Views | Z2: Views | AA2: Views | AB2: Views | AC2: Views | AD2: Views | AE2: Views | AF2: Views | AG2: Views | AH2: Views | AI2: Views | AJ2: Views | AK2: Views | AL2: Views | AM2: Views | AN2: Views | AO2: Views | AP2: Views | AQ2: Views | AR2: Views | AS2: Views | AT2: Views | AU2: Views | AV2: Views | AW2: Views | AX2: Views | AY2: Views | AZ2: Views | BA2: Views | BB2: Views | BC2: Views | BD2: Views
K3: Sources | L3: Sources | M3: Sources | N3: Sources | O3: Sources | P3: Sources | Q3: Sources | R3: Sources | S3: Sources | T3: Sources | U3: Sources | V3: Sources | W3: Sources | X3: Sources | Y3: Sources | Z3: Sources | AA3: Sources | AB3: Sources | AC3: Sources | AD3: Sources | AE3: Sources | AF3: Sources | AG3: Sources | AH3: Sources | AI3: Sources | AJ3: Sources | AK3: Sources | AL3: Sources | AM3: Sources | AN3: Sources | AO3: Sources | AP3: Sources | AQ3: Sources | AR3: Sources | AS3: Sources | AT3: Sources | AU3: Sources | AV3: Sources | AW3: Sources | AX3: Sources | AY3: Sources | AZ3: Sources | BA3: Sources | BB3: Sources | BC3: Sources | BD3: Sources
K4: Departments | L4: Departments | M4: Departments | N4: Departments | O4: Departments | P4: Departments | Q4: Departments | R4: Departments | S4: Departments | T4: Departments | U4: Departments | V4: Departments | W4: Departments | X4: Departments | Y4: Departments | Z4: Departments | AA4: Departments | AB4: Departments | AC4: Departments | AD4: Departments | AE4: Departments | AF4: Departments | AG4: Departments | AH4: Departments | AI4: Departments | AJ4: Departments | AK4: Departments | AL4: Departments | AM4: Departments | AN4: Departments | AO4: Departments | AP4: Departments | AQ4: Departments | AR4: Departments | AS4: Departments | AT4: Departments | AU4: Departments | AV4: Departments | AW4: Departments | AX4: Departments | AY4: Departments | AZ4: Departments | BA4: Departments | BB4: Departments | BC4: Departments | BD4: Departments
K5: NAIC Supp HC Exhibit | L5: NAIC Supp HC Exhibit | M5: NAIC Supp HC Exhibit | N5: NAIC Supp HC Exhibit | O5: NAIC Supp HC Exhibit | P5: NAIC Supp HC Exhibit | Q5: NAIC Supp HC Exhibit | R5: NAIC Supp HC Exhibit | S5: NAIC Supp HC Exhibit | T5: NAIC Supp HC Exhibit | U5: NAIC Supp HC Exhibit | V5: NAIC Supp HC Exhibit | W5: NAIC Supp HC Exhibit | X5: NAIC Supp HC Exhibit | Y5: NAIC Supp HC Exhibit | Z5: NAIC Supp HC Exhibit | AA5: NAIC Supp HC Exhibit | AB5: NAIC Supp HC Exhibit | AC5: NAIC Supp HC Exhibit | AD5: NAIC Supp HC Exhibit | AE5: NAIC Supp HC Exhibit | AF5: NAIC Supp HC Exhibit | AG5: NAIC Supp HC Exhibit | AH5: NAIC Supp HC Exhibit | AI5: NAIC Supp HC Exhibit | AJ5: NAIC Supp HC Exhibit | AK5: NAIC Supp HC Exhibit | AL5: NAIC Supp HC Exhibit | AM5: NAIC Supp HC Exhibit | AN5: NAIC Supp HC Exhibit | AO5: NAIC Supp HC Exhibit | AP5: NAIC Supp HC Exhibit | AQ5: NAIC Supp HC Exhibit | AR5: NAIC Supp HC Exhibit | AS5: NAIC Supp HC Exhibit | AT5: NAIC Supp HC Exhibit | AU5: NAIC Supp HC Exhibit | AV5: NAIC Supp HC Exhibit | AW5: NAIC Supp HC Exhibit | AX5: NAIC Supp HC Exhibit | AY5: NAIC Supp HC Exhibit | AZ5: NAIC Supp HC Exhibit | BA5: NAIC Supp HC Exhibit | BB5: NAIC Supp HC Exhibit | BC5: NAIC Supp HC Exhibit | BD5: NAIC Supp HC Exhibit
K6: ='Essbase Input'!$C$8 -> UnitedHealthcare Life Ins Co | L6: ='Essbase Input'!$C$8 -> UnitedHealthcare Life Ins Co | M6: ='Essbase Input'!$C$8 -> UnitedHealthcare Life Ins Co | N6: ='Essbase Input'!$C$8 -> UnitedHealthcare Life Ins Co | O6: ='Essbase Input'!$C$8 -> UnitedHealthcare Life Ins Co | P6: ='Essbase Input'!$C$8 -> UnitedHealthcare Life Ins Co | Q6: ='Essbase Input'!$C$8 -> UnitedHealthcare Life Ins Co | R6: ='Essbase Input'!$C$8 -> UnitedHealthcare Life Ins Co | S6: ='Essbase Input'!$C$8 -> UnitedHealthcare Life Ins Co | T6: ='Essbase Input'!$C$8 -> UnitedHealthcare Life Ins Co | U6: ='Essbase Input'!$C$8 -> UnitedHealthcare Life Ins Co | V6: ='Essbase Input'!$C$8 -> UnitedHealthcare Life Ins Co | W6: ='Essbase Input'!$C$8 -> UnitedHealthcare Life Ins Co | X6: ='Essbase Input'!$C$8 -> UnitedHealthcare Life Ins Co | Y6: ='Essbase Input'!$C$8 -> UnitedHealthcare Life Ins Co | Z6: ='Essbase Input'!$C$8 -> UnitedHealthcare Life Ins Co | AA6: ='Essbase Input'!$C$8 -> UnitedHealthcare Life Ins Co | AB6: ='Essbase Input'!$C$8 -> UnitedHealthcare Life Ins Co | AC6: ='Essbase Input'!$C$8 -> UnitedHealthcare Life Ins Co | AD6: ='Essbase Input'!$C$8 -> UnitedHealthcare Life Ins Co | AE6: ='Essbase Input'!$C$8 -> UnitedHealthcare Life Ins Co | AF6: ='Essbase Input'!$C$8 -> UnitedHealthcare Life Ins Co | AG6: ='Essbase Input'!$C$8 -> UnitedHealthcare Life Ins Co | AH6: ='Essbase Input'!$C$8 -> UnitedHealthcare Life Ins Co | AI6: ='Essbase Input'!$C$8 -> UnitedHealthcare Life Ins Co | AJ6: ='Essbase Input'!$C$8 -> UnitedHealthcare Life Ins Co | AK6: ='Essbase Input'!$C$8 -> UnitedHealthcare Life Ins Co | AL6: ='Essbase Input'!$C$8 -> UnitedHealthcare Life Ins Co | AM6: ='Essbase Input'!$C$8 -> UnitedHealthcare Life Ins Co | AN6: ='Essbase Input'!$C$8 -> UnitedHealthcare Life Ins Co | AO6: ='Essbase Input'!$C$8 -> UnitedHealthcare Life Ins Co | AP6: ='Essbase Input'!$C$8 -> UnitedHealthcare Life Ins Co | AQ6: ='Essbase Input'!$C$8 -> UnitedHealthcare Life Ins Co | AR6: ='Essbase Input'!$C$8 -> UnitedHealthcare Life Ins Co | AS6: ='Essbase Input'!$C$8 -> UnitedHealthcare Life Ins Co | AT6: ='Essbase Input'!$C$8 -> UnitedHealthcare Life Ins Co | AU6: ='Essbase Input'!$C$8 -> UnitedHealthcare Life Ins Co | AV6: ='Essbase Input'!$C$8 -> UnitedHealthcare Life Ins Co | AW6: ='Essbase Input'!$C$8 -> UnitedHealthcare Life Ins Co | AX6: ='Essbase Input'!$C$8 -> UnitedHealthcare Life Ins Co | AY6: ='Essbase Input'!$C$8 -> UnitedHealthcare Life Ins Co | AZ6: ='Essbase Input'!$C$8 -> UnitedHealthcare Life Ins Co | BA6: ='Essbase Input'!$C$8 -> UnitedHealthcare Life Ins Co | BB6: ='Essbase Input'!$C$8 -> UnitedHealthcare Life Ins Co | BC6: ='Essbase Input'!$C$8 -> UnitedHealthcare Life Ins Co | BD6: ='Essbase Input'!$C$8 -> UnitedHealthcare Life Ins Co
K7: ='Essbase Input'!$C$9 -> California - CA | L7: ='Essbase Input'!$C$9 -> California - CA | M7: ='Essbase Input'!$C$9 -> California - CA | N7: ='Essbase Input'!$C$9 -> California - CA | O7: ='Essbase Input'!$C$9 -> California - CA | P7: ='Essbase Input'!$C$9 -> California - CA | Q7: ='Essbase Input'!$C$9 -> California - CA | R7: ='Essbase Input'!$C$9 -> California - CA | S7: ='Essbase Input'!$C$9 -> California - CA | T7: ='Essbase Input'!$C$9 -> California - CA | U7: ='Essbase Input'!$C$9 -> California - CA | V7: ='Essbase Input'!$C$9 -> California - CA | W7: ='Essbase Input'!$C$9 -> California - CA | X7: ='Essbase Input'!$C$9 -> California - CA | Y7: ='Essbase Input'!$C$9 -> California - CA | Z7: ='Essbase Input'!$C$9 -> California - CA | AA7: ='Essbase Input'!$C$9 -> California - CA | AB7: ='Essbase Input'!$C$9 -> California - CA | AC7: ='Essbase Input'!$C$9 -> California - CA | AD7: ='Essbase Input'!$C$9 -> California - CA | AE7: ='Essbase Input'!$C$9 -> California - CA | AF7: ='Essbase Input'!$C$9 -> California - CA | AG7: ='Essbase Input'!$C$9 -> California - CA | AH7: ='Essbase Input'!$C$9 -> California - CA | AI7: ='Essbase Input'!$C$9 -> California - CA | AJ7: ='Essbase Input'!$C$9 -> California - CA | AK7: ='Essbase Input'!$C$9 -> California - CA | AL7: ='Essbase Input'!$C$9 -> California - CA | AM7: ='Essbase Input'!$C$9 -> California - CA | AN7: ='Essbase Input'!$C$9 -> California - CA | AO7: ='Essbase Input'!$C$9 -> California - CA | AP7: ='Essbase Input'!$C$9 -> California - CA | AQ7: ='Essbase Input'!$C$9 -> California - CA | AR7: ='Essbase Input'!$C$9 -> California - CA | AS7: ='Essbase Input'!$C$9 -> California - CA | AT7: ='Essbase Input'!$C$9 -> California - CA | AU7: ='Essbase Input'!$C$9 -> California - CA | AV7: ='Essbase Input'!$C$9 -> California - CA | AW7: ='Essbase Input'!$C$9 -> California - CA | AX7: ='Essbase Input'!$C$9 -> California - CA | AY7: ='Essbase Input'!$C$9 -> California - CA | AZ7: ='Essbase Input'!$C$9 -> California - CA | BA7: ='Essbase Input'!$C$9 -> California - CA | BB7: ='Essbase Input'!$C$9 -> California - CA | BC7: ='Essbase Input'!$C$9 -> California - CA | BD7: ='Essbase Input'!$C$9 -> California - CA
K8: ='Essbase Input'!$C$10 -> UnitedHealthcare Domestic | L8: ='Essbase Input'!$C$10 -> UnitedHealthcare Domestic | M8: ='Essbase Input'!$C$10 -> UnitedHealthcare Domestic | N8: ='Essbase Input'!$C$10 -> UnitedHealthcare Domestic | O8: ='Essbase Input'!$C$10 -> UnitedHealthcare Domestic | P8: ='Essbase Input'!$C$10 -> UnitedHealthcare Domestic | Q8: Operating Units | R8: Operating Units | S8: Operating Units | T8: Operating Units | U8: Operating Units | V8: Operating Units | W8: Operating Units | X8: Operating Units | Y8: Operating Units | Z8: Operating Units | AA8: Operating Units | AB8: Operating Units | AC8: Operating Units | AD8: Operating Units | AE8: Operating Units | AF8: Operating Units | AG8: Operating Units | AH8: Operating Units | AI8: Operating Units | AJ8: Operating Units | AK8: Operating Units | AL8: Operating Units | AM8: Operating Units | AN8: Operating Units | AO8: UnitedHealthcare Domestic | AP8: UnitedHealthcare Domestic | AQ8: UnitedHealthcare International | AR8: Optum | AS8: Eliminations Market Group | AT8: Corp Market Group Rollup | AU8: Non UnitedHealth Group Rollup | AV8: Operating Units | AW8: Operating Units | AX8: Operating Units | AY8: Operating Units | AZ8: Operating Units | BA8: Operating Units | BB8: Operating Units | BC8: Operating Units | BD8: Operating Units
K9: ='Essbase Input'!$C$11 -> Stand Alone Dental | L9: ='Essbase Input'!$C$11 -> Stand Alone Dental | M9: ='Essbase Input'!$C$11 -> Stand Alone Dental | N9: ='Essbase Input'!$C$11 -> Stand Alone Dental | O9: ='Essbase Input'!$C$11 -> Stand Alone Dental | P9: ='Essbase Input'!$C$11 -> Stand Alone Dental | Q9: ='Essbase Input'!$C$11 -> Stand Alone Dental | R9: ='Essbase Input'!$C$11 -> Stand Alone Dental | S9: Stand Alone Vision | T9: Non Stand Alone Dental/Vision | U9: 322000 - Stop Loss - Individual | V9: 322010 - Stop Loss PEL | W9: 322100 - Stop Loss - Aggregate | X9: 150000 - Stop Loss - Individual | Y9: 150010 - Stop Loss - Terminal Ind | Z9: 151000 - Stop Loss - Aggregate | AA9: 151010 - Stop Loss - Terminal Aggregate | AB9: 204000 - Supplemental Hospital Insur | AC9: 204010 - Hospital Advantage Plans | AD9: 204020 - Essential Health Insurance Pln | AE9: 204030 - Essential Plus Health Insur | AF9: 203000 - Medicare Supplement - Indiv | AG9: 203010 - Medicare Supplement - Group | AH9: 203100 - Natl Acct Med Supp/Retiree | AI9: 203510 - Medicare Supplement - Pre-Std | AJ9: 112000 - Student Health Plans | AK9: 113000 - Student Health - Accident Only | AL9: 202080 - Wrap - NonGap | AM9: 106410 - Individual Short Term | AN9: Other Bus(excluded by Statute) | AO9: Stand Alone Dental | AP9: Stand Alone Dental | AQ9: Stand Alone Dental | AR9: Stand Alone Dental | AS9: Stand Alone Dental | AT9: Stand Alone Dental | AU9: Stand Alone Dental | AV9: 306155 - Package Savings Disc - Vision | AW9: 306156 - Package Savings - Dental | AX9: 305402 - Managed Transplant Risk SD | AY9: 430083 - PBM ePrescribe | AZ9: 430084 - PreCheck My Script Fee | BA9: 430087 - PBM EGWP | BB9: 430088 - PBM ECOB | BC9: 430089 - PBM Clinical | BD9: Other Health Business
K10: Individual | L10: Individual | M10: Small Group Employer | N10: Small Group Employer | O10: Large Group Employer | P10: Large Group Employer | Q10: MLR Customers | R10: MLR Customers | S10: MLR Customers | T10: MLR Customers | U10: MLR Customers | V10: MLR Customers | W10: MLR Customers | X10: MLR Customers | Y10: MLR Customers | Z10: MLR Customers | AA10: MLR Customers | AB10: MLR Customers | AC10: MLR Customers | AD10: MLR Customers | AE10: MLR Customers | AF10: MLR Customers | AG10: MLR Customers | AH10: MLR Customers | AI10: MLR Customers | AJ10: MLR Customers | AK10: MLR Customers | AL10: MLR Customers | AM10: MLR Customers | AN10: MLR Customers | AO10: Blank Customer | AP10: Not Comp Health Coverage | AQ10: MLR Customers | AR10: MLR Customers | AS10: MLR Customers | AT10: MLR Customers | AU10: MLR Customers | AV10: MLR Customers | AW10: MLR Customers | AX10: MLR Customers | AY10: MLR Customers | AZ10: MLR Customers | BA10: MLR Customers | BB10: MLR Customers | BC10: MLR Customers | BD10: MLR Customers
K11: ='Essbase Input'!$C$17 -> 2022 | L11: ='Essbase Input'!$C$16 -> 2023 | M11: ='Essbase Input'!$C$17 -> 2022 | N11: ='Essbase Input'!$C$16 -> 2023 | O11: ='Essbase Input'!$C$17 -> 2022 | P11: ='Essbase Input'!$C$16 -> 2023 | Q11: ='Essbase Input'!$C$17 -> 2022 | R11: ='Essbase Input'!$C$16 -> 2023 | S11: ='Essbase Input'!$C$17 -> 2022 | T11: ='Essbase Input'!$C$17 -> 2022 | U11: ='Essbase Input'!$C$17 -> 2022 | V11: ='Essbase Input'!$C$17 -> 2022 | W11: ='Essbase Input'!$C$17 -> 2022 | X11: ='Essbase Input'!$C$17 -> 2022 | Y11: ='Essbase Input'!$C$17 -> 2022 | Z11: ='Essbase Input'!$C$17 -> 2022 | AA11: ='Essbase Input'!$C$17 -> 2022 | AB11: ='Essbase Input'!$C$17 -> 2022 | AC11: ='Essbase Input'!$C$17 -> 2022 | AD11: ='Essbase Input'!$C$17 -> 2022 | AE11: ='Essbase Input'!$C$17 -> 2022 | AF11: ='Essbase Input'!$C$17 -> 2022 | AG11: ='Essbase Input'!$C$17 -> 2022 | AH11: ='Essbase Input'!$C$17 -> 2022 | AI11: ='Essbase Input'!$C$17 -> 2022 | AJ11: ='Essbase Input'!$C$17 -> 2022 | AK11: ='Essbase Input'!$C$17 -> 2022 | AL11: ='Essbase Input'!$C$17 -> 2022 | AM11: ='Essbase Input'!$C$17 -> 2022 | AN11: ='Essbase Input'!$C$17 -> 2022 | AO11: ='Essbase Input'!$C$17 -> 2022 | AP11: ='Essbase Input'!$C$17 -> 2022 | AQ11: ='Essbase Input'!$C$17 -> 2022 | AR11: ='Essbase Input'!$C$17 -> 2022 | AS11: ='Essbase Input'!$C$17 -> 2022 | AT11: ='Essbase Input'!$C$17 -> 2022 | AU11: ='Essbase Input'!$C$17 -> 2022 | AV11: ='Essbase Input'!$C$17 -> 2022 | AW11: ='Essbase Input'!$C$17 -> 2022 | AX11: ='Essbase Input'!$C$17 -> 2022 | AY11: ='Essbase Input'!$C$17 -> 2022 | AZ11: ='Essbase Input'!$C$17 -> 2022 | BA11: ='Essbase Input'!$C$17 -> 2022 | BB11: ='Essbase Input'!$C$17 -> 2022 | BC11: ='Essbase Input'!$C$17 -> 2022 | BD11: ='Essbase Input'!$C$17 -> 2022 | BF11: -CHECK 1- | BG11: -CHECK 2-
A12: 1.1 | B12: 1.1 | C12: 12/31 | D12: --- | E12: R | F12: Health Premiums Earned | G12: IDB Periods | H12: Total Year | I12: NO REINSURANCE | J12: All Other Projects | K12: 0 | L12: 0 | M12: 0 | N12: 0 | O12: 0 | P12: 0 | Q12: -145317.48 | R12: -57693.04 | S12: -10887.94 | T12: 0 | U12: 0 | V12: 0 | W12: 0 | X12: 0 | Y12: 0 | Z12: 0 | AA12: 0 | AB12: 0 | AC12: 0 | AD12: 0 | AE12: 0 | AF12: 0 | AG12: 0 | AH12: 0 | AI12: 0 | AJ12: 0 | AK12: 0 | AL12: 0 | AM12: 0 | AN12: 0 | AO12: 0 | AP12: -145317.48 | AQ12: 0 | AR12: 0 | AS12: 0 | AT12: 0 | AU12: 0 | AV12: 0 | AW12: 0 | AX12: 0 | AY12: 0 | AZ12: 0 | BA12: 0 | BB12: 0 | BC12: 0 | BD12: -156205.42 | BF12: =AN12-SUM(U12:AM12) -> 0 | BG12: =K12+M12+O12+S12+T12+AN12+SUM(AO12:BC12)-BD12 -> 0
B13: 1.1 | C13: 03/31 | D13: ADD | E13: R | F13: Health Premiums Earned | G13: ='Essbase Input'!$D$17 -> IDB 2022 | H13: Total Year | I13: NO REINSURANCE | J13: All Other Projects | K13: 0 | L13: 0 | M13: 0 | N13: 0 | O13: 0 | P13: 0 | Q13: -145153.69 | R13: 188.69 | S13: -10875.14 | T13: 0 | U13: 0 | V13: 0 | W13: 0 | X13: 0 | Y13: 0 | Z13: 0 | AA13: 0 | AB13: 0 | AC13: 0 | AD13: 0 | AE13: 0 | AF13: 0 | AG13: 0 | AH13: 0 | AI13: 0 | AJ13: 0 | AK13: 0 | AL13: 0 | AM13: 0 | AN13: 0 | AO13: 0 | AP13: -145153.69 | AQ13: 0 | AR13: 0 | AS13: 0 | AT13: 0 | AU13: 0 | AV13: 0 | AW13: 0 | AX13: 0 | AY13: 0 | AZ13: 0 | BA13: 0 | BB13: 0 | BC13: 0 | BD13: -156028.83
B14: 1.1 | C14: 03/31 | D14: ADD | E14: R | F14: Health Premiums Earned | G14: ='Essbase Input'!$D$17 -> IDB 2022 | H14: March_Bal | I14: NO REINSURANCE | J14: All Other Projects | K14: 0 | L14: 0 | M14: 0 | N14: 0 | O14: 0 | P14: 0 | Q14: -38690.02 | R14: 133.17 | S14: -2992.23 | T14: 0 | U14: 0 | V14: 0 | W14: 0 | X14: 0 | Y14: 0 | Z14: 0 | AA14: 0 | AB14: 0 | AC14: 0 | AD14: 0 | AE14: 0 | AF14: 0 | AG14: 0 | AH14: 0 | AI14: 0 | AJ14: 0 | AK14: 0 | AL14: 0 | AM14: 0 | AN14: 0 | AO14: 0 | AP14: -38690.02 | AQ14: 0 | AR14: 0 | AS14: 0 | AT14: 0 | AU14: 0 | AV14: 0 | AW14: 0 | AX14: 0 | AY14: 0 | AZ14: 0 | BA14: 0 | BB14: 0 | BC14: 0 | BD14: -41682.25
A15: 1.2 | B15: 1.2 | C15: 12/31 | D15: --- | E15: R | F15: Unearned Premium | G15: IDB Periods | H15: Begin Balance | I15: NO REINSURANCE | J15: All Other Projects | K15: 0 | L15: 0 | M15: 0 | N15: 0 | O15: 0 | P15: 0 | Q15: 0 | R15: 0 | S15: 0 | T15: 0 | U15: 0 | V15: 0 | W15: 0 | X15: 0 | Y15: 0 | Z15: 0 | AA15: 0 | AB15: 0 | AC15: 0 | AD15: 0 | AE15: 0 | AF15: 0 | AG15: 0 | AH15: 0 | AI15: 0 | AJ15: 0 | AK15: 0 | AL15: 0 | AM15: 0 | AN15: 0 | AO15: 0 | AP15: 0 | AQ15: 0 | AR15: 0 | AS15: 0 | AT15: 0 | AU15: 0 | AV15: 0 | AW15: 0 | AX15: 0 | AY15: 0 | AZ15: 0 | BA15: 0 | BB15: 0 | BC15: 0 | BD15: 0 | BF15: =AN15-SUM(U15:AM15) -> 0 | BG15: =K15+M15+O15+S15+T15+AN15+SUM(AO15:BC15)-BD15 -> 0
B16: 1.2 | C16: 03/31 | D16: --- | E16: --- | F16: Zero Out
A17: 1.3 | B17: 1.3 | C17: 12/31 | D17: --- | E17: R | F17: Unearned Premium | G17: IDB Periods | H17: December_Bal | I17: NO REINSURANCE | J17: All Other Projects | K17: 0 | L17: 0 | M17: 0 | N17: 0 | O17: 0 | P17: 0 | Q17: 0 | R17: 0 | S17: 0 | T17: 0 | U17: 0 | V17: 0 | W17: 0 | X17: 0 | Y17: 0 | Z17: 0 | AA17: 0 | AB17: 0 | AC17: 0 | AD17: 0 | AE17: 0 | AF17: 0 | AG17: 0 | AH17: 0 | AI17: 0 | AJ17: 0 | AK17: 0 | AL17: 0 | AM17: 0 | AN17: 0 | AO17: 0 | AP17: 0 | AQ17: 0 | AR17: 0 | AS17: 0 | AT17: 0 | AU17: 0 | AV17: 0 | AW17: 0 | AX17: 0 | AY17: 0 | AZ17: 0 | BA17: 0 | BB17: 0 | BC17: 0 | BD17: 0 | BF17: =AN17-SUM(U17:AM17) -> 0 | BG17: =K17+M17+O17+S17+T17+AN17+SUM(AO17:BC17)-BD17 -> 0
B18: 1.3 | C18: 03/31 | D18: --- | E18: --- | F18: Zero Out
A19: 1.7 | B19: 1.4 | C19: 12/31 | D19: --- | E19: --- | F19: Bad Debt Exp | G19: IDB Periods | H19: Total Year | I19: NO REINSURANCE | J19: All Other Projects | K19: 0 | L19: 0 | M19: 0 | N19: 0 | O19: 0 | P19: 0 | Q19: 0 | R19: 0 | S19: 0 | T19: 0 | U19: 0 | V19: 0 | W19: 0 | X19: 0 | Y19: 0 | Z19: 0 | AA19: 0 | AB19: 0 | AC19: 0 | AD19: 0 | AE19: 0 | AF19: 0 | AG19: 0 | AH19: 0 | AI19: 0 | AJ19: 0 | AK19: 0 | AL19: 0 | AM19: 0 | AN19: 0 | AO19: 0 | AP19: 0 | AQ19: 0 | AR19: 0 | AS19: 0 | AT19: 0 | AU19: 0 | AV19: 0 | AW19: 0 | AX19: 0 | AY19: 0 | AZ19: 0 | BA19: 0 | BB19: 0 | BC19: 0 | BD19: 0 | BF19: =AN19-SUM(U19:AM19) -> 0 | BG19: =K19+M19+O19+S19+T19+AN19+SUM(AO19:BC19)-BD19 -> 0
A20: 2.1a | B20: 2.1a | C20: 12/31 | D20: ADD | E20: --- | F20: Total Incurred Claims | G20: IDB Periods | H20: Total Year | I20: NO REINSURANCE | J20: All Other Projects | K20: 0 | L20: 0 | M20: 0 | N20: 0 | O20: 0 | P20: 0 | Q20: 75730.91 | R20: 34033.77 | S20: 4667.7 | T20: 0 | U20: 0 | V20: 0 | W20: 0 | X20: 0 | Y20: 0 | Z20: 0 | AA20: 0 | AB20: 0 | AC20: 0 | AD20: 0 | AE20: 0 | AF20: 0 | AG20: 0 | AH20: 0 | AI20: 0 | AJ20: 0 | AK20: 0 | AL20: 0 | AM20: 0 | AN20: 0 | AO20: 0 | AP20: 75730.91 | AQ20: 0 | AR20: 0 | AS20: 0 | AT20: 0 | AU20: 0 | AV20: 0 | AW20: 0 | AX20: 0 | AY20: 0 | AZ20: 0 | BA20: 0 | BB20: 0 | BC20: 0 | BD20: 80398.61 | BF20: =AN20-SUM(U20:AM20) -> 0 | BG20: =K20+M20+O20+S20+T20+AN20+SUM(AO20:BC20)-BD20 -> 0
B21: 2.1a | C21: 12/31 | D21: SUB | E21: --- | F21: 50010 - Physician Cap Paid - External | G21: IDB Periods | H21: Total Year | I21: NO REINSURANCE | J21: 0000003413 - General Administrative | K21: 0 | L21: 0 | M21: 0 | N21: 0 | O21: 0 | P21: 0 | Q21: 0 | R21: 0 | S21: 0 | T21: 0 | U21: 0 | V21: 0 | W21: 0 | X21: 0 | Y21: 0 | Z21: 0 | AA21: 0 | AB21: 0 | AC21: 0 | AD21: 0 | AE21: 0 | AF21: 0 | AG21: 0 | AH21: 0 | AI21: 0 | AJ21: 0 | AK21: 0 | AL21: 0 | AM21: 0 | AN21: 0 | AO21: 0 | AP21: 0 | AQ21: 0 | AR21: 0 | AS21: 0 | AT21: 0 | AU21: 0 | AV21: 0 | AW21: 0 | AX21: 0 | AY21: 0 | AZ21: 0 | BA21: 0 | BB21: 0 | BC21: 0 | BD21: 0 | BF21: =AN21-SUM(U21:AM21) -> 0 | BG21: =K21+M21+O21+S21+T21+AN21+SUM(AO21:BC21)-BD21 -> 0
B22: 2.1a | C22: 12/31 | D22: SUB | E22: --- | F22: 50619 - Internal Capitation Pd - Other | G22: IDB Periods | H22: Total Year | I22: NO REINSURANCE | J22: All Other Projects | K22: 0 | L22: 0 | M22: 0 | N22: 0 | O22: 0 | P22: 0 | Q22: 0 | R22: 0 | S22: 0 | T22: 0 | U22: 0 | V22: 0 | W22: 0 | X22: 0 | Y22: 0 | Z22: 0 | AA22: 0 | AB22: 0 | AC22: 0 | AD22: 0 | AE22: 0 | AF22: 0 | AG22: 0 | AH22: 0 | AI22: 0 | AJ22: 0 | AK22: 0 | AL22: 0 | AM22: 0 | AN22: 0 | AO22: 0 | AP22: 0 | AQ22: 0 | AR22: 0 | AS22: 0 | AT22: 0 | AU22: 0 | AV22: 0 | AW22: 0 | AX22: 0 | AY22: 0 | AZ22: 0 | BA22: 0 | BB22: 0 | BC22: 0 | BD22: 0 | BF22: 0 | BG22: =K22+M22+O22+S22+T22+AN22+SUM(AO22:BC22)-BD22 -> 0
B23: 2.1a | C23: 12/31 | D23: SUB | E23: --- | F23: Rate Credits NonTaxable | G23: IDB Periods | H23: Total Year | I23: NO REINSURANCE | J23: All Other Projects | K23: 0 | L23: 0 | M23: 0 | N23: 0 | O23: 0 | P23: 0 | Q23: 0 | R23: 0 | S23: 0 | T23: 0 | U23: 0 | V23: 0 | W23: 0 | X23: 0 | Y23: 0 | Z23: 0 | AA23: 0 | AB23: 0 | AC23: 0 | AD23: 0 | AE23: 0 | AF23: 0 | AG23: 0 | AH23: 0 | AI23: 0 | AJ23: 0 | AK23: 0 | AL23: 0 | AM23: 0 | AN23: 0 | AO23: 0 | AP23: 0 | AQ23: 0 | AR23: 0 | AS23: 0 | AT23: 0 | AU23: 0 | AV23: 0 | AW23: 0 | AX23: 0 | AY23: 0 | AZ23: 0 | BA23: 0 | BB23: 0 | BC23: 0 | BD23: 0 | BF23: 0 | BG23: =K23+M23+O23+S23+T23+AN23+SUM(AO23:BC23)-BD23 -> 0
A24: 2.1b | B24: 2.1b | C24: 03/31 | D24: ADD | E24: --- | F24: Total Incurred Claims | G24: ='Essbase Input'!$D$17 -> IDB 2022 | H24: Total Year | I24: NO REINSURANCE | J24: All Other Projects | K24: 0 | L24: 0 | M24: 0 | N24: 0 | O24: 0 | P24: 0 | Q24: 76499.89 | R24: 5086.68 | S24: 5942.86 | T24: 0 | U24: 0 | V24: 0 | W24: 0 | X24: 0 | Y24: 0 | Z24: 0 | AA24: 0 | AB24: 0 | AC24: 0 | AD24: 0 | AE24: 0 | AF24: 0 | AG24: 0 | AH24: 0 | AI24: 0 | AJ24: 0 | AK24: 0 | AL24: 0 | AM24: 0 | AN24: 0 | AO24: 0 | AP24: 76499.89 | AQ24: 0 | AR24: 0 | AS24: 0 | AT24: 0 | AU24: 0 | AV24: 0 | AW24: 0 | AX24: 0 | AY24: 0 | AZ24: 0 | BA24: 0 | BB24: 0 | BC24: 0 | BD24: 82442.75
B25: 2.1b | C25: 03/31 | D25: ADD | E25: --- | F25: Total Incurred Claims | G25: ='Essbase Input'!$D$17 -> IDB 2022 | H25: March_Bal | I25: NO REINSURANCE | J25: All Other Projects | K25: 0 | L25: 0 | M25: 0 | N25: 0 | O25: 0 | P25: 0 | Q25: 19945.95 | R25: 3559.21 | S25: 3791.44 | T25: 0 | U25: 0 | V25: 0 | W25: 0 | X25: 0 | Y25: 0 | Z25: 0 | AA25: 0 | AB25: 0 | AC25: 0 | AD25: 0 | AE25: 0 | AF25: 0 | AG25: 0 | AH25: 0 | AI25: 0 | AJ25: 0 | AK25: 0 | AL25: 0 | AM25: 0 | AN25: 0 | AO25: 0 | AP25: 19945.95 | AQ25: 0 | AR25: 0 | AS25: 0 | AT25: 0 | AU25: 0 | AV25: 0 | AW25: 0 | AX25: 0 | AY25: 0 | AZ25: 0 | BA25: 0 | BB25: 0 | BC25: 0 | BD25: 23737.39
B26: 2.1b | C26: 03/31 | D26: SUB | E26: --- | F26: 50010 - Physician Cap Paid - External | G26: ='Essbase Input'!$D$17 -> IDB 2022 | H26: Total Year | I26: NO REINSURANCE | J26: 0000003413 - General Administrative | K26: 0 | L26: 0 | M26: 0 | N26: 0 | O26: 0 | P26: 0 | Q26: 0 | R26: 0 | S26: 0 | T26: 0 | U26: 0 | V26: 0 | W26: 0 | X26: 0 | Y26: 0 | Z26: 0 | AA26: 0 | AB26: 0 | AC26: 0 | AD26: 0 | AE26: 0 | AF26: 0 | AG26: 0 | AH26: 0 | AI26: 0 | AJ26: 0 | AK26: 0 | AL26: 0 | AM26: 0 | AN26: 0 | AO26: 0 | AP26: 0 | AQ26: 0 | AR26: 0 | AS26: 0 | AT26: 0 | AU26: 0 | AV26: 0 | AW26: 0 | AX26: 0 | AY26: 0 | AZ26: 0 | BA26: 0 | BB26: 0 | BC26: 0 | BD26: 0
B27: 2.1b | C27: 03/31 | D27: SUB | E27: --- | F27: 50010 - Physician Cap Paid - External | G27: ='Essbase Input'!$D$17 -> IDB 2022 | H27: March_Bal | I27: NO REINSURANCE | J27: 0000003413 - General Administrative | K27: 0 | L27: 0 | M27: 0 | N27: 0 | O27: 0 | P27: 0 | Q27: 0 | R27: 0 | S27: 0 | T27: 0 | U27: 0 | V27: 0 | W27: 0 | X27: 0 | Y27: 0 | Z27: 0 | AA27: 0 | AB27: 0 | AC27: 0 | AD27: 0 | AE27: 0 | AF27: 0 | AG27: 0 | AH27: 0 | AI27: 0 | AJ27: 0 | AK27: 0 | AL27: 0 | AM27: 0 | AN27: 0 | AO27: 0 | AP27: 0 | AQ27: 0 | AR27: 0 | AS27: 0 | AT27: 0 | AU27: 0 | AV27: 0 | AW27: 0 | AX27: 0 | AY27: 0 | AZ27: 0 | BA27: 0 | BB27: 0 | BC27: 0 | BD27: 0
B28: 2.1b | C28: 03/31 | D28: SUB | E28: --- | F28: 50619 - Internal Capitation Pd - Other | G28: ='Essbase Input'!$D$17 -> IDB 2022 | H28: Total Year | I28: NO REINSURANCE | J28: All Other Projects | K28: 0 | L28: 0 | M28: 0 | N28: 0 | O28: 0 | P28: 0 | Q28: 0 | R28: 0 | S28: 0 | T28: 0 | U28: 0 | V28: 0 | W28: 0 | X28: 0 | Y28: 0 | Z28: 0 | AA28: 0 | AB28: 0 | AC28: 0 | AD28: 0 | AE28: 0 | AF28: 0 | AG28: 0 | AH28: 0 | AI28: 0 | AJ28: 0 | AK28: 0 | AL28: 0 | AM28: 0 | AN28: 0 | AO28: 0 | AP28: 0 | AQ28: 0 | AR28: 0 | AS28: 0 | AT28: 0 | AU28: 0 | AV28: 0 | AW28: 0 | AX28: 0 | AY28: 0 | AZ28: 0 | BA28: 0 | BB28: 0 | BC28: 0 | BD28: 0
B29: 2.1b | C29: 03/31 | D29: SUB | E29: --- | F29: 50619 - Internal Capitation Pd - Other | G29: ='Essbase Input'!$D$17 -> IDB 2022 | H29: March_Bal | I29: NO REINSURANCE | J29: All Other Projects | K29: 0 | L29: 0 | M29: 0 | N29: 0 | O29: 0 | P29: 0 | Q29: 0 | R29: 0 | S29: 0 | T29: 0 | U29: 0 | V29: 0 | W29: 0 | X29: 0 | Y29: 0 | Z29: 0 | AA29: 0 | AB29: 0 | AC29: 0 | AD29: 0 | AE29: 0 | AF29: 0 | AG29: 0 | AH29: 0 | AI29: 0 | AJ29: 0 | AK29: 0 | AL29: 0 | AM29: 0 | AN29: 0 | AO29: 0 | AP29: 0 | AQ29: 0 | AR29: 0 | AS29: 0 | AT29: 0 | AU29: 0 | AV29: 0 | AW29: 0 | AX29: 0 | AY29: 0 | AZ29: 0 | BA29: 0 | BB29: 0 | BC29: 0 | BD29: 0
B30: 2.1b | C30: 03/31 | D30: SUB | E30: --- | F30: Rate Credits NonTaxable | G30: ='Essbase Input'!$D$17 -> IDB 2022 | H30: Total Year | I30: NO REINSURANCE | J30: All Other Projects | K30: 0 | L30: 0 | M30: 0 | N30: 0 | O30: 0 | P30: 0 | Q30: 0 | R30: 0 | S30: 0 | T30: 0 | U30: 0 | V30: 0 | W30: 0 | X30: 0 | Y30: 0 | Z30: 0 | AA30: 0 | AB30: 0 | AC30: 0 | AD30: 0 | AE30: 0 | AF30: 0 | AG30: 0 | AH30: 0 | AI30: 0 | AJ30: 0 | AK30: 0 | AL30: 0 | AM30: 0 | AN30: 0 | AO30: 0 | AP30: 0 | AQ30: 0 | AR30: 0 | AS30: 0 | AT30: 0 | AU30: 0 | AV30: 0 | AW30: 0 | AX30: 0 | AY30: 0 | AZ30: 0 | BA30: 0 | BB30: 0 | BC30: 0 | BD30: 0
B31: 2.1b | C31: 03/31 | D31: SUB | E31: --- | F31: Rate Credits NonTaxable | G31: ='Essbase Input'!$D$17 -> IDB 2022 | H31: March_Bal | I31: NO REINSURANCE | J31: All Other Projects | K31: 0 | L31: 0 | M31: 0 | N31: 0 | O31: 0 | P31: 0 | Q31: 0 | R31: 0 | S31: 0 | T31: 0 | U31: 0 | V31: 0 | W31: 0 | X31: 0 | Y31: 0 | Z31: 0 | AA31: 0 | AB31: 0 | AC31: 0 | AD31: 0 | AE31: 0 | AF31: 0 | AG31: 0 | AH31: 0 | AI31: 0 | AJ31: 0 | AK31: 0 | AL31: 0 | AM31: 0 | AN31: 0 | AO31: 0 | AP31: 0 | AQ31: 0 | AR31: 0 | AS31: 0 | AT31: 0 | AU31: 0 | AV31: 0 | AW31: 0 | AX31: 0 | AY31: 0 | AZ31: 0 | BA31: 0 | BB31: 0 | BC31: 0 | BD31: 0
A32: 2.2a | B32: 2.2a | C32: 12/31 | D32: --- | E32: R | F32: Direct Claim Liability | G32: IDB Periods | H32: December_Bal | I32: NO REINSURANCE | J32: All Other Projects | K32: 0 | L32: 0 | M32: 0 | N32: 0 | O32: 0 | P32: 0 | Q32: -890.13 | R32: 0 | S32: -561.97 | T32: 0 | U32: 0 | V32: 0 | W32: 0 | X32: 0 | Y32: 0 | Z32: 0 | AA32: 0 | AB32: 0 | AC32: 0 | AD32: 0 | AE32: 0 | AF32: 0 | AG32: 0 | AH32: 0 | AI32: 0 | AJ32: 0 | AK32: 0 | AL32: 0 | AM32: 0 | AN32: 0 | AO32: 0 | AP32: -890.13 | AQ32: 0 | AR32: 0 | AS32: 0 | AT32: 0 | AU32: 0 | AV32: 0 | AW32: 0 | AX32: 0 | AY32: 0 | AZ32: 0 | BA32: 0 | BB32: 0 | BC32: 0 | BD32: -1452.1 | BF32: =AN32-SUM(U32:AM32) -> 0 | BG32: =K32+M32+O32+S32+T32+AN32+SUM(AO32:BC32)-BD32 -> 0
A33: 2.2b | B33: 2.2b | C33: 03/31 | D33: --- | E33: R | F33: Direct Claim Liability | G33: ='Essbase Input'!$D$17 -> IDB 2022 | H33: March_Bal | I33: NO REINSURANCE | J33: All Other Projects | K33: 0 | L33: 0 | M33: 0 | N33: 0 | O33: 0 | P33: 0 | Q33: 88.57 | R33: 249.09 | S33: -2433.92 | T33: 0 | U33: 0 | V33: 0 | W33: 0 | X33: 0 | Y33: 0 | Z33: 0 | AA33: 0 | AB33: 0 | AC33: 0 | AD33: 0 | AE33: 0 | AF33: 0 | AG33: 0 | AH33: 0 | AI33: 0 | AJ33: 0 | AK33: 0 | AL33: 0 | AM33: 0 | AN33: 0 | AO33: 0 | AP33: 88.57 | AQ33: 0 | AR33: 0 | AS33: 0 | AT33: 0 | AU33: 0 | AV33: 0 | AW33: 0 | AX33: 0 | AY33: 0 | AZ33: 0 | BA33: 0 | BB33: 0 | BC33: 0 | BD33: -2345.35
A34: 2.3 | B34: 2.3 | C34: 12/31 | D34: --- | E34: R | F34: Direct Claim Liability | G34: IDB Periods | H34: Begin Balance | I34: NO REINSURANCE | J34: All Other Projects | K34: 0 | L34: 0 | M34: 0 | N34: 0 | O34: 0 | P34: 0 | Q34: -4012.61 | R34: -890.13 | S34: -1373.44 | T34: 0 | U34: 0 | V34: 0 | W34: 0 | X34: 0 | Y34: 0 | Z34: 0 | AA34: 0 | AB34: 0 | AC34: 0 | AD34: 0 | AE34: 0 | AF34: 0 | AG34: 0 | AH34: 0 | AI34: 0 | AJ34: 0 | AK34: 0 | AL34: 0 | AM34: 0 | AN34: 0 | AO34: 0 | AP34: -4012.61 | AQ34: 0 | AR34: 0 | AS34: 0 | AT34: 0 | AU34: 0 | AV34: 0 | AW34: 0 | AX34: 0 | AY34: 0 | AZ34: 0 | BA34: 0 | BB34: 0 | BC34: 0 | BD34: -5386.05 | BF34: =AN34-SUM(U34:AM34) -> 0 | BG34: =K34+M34+O34+S34+T34+AN34+SUM(AO34:BC34)-BD34 -> 0
A35: 2.4a | B35: 2.4a | C35: 12/31 | D35: --- | E35: R | F35: Direct Claim Reserves | G35: IDB Periods | H35: December_Bal | I35: NO REINSURANCE | J35: All Other Projects | K35: 0 | L35: 0 | M35: 0 | N35: 0 | O35: 0 | P35: 0 | Q35: 0 | R35: 0 | S35: 0 | T35: 0 | U35: 0 | V35: 0 | W35: 0 | X35: 0 | Y35: 0 | Z35: 0 | AA35: 0 | AB35: 0 | AC35: 0 | AD35: 0 | AE35: 0 | AF35: 0 | AG35: 0 | AH35: 0 | AI35: 0 | AJ35: 0 | AK35: 0 | AL35: 0 | AM35: 0 | AN35: 0 | AO35: 0 | AP35: 0 | AQ35: 0 | AR35: 0 | AS35: 0 | AT35: 0 | AU35: 0 | AV35: 0 | AW35: 0 | AX35: 0 | AY35: 0 | AZ35: 0 | BA35: 0 | BB35: 0 | BC35: 0 | BD35: 0 | BF35: =AN35-SUM(U35:AM35) -> 0 | BG35: =K35+M35+O35+S35+T35+AN35+SUM(AO35:BC35)-BD35 -> 0
A36: 2.4b | B36: 2.4b | C36: 03/31 | D36: --- | E36: R | F36: Direct Claim Reserves | G36: ='Essbase Input'!$D$17 -> IDB 2022 | H36: March_Bal | I36: NO REINSURANCE | J36: All Other Projects | K36: 0 | L36: 0 | M36: 0 | N36: 0 | O36: 0 | P36: 0 | Q36: 0 | R36: 0 | S36: 0 | T36: 0 | U36: 0 | V36: 0 | W36: 0 | X36: 0 | Y36: 0 | Z36: 0 | AA36: 0 | AB36: 0 | AC36: 0 | AD36: 0 | AE36: 0 | AF36: 0 | AG36: 0 | AH36: 0 | AI36: 0 | AJ36: 0 | AK36: 0 | AL36: 0 | AM36: 0 | AN36: 0 | AO36: 0 | AP36: 0 | AQ36: 0 | AR36: 0 | AS36: 0 | AT36: 0 | AU36: 0 | AV36: 0 | AW36: 0 | AX36: 0 | AY36: 0 | AZ36: 0 | BA36: 0 | BB36: 0 | BC36: 0 | BD36: 0
A37: 2.5 | B37: 2.5 | C37: 12/31 | D37: --- | E37: R | F37: Direct Claim Reserves | G37: IDB Periods | H37: Begin Balance | I37: NO REINSURANCE | J37: All Other Projects | K37: 0 | L37: 0 | M37: 0 | N37: 0 | O37: 0 | P37: 0 | Q37: 0 | R37: 0 | S37: 0 | T37: 0 | U37: 0 | V37: 0 | W37: 0 | X37: 0 | Y37: 0 | Z37: 0 | AA37: 0 | AB37: 0 | AC37: 0 | AD37: 0 | AE37: 0 | AF37: 0 | AG37: 0 | AH37: 0 | AI37: 0 | AJ37: 0 | AK37: 0 | AL37: 0 | AM37: 0 | AN37: 0 | AO37: 0 | AP37: 0 | AQ37: 0 | AR37: 0 | AS37: 0 | AT37: 0 | AU37: 0 | AV37: 0 | AW37: 0 | AX37: 0 | AY37: 0 | AZ37: 0 | BA37: 0 | BB37: 0 | BC37: 0 | BD37: 0 | BF37: =AN37-SUM(U37:AM37) -> 0 | BG37: =K37+M37+O37+S37+T37+AN37+SUM(AO37:BC37)-BD37 -> 0
A38: 2.8a | B38: 2.6a | C38: 12/31 | D38: ADD | E38: --- | F38: Rate Credits Taxable | G38: IDB Periods | H38: Total Year | I38: NO REINSURANCE | J38: All Other Projects | K38: 0 | L38: 0 | M38: 0 | N38: 0 | O38: 0 | P38: 0 | Q38: 0 | R38: 0 | S38: 0 | T38: 0 | U38: 0 | V38: 0 | W38: 0 | X38: 0 | Y38: 0 | Z38: 0 | AA38: 0 | AB38: 0 | AC38: 0 | AD38: 0 | AE38: 0 | AF38: 0 | AG38: 0 | AH38: 0 | AI38: 0 | AJ38: 0 | AK38: 0 | AL38: 0 | AM38: 0 | AN38: 0 | AO38: 0 | AP38: 0 | AQ38: 0 | AR38: 0 | AS38: 0 | AT38: 0 | AU38: 0 | AV38: 0 | AW38: 0 | AX38: 0 | AY38: 0 | AZ38: 0 | BA38: 0 | BB38: 0 | BC38: 0 | BD38: 0 | BF38: 0 | BG38: 0
B39: 2.6a | C39: 12/31 | D39: ADD | E39: --- | F39: Reserve for Rate Credits | G39: IDB Periods | H39: December_Bal | I39: NO REINSURANCE | J39: All Other Projects | K39: 0 | L39: 0 | M39: 0 | N39: 0 | O39: 0 | P39: 0 | Q39: 0 | R39: 0 | S39: 0 | T39: 0 | U39: 0 | V39: 0 | W39: 0 | X39: 0 | Y39: 0 | Z39: 0 | AA39: 0 | AB39: 0 | AC39: 0 | AD39: 0 | AE39: 0 | AF39: 0 | AG39: 0 | AH39: 0 | AI39: 0 | AJ39: 0 | AK39: 0 | AL39: 0 | AM39: 0 | AN39: 0 | AO39: 0 | AP39: 0 | AQ39: 0 | AR39: 0 | AS39: 0 | AT39: 0 | AU39: 0 | AV39: 0 | AW39: 0 | AX39: 0 | AY39: 0 | AZ39: 0 | BA39: 0 | BB39: 0 | BC39: 0 | BD39: 0 | BF39: 0 | BG39: 0
B40: 2.6a | C40: 12/31 | D40: SUB | E40: --- | F40: Estimated Rebates Unpaid | G40: IDB Periods | H40: December_Bal | I40: NO REINSURANCE | J40: All Other Projects | K40: 0 | L40: 0 | M40: 0 | N40: 0 | O40: 0 | P40: 0 | Q40: 0 | R40: 0 | S40: 0 | T40: 0 | U40: 0 | V40: 0 | W40: 0 | X40: 0 | Y40: 0 | Z40: 0 | AA40: 0 | AB40: 0 | AC40: 0 | AD40: 0 | AE40: 0 | AF40: 0 | AG40: 0 | AH40: 0 | AI40: 0 | AJ40: 0 | AK40: 0 | AL40: 0 | AM40: 0 | AN40: 0 | AO40: 0 | AP40: 0 | AQ40: 0 | AR40: 0 | AS40: 0 | AT40: 0 | AU40: 0 | AV40: 0 | AW40: 0 | AX40: 0 | AY40: 0 | AZ40: 0 | BA40: 0 | BB40: 0 | BC40: 0 | BD40: 0 | BF40: 0 | BG40: 0
B41: 2.6a | C41: 12/31 | D41: ADD | E41: --- | F41: Reserve for Rate Credits | G41: IDB Periods | H41: Begin Balance | I41: NO REINSURANCE | J41: All Other Projects | K41: 0 | L41: 0 | M41: 0 | N41: 0 | O41: 0 | P41: 0 | Q41: 0 | R41: 0 | S41: 0 | T41: 0 | U41: 0 | V41: 0 | W41: 0 | X41: 0 | Y41: 0 | Z41: 0 | AA41: 0 | AB41: 0 | AC41: 0 | AD41: 0 | AE41: 0 | AF41: 0 | AG41: 0 | AH41: 0 | AI41: 0 | AJ41: 0 | AK41: 0 | AL41: 0 | AM41: 0 | AN41: 0 | AO41: 0 | AP41: 0 | AQ41: 0 | AR41: 0 | AS41: 0 | AT41: 0 | AU41: 0 | AV41: 0 | AW41: 0 | AX41: 0 | AY41: 0 | AZ41: 0 | BA41: 0 | BB41: 0 | BC41: 0 | BD41: 0 | BF41: 0 | BG41: 0
B42: 2.6a | C42: 12/31 | D42: SUB | E42: --- | F42: Estimated Rebates Unpaid | G42: IDB Periods | H42: Begin Balance | I42: NO REINSURANCE | J42: All Other Projects | K42: 0 | L42: 0 | M42: 0 | N42: 0 | O42: 0 | P42: 0 | Q42: 0 | R42: 0 | S42: 0 | T42: 0 | U42: 0 | V42: 0 | W42: 0 | X42: 0 | Y42: 0 | Z42: 0 | AA42: 0 | AB42: 0 | AC42: 0 | AD42: 0 | AE42: 0 | AF42: 0 | AG42: 0 | AH42: 0 | AI42: 0 | AJ42: 0 | AK42: 0 | AL42: 0 | AM42: 0 | AN42: 0 | AO42: 0 | AP42: 0 | AQ42: 0 | AR42: 0 | AS42: 0 | AT42: 0 | AU42: 0 | AV42: 0 | AW42: 0 | AX42: 0 | AY42: 0 | AZ42: 0 | BA42: 0 | BB42: 0 | BC42: 0 | BD42: 0 | BF42: 0 | BG42: 0
A43: 2.8b | B43: 2.6b | C43: 03/31 | D43: ADD | E43: --- | F43: Rate Credits Taxable | G43: IDB Periods | H43: Total Year | I43: NO REINSURANCE | J43: All Other Projects | K43: 0 | L43: 0 | M43: 0 | N43: 0 | O43: 0 | P43: 0 | Q43: 0 | R43: 0 | S43: 0 | T43: 0 | U43: 0 | V43: 0 | W43: 0 | X43: 0 | Y43: 0 | Z43: 0 | AA43: 0 | AB43: 0 | AC43: 0 | AD43: 0 | AE43: 0 | AF43: 0 | AG43: 0 | AH43: 0 | AI43: 0 | AJ43: 0 | AK43: 0 | AL43: 0 | AM43: 0 | AN43: 0 | AO43: 0 | AP43: 0 | AQ43: 0 | AR43: 0 | AS43: 0 | AT43: 0 | AU43: 0 | AV43: 0 | AW43: 0 | AX43: 0 | AY43: 0 | AZ43: 0 | BA43: 0 | BB43: 0 | BC43: 0 | BD43: 0
B44: 2.6b | C44: 03/31 | D44: ADD | E44: --- | F44: Rate Credits Taxable | G44: ='Essbase Input'!$D$17 -> IDB 2022 | H44: March_Bal | I44: NO REINSURANCE | J44: All Other Projects | K44: 0 | L44: 0 | M44: 0 | N44: 0 | O44: 0 | P44: 0 | Q44: 0 | R44: 0 | S44: 0 | T44: 0 | U44: 0 | V44: 0 | W44: 0 | X44: 0 | Y44: 0 | Z44: 0 | AA44: 0 | AB44: 0 | AC44: 0 | AD44: 0 | AE44: 0 | AF44: 0 | AG44: 0 | AH44: 0 | AI44: 0 | AJ44: 0 | AK44: 0 | AL44: 0 | AM44: 0 | AN44: 0 | AO44: 0 | AP44: 0 | AQ44: 0 | AR44: 0 | AS44: 0 | AT44: 0 | AU44: 0 | AV44: 0 | AW44: 0 | AX44: 0 | AY44: 0 | AZ44: 0 | BA44: 0 | BB44: 0 | BC44: 0 | BD44: 0
B45: 2.6b | C45: 03/31 | D45: ADD | E45: --- | F45: Reserve for Rate Credits | G45: ='Essbase Input'!$D$17 -> IDB 2022 | H45: March_Bal | I45: NO REINSURANCE | J45: All Other Projects | K45: 0 | L45: 0 | M45: 0 | N45: 0 | O45: 0 | P45: 0 | Q45: 0 | R45: 0 | S45: 0 | T45: 0 | U45: 0 | V45: 0 | W45: 0 | X45: 0 | Y45: 0 | Z45: 0 | AA45: 0 | AB45: 0 | AC45: 0 | AD45: 0 | AE45: 0 | AF45: 0 | AG45: 0 | AH45: 0 | AI45: 0 | AJ45: 0 | AK45: 0 | AL45: 0 | AM45: 0 | AN45: 0 | AO45: 0 | AP45: 0 | AQ45: 0 | AR45: 0 | AS45: 0 | AT45: 0 | AU45: 0 | AV45: 0 | AW45: 0 | AX45: 0 | AY45: 0 | AZ45: 0 | BA45: 0 | BB45: 0 | BC45: 0 | BD45: 0
B46: 2.6b | C46: 03/31 | D46: SUB | E46: --- | F46: Estimated Rebates Unpaid | G46: ='Essbase Input'!$D$17 -> IDB 2022 | H46: March_Bal | I46: NO REINSURANCE | J46: All Other Projects | K46: 0 | L46: 0 | M46: 0 | N46: 0 | O46: 0 | P46: 0 | Q46: 0 | R46: 0 | S46: 0 | T46: 0 | U46: 0 | V46: 0 | W46: 0 | X46: 0 | Y46: 0 | Z46: 0 | AA46: 0 | AB46: 0 | AC46: 0 | AD46: 0 | AE46: 0 | AF46: 0 | AG46: 0 | AH46: 0 | AI46: 0 | AJ46: 0 | AK46: 0 | AL46: 0 | AM46: 0 | AN46: 0 | AO46: 0 | AP46: 0 | AQ46: 0 | AR46: 0 | AS46: 0 | AT46: 0 | AU46: 0 | AV46: 0 | AW46: 0 | AX46: 0 | AY46: 0 | AZ46: 0 | BA46: 0 | BB46: 0 | BC46: 0 | BD46: 0
A47: 2.9a | B47: 2.7a | C47: 12/31 | D47: SUB | E47: --- | F47: Mimics 2.6a Ln 2 Above
B48: 2.7a | C48: 12/31 | D48: ADD | E48: --- | F48: Mimics 2.6a Ln 3 Above
A49: 2.9b | B49: 2.7b | C49: 03/31 | D49: SUB | E49: --- | F49: Mimics 2.6b Ln 3 Above
B50: 2.7b | C50: 03/31 | D50: ADD | E50: --- | F50: Mimics 2.6b Ln 4 Above
A51: 2.1 | B51: 2.8 | C51: 12/31 | D51: SUB | E51: --- | F51: Mimics 2.6a Ln 4 Above
B52: 2.8 | C52: 12/31 | D52: ADD | E52: --- | F52: Mimics 2.6a Ln 5 Above
A53: 2.11a | B53: 2.9a | C53: 12/31 | D53: --- | E53: --- | F53: Inc Med Inc Pools & Bonuses | G53: IDB Periods | H53: December_Bal | I53: NO REINSURANCE | J53: All Other Projects | K53: 0 | L53: 0 | M53: 0 | N53: 0 | O53: 0 | P53: 0 | Q53: 0 | R53: 0 | S53: 0 | T53: 0 | U53: 0 | V53: 0 | W53: 0 | X53: 0 | Y53: 0 | Z53: 0 | AA53: 0 | AB53: 0 | AC53: 0 | AD53: 0 | AE53: 0 | AF53: 0 | AG53: 0 | AH53: 0 | AI53: 0 | AJ53: 0 | AK53: 0 | AL53: 0 | AM53: 0 | AN53: 0 | AO53: 0 | AP53: 0 | AQ53: 0 | AR53: 0 | AS53: 0 | AT53: 0 | AU53: 0 | AV53: 0 | AW53: 0 | AX53: 0 | AY53: 0 | AZ53: 0 | BA53: 0 | BB53: 0 | BC53: 0 | BD53: 0 | BF53: =AN53-SUM(U53:AM53) -> 0 | BG53: =K53+M53+O53+S53+T53+AN53+SUM(AO53:BC53)-BD53 -> 0
B54: 2.9a | C54: 03/31 | D54: ADD | E54: --- | F54: Inc Med Inc Pools & Bonuses | G54: ='Essbase Input'!$D$17 -> IDB 2022 | H54: December_YTD | I54: NO REINSURANCE | J54: All Other Projects | K54: 0 | L54: 0 | M54: 0 | N54: 0 | O54: 0 | P54: 0 | Q54: 0 | R54: 0 | S54: 0 | T54: 0 | U54: 0 | V54: 0 | W54: 0 | X54: 0 | Y54: 0 | Z54: 0 | AA54: 0 | AB54: 0 | AC54: 0 | AD54: 0 | AE54: 0 | AF54: 0 | AG54: 0 | AH54: 0 | AI54: 0 | AJ54: 0 | AK54: 0 | AL54: 0 | AM54: 0 | AN54: 0 | AO54: 0 | AP54: 0 | AQ54: 0 | AR54: 0 | AS54: 0 | AT54: 0 | AU54: 0 | AV54: 0 | AW54: 0 | AX54: 0 | AY54: 0 | AZ54: 0 | BA54: 0 | BB54: 0 | BC54: 0 | BD54: 0
B55: 2.9a | C55: 03/31 | D55: ADD | E55: --- | F55: Inc Med Inc Pools & Bonuses | G55: ='Essbase Input'!$D$17 -> IDB 2022 | H55: March_YTD | I55: NO REINSURANCE | J55: All Other Projects | K55: 0 | L55: 0 | M55: 0 | N55: 0 | O55: 0 | P55: 0 | Q55: 0 | R55: 0 | S55: 0 | T55: 0 | U55: 0 | V55: 0 | W55: 0 | X55: 0 | Y55: 0 | Z55: 0 | AA55: 0 | AB55: 0 | AC55: 0 | AD55: 0 | AE55: 0 | AF55: 0 | AG55: 0 | AH55: 0 | AI55: 0 | AJ55: 0 | AK55: 0 | AL55: 0 | AM55: 0 | AN55: 0 | AO55: 0 | AP55: 0 | AQ55: 0 | AR55: 0 | AS55: 0 | AT55: 0 | AU55: 0 | AV55: 0 | AW55: 0 | AX55: 0 | AY55: 0 | AZ55: 0 | BA55: 0 | BB55: 0 | BC55: 0 | BD55: 0 | BF55: =AN55-SUM(U55:AM55) -> 0 | BG55: =K55+M55+O55+S55+T55+AN55+SUM(AO55:BC55)-BD55 -> 0
A56: 2.11b | B56: 2.9b | C56: 12/31 | D56: --- | E56: R | F56: Incurred Med Inc Pools & Bonus | G56: IDB Periods | H56: December_Bal | I56: NO REINSURANCE | J56: All Other Projects | K56: 0 | L56: 0 | M56: 0 | N56: 0 | O56: 0 | P56: 0 | Q56: 0 | R56: 0 | S56: 0 | T56: 0 | U56: 0 | V56: 0 | W56: 0 | X56: 0 | Y56: 0 | Z56: 0 | AA56: 0 | AB56: 0 | AC56: 0 | AD56: 0 | AE56: 0 | AF56: 0 | AG56: 0 | AH56: 0 | AI56: 0 | AJ56: 0 | AK56: 0 | AL56: 0 | AM56: 0 | AN56: 0 | AO56: 0 | AP56: 0 | AQ56: 0 | AR56: 0 | AS56: 0 | AT56: 0 | AU56: 0 | AV56: 0 | AW56: 0 | AX56: 0 | AY56: 0 | AZ56: 0 | BA56: 0 | BB56: 0 | BC56: 0 | BD56: 0
B57: 2.9b | C57: 03/31 | D57: --- | E57: R | F57: Incurred Med Inc Pools & Bonus | G57: ='Essbase Input'!$D$17 -> IDB 2022 | H57: March_Bal | I57: NO REINSURANCE | J57: All Other Projects | K57: 0 | L57: 0 | M57: 0 | N57: 0 | O57: 0 | P57: 0 | Q57: 0 | R57: 0 | S57: 0 | T57: 0 | U57: 0 | V57: 0 | W57: 0 | X57: 0 | Y57: 0 | Z57: 0 | AA57: 0 | AB57: 0 | AC57: 0 | AD57: 0 | AE57: 0 | AF57: 0 | AG57: 0 | AH57: 0 | AI57: 0 | AJ57: 0 | AK57: 0 | AL57: 0 | AM57: 0 | AN57: 0 | AO57: 0 | AP57: 0 | AQ57: 0 | AR57: 0 | AS57: 0 | AT57: 0 | AU57: 0 | AV57: 0 | AW57: 0 | AX57: 0 | AY57: 0 | AZ57: 0 | BA57: 0 | BB57: 0 | BC57: 0 | BD57: 0
A58: 2.11c | B58: 2.9c | C58: 12/31 | D58: --- | E58: R | F58: Incurred Med Inc Pools & Bonus | G58: IDB Periods | H58: Begin Balance | I58: NO REINSURANCE | J58: All Other Projects | K58: 0 | L58: 0 | M58: 0 | N58: 0 | O58: 0 | P58: 0 | Q58: 0 | R58: 0 | S58: 0 | T58: 0 | U58: 0 | V58: 0 | W58: 0 | X58: 0 | Y58: 0 | Z58: 0 | AA58: 0 | AB58: 0 | AC58: 0 | AD58: 0 | AE58: 0 | AF58: 0 | AG58: 0 | AH58: 0 | AI58: 0 | AJ58: 0 | AK58: 0 | AL58: 0 | AM58: 0 | AN58: 0 | AO58: 0 | AP58: 0 | AQ58: 0 | AR58: 0 | AS58: 0 | AT58: 0 | AU58: 0 | AV58: 0 | AW58: 0 | AX58: 0 | AY58: 0 | AZ58: 0 | BA58: 0 | BB58: 0 | BC58: 0 | BD58: 0 | BF58: =AN58-SUM(U58:AM58) -> 0 | BG58: =K58+M58+O58+S58+T58+AN58+SUM(AO58:BC58)-BD58 -> 0
F61: ="Not Used" -> Not Used
F62: ="Linked Cell" -> Linked Cell

Sheet EB PT 4 (hidden)
A1: Ref | B1: Part | C1: Ln | D1: Col | E1: Adj | F1: Rev | G1: ="Account" -> Account | H1: ="IDB Period" -> IDB Period | I1: ="Period" -> Period | J1: ="Reinsurance" -> Reinsurance | K1: ="Project" -> Project | L1: 1 | M1: 2 | N1: 3 | O1: 4 | P1: 5 | Q1: 6 | R1: 7 | S1: 8 | T1: 9 | U1: 6 | V1: 7 | W1: 8 | X1: GRIC, UHLIC, MWLIC-TN, TCLIC DPPO Sec. / INDIVIDUAL Col.
L2: Views | M2: Views | N2: Views | O2: Views | P2: Views | Q2: Views | R2: Views | S2: Views | T2: Views | U2: Views | V2: Views | W2: Views | X2: Views | Y2: Views | Z2: Views | AA2: Views
L3: Sources | M3: Sources | N3: Sources | O3: Sources | P3: Sources | Q3: Sources | R3: Sources | S3: Sources | T3: Sources | U3: Sources | V3: Sources | W3: Sources | X3: Sources | Y3: Sources | Z3: Sources | AA3: Sources
L4: Departments | M4: Departments | N4: Departments | O4: Departments | P4: Departments | Q4: Departments | R4: Departments | S4: Departments | T4: Departments | U4: Departments | V4: Departments | W4: Departments | X4: Departments | Y4: Departments | Z4: Departments | AA4: Departments
L5: NAIC Supp HC Exhibit | M5: NAIC Supp HC Exhibit | N5: NAIC Supp HC Exhibit | O5: NAIC Supp HC Exhibit | P5: NAIC Supp HC Exhibit | Q5: NAIC Supp HC Exhibit | R5: NAIC Supp HC Exhibit | S5: NAIC Supp HC Exhibit | T5: NAIC Supp HC Exhibit | U5: NAIC Supp HC Exhibit | V5: NAIC Supp HC Exhibit | W5: NAIC Supp HC Exhibit | X5: NAIC Supp HC Exhibit | Y5: NAIC Supp HC Exhibit | Z5: NAIC Supp HC Exhibit | AA5: NAIC Supp HC Exhibit
L6: ='Essbase Input'!$C$8 -> UnitedHealthcare Life Ins Co | M6: ='Essbase Input'!$C$8 -> UnitedHealthcare Life Ins Co | N6: ='Essbase Input'!$C$8 -> UnitedHealthcare Life Ins Co | O6: ='Essbase Input'!$C$8 -> UnitedHealthcare Life Ins Co | P6: ='Essbase Input'!$C$8 -> UnitedHealthcare Life Ins Co | Q6: ='Essbase Input'!$C$8 -> UnitedHealthcare Life Ins Co | R6: ='Essbase Input'!$C$8 -> UnitedHealthcare Life Ins Co | S6: ='Essbase Input'!$C$8 -> UnitedHealthcare Life Ins Co | T6: ='Essbase Input'!$C$8 -> UnitedHealthcare Life Ins Co | U6: ='Essbase Input'!$C$8 -> UnitedHealthcare Life Ins Co | V6: ='Essbase Input'!$C$8 -> UnitedHealthcare Life Ins Co | W6: ='Essbase Input'!$C$8 -> UnitedHealthcare Life Ins Co | X6: ='Essbase Input'!$C$8 -> UnitedHealthcare Life Ins Co | Y6: ='Essbase Input'!$C$8 -> UnitedHealthcare Life Ins Co | Z6: ='Essbase Input'!$C$8 -> UnitedHealthcare Life Ins Co | AA6: ='Essbase Input'!$C$8 -> UnitedHealthcare Life Ins Co
L7: ='Essbase Input'!$C$9 -> California - CA | M7: ='Essbase Input'!$C$9 -> California - CA | N7: ='Essbase Input'!$C$9 -> California - CA | O7: ='Essbase Input'!$C$9 -> California - CA | P7: ='Essbase Input'!$C$9 -> California - CA | Q7: ='Essbase Input'!$C$9 -> California - CA | R7: ='Essbase Input'!$C$9 -> California - CA | S7: ='Essbase Input'!$C$9 -> California - CA | T7: ='Essbase Input'!$C$9 -> California - CA | U7: ='Essbase Input'!$C$9 -> California - CA | V7: ='Essbase Input'!$C$9 -> California - CA | W7: ='Essbase Input'!$C$9 -> California - CA | X7: ='Essbase Input'!$C$9 -> California - CA | Y7: ='Essbase Input'!$C$9 -> California - CA | Z7: ='Essbase Input'!$C$9 -> California - CA | AA7: ='Essbase Input'!$C$9 -> California - CA
L8: ='Essbase Input'!$C$10 -> UnitedHealthcare Domestic | M8: ='Essbase Input'!$C$10 -> UnitedHealthcare Domestic | N8: ='Essbase Input'!$C$10 -> UnitedHealthcare Domestic | O8: ='Essbase Input'!$C$10 -> UnitedHealthcare Domestic | P8: ='Essbase Input'!$C$10 -> UnitedHealthcare Domestic | Q8: ='Essbase Input'!$C$10 -> UnitedHealthcare Domestic | R8: ='Essbase Input'!$C$10 -> UnitedHealthcare Domestic | S8: ='Essbase Input'!$C$10 -> UnitedHealthcare Domestic | T8: ='Essbase Input'!$C$10 -> UnitedHealthcare Domestic | U8: ='Essbase Input'!$C$10 -> UnitedHealthcare Domestic | V8: ='Essbase Input'!$C$10 -> UnitedHealthcare Domestic | W8: ='Essbase Input'!$C$10 -> UnitedHealthcare Domestic | X8: Operating Units | Y8: Operating Units | Z8: Operating Units | AA8: Operating Units
L9: ='Essbase Input'!$C$11 -> Stand Alone Dental | M9: ='Essbase Input'!$C$11 -> Stand Alone Dental | N9: ='Essbase Input'!$C$11 -> Stand Alone Dental | O9: ='Essbase Input'!$C$11 -> Stand Alone Dental | P9: ='Essbase Input'!$C$11 -> Stand Alone Dental | Q9: ='Essbase Input'!$C$11 -> Stand Alone Dental | R9: ='Essbase Input'!$C$11 -> Stand Alone Dental | S9: ='Essbase Input'!$C$11 -> Stand Alone Dental | T9: ='Essbase Input'!$C$11 -> Stand Alone Dental | U9: ='Essbase Input'!$C$11 -> Stand Alone Dental | V9: ='Essbase Input'!$C$11 -> Stand Alone Dental | W9: ='Essbase Input'!$C$11 -> Stand Alone Dental | X9: ='Essbase Input'!$C$11 -> Stand Alone Dental | Y9: ='Essbase Input'!$C$11 -> Stand Alone Dental | Z9: ='Essbase Input'!$C$11 -> Stand Alone Dental | AA9: ='Essbase Input'!$C$11 -> Stand Alone Dental
L10: Individual | M10: Individual | N10: Individual | O10: Individual | P10: Small Group Employer | Q10: Small Group Employer | R10: Small Group Employer | S10: Small Group Employer | T10: Large Group Employer | U10: Large Group Employer | V10: Large Group Employer | W10: Large Group Employer | X10: MLR Customers | Y10: MLR Customers | Z10: MLR Customers | AA10: MLR Customers
L11: ='Essbase Input'!$C$19 -> 2020 | M11: ='Essbase Input'!$C$18 -> 2021 | N11: ='Essbase Input'!$C$17 -> 2022 | O11: ='Essbase Input'!$C$16 -> 2023 | P11: ='Essbase Input'!$C$19 -> 2020 | Q11: ='Essbase Input'!$C$18 -> 2021 | R11: ='Essbase Input'!$C$17 -> 2022 | S11: ='Essbase Input'!$C$16 -> 2023 | T11: ='Essbase Input'!$C$19 -> 2020 | U11: ='Essbase Input'!$C$18 -> 2021 | V11: ='Essbase Input'!$C$17 -> 2022 | W11: ='Essbase Input'!$C$16 -> 2023 | X11: ='Essbase Input'!$C$19 -> 2020 | Y11: ='Essbase Input'!$C$18 -> 2021 | Z11: ='Essbase Input'!$C$17 -> 2022 | AA11: ='Essbase Input'!$C$16 -> 2023
A12: 1 | B12: 4 | C12: 1.2 | D12: PY2 | E12: ADD | F12: --- | G12: Total Incurred Claims | H12: ='Essbase Input'!$D$19 -> IDB 2020 | I12: Total Year | J12: NO REINSURANCE | K12: All Other Projects | L12: 0 | M12: 0 | N12: 0 | O12: 0 | P12: 0 | Q12: 0 | R12: 0 | S12: 0 | T12: 0 | U12: 0 | V12: 0 | W12: 0 | X12: 82938.64 | Y12: -1041.44 | Z12: 0 | AA12: 0
A13: 2 | B13: 4 | C13: 1.2 | D13: PY2 | E13: ADD | F13: --- | G13: Total Incurred Claims | H13: ='Essbase Input'!$D$19 -> IDB 2020 | I13: Total Year | J13: NO REINSURANCE | K13: All Other Projects | L13: 0 | M13: 0 | N13: 0 | O13: 0 | P13: 0 | Q13: 0 | R13: 0 | S13: 0 | T13: 0 | U13: 0 | V13: 0 | W13: 0 | X13: 82938.64 | Y13: -1041.44 | Z13: 0 | AA13: 0
A14: 3 | B14: 4 | C14: 1.2 | D14: PY2 | E14: ADD | F14: --- | G14: Total Incurred Claims | H14: ='Essbase Input'!$D$19 -> IDB 2020 | I14: Total Year | J14: NO REINSURANCE | K14: All Other Projects | L14: 0 | M14: 0 | N14: 0 | O14: 0 | P14: 0 | Q14: 0 | R14: 0 | S14: 0 | T14: 0 | U14: 0 | V14: 0 | W14: 0 | X14: 82938.64 | Y14: -1041.44 | Z14: 0 | AA14: 0
A15: 4 | B15: 4 | C15: 1.2 | D15: PY2 | E15: ADD | F15: --- | G15: Total Incurred Claims | H15: ='Essbase Input'!$D$19 -> IDB 2020 | I15: March_Bal | J15: NO REINSURANCE | K15: All Other Projects | L15: 0 | M15: 0 | N15: 0 | O15: 0 | P15: 0 | Q15: 0 | R15: 0 | S15: 0 | T15: 0 | U15: 0 | V15: 0 | W15: 0 | X15: 24396.7 | Y15: -1300.49 | Z15: 26.56 | AA15: 0
A16: 5 | B16: 4 | C16: 1.2 | D16: PY2 | E16: SUB | F16: --- | G16: 50010 - Physician Cap Paid - External | H16: ='Essbase Input'!$D$19 -> IDB 2020 | I16: Total Year | J16: NO REINSURANCE | K16: 0000003413 - General Administrative | L16: 0 | M16: 0 | N16: 0 | O16: 0 | P16: 0 | Q16: 0 | R16: 0 | S16: 0 | T16: 0 | U16: 0 | V16: 0 | W16: 0 | X16: 0 | Y16: 0 | Z16: 0 | AA16: 0
A17: 6 | B17: 4 | C17: 1.2 | D17: PY2 | E17: SUB | F17: --- | G17: 50010 - Physician Cap Paid - External | H17: ='Essbase Input'!$D$19 -> IDB 2020 | I17: Total Year | J17: NO REINSURANCE | K17: 0000003413 - General Administrative | L17: 0 | M17: 0 | N17: 0 | O17: 0 | P17: 0 | Q17: 0 | R17: 0 | S17: 0 | T17: 0 | U17: 0 | V17: 0 | W17: 0 | X17: 0 | Y17: 0 | Z17: 0 | AA17: 0
A18: 7 | B18: 4 | C18: 1.2 | D18: PY2 | E18: SUB | F18: --- | G18: 50010 - Physician Cap Paid - External | H18: ='Essbase Input'!$D$19 -> IDB 2020 | I18: Total Year | J18: NO REINSURANCE | K18: 0000003413 - General Administrative | L18: 0 | M18: 0 | N18: 0 | O18: 0 | P18: 0 | Q18: 0 | R18: 0 | S18: 0 | T18: 0 | U18: 0 | V18: 0 | W18: 0 | X18: 0 | Y18: 0 | Z18: 0 | AA18: 0
A19: 8 | B19: 4 | C19: 1.2 | D19: PY2 | E19: SUB | F19: --- | G19: 50010 - Physician Cap Paid - External | H19: ='Essbase Input'!$D$19 -> IDB 2020 | I19: March_Bal | J19: NO REINSURANCE | K19: 0000003413 - General Administrative | L19: 0 | M19: 0 | N19: 0 | O19: 0 | P19: 0 | Q19: 0 | R19: 0 | S19: 0 | T19: 0 | U19: 0 | V19: 0 | W19: 0 | X19: 0 | Y19: 0 | Z19: 0 | AA19: 0
A20: 9 | B20: 4 | C20: 1.2 | D20: PY2 | E20: SUB | F20: --- | G20: 50619 - Internal Capitation Pd - Other | H20: ='Essbase Input'!$D$19 -> IDB 2020 | I20: Total Year | J20: NO REINSURANCE | K20: All Other Projects | L20: 0 | M20: 0 | N20: 0 | O20: 0 | P20: 0 | Q20: 0 | R20: 0 | S20: 0 | T20: 0 | U20: 0 | V20: 0 | W20: 0 | X20: 0 | Y20: 0 | Z20: 0 | AA20: 0
A21: 10 | B21: 4 | C21: 1.2 | D21: PY2 | E21: SUB | F21: --- | G21: 50619 - Internal Capitation Pd - Other | H21: ='Essbase Input'!$D$19 -> IDB 2020 | I21: Total Year | J21: NO REINSURANCE | K21: All Other Projects | L21: 0 | M21: 0 | N21: 0 | O21: 0 | P21: 0 | Q21: 0 | R21: 0 | S21: 0 | T21: 0 | U21: 0 | V21: 0 | W21: 0 | X21: 0 | Y21: 0 | Z21: 0 | AA21: 0
A22: 11 | B22: 4 | C22: 1.2 | D22: PY2 | E22: SUB | F22: --- | G22: 50619 - Internal Capitation Pd - Other | H22: ='Essbase Input'!$D$19 -> IDB 2020 | I22: Total Year | J22: NO REINSURANCE | K22: All Other Projects | L22: 0 | M22: 0 | N22: 0 | O22: 0 | P22: 0 | Q22: 0 | R22: 0 | S22: 0 | T22: 0 | U22: 0 | V22: 0 | W22: 0 | X22: 0 | Y22: 0 | Z22: 0 | AA22: 0
A23: 12 | B23: 4 | C23: 1.2 | D23: PY2 | E23: SUB | F23: --- | G23: 50619 - Internal Capitation Pd - Other | H23: ='Essbase Input'!$D$19 -> IDB 2020 | I23: March_Bal | J23: NO REINSURANCE | K23: All Other Projects | L23: 0 | M23: 0 | N23: 0 | O23: 0 | P23: 0 | Q23: 0 | R23: 0 | S23: 0 | T23: 0 | U23: 0 | V23: 0 | W23: 0 | X23: 0 | Y23: 0 | Z23: 0 | AA23: 0
A24: 13 | B24: 4 | C24: 1.2 | D24: PY2 | E24: SUB | F24: --- | G24: Rate Credits NonTaxable | H24: ='Essbase Input'!$D$19 -> IDB 2020 | I24: Total Year | J24: NO REINSURANCE | K24: All Other Projects | L24: 0 | M24: 0 | N24: 0 | O24: 0 | P24: 0 | Q24: 0 | R24: 0 | S24: 0 | T24: 0 | U24: 0 | V24: 0 | W24: 0 | X24: 0 | Y24: 0 | Z24: 0 | AA24: 0
A25: 14 | B25: 4 | C25: 1.2 | D25: PY2 | E25: SUB | F25: --- | G25: Rate Credits NonTaxable | H25: ='Essbase Input'!$D$19 -> IDB 2020 | I25: Total Year | J25: NO REINSURANCE | K25: All Other Projects | L25: 0 | M25: 0 | N25: 0 | O25: 0 | P25: 0 | Q25: 0 | R25: 0 | S25: 0 | T25: 0 | U25: 0 | V25: 0 | W25: 0 | X25: 0 | Y25: 0 | Z25: 0 | AA25: 0
A26: 15 | B26: 4 | C26: 1.2 | D26: PY2 | E26: SUB | F26: --- | G26: Rate Credits NonTaxable | H26: ='Essbase Input'!$D$19 -> IDB 2020 | I26: Total Year | J26: NO REINSURANCE | K26: All Other Projects | L26: 0 | M26: 0 | N26: 0 | O26: 0 | P26: 0 | Q26: 0 | R26: 0 | S26: 0 | T26: 0 | U26: 0 | V26: 0 | W26: 0 | X26: 0 | Y26: 0 | Z26: 0 | AA26: 0
A27: 16 | B27: 4 | C27: 1.2 | D27: PY2 | E27: SUB | F27: --- | G27: Rate Credits NonTaxable | H27: ='Essbase Input'!$D$19 -> IDB 2020 | I27: March_Bal | J27: NO REINSURANCE | K27: All Other Projects | L27: 0 | M27: 0 | N27: 0 | O27: 0 | P27: 0 | Q27: 0 | R27: 0 | S27: 0 | T27: 0 | U27: 0 | V27: 0 | W27: 0 | X27: 0 | Y27: 0 | Z27: 0 | AA27: 0
A28: 17 | B28: 4 | C28: 1.2 | D28: PY1 | E28: ADD | F28: --- | G28: Total Incurred Claims | H28: ='Essbase Input'!$D$18 -> IDB 2021 | I28: Total Year | J28: NO REINSURANCE | K28: All Other Projects | L28: 0 | M28: 0 | N28: 0 | O28: 0 | P28: 0 | Q28: 0 | R28: 0 | S28: 0 | T28: 0 | U28: 0 | V28: 0 | W28: 0 | X28: 0 | Y28: 87437.68 | Z28: -768.98 | AA28: -69.13
A29: 18 | B29: 4 | C29: 1.2 | D29: PY1 | E29: ADD | F29: --- | G29: Total Incurred Claims | H29: ='Essbase Input'!$D$18 -> IDB 2021 | I29: Total Year | J29: NO REINSURANCE | K29: All Other Projects | L29: 0 | M29: 0 | N29: 0 | O29: 0 | P29: 0 | Q29: 0 | R29: 0 | S29: 0 | T29: 0 | U29: 0 | V29: 0 | W29: 0 | X29: 0 | Y29: 87437.68 | Z29: -768.98 | AA29: -69.13
A30: 19 | B30: 4 | C30: 1.2 | D30: PY1 | E30: ADD | F30: --- | G30: Total Incurred Claims | H30: ='Essbase Input'!$D$18 -> IDB 2021 | I30: March_Bal | J30: NO REINSURANCE | K30: All Other Projects | L30: 0 | M30: 0 | N30: 0 | O30: 0 | P30: 0 | Q30: 0 | R30: 0 | S30: 0 | T30: 0 | U30: 0 | V30: 0 | W30: 0 | X30: 0 | Y30: 24945.5 | Z30: -647.46 | AA30: -38.47
A31: 20 | B31: 4 | C31: 1.2 | D31: PY1 | E31: SUB | F31: --- | G31: 50010 - Physician Cap Paid - External | H31: ='Essbase Input'!$D$18 -> IDB 2021 | I31: Total Year | J31: NO REINSURANCE | K31: 0000003413 - General Administrative | L31: 0 | M31: 0 | N31: 0 | O31: 0 | P31: 0 | Q31: 0 | R31: 0 | S31: 0 | T31: 0 | U31: 0 | V31: 0 | W31: 0 | X31: 0 | Y31: 0 | Z31: 0 | AA31: 0
A32: 21 | B32: 4 | C32: 1.2 | D32: PY1 | E32: SUB | F32: --- | G32: 50010 - Physician Cap Paid - External | H32: ='Essbase Input'!$D$18 -> IDB 2021 | I32: Total Year | J32: NO REINSURANCE | K32: 0000003413 - General Administrative | L32: 0 | M32: 0 | N32: 0 | O32: 0 | P32: 0 | Q32: 0 | R32: 0 | S32: 0 | T32: 0 | U32: 0 | V32: 0 | W32: 0 | X32: 0 | Y32: 0 | Z32: 0 | AA32: 0
A33: 22 | B33: 4 | C33: 1.2 | D33: PY1 | E33: SUB | F33: --- | G33: 50010 - Physician Cap Paid - External | H33: ='Essbase Input'!$D$18 -> IDB 2021 | I33: March_Bal | J33: NO REINSURANCE | K33: 0000003413 - General Administrative | L33: 0 | M33: 0 | N33: 0 | O33: 0 | P33: 0 | Q33: 0 | R33: 0 | S33: 0 | T33: 0 | U33: 0 | V33: 0 | W33: 0 | X33: 0 | Y33: 0 | Z33: 0 | AA33: 0
A34: 23 | B34: 4 | C34: 1.2 | D34: PY1 | E34: SUB | F34: --- | G34: 50619 - Internal Capitation Pd - Other | H34: ='Essbase Input'!$D$18 -> IDB 2021 | I34: Total Year | J34: NO REINSURANCE | K34: All Other Projects | L34: 0 | M34: 0 | N34: 0 | O34: 0 | P34: 0 | Q34: 0 | R34: 0 | S34: 0 | T34: 0 | U34: 0 | V34: 0 | W34: 0 | X34: 0 | Y34: 0 | Z34: 0 | AA34: 0
A35: 24 | B35: 4 | C35: 1.2 | D35: PY1 | E35: SUB | F35: --- | G35: 50619 - Internal Capitation Pd - Other | H35: ='Essbase Input'!$D$18 -> IDB 2021 | I35: Total Year | J35: NO REINSURANCE | K35: All Other Projects | L35: 0 | M35: 0 | N35: 0 | O35: 0 | P35: 0 | Q35: 0 | R35: 0 | S35: 0 | T35: 0 | U35: 0 | V35: 0 | W35: 0 | X35: 0 | Y35: 0 | Z35: 0 | AA35: 0
A36: 25 | B36: 4 | C36: 1.2 | D36: PY1 | E36: SUB | F36: --- | G36: 50619 - Internal Capitation Pd - Other | H36: ='Essbase Input'!$D$18 -> IDB 2021 | I36: March_Bal | J36: NO REINSURANCE | K36: All Other Projects | L36: 0 | M36: 0 | N36: 0 | O36: 0 | P36: 0 | Q36: 0 | R36: 0 | S36: 0 | T36: 0 | U36: 0 | V36: 0 | W36: 0 | X36: 0 | Y36: 0 | Z36: 0 | AA36: 0
A37: 26 | B37: 4 | C37: 1.2 | D37: PY1 | E37: SUB | F37: --- | G37: Rate Credits NonTaxable | H37: ='Essbase Input'!$D$18 -> IDB 2021 | I37: Total Year | J37: NO REINSURANCE | K37: All Other Projects | L37: 0 | M37: 0 | N37: 0 | O37: 0 | P37: 0 | Q37: 0 | R37: 0 | S37: 0 | T37: 0 | U37: 0 | V37: 0 | W37: 0 | X37: 0 | Y37: 0 | Z37: 0 | AA37: 0
A38: 27 | B38: 4 | C38: 1.2 | D38: PY1 | E38: SUB | F38: --- | G38: Rate Credits NonTaxable | H38: ='Essbase Input'!$D$18 -> IDB 2021 | I38: Total Year | J38: NO REINSURANCE | K38: All Other Projects | L38: 0 | M38: 0 | N38: 0 | O38: 0 | P38: 0 | Q38: 0 | R38: 0 | S38: 0 | T38: 0 | U38: 0 | V38: 0 | W38: 0 | X38: 0 | Y38: 0 | Z38: 0 | AA38: 0
A39: 28 | B39: 4 | C39: 1.2 | D39: PY1 | E39: SUB | F39: --- | G39: Rate Credits NonTaxable | H39: ='Essbase Input'!$D$18 -> IDB 2021 | I39: March_Bal | J39: NO REINSURANCE | K39: All Other Projects | L39: 0 | M39: 0 | N39: 0 | O39: 0 | P39: 0 | Q39: 0 | R39: 0 | S39: 0 | T39: 0 | U39: 0 | V39: 0 | W39: 0 | X39: 0 | Y39: 0 | Z39: 0 | AA39: 0
A40: 29 | B40: 4 | C40: 2.1 | D40: PY2 | E40: ADD | F40: R | G40: Health Premiums Earned | H40: ='Essbase Input'!$D$19 -> IDB 2020 | I40: Total Year | J40: NO REINSURANCE | K40: All Other Projects | L40: 0 | M40: 0 | N40: 0 | O40: 0 | P40: 0 | Q40: 0 | R40: 0 | S40: 0 | T40: 0 | U40: 0 | V40: 0 | W40: 0 | X40: -196914.67 | Y40: -95.28 | Z40: 0 | AA40: 0
A41: 30 | B41: 4 | C41: 2.1 | D41: PY2 | E41: ADD | F41: R | G41: Health Premiums Earned | H41: ='Essbase Input'!$D$19 -> IDB 2020 | I41: March_Bal | J41: NO REINSURANCE | K41: All Other Projects | L41: 0 | M41: 0 | N41: 0 | O41: 0 | P41: 0 | Q41: 0 | R41: 0 | S41: 0 | T41: 0 | U41: 0 | V41: 0 | W41: 0 | X41: -58259.64 | Y41: -625.41 | Z41: 0 | AA41: 0
A42: 31 | B42: 4 | C42: 2.1 | D42: PY1 | E42: ADD | F42: R | G42: Health Premiums Earned | H42: ='Essbase Input'!$D$18 -> IDB 2021 | I42: Total Year | J42: NO REINSURANCE | K42: All Other Projects | L42: 0 | M42: 0 | N42: 0 | O42: 0 | P42: 0 | Q42: 0 | R42: 0 | S42: 0 | T42: 0 | U42: 0 | V42: 0 | W42: 0 | X42: 0 | Y42: -162005.72 | Z42: -163.79 | AA42: 0
A43: 32 | B43: 4 | C43: 2.1 | D43: PY1 | E43: ADD | F43: R | G43: Health Premiums Earned | H43: ='Essbase Input'!$D$18 -> IDB 2021 | I43: March_Bal | J43: NO REINSURANCE | K43: All Other Projects | L43: 0 | M43: 0 | N43: 0 | O43: 0 | P43: 0 | Q43: 0 | R43: 0 | S43: 0 | T43: 0 | U43: 0 | V43: 0 | W43: 0 | X43: 0 | Y43: -42130.5 | Z43: -189.04 | AA43: 0
A44: 33 | B44: 4 | C44: 2.2 | D44: PY2 | E44: ADD | F44: --- | G44: Federal Taxes and Assessments | H44: IDB Periods | I44: Total Year | J44: Reinsurance | K44: All Other Projects | L44: 0 | M44: 0 | N44: 0 | O44: 0 | P44: 0 | Q44: 0 | R44: 0 | S44: 0 | T44: 10790.63 | U44: 4458.39 | V44: 5568.76 | W44: 0 | X44: 15400.1 | Y44: 4458.39 | Z44: 5568.76 | AA44: 0
A45: 34 | B45: 4 | C45: 2.2 | D45: PY2 | E45: ADD | F45: --- | G45: State Ins, Prem and Other Tax | H45: IDB Periods | I45: Total Year | J45: Reinsurance | K45: All Other Projects | L45: 34.08 | M45: 35.01 | N45: 30.24 | O45: 0 | P45: 0 | Q45: 0 | R45: 0 | S45: 0 | T45: 0 | U45: 0 | V45: 0 | W45: 0 | X45: 19429.01 | Y45: 17544.13 | Z45: 8599.42 | AA45: 0.35
A46: 35 | B46: 4 | C46: 2.2 | D46: PY2 | E46: ADD | F46: --- | G46: Reg Authority Licenses & Fees | H46: IDB Periods | I46: Total Year | J46: Reinsurance | K46: All Other Projects | L46: 0 | M46: 0 | N46: 0 | O46: 0 | P46: 0 | Q46: 0 | R46: 0 | S46: 0 | T46: 0 | U46: 0 | V46: 0 | W46: 0 | X46: 0 | Y46: 0 | Z46: 0 | AA46: 0
A47: 36 | B47: 4 | C47: 2.2 | D47: PY1 | E47: ADD | F47: --- | G47: Federal Taxes and Assessments | H47: IDB Periods | I47: Total Year | J47: Reinsurance | K47: All Other Projects | L47: 0 | M47: 0 | N47: 0 | O47: 0 | P47: 0 | Q47: 0 | R47: 0 | S47: 0 | T47: 10790.63 | U47: 4458.39 | V47: 5568.76 | W47: 0 | X47: 15400.1 | Y47: 4458.39 | Z47: 5568.76 | AA47: 0
A48: 37 | B48: 4 | C48: 2.2 | D48: PY1 | E48: ADD | F48: --- | G48: State Ins, Prem and Other Tax | H48: IDB Periods | I48: Total Year | J48: Reinsurance | K48: All Other Projects | L48: 34.08 | M48: 35.01 | N48: 30.24 | O48: 0 | P48: 0 | Q48: 0 | R48: 0 | S48: 0 | T48: 0 | U48: 0 | V48: 0 | W48: 0 | X48: 19429.01 | Y48: 17544.13 | Z48: 8599.42 | AA48: 0.35
A49: 38 | B49: 4 | C49: 2.2 | D49: PY1 | E49: ADD | F49: --- | G49: Reg Authority Licenses & Fees | H49: IDB Periods | I49: Total Year | J49: Reinsurance | K49: All Other Projects | L49: 0 | M49: 0 | N49: 0 | O49: 0 | P49: 0 | Q49: 0 | R49: 0 | S49: 0 | T49: 0 | U49: 0 | V49: 0 | W49: 0 | X49: 0 | Y49: 0 | Z49: 0 | AA49: 0
A50: 39 | B50: 4 | C50: 3.1 | D50: PY2 | E50: ADD | F50: --- | G50: SHCE Member Months | H50: ='Essbase Input'!$D$19 -> IDB 2020 | I50: Total Year | J50: NO REINSURANCE | K50: All Other Projects | L50: 0 | M50: 0 | N50: 0 | O50: 0 | P50: 0 | Q50: 0 | R50: 0 | S50: 0 | T50: 0 | U50: 0 | V50: 0 | W50: 0 | X50: 4005 | Y50: 46 | Z50: 0 | AA50: 0
A51: 40 | B51: 4 | C51: 3.1 | D51: PY2 | E51: ADD | F51: --- | G51: SHCE Member Months | H51: ='Essbase Input'!$D$19 -> IDB 2020 | I51: March_Bal | J51: NO REINSURANCE | K51: All Other Projects | L51: 0 | M51: 0 | N51: 0 | O51: 0 | P51: 0 | Q51: 0 | R51: 0 | S51: 0 | T51: 0 | U51: 0 | V51: 0 | W51: 0 | X51: 1125 | Y51: 10 | Z51: 0 | AA51: 0
A52: 41 | B52: 4 | C52: 3.1 | D52: PY1 | E52: ADD | F52: --- | G52: SHCE Member Months | H52: ='Essbase Input'!$D$18 -> IDB 2021 | I52: Total Year | J52: NO REINSURANCE | K52: All Other Projects | L52: 0 | M52: 0 | N52: 0 | O52: 0 | P52: 0 | Q52: 0 | R52: 0 | S52: 0 | T52: 0 | U52: 0 | V52: 0 | W52: 0 | X52: 0 | Y52: 3345 | Z52: 3 | AA52: 0
A53: 42 | B53: 4 | C53: 3.1 | D53: PY1 | E53: ADD | F53: --- | G53: SHCE Member Months | H53: ='Essbase Input'!$D$18 -> IDB 2021 | I53: March_Bal | J53: NO REINSURANCE | K53: All Other Projects | L53: 0 | M53: 0 | N53: 0 | O53: 0 | P53: 0 | Q53: 0 | R53: 0 | S53: 0 | T53: 0 | U53: 0 | V53: 0 | W53: 0 | X53: 0 | Y53: 865 | Z53: 5 | AA53: 0
G55: ="Not Used" -> Not Used
G56: ="Linked Cell" -> Linked Cell

Sheet EB PT 4 PY2 (hidden)
B1: Part | C1: REF1 | D1: REF2 | E1: Ln | F1: Col | G1: Adj | H1: Rev | I1: -OU | J1: -Prod | K1: -Cust | L1: ="Account" -> Account | M1: ="IDB Period" -> IDB Period | N1: ="Reinsurance" -> Reinsurance | O1: ="Project" -> Project | P1: 1 | Q1: 1 | R1: 2 | S1: 3 | T1: 4
P2: Views | Q2: Views | R2: Views | S2: Views | T2: Views
P3: Sources | Q3: Sources | R3: Sources | S3: Sources | T3: Sources
P4: Departments | Q4: Departments | R4: Departments | S4: Departments | T4: Departments
P5: NAIC Supp HC Exhibit | Q5: NAIC Supp HC Exhibit | R5: NAIC Supp HC Exhibit | S5: NAIC Supp HC Exhibit | T5: NAIC Supp HC Exhibit
P6: ='Essbase Input'!$C$8 -> UnitedHealthcare Life Ins Co | Q6: ='Essbase Input'!$C$8 -> UnitedHealthcare Life Ins Co | R6: ='Essbase Input'!$C$8 -> UnitedHealthcare Life Ins Co | S6: ='Essbase Input'!$C$8 -> UnitedHealthcare Life Ins Co | T6: ='Essbase Input'!$C$8 -> UnitedHealthcare Life Ins Co
P7: ='Essbase Input'!$C$9 -> California - CA | Q7: ='Essbase Input'!$C$9 -> California - CA | R7: ='Essbase Input'!$C$9 -> California - CA | S7: ='Essbase Input'!$C$9 -> California - CA | T7: ='Essbase Input'!$C$9 -> California - CA
P8: ='Essbase Input'!$C$19 -> 2020 | Q8: ='Essbase Input'!$C$18 -> 2021 | R8: ='Essbase Input'!$C$18 -> 2021 | S8: ='Essbase Input'!$C$17 -> 2022 | T8: ='Essbase Input'!$C$16 -> 2023
P9: Total Year | Q9: March_Bal | R9: Total Year | S9: Total Year | T9: March_Bal
A10: CMS MLR | B10: 4 | E10: 1.2- | F10: PY2 | G10: ADD | H10: --- | I10: Operating Units | J10: Other Health Business | K10: MLR Customers | L10: Total Incurred Claims | M10: ='Essbase Input'!$D$19 -> IDB 2020 | N10: NO REINSURANCE | O10: All Other Projects | P10: 88465.01 | Q10: -578.7 | R10: -364.18 | S10: -1.09 | T10: 0 | V10: =P10+R10+S10+T10 -> 88099.74
B11: 4 | E11: 1.2- | F11: PY2 | G11: SUB | H11: --- | I11: Operating Units | J11: Other Health Business | K11: MLR Customers | L11: 50010 - Physician Cap Paid - External | M11: ='Essbase Input'!$D$19 -> IDB 2020 | N11: NO REINSURANCE | O11: 0000003413 - General Administrative | P11: 0 | Q11: 0 | R11: 0 | S11: 0 | T11: 0 | V11: =P11+R11+S11+T11 -> 0
B12: 4 | E12: 1.2- | F12: PY2 | G12: SUB | H12: --- | I12: Operating Units | J12: Other Health Business | K12: MLR Customers | L12: 50619 - Internal Capitation Pd - Other | M12: ='Essbase Input'!$D$19 -> IDB 2020 | N12: NO REINSURANCE | O12: All Other Projects | P12: 0 | Q12: 0 | R12: 0 | S12: 0 | T12: 0 | V12: =P12+R12+S12+T12 -> 0
B13: 4 | E13: 1.2- | F13: PY2 | G13: SUB | H13: --- | I13: Operating Units | J13: Other Health Business | K13: MLR Customers | L13: Rate Credits NonTaxable | M13: ='Essbase Input'!$D$19 -> IDB 2020 | N13: NO REINSURANCE | O13: All Other Projects | P13: 0 | Q13: 0 | R13: 0 | S13: 0 | T13: 0 | V13: =P13+R13+S13+T13 -> 0 | W13: =V10-V11-V12-V13 -> 88099.74
B14: 4 | E14: 2.1- | F14: PY2 | G14: ADD | H14: R | I14: Operating Units | J14: Other Health Business | K14: MLR Customers | L14: Health Premiums Earned | M14: ='Essbase Input'!$D$19 -> IDB 2020 | N14: NO REINSURANCE | O14: All Other Projects | P14: -211525.25 | Q14: -625.41 | R14: -95.28 | S14: 0 | T14: 0 | V14: =P14+Q14 -> -212150.66 | W14: =V14 -> -212150.66
B15: 4 | E15: 2.2- | F15: PY2 | G15: ADD | H15: --- | I15: Operating Units | J15: Other Health Business | K15: MLR Customers | L15: Federal Taxes and Assessments | M15: IDB Periods | N15: Reinsurance | O15: All Other Projects | P15: 16762.07 | Q15: 13.14 | R15: 5047.68 | S15: 6223.48 | T15: -106.92 | V15: =P15 -> 16762.07
B16: 4 | E16: 2.2- | F16: PY2 | G16: ADD | H16: --- | I16: Operating Units | J16: Other Health Business | K16: MLR Customers | L16: State Ins, Prem and Other Tax | M16: IDB Periods | N16: Reinsurance | O16: All Other Projects | P16: 20148.01 | Q16: 4590.37 | R16: 17599.78 | S16: 8856.77 | T16: 827.5 | V16: =P16 -> 20148.01
B17: 4 | E17: 2.2- | F17: PY2 | G17: ADD | H17: --- | I17: Operating Units | J17: Other Health Business | K17: MLR Customers | L17: Reg Authority Licenses & Fees | M17: IDB Periods | N17: Reinsurance | O17: All Other Projects | P17: 0 | Q17: 0 | R17: 0 | S17: 0 | T17: 0 | V17: 0 | W17: =SUM(V15:V17) -> 36910.08
B18: 4 | E18: 3.1- | F18: PY2 | G18: ADD | H18: --- | I18: Operating Units | J18: Other Health Business | K18: MLR Customers | L18: SHCE Member Months | M18: ='Essbase Input'!$D$19 -> IDB 2020 | N18: NO REINSURANCE | O18: All Other Projects | P18: 5763 | Q18: 32 | R18: 98 | S18: -12 | T18: 0 | V18: =P18+Q18 -> 5795 | W18: =V18 -> 5795
A19: GRI | B19: 4 | E19: 1.2- | F19: PY2 | G19: ADD | H19: --- | I19: Operating Units | J19: Stand Alone Dental | K19: MLR Customers | L19: Total Incurred Claims | M19: ='Essbase Input'!$D$19 -> IDB 2020 | N19: NO REINSURANCE | O19: All Other Projects | P19: 82938.64 | Q19: -1300.49 | R19: -1041.44 | S19: 0 | T19: 0 | V19: =P19+R19+S19+T19 -> 81897.2
B20: 4 | E20: 1.2- | F20: PY2 | G20: SUB | H20: --- | I20: Operating Units | J20: Stand Alone Dental | K20: MLR Customers | L20: 50010 - Physician Cap Paid - External | M20: ='Essbase Input'!$D$19 -> IDB 2020 | N20: NO REINSURANCE | O20: 0000003413 - General Administrative | P20: 0 | Q20: 0 | R20: 0 | S20: 0 | T20: 0 | V20: =P20+R20+S20+T20 -> 0
B21: 4 | E21: 1.2- | F21: PY2 | G21: SUB | H21: --- | I21: Operating Units | J21: Stand Alone Dental | K21: MLR Customers | L21: 50619 - Internal Capitation Pd - Other | M21: ='Essbase Input'!$D$19 -> IDB 2020 | N21: NO REINSURANCE | O21: All Other Projects | P21: 0 | Q21: 0 | R21: 0 | S21: 0 | T21: 0 | V21: 0
B22: 4 | E22: 1.2- | F22: PY2 | G22: SUB | H22: --- | I22: Operating Units | J22: Stand Alone Dental | K22: MLR Customers | L22: Rate Credits NonTaxable | M22: ='Essbase Input'!$D$19 -> IDB 2020 | N22: NO REINSURANCE | O22: All Other Projects | P22: 0 | Q22: 0 | R22: 0 | S22: 0 | T22: 0 | V22: 0 | W22: =V19-V20-V21-V22 -> 81897.2
B23: 4 | E23: 2.1- | F23: PY2 | G23: ADD | H23: R | I23: Operating Units | J23: Stand Alone Dental | K23: MLR Customers | L23: Health Premiums Earned | M23: ='Essbase Input'!$D$19 -> IDB 2020 | N23: NO REINSURANCE | O23: All Other Projects | P23: -196914.67 | Q23: -625.41 | R23: -95.28 | S23: 0 | T23: 0 | V23: =P23+Q23 -> -197540.08 | W23: =V23 -> -197540.08
B24: 4 | E24: 2.2- | F24: PY2 | G24: ADD | H24: --- | I24: Operating Units | J24: Stand Alone Dental | K24: MLR Customers | L24: Federal Taxes and Assessments | M24: IDB Periods | N24: Reinsurance | O24: All Other Projects | P24: 15400.1 | Q24: 886.32 | R24: 4458.39 | S24: 5568.76 | T24: -178.7 | V24: =P24 -> 15400.1
B25: 4 | E25: 2.2- | F25: PY2 | G25: ADD | H25: --- | I25: Operating Units | J25: Stand Alone Dental | K25: MLR Customers | L25: State Ins, Prem and Other Tax | M25: IDB Periods | N25: Reinsurance | O25: All Other Projects | P25: 19429.01 | Q25: 4511.83 | R25: 17544.13 | S25: 8599.42 | T25: 768.99 | V25: =P25 -> 19429.01
B26: 4 | E26: 2.2- | F26: PY2 | G26: ADD | H26: --- | I26: Operating Units | J26: Stand Alone Dental | K26: MLR Customers | L26: Reg Authority Licenses & Fees | M26: IDB Periods | N26: Reinsurance | O26: All Other Projects | P26: 0 | Q26: 0 | R26: 0 | S26: 0 | T26: 0 | V26: 0 | W26: =SUM(V24:V26) -> 34829.11
B27: 4 | E27: 3.1- | F27: PY2 | G27: ADD | H27: --- | I27: Operating Units | J27: Stand Alone Dental | K27: MLR Customers | L27: SHCE Member Months | M27: ='Essbase Input'!$D$19 -> IDB 2020 | N27: NO REINSURANCE | O27: All Other Projects | P27: 4005 | Q27: 10 | R27: 46 | S27: 0 | T27: 0 | V27: =P27+Q27 -> 4015 | W27: =V27 -> 4015
A28: SAD/Ind | B28: 4 | E28: 1.2- | F28: PY2 | G28: ADD | H28: --- | I28: UnitedHealthcare Domestic | J28: Stand Alone Dental | K28: Individual | L28: Total Incurred Claims | M28: ='Essbase Input'!$D$19 -> IDB 2020 | N28: NO REINSURANCE | O28: All Other Projects | P28: 0 | Q28: 0 | R28: 0 | S28: 0 | T28: 0 | V28: =P28+R28+S28+T28 -> 0
B29: 4 | E29: 1.2- | F29: PY2 | G29: SUB | H29: --- | I29: UnitedHealthcare Domestic | J29: Stand Alone Dental | K29: Individual | L29: 50010 - Physician Cap Paid - External | M29: ='Essbase Input'!$D$19 -> IDB 2020 | N29: NO REINSURANCE | O29: 0000003413 - General Administrative | P29: 0 | Q29: 0 | R29: 0 | S29: 0 | T29: 0 | V29: =P29+R29+S29+T29 -> 0
B30: 4 | E30: 1.2- | F30: PY2 | G30: SUB | H30: --- | I30: UnitedHealthcare Domestic | J30: Stand Alone Dental | K30: Individual | L30: 50619 - Internal Capitation Pd - Other | M30: ='Essbase Input'!$D$19 -> IDB 2020 | N30: NO REINSURANCE | O30: All Other Projects | P30: 0 | Q30: 0 | R30: 0 | S30: 0 | T30: 0 | V30: =P30+R30+S30+T30 -> 0
B31: 4 | E31: 1.2- | F31: PY2 | G31: SUB | H31: --- | I31: UnitedHealthcare Domestic | J31: Stand Alone Dental | K31: Individual | L31: Rate Credits NonTaxable | M31: ='Essbase Input'!$D$19 -> IDB 2020 | N31: NO REINSURANCE | O31: All Other Projects | P31: 0 | Q31: 0 | R31: 0 | S31: 0 | T31: 0 | V31: =P31+R31+S31+T31 -> 0 | W31: =V28-V29-V30-V31 -> 0
B32: 4 | E32: 2.1- | F32: PY2 | G32: ADD | H32: R | I32: UnitedHealthcare Domestic | J32: Stand Alone Dental | K32: Individual | L32: Health Premiums Earned | M32: ='Essbase Input'!$D$19 -> IDB 2020 | N32: NO REINSURANCE | O32: All Other Projects | P32: 0 | Q32: 0 | R32: 0 | S32: 0 | T32: 0 | V32: =P32+Q32 -> 0 | W32: =V32 -> 0
B33: 4 | E33: 2.2- | F33: PY2 | G33: ADD | H33: --- | I33: UnitedHealthcare Domestic | J33: Stand Alone Dental | K33: Individual | L33: Federal Taxes and Assessments | M33: IDB Periods | N33: Reinsurance | O33: All Other Projects | P33: 0 | Q33: 0 | R33: 0 | S33: 0 | T33: 0 | V33: =P33 -> 0
B34: 4 | E34: 2.2- | F34: PY2 | G34: ADD | H34: --- | I34: UnitedHealthcare Domestic | J34: Stand Alone Dental | K34: Individual | L34: State Ins, Prem and Other Tax | M34: IDB Periods | N34: Reinsurance | O34: All Other Projects | P34: 34.08 | Q34: 6.83 | R34: 35.01 | S34: 30.24 | T34: 7.77 | V34: =P34 -> 34.08
B35: 4 | E35: 2.2- | F35: PY2 | G35: ADD | H35: --- | I35: UnitedHealthcare Domestic | J35: Stand Alone Dental | K35: Individual | L35: Reg Authority Licenses & Fees | M35: IDB Periods | N35: Reinsurance | O35: All Other Projects | P35: 0 | Q35: 0 | R35: 0 | S35: 0 | T35: 0 | V35: 0 | W35: =SUM(V33:V35) -> 34.08
B36: 4 | E36: 3.1- | F36: PY2 | G36: ADD | H36: --- | I36: UnitedHealthcare Domestic | J36: Stand Alone Dental | K36: Individual | L36: SHCE Member Months | M36: ='Essbase Input'!$D$19 -> IDB 2020 | N36: NO REINSURANCE | O36: All Other Projects | P36: 0 | Q36: 0 | R36: 0 | S36: 0 | T36: 0 | V36: =P36+Q36 -> 0 | W36: =V36 -> 0
A37: SAD/SG | B37: 4 | E37: 1.2- | F37: PY2 | G37: ADD | H37: --- | I37: UnitedHealthcare Domestic | J37: Stand Alone Dental | K37: Small Group Employer | L37: Total Incurred Claims | M37: ='Essbase Input'!$D$19 -> IDB 2020 | N37: NO REINSURANCE | O37: All Other Projects | P37: 0 | Q37: 0 | R37: 0 | S37: 0 | T37: 0 | V37: =P37+R37+S37+T37 -> 0
B38: 4 | E38: 1.2- | F38: PY2 | G38: SUB | H38: --- | I38: UnitedHealthcare Domestic | J38: Stand Alone Dental | K38: Small Group Employer | L38: 50010 - Physician Cap Paid - External | M38: ='Essbase Input'!$D$19 -> IDB 2020 | N38: NO REINSURANCE | O38: 0000003413 - General Administrative | P38: 0 | Q38: 0 | R38: 0 | S38: 0 | T38: 0 | V38: =P38+R38+S38+T38 -> 0
B39: 4 | E39: 1.2- | F39: PY2 | G39: SUB | H39: --- | I39: UnitedHealthcare Domestic | J39: Stand Alone Dental | K39: Small Group Employer | L39: 50619 - Internal Capitation Pd - Other | M39: ='Essbase Input'!$D$19 -> IDB 2020 | N39: NO REINSURANCE | O39: All Other Projects | P39: 0 | Q39: 0 | R39: 0 | S39: 0 | T39: 0 | V39: =P39+R39+S39+T39 -> 0
B40: 4 | E40: 1.2- | F40: PY2 | G40: SUB | H40: --- | I40: UnitedHealthcare Domestic | J40: Stand Alone Dental | K40: Small Group Employer | L40: Rate Credits NonTaxable | M40: ='Essbase Input'!$D$19 -> IDB 2020 | N40: NO REINSURANCE | O40: All Other Projects | P40: 0 | Q40: 0 | R40: 0 | S40: 0 | T40: 0 | V40: =P40+R40+S40+T40 -> 0 | W40: =V37-V38-V39-V40 -> 0
B41: 4 | E41: 2.1- | F41: PY2 | G41: ADD | H41: R | I41: UnitedHealthcare Domestic | J41: Stand Alone Dental | K41: Small Group Employer | L41: Health Premiums Earned | M41: ='Essbase Input'!$D$19 -> IDB 2020 | N41: NO REINSURANCE | O41: All Other Projects | P41: 0 | Q41: 0 | R41: 0 | S41: 0 | T41: 0 | V41: =P41+Q41 -> 0 | W41: =V41 -> 0
B42: 4 | E42: 2.2- | F42: PY2 | G42: ADD | H42: --- | I42: UnitedHealthcare Domestic | J42: Stand Alone Dental | K42: Small Group Employer | L42: Federal Taxes and Assessments | M42: IDB Periods | N42: Reinsurance | O42: All Other Projects | P42: 0 | Q42: 0 | R42: 0 | S42: 0 | T42: 0 | V42: =P42 -> 0
B43: 4 | E43: 2.2- | F43: PY2 | G43: ADD | H43: --- | I43: UnitedHealthcare Domestic | J43: Stand Alone Dental | K43: Small Group Employer | L43: State Ins, Prem and Other Tax | M43: IDB Periods | N43: Reinsurance | O43: All Other Projects | P43: 0 | Q43: 0 | R43: 0 | S43: 0 | T43: 0 | V43: =P43 -> 0
B44: 4 | E44: 2.2- | F44: PY2 | G44: ADD | H44: --- | I44: UnitedHealthcare Domestic | J44: Stand Alone Dental | K44: Small Group Employer | L44: Reg Authority Licenses & Fees | M44: IDB Periods | N44: Reinsurance | O44: All Other Projects | P44: 0 | Q44: 0 | R44: 0 | S44: 0 | T44: 0 | V44: 0 | W44: =SUM(V42:V44) -> 0
B45: 4 | E45: 3.1- | F45: PY2 | G45: ADD | H45: --- | I45: UnitedHealthcare Domestic | J45: Stand Alone Dental | K45: Small Group Employer | L45: SHCE Member Months | M45: ='Essbase Input'!$D$19 -> IDB 2020 | N45: NO REINSURANCE | O45: All Other Projects | P45: 0 | Q45: 0 | R45: 0 | S45: 0 | T45: 0 | V45: =P45+Q45 -> 0 | W45: =V45 -> 0
A46: SAD/LG | B46: 4 | E46: 1.2- | F46: PY2 | G46: ADD | H46: --- | I46: UnitedHealthcare Domestic | J46: Stand Alone Dental | K46: Large Group Employer | L46: Total Incurred Claims | M46: ='Essbase Input'!$D$19 -> IDB 2020 | N46: NO REINSURANCE | O46: All Other Projects | P46: 0 | Q46: 0 | R46: 0 | S46: 0 | T46: 0 | V46: =P46+R46+S46+T46 -> 0
B47: 4 | E47: 1.2- | F47: PY2 | G47: SUB | H47: --- | I47: UnitedHealthcare Domestic | J47: Stand Alone Dental | K47: Large Group Employer | L47: 50010 - Physician Cap Paid - External | M47: ='Essbase Input'!$D$19 -> IDB 2020 | N47: NO REINSURANCE | O47: 0000003413 - General Administrative | P47: 0 | Q47: 0 | R47: 0 | S47: 0 | T47: 0 | V47: =P47+R47+S47+T47 -> 0
B48: 4 | E48: 1.2- | F48: PY2 | G48: SUB | H48: --- | I48: UnitedHealthcare Domestic | J48: Stand Alone Dental | K48: Large Group Employer | L48: 50619 - Internal Capitation Pd - Other | M48: ='Essbase Input'!$D$19 -> IDB 2020 | N48: NO REINSURANCE | O48: All Other Projects | P48: 0 | Q48: 0 | R48: 0 | S48: 0 | T48: 0 | V48: =P48+R48+S48+T48 -> 0
B49: 4 | E49: 1.2- | F49: PY2 | G49: SUB | H49: --- | I49: UnitedHealthcare Domestic | J49: Stand Alone Dental | K49: Large Group Employer | L49: Rate Credits NonTaxable | M49: ='Essbase Input'!$D$19 -> IDB 2020 | N49: NO REINSURANCE | O49: All Other Projects | P49: 0 | Q49: 0 | R49: 0 | S49: 0 | T49: 0 | V49: =P49+R49+S49+T49 -> 0 | W49: =V46-V47-V48-V49 -> 0
B50: 4 | E50: 2.1- | F50: PY2 | G50: ADD | H50: R | I50: UnitedHealthcare Domestic | J50: Stand Alone Dental | K50: Large Group Employer | L50: Health Premiums Earned | M50: ='Essbase Input'!$D$19 -> IDB 2020 | N50: NO REINSURANCE | O50: All Other Projects | P50: 0 | Q50: 0 | R50: 0 | S50: 0 | T50: 0 | V50: =P50+Q50 -> 0 | W50: =V50 -> 0
B51: 4 | E51: 2.2- | F51: PY2 | G51: ADD | H51: --- | I51: UnitedHealthcare Domestic | J51: Stand Alone Dental | K51: Large Group Employer | L51: Federal Taxes and Assessments | M51: IDB Periods | N51: Reinsurance | O51: All Other Projects | P51: 10790.63 | Q51: 886.32 | R51: 4458.39 | S51: 5568.76 | T51: -178.7 | V51: =P51 -> 10790.63
B52: 4 | E52: 2.2- | F52: PY2 | G52: ADD | H52: --- | I52: UnitedHealthcare Domestic | J52: Stand Alone Dental | K52: Large Group Employer | L52: State Ins, Prem and Other Tax | M52: IDB Periods | N52: Reinsurance | O52: All Other Projects | P52: 0 | Q52: 0 | R52: 0 | S52: 0 | T52: 0 | V52: =P52 -> 0
B53: 4 | E53: 2.2- | F53: PY2 | G53: ADD | H53: --- | I53: UnitedHealthcare Domestic | J53: Stand Alone Dental | K53: Large Group Employer | L53: Reg Authority Licenses & Fees | M53: IDB Periods | N53: Reinsurance | O53: All Other Projects | P53: 0 | Q53: 0 | R53: 0 | S53: 0 | T53: 0 | V53: 0 | W53: =SUM(V51:V53) -> 10790.63
B54: 4 | E54: 3.1- | F54: PY2 | G54: ADD | H54: --- | I54: UnitedHealthcare Domestic | J54: Stand Alone Dental | K54: Large Group Employer | L54: SHCE Member Months | M54: ='Essbase Input'!$D$19 -> IDB 2020 | N54: NO REINSURANCE | O54: All Other Projects | P54: 0 | Q54: 0 | R54: 0 | S54: 0 | T54: 0 | V54: =P54+Q54 -> 0 | W54: =V54 -> 0
A55: Vision | B55: 4 | E55: 1.2 | F55: PY2 | G55: ADD | H55: --- | I55: Operating Units | J55: Stand Alone Vision | K55: MLR Customers | L55: Total Incurred Claims | M55: ='Essbase Input'!$D$19 -> IDB 2020 | N55: NO REINSURANCE | O55: All Other Projects | P55: 5526.37 | Q55: 721.79 | R55: 677.26 | S55: -1.09 | T55: 0 | V55: =P55+R55+S55+T55 -> 6202.54
B56: 4 | E56: 1.2 | F56: PY2 | G56: SUB | H56: --- | I56: Operating Units | J56: Stand Alone Vision | K56: MLR Customers | L56: 50010 - Physician Cap Paid - External | M56: ='Essbase Input'!$D$19 -> IDB 2020 | N56: NO REINSURANCE | O56: 0000003413 - General Administrative | P56: 0 | Q56: 0 | R56: 0 | S56: 0 | T56: 0 | V56: =P56+R56+S56+T56 -> 0
B57: 4 | E57: 1.2 | F57: PY2 | G57: SUB | H57: --- | I57: Operating Units | J57: Stand Alone Vision | K57: MLR Customers | L57: 50619 - Internal Capitation Pd - Other | M57: ='Essbase Input'!$D$19 -> IDB 2020 | N57: NO REINSURANCE | O57: All Other Projects | P57: 0 | Q57: 0 | R57: 0 | S57: 0 | T57: 0 | V57: 0
B58: 4 | E58: 1.2 | F58: PY2 | G58: SUB | H58: --- | I58: Operating Units | J58: Stand Alone Vision | K58: MLR Customers | L58: Rate Credits NonTaxable | M58: ='Essbase Input'!$D$19 -> IDB 2020 | N58: NO REINSURANCE | O58: All Other Projects | P58: 0 | Q58: 0 | R58: 0 | S58: 0 | T58: 0 | V58: 0 | W58: =V55-V56-V57-V58 -> 6202.54
B59: 4 | E59: 2.1 | F59: PY2 | G59: ADD | H59: R | I59: Operating Units | J59: Stand Alone Vision | K59: MLR Customers | L59: Health Premiums Earned | M59: ='Essbase Input'!$D$19 -> IDB 2020 | N59: NO REINSURANCE | O59: All Other Projects | P59: -14610.58 | Q59: 0 | R59: 0 | S59: 0 | T59: 0 | V59: =P59+Q59 -> -14610.58 | W59: =V59 -> -14610.58
B60: 4 | E60: 2.2 | F60: PY2 | G60: ADD | H60: --- | I60: Operating Units | J60: Stand Alone Vision | K60: MLR Customers | L60: Federal Taxes and Assessments | M60: IDB Periods | N60: Reinsurance | O60: All Other Projects | P60: 1361.97 | Q60: -873.18 | R60: 589.29 | S60: 798.31 | T60: 336.15 | V60: =P60 -> 1361.97
B61: 4 | E61: 2.2 | F61: PY2 | G61: ADD | H61: --- | I61: Operating Units | J61: Stand Alone Vision | K61: MLR Customers | L61: State Ins, Prem and Other Tax | M61: IDB Periods | N61: Reinsurance | O61: All Other Projects | P61: 719 | Q61: 78.54 | R61: 55.65 | S61: 257.35 | T61: 58.51 | V61: =P61 -> 719
B62: 4 | E62: 2.2 | F62: PY2 | G62: ADD | H62: --- | I62: Operating Units | J62: Stand Alone Vision | K62: MLR Customers | L62: Reg Authority Licenses & Fees | M62: IDB Periods | N62: Reinsurance | O62: All Other Projects | P62: 0 | Q62: 0 | R62: 0 | S62: 0 | T62: 0 | V62: 0 | W62: =SUM(V60:V62) -> 2080.97
B63: 4 | E63: 3.1 | F63: PY2 | G63: ADD | H63: --- | I63: Operating Units | J63: Stand Alone Vision | K63: MLR Customers | L63: SHCE Member Months | M63: ='Essbase Input'!$D$19 -> IDB 2020 | N63: NO REINSURANCE | O63: All Other Projects | P63: 1758 | Q63: 22 | R63: 52 | S63: -12 | T63: 0 | V63: =P63+Q63 -> 1780 | W63: =V63 -> 1780
A64: Life/Disability | B64: 4 | E64: 1.2 | F64: PY2 | G64: ADD | H64: --- | I64: Operating Units | J64: Non Stand Alone Dental/Vision | K64: MLR Customers | L64: Total Incurred Claims | M64: ='Essbase Input'!$D$19 -> IDB 2020 | N64: NO REINSURANCE | O64: All Other Projects | P64: 0 | Q64: 0 | R64: 0 | S64: 0 | T64: 0 | V64: =P64+R64+S64+T64 -> 0
B65: 4 | E65: 1.2 | F65: PY2 | G65: SUB | H65: --- | I65: Operating Units | J65: Non Stand Alone Dental/Vision | K65: MLR Customers | L65: 50010 - Physician Cap Paid - External | M65: ='Essbase Input'!$D$19 -> IDB 2020 | N65: NO REINSURANCE | O65: 0000003413 - General Administrative | P65: 0 | Q65: 0 | R65: 0 | S65: 0 | T65: 0 | V65: =P65+R65+S65+T65 -> 0
B66: 4 | E66: 1.2 | F66: PY2 | G66: SUB | H66: --- | I66: Operating Units | J66: Non Stand Alone Dental/Vision | K66: MLR Customers | L66: 50619 - Internal Capitation Pd - Other | M66: ='Essbase Input'!$D$19 -> IDB 2020 | N66: NO REINSURANCE | O66: All Other Projects | P66: 0 | Q66: 0 | R66: 0 | S66: 0 | T66: 0 | V66: 0
B67: 4 | E67: 1.2 | F67: PY2 | G67: SUB | H67: --- | I67: Operating Units | J67: Non Stand Alone Dental/Vision | K67: MLR Customers | L67: Rate Credits NonTaxable | M67: ='Essbase Input'!$D$19 -> IDB 2020 | N67: NO REINSURANCE | O67: All Other Projects | P67: 0 | Q67: 0 | R67: 0 | S67: 0 | T67: 0 | V67: 0 | W67: =V64-V65-V66-V67 -> 0
B68: 4 | E68: 2.1 | F68: PY2 | G68: ADD | H68: R | I68: Operating Units | J68: Non Stand Alone Dental/Vision | K68: MLR Customers | L68: Health Premiums Earned | M68: ='Essbase Input'!$D$19 -> IDB 2020 | N68: NO REINSURANCE | O68: All Other Projects | P68: 0 | Q68: 0 | R68: 0 | S68: 0 | T68: 0 | V68: =P68+Q68 -> 0 | W68: =V68 -> 0
B69: 4 | E69: 2.2 | F69: PY2 | G69: ADD | H69: --- | I69: Operating Units | J69: Non Stand Alone Dental/Vision | K69: MLR Customers | L69: Federal Taxes and Assessments | M69: IDB Periods | N69: Reinsurance | O69: All Other Projects | P69: 0 | Q69: 0 | R69: 0 | S69: -143.59 | T69: -264.37 | V69: =P69 -> 0
B70: 4 | E70: 2.2 | F70: PY2 | G70: ADD | H70: --- | I70: Operating Units | J70: Non Stand Alone Dental/Vision | K70: MLR Customers | L70: State Ins, Prem and Other Tax | M70: IDB Periods | N70: Reinsurance | O70: All Other Projects | P70: 0 | Q70: 0 | R70: 0 | S70: 0 | T70: 0 | V70: =P70 -> 0
B71: 4 | E71: 2.2 | F71: PY2 | G71: ADD | H71: --- | I71: Operating Units | J71: Non Stand Alone Dental/Vision | K71: MLR Customers | L71: Reg Authority Licenses & Fees | M71: IDB Periods | N71: Reinsurance | O71: All Other Projects | P71: 0 | Q71: 0 | R71: 0 | S71: 0 | T71: 0 | V71: 0 | W71: =SUM(V69:V71) -> 0
B72: 4 | E72: 3.1 | F72: PY2 | G72: ADD | H72: --- | I72: Operating Units | J72: Non Stand Alone Dental/Vision | K72: MLR Customers | L72: SHCE Member Months | M72: ='Essbase Input'!$D$19 -> IDB 2020 | N72: NO REINSURANCE | O72: All Other Projects | P72: 0 | Q72: 0 | R72: 0 | S72: 0 | T72: 0 | V72: =P72+Q72 -> 0 | W72: =V72 -> 0
A73: Oth Bus (excl by Stat) | B73: 4 | E73: 1.2 | F73: PY2 | G73: ADD | H73: --- | I73: Operating Units | J73: Other Bus(excluded by Statute) | K73: MLR Customers | L73: Total Incurred Claims | M73: ='Essbase Input'!$D$19 -> IDB 2020 | N73: NO REINSURANCE | O73: All Other Projects | P73: 0 | Q73: 0 | R73: 0 | S73: 0 | T73: 0 | V73: =P73+R73+S73+T73 -> 0
B74: 4 | E74: 1.2 | F74: PY2 | G74: SUB | H74: --- | I74: Operating Units | J74: Other Bus(excluded by Statute) | K74: MLR Customers | L74: 50010 - Physician Cap Paid - External | M74: ='Essbase Input'!$D$19 -> IDB 2020 | N74: NO REINSURANCE | O74: 0000003413 - General Administrative | P74: 0 | Q74: 0 | R74: 0 | S74: 0 | T74: 0 | V74: =P74+R74+S74+T74 -> 0
B75: 4 | E75: 1.2 | F75: PY2 | G75: SUB | H75: --- | I75: Operating Units | J75: Other Bus(excluded by Statute) | K75: MLR Customers | L75: 50619 - Internal Capitation Pd - Other | M75: ='Essbase Input'!$D$19 -> IDB 2020 | N75: NO REINSURANCE | O75: All Other Projects | P75: 0 | Q75: 0 | R75: 0 | S75: 0 | T75: 0 | V75: 0
B76: 4 | E76: 1.2 | F76: PY2 | G76: SUB | H76: --- | I76: Operating Units | J76: Other Bus(excluded by Statute) | K76: MLR Customers | L76: Rate Credits NonTaxable | M76: ='Essbase Input'!$D$19 -> IDB 2020 | N76: NO REINSURANCE | O76: All Other Projects | P76: 0 | Q76: 0 | R76: 0 | S76: 0 | T76: 0 | V76: 0 | W76: =V73-V74-V75-V76 -> 0
B77: 4 | E77: 2.1 | F77: PY2 | G77: ADD | H77: R | I77: Operating Units | J77: Other Bus(excluded by Statute) | K77: MLR Customers | L77: Health Premiums Earned | M77: ='Essbase Input'!$D$19 -> IDB 2020 | N77: NO REINSURANCE | O77: All Other Projects | P77: 0 | Q77: 0 | R77: 0 | S77: 0 | T77: 0 | V77: =P77+Q77 -> 0 | W77: =V77 -> 0
B78: 4 | E78: 2.2 | F78: PY2 | G78: ADD | H78: --- | I78: Operating Units | J78: Other Bus(excluded by Statute) | K78: MLR Customers | L78: Federal Taxes and Assessments | M78: IDB Periods | N78: Reinsurance | O78: All Other Projects | P78: 0 | Q78: 0 | R78: 0 | S78: 0 | T78: 0 | V78: =P78 -> 0
B79: 4 | E79: 2.2 | F79: PY2 | G79: ADD | H79: --- | I79: Operating Units | J79: Other Bus(excluded by Statute) | K79: MLR Customers | L79: State Ins, Prem and Other Tax | M79: IDB Periods | N79: Reinsurance | O79: All Other Projects | P79: 0 | Q79: 0 | R79: 0 | S79: 0 | T79: 0 | V79: =P79 -> 0
B80: 4 | E80: 2.2 | F80: PY2 | G80: ADD | H80: --- | I80: Operating Units | J80: Other Bus(excluded by Statute) | K80: MLR Customers | L80: Reg Authority Licenses & Fees | M80: IDB Periods | N80: Reinsurance | O80: All Other Projects | P80: 0 | Q80: 0 | R80: 0 | S80: 0 | T80: 0 | V80: 0 | W80: =SUM(V78:V80) -> 0
B81: 4 | E81: 3.1 | F81: PY2 | G81: ADD | H81: --- | I81: Operating Units | J81: Other Bus(excluded by Statute) | K81: MLR Customers | L81: SHCE Member Months | M81: ='Essbase Input'!$D$19 -> IDB 2020 | N81: NO REINSURANCE | O81: All Other Projects | P81: 0 | Q81: 0 | R81: 0 | S81: 0 | T81: 0 | V81: =P81+Q81 -> 0 | W81: =V81 -> 0
A82: UHC Domestic Stand Alone Dental Blank Cust | B82: 4 | C82: A | E82: 1.2 | F82: PY2 | G82: ADD | H82: --- | I82: UnitedHealthcare Domestic | J82: Stand Alone Dental | K82: Blank Customer | L82: Total Incurred Claims | M82: ='Essbase Input'!$D$19 -> IDB 2020 | N82: NO REINSURANCE | O82: All Other Projects | P82: 0 | Q82: 0 | R82: 0 | S82: 0 | T82: 0 | V82: =P82+R82+S82+T82 -> 0
B83: 4 | C83: A | E83: 1.2 | F83: PY2 | G83: SUB | H83: --- | I83: UnitedHealthcare Domestic | J83: Stand Alone Dental | K83: Blank Customer | L83: 50010 - Physician Cap Paid - External | M83: ='Essbase Input'!$D$19 -> IDB 2020 | N83: NO REINSURANCE | O83: 0000003413 - General Administrative | P83: 0 | Q83: 0 | R83: 0 | S83: 0 | T83: 0 | V83: =P83+R83+S83+T83 -> 0
B84: 4 | C84: A | E84: 1.2 | F84: PY2 | G84: SUB | H84: --- | I84: UnitedHealthcare Domestic | J84: Stand Alone Dental | K84: Blank Customer | L84: 50619 - Internal Capitation Pd - Other | M84: ='Essbase Input'!$D$19 -> IDB 2020 | N84: NO REINSURANCE | O84: All Other Projects | P84: 0 | Q84: 0 | R84: 0 | S84: 0 | T84: 0 | V84: 0
B85: 4 | C85: A | E85: 1.2 | F85: PY2 | G85: SUB | H85: --- | I85: UnitedHealthcare Domestic | J85: Stand Alone Dental | K85: Blank Customer | L85: Rate Credits NonTaxable | M85: ='Essbase Input'!$D$19 -> IDB 2020 | N85: NO REINSURANCE | O85: All Other Projects | P85: 0 | Q85: 0 | R85: 0 | S85: 0 | T85: 0 | V85: 0 | W85: =V82-V83-V84-V85 -> 0
B86: 4 | C86: A | E86: 2.1 | F86: PY2 | G86: ADD | H86: R | I86: UnitedHealthcare Domestic | J86: Stand Alone Dental | K86: Blank Customer | L86: Health Premiums Earned | M86: ='Essbase Input'!$D$19 -> IDB 2020 | N86: NO REINSURANCE | O86: All Other Projects | P86: 0 | Q86: 0 | R86: 0 | S86: 0 | T86: 0 | V86: =P86+Q86 -> 0 | W86: =V86 -> 0
B87: 4 | C87: A | E87: 2.2 | F87: PY2 | G87: ADD | H87: --- | I87: UnitedHealthcare Domestic | J87: Stand Alone Dental | K87: Blank Customer | L87: Federal Taxes and Assessments | M87: IDB Periods | N87: Reinsurance | O87: All Other Projects | P87: 0 | Q87: 0 | R87: 0 | S87: 0 | T87: 0 | V87: =P87 -> 0
B88: 4 | C88: A | E88: 2.2 | F88: PY2 | G88: ADD | H88: --- | I88: UnitedHealthcare Domestic | J88: Stand Alone Dental | K88: Blank Customer | L88: State Ins, Prem and Other Tax | M88: IDB Periods | N88: Reinsurance | O88: All Other Projects | P88: 0 | Q88: 0 | R88: 0 | S88: 0 | T88: 0 | V88: =P88 -> 0
B89: 4 | C89: A | E89: 2.2 | F89: PY2 | G89: ADD | H89: --- | I89: UnitedHealthcare Domestic | J89: Stand Alone Dental | K89: Blank Customer | L89: Reg Authority Licenses & Fees | M89: IDB Periods | N89: Reinsurance | O89: All Other Projects | P89: 0 | Q89: 0 | R89: 0 | S89: 0 | T89: 0 | V89: 0 | W89: =SUM(V87:V89) -> 0
B90: 4 | C90: A | E90: 3.1 | F90: PY2 | G90: ADD | H90: --- | I90: UnitedHealthcare Domestic | J90: Stand Alone Dental | K90: Blank Customer | L90: SHCE Member Months | M90: ='Essbase Input'!$D$19 -> IDB 2020 | N90: NO REINSURANCE | O90: All Other Projects | P90: 0 | Q90: 0 | R90: 0 | S90: 0 | T90: 0 | V90: =P90+Q90 -> 0 | W90: =V90 -> 0
A91: UHC Domestic Stand Alone Dental Not Comp Health | B91: 4 | C91: A | E91: 1.2 | F91: PY2 | G91: ADD | H91: --- | I91: UnitedHealthcare Domestic | J91: Stand Alone Dental | K91: Not Comp Health Coverage | L91: Total Incurred Claims | M91: ='Essbase Input'!$D$19 -> IDB 2020 | N91: NO REINSURANCE | O91: All Other Projects | P91: 82938.64 | Q91: -1300.49 | R91: -1041.44 | S91: 0 | T91: 0 | V91: =P91+R91+S91+T91 -> 81897.2
B92: 4 | C92: A | E92: 1.2 | F92: PY2 | G92: SUB | H92: --- | I92: UnitedHealthcare Domestic | J92: Stand Alone Dental | K92: Not Comp Health Coverage | L92: 50010 - Physician Cap Paid - External | M92: ='Essbase Input'!$D$19 -> IDB 2020 | N92: NO REINSURANCE | O92: 0000003413 - General Administrative | P92: 0 | Q92: 0 | R92: 0 | S92: 0 | T92: 0 | V92: =P92+R92+S92+T92 -> 0
B93: 4 | C93: A | E93: 1.2 | F93: PY2 | G93: SUB | H93: --- | I93: UnitedHealthcare Domestic | J93: Stand Alone Dental | K93: Not Comp Health Coverage | L93: 50619 - Internal Capitation Pd - Other | M93: ='Essbase Input'!$D$19 -> IDB 2020 | N93: NO REINSURANCE | O93: All Other Projects | P93: 0 | Q93: 0 | R93: 0 | S93: 0 | T93: 0 | V93: 0
B94: 4 | C94: A | E94: 1.2 | F94: PY2 | G94: SUB | H94: --- | I94: UnitedHealthcare Domestic | J94: Stand Alone Dental | K94: Not Comp Health Coverage | L94: Rate Credits NonTaxable | M94: ='Essbase Input'!$D$19 -> IDB 2020 | N94: NO REINSURANCE | O94: All Other Projects | P94: 0 | Q94: 0 | R94: 0 | S94: 0 | T94: 0 | V94: 0 | W94: =V91-V92-V93-V94 -> 81897.2
B95: 4 | C95: A | E95: 2.1 | F95: PY2 | G95: ADD | H95: R | I95: UnitedHealthcare Domestic | J95: Stand Alone Dental | K95: Not Comp Health Coverage | L95: Health Premiums Earned | M95: ='Essbase Input'!$D$19 -> IDB 2020 | N95: NO REINSURANCE | O95: All Other Projects | P95: -196914.67 | Q95: -625.41 | R95: -95.28 | S95: 0 | T95: 0 | V95: =P95+Q95 -> -197540.08 | W95: =V95 -> -197540.08
B96: 4 | C96: A | E96: 2.2 | F96: PY2 | G96: ADD | H96: --- | I96: UnitedHealthcare Domestic | J96: Stand Alone Dental | K96: Not Comp Health Coverage | L96: Federal Taxes and Assessments | M96: IDB Periods | N96: Reinsurance | O96: All Other Projects | P96: 4609.47 | Q96: 0 | R96: 0 | S96: 0 | T96: 0 | V96: =P96 -> 4609.47
B97: 4 | C97: A | E97: 2.2 | F97: PY2 | G97: ADD | H97: --- | I97: UnitedHealthcare Domestic | J97: Stand Alone Dental | K97: Not Comp Health Coverage | L97: State Ins, Prem and Other Tax | M97: IDB Periods | N97: Reinsurance | O97: All Other Projects | P97: 19394.93 | Q97: 4505 | R97: 17509.12 | S97: 8569.18 | T97: 761.22 | V97: =P97 -> 19394.93
B98: 4 | C98: A | E98: 2.2 | F98: PY2 | G98: ADD | H98: --- | I98: UnitedHealthcare Domestic | J98: Stand Alone Dental | K98: Not Comp Health Coverage | L98: Reg Authority Licenses & Fees | M98: IDB Periods | N98: Reinsurance | O98: All Other Projects | P98: 0 | Q98: 0 | R98: 0 | S98: 0 | T98: 0 | V98: 0 | W98: =SUM(V96:V98) -> 24004.4
B99: 4 | C99: A | E99: 3.1 | F99: PY2 | G99: ADD | H99: --- | I99: UnitedHealthcare Domestic | J99: Stand Alone Dental | K99: Not Comp Health Coverage | L99: SHCE Member Months | M99: ='Essbase Input'!$D$19 -> IDB 2020 | N99: NO REINSURANCE | O99: All Other Projects | P99: 4005 | Q99: 10 | R99: 46 | S99: 0 | T99: 0 | V99: =P99+Q99 -> 4015 | W99: =V99 -> 4015
A100: UHC International Stand Alone Dental MLR Customer | B100: 4 | C100: A | D100: B | E100: 1.2 | F100: PY2 | G100: ADD | H100: --- | I100: UnitedHealthcare International | J100: Stand Alone Dental | K100: MLR Customers | L100: Total Incurred Claims | M100: ='Essbase Input'!$D$19 -> IDB 2020 | N100: NO REINSURANCE | O100: All Other Projects | P100: 0 | Q100: 0 | R100: 0 | S100: 0 | T100: 0 | V100: =P100+R100+S100+T100 -> 0
B101: 4 | C101: A | D101: B | E101: 1.2 | F101: PY2 | G101: SUB | H101: --- | I101: UnitedHealthcare International | J101: Stand Alone Dental | K101: MLR Customers | L101: 50010 - Physician Cap Paid - External | M101: ='Essbase Input'!$D$19 -> IDB 2020 | N101: NO REINSURANCE | O101: 0000003413 - General Administrative | P101: 0 | Q101: 0 | R101: 0 | S101: 0 | T101: 0 | V101: =P101+R101+S101+T101 -> 0
B102: 4 | C102: A | D102: B | E102: 1.2 | F102: PY2 | G102: SUB | H102: --- | I102: UnitedHealthcare International | J102: Stand Alone Dental | K102: MLR Customers | L102: 50619 - Internal Capitation Pd - Other | M102: ='Essbase Input'!$D$19 -> IDB 2020 | N102: NO REINSURANCE | O102: All Other Projects | P102: 0 | Q102: 0 | R102: 0 | S102: 0 | T102: 0 | V102: 0
B103: 4 | C103: A | D103: B | E103: 1.2 | F103: PY2 | G103: SUB | H103: --- | I103: UnitedHealthcare International | J103: Stand Alone Dental | K103: MLR Customers | L103: Rate Credits NonTaxable | M103: ='Essbase Input'!$D$19 -> IDB 2020 | N103: NO REINSURANCE | O103: All Other Projects | P103: 0 | Q103: 0 | R103: 0 | S103: 0 | T103: 0 | V103: 0 | W103: =V100-V101-V102-V103 -> 0
B104: 4 | C104: A | D104: B | E104: 2.1 | F104: PY2 | G104: ADD | H104: R | I104: UnitedHealthcare International | J104: Stand Alone Dental | K104: MLR Customers | L104: Health Premiums Earned | M104: ='Essbase Input'!$D$19 -> IDB 2020 | N104: NO REINSURANCE | O104: All Other Projects | P104: 0 | Q104: 0 | R104: 0 | S104: 0 | T104: 0 | V104: =P104+Q104 -> 0 | W104: =V104 -> 0
B105: 4 | C105: A | D105: B | E105: 2.2 | F105: PY2 | G105: ADD | H105: --- | I105: UnitedHealthcare International | J105: Stand Alone Dental | K105: MLR Customers | L105: Federal Taxes and Assessments | M105: IDB Periods | N105: Reinsurance | O105: All Other Projects | P105: 0 | Q105: 0 | R105: 0 | S105: 0 | T105: 0 | V105: =P105 -> 0
B106: 4 | C106: A | D106: B | E106: 2.2 | F106: PY2 | G106: ADD | H106: --- | I106: UnitedHealthcare International | J106: Stand Alone Dental | K106: MLR Customers | L106: State Ins, Prem and Other Tax | M106: IDB Periods | N106: Reinsurance | O106: All Other Projects | P106: 0 | Q106: 0 | R106: 0 | S106: 0 | T106: 0 | V106: =P106 -> 0
B107: 4 | C107: A | D107: B | E107: 2.2 | F107: PY2 | G107: ADD | H107: --- | I107: UnitedHealthcare International | J107: Stand Alone Dental | K107: MLR Customers | L107: Reg Authority Licenses & Fees | M107: IDB Periods | N107: Reinsurance | O107: All Other Projects | P107: 0 | Q107: 0 | R107: 0 | S107: 0 | T107: 0 | V107: 0 | W107: =SUM(V105:V107) -> 0
B108: 4 | C108: A | D108: B | E108: 3.1 | F108: PY2 | G108: ADD | H108: --- | I108: UnitedHealthcare International | J108: Stand Alone Dental | K108: MLR Customers | L108: SHCE Member Months | M108: ='Essbase Input'!$D$19 -> IDB 2020 | N108: NO REINSURANCE | O108: All Other Projects | P108: 0 | Q108: 0 | R108: 0 | S108: 0 | T108: 0 | V108: =P108+Q108 -> 0 | W108: =V108 -> 0
A109: Optum Stand Alone Dental MLR Customer | B109: 4 | C109: A | D109: B | E109: 1.2 | F109: PY2 | G109: ADD | H109: --- | I109: Optum | J109: Stand Alone Dental | K109: MLR Customers | L109: Total Incurred Claims | M109: ='Essbase Input'!$D$19 -> IDB 2020 | N109: NO REINSURANCE | O109: All Other Projects | P109: 0 | Q109: 0 | R109: 0 | S109: 0 | T109: 0 | V109: =P109+R109+S109+T109 -> 0
B110: 4 | C110: A | D110: B | E110: 1.2 | F110: PY2 | G110: SUB | H110: --- | I110: Optum | J110: Stand Alone Dental | K110: MLR Customers | L110: 50010 - Physician Cap Paid - External | M110: ='Essbase Input'!$D$19 -> IDB 2020 | N110: NO REINSURANCE | O110: 0000003413 - General Administrative | P110: 0 | Q110: 0 | R110: 0 | S110: 0 | T110: 0 | V110: =P110+R110+S110+T110 -> 0
B111: 4 | C111: A | D111: B | E111: 1.2 | F111: PY2 | G111: SUB | H111: --- | I111: Optum | J111: Stand Alone Dental | K111: MLR Customers | L111: 50619 - Internal Capitation Pd - Other | M111: ='Essbase Input'!$D$19 -> IDB 2020 | N111: NO REINSURANCE | O111: All Other Projects | P111: 0 | Q111: 0 | R111: 0 | S111: 0 | T111: 0 | V111: 0
B112: 4 | C112: A | D112: B | E112: 1.2 | F112: PY2 | G112: SUB | H112: --- | I112: Optum | J112: Stand Alone Dental | K112: MLR Customers | L112: Rate Credits NonTaxable | M112: ='Essbase Input'!$D$19 -> IDB 2020 | N112: NO REINSURANCE | O112: All Other Projects | P112: 0 | Q112: 0 | R112: 0 | S112: 0 | T112: 0 | V112: 0 | W112: =V109-V110-V111-V112 -> 0
B113: 4 | C113: A | D113: B | E113: 2.1 | F113: PY2 | G113: ADD | H113: R | I113: Optum | J113: Stand Alone Dental | K113: MLR Customers | L113: Health Premiums Earned | M113: ='Essbase Input'!$D$19 -> IDB 2020 | N113: NO REINSURANCE | O113: All Other Projects | P113: 0 | Q113: 0 | R113: 0 | S113: 0 | T113: 0 | V113: =P113+Q113 -> 0 | W113: =V113 -> 0
B114: 4 | C114: A | D114: B | E114: 2.2 | F114: PY2 | G114: ADD | H114: --- | I114: Optum | J114: Stand Alone Dental | K114: MLR Customers | L114: Federal Taxes and Assessments | M114: IDB Periods | N114: Reinsurance | O114: All Other Projects | P114: 0 | Q114: 0 | R114: 0 | S114: 0 | T114: 0 | V114: =P114 -> 0
B115: 4 | C115: A | D115: B | E115: 2.2 | F115: PY2 | G115: ADD | H115: --- | I115: Optum | J115: Stand Alone Dental | K115: MLR Customers | L115: State Ins, Prem and Other Tax | M115: IDB Periods | N115: Reinsurance | O115: All Other Projects | P115: 0 | Q115: 0 | R115: 0 | S115: 0 | T115: 0 | V115: =P115 -> 0
B116: 4 | C116: A | D116: B | E116: 2.2 | F116: PY2 | G116: ADD | H116: --- | I116: Optum | J116: Stand Alone Dental | K116: MLR Customers | L116: Reg Authority Licenses & Fees | M116: IDB Periods | N116: Reinsurance | O116: All Other Projects | P116: 0 | Q116: 0 | R116: 0 | S116: 0 | T116: 0 | V116: 0 | W116: =SUM(V114:V116) -> 0
B117: 4 | C117: A | D117: B | E117: 3.1 | F117: PY2 | G117: ADD | H117: --- | I117: Optum | J117: Stand Alone Dental | K117: MLR Customers | L117: SHCE Member Months | M117: ='Essbase Input'!$D$19 -> IDB 2020 | N117: NO REINSURANCE | O117: All Other Projects | P117: 0 | Q117: 0 | R117: 0 | S117: 0 | T117: 0 | V117: =P117+Q117 -> 0 | W117: =V117 -> 0
A118: Elims Mkt Grp Stand Alone Dental MLR Customer | B118: 4 | C118: A | D118: B | E118: 1.2 | F118: PY2 | G118: ADD | H118: --- | I118: Eliminations Market Group | J118: Stand Alone Dental | K118: MLR Customers | L118: Total Incurred Claims | M118: ='Essbase Input'!$D$19 -> IDB 2020 | N118: NO REINSURANCE | O118: All Other Projects | P118: 0 | Q118: 0 | R118: 0 | S118: 0 | T118: 0 | V118: =P118+R118+S118+T118 -> 0
B119: 4 | C119: A | D119: B | E119: 1.2 | F119: PY2 | G119: SUB | H119: --- | I119: Eliminations Market Group | J119: Stand Alone Dental | K119: MLR Customers | L119: 50010 - Physician Cap Paid - External | M119: ='Essbase Input'!$D$19 -> IDB 2020 | N119: NO REINSURANCE | O119: 0000003413 - General Administrative | P119: 0 | Q119: 0 | R119: 0 | S119: 0 | T119: 0 | V119: =P119+R119+S119+T119 -> 0
B120: 4 | C120: A | D120: B | E120: 1.2 | F120: PY2 | G120: SUB | H120: --- | I120: Eliminations Market Group | J120: Stand Alone Dental | K120: MLR Customers | L120: 50619 - Internal Capitation Pd - Other | M120: ='Essbase Input'!$D$19 -> IDB 2020 | N120: NO REINSURANCE | O120: All Other Projects | P120: 0 | Q120: 0 | R120: 0 | S120: 0 | T120: 0 | V120: 0
B121: 4 | C121: A | D121: B | E121: 1.2 | F121: PY2 | G121: SUB | H121: --- | I121: Eliminations Market Group | J121: Stand Alone Dental | K121: MLR Customers | L121: Rate Credits NonTaxable | M121: ='Essbase Input'!$D$19 -> IDB 2020 | N121: NO REINSURANCE | O121: All Other Projects | P121: 0 | Q121: 0 | R121: 0 | S121: 0 | T121: 0 | V121: 0 | W121: =V118-V119-V120-V121 -> 0
B122: 4 | C122: A | D122: B | E122: 2.1 | F122: PY2 | G122: ADD | H122: R | I122: Eliminations Market Group | J122: Stand Alone Dental | K122: MLR Customers | L122: Health Premiums Earned | M122: ='Essbase Input'!$D$19 -> IDB 2020 | N122: NO REINSURANCE | O122: All Other Projects | P122: 0 | Q122: 0 | R122: 0 | S122: 0 | T122: 0 | V122: =P122+Q122 -> 0 | W122: =V122 -> 0
B123: 4 | C123: A | D123: B | E123: 2.2 | F123: PY2 | G123: ADD | H123: --- | I123: Eliminations Market Group | J123: Stand Alone Dental | K123: MLR Customers | L123: Federal Taxes and Assessments | M123: IDB Periods | N123: Reinsurance | O123: All Other Projects | P123: 0 | Q123: 0 | R123: 0 | S123: 0 | T123: 0 | V123: =P123 -> 0
B124: 4 | C124: A | D124: B | E124: 2.2 | F124: PY2 | G124: ADD | H124: --- | I124: Eliminations Market Group | J124: Stand Alone Dental | K124: MLR Customers | L124: State Ins, Prem and Other Tax | M124: IDB Periods | N124: Reinsurance | O124: All Other Projects | P124: 0 | Q124: 0 | R124: 0 | S124: 0 | T124: 0 | V124: =P124 -> 0
B125: 4 | C125: A | D125: B | E125: 2.2 | F125: PY2 | G125: ADD | H125: --- | I125: Eliminations Market Group | J125: Stand Alone Dental | K125: MLR Customers | L125: Reg Authority Licenses & Fees | M125: IDB Periods | N125: Reinsurance | O125: All Other Projects | P125: 0 | Q125: 0 | R125: 0 | S125: 0 | T125: 0 | V125: 0 | W125: =SUM(V123:V125) -> 0
B126: 4 | C126: A | D126: B | E126: 3.1 | F126: PY2 | G126: ADD | H126: --- | I126: Eliminations Market Group | J126: Stand Alone Dental | K126: MLR Customers | L126: SHCE Member Months | M126: ='Essbase Input'!$D$19 -> IDB 2020 | N126: NO REINSURANCE | O126: All Other Projects | P126: 0 | Q126: 0 | R126: 0 | S126: 0 | T126: 0 | V126: =P126+Q126 -> 0 | W126: =V126 -> 0
A127: Corp Mkt Grp Stand Alone Dental MLR Customer | B127: 4 | C127: A | D127: B | E127: 1.2 | F127: PY2 | G127: ADD | H127: --- | I127: Corp Market Group Rollup | J127: Stand Alone Dental | K127: MLR Customers | L127: Total Incurred Claims | M127: ='Essbase Input'!$D$19 -> IDB 2020 | N127: NO REINSURANCE | O127: All Other Projects | P127: 0 | Q127: 0 | R127: 0 | S127: 0 | T127: 0 | V127: =P127+R127+S127+T127 -> 0
B128: 4 | C128: A | D128: B | E128: 1.2 | F128: PY2 | G128: SUB | H128: --- | I128: Corp Market Group Rollup | J128: Stand Alone Dental | K128: MLR Customers | L128: 50010 - Physician Cap Paid - External | M128: ='Essbase Input'!$D$19 -> IDB 2020 | N128: NO REINSURANCE | O128: 0000003413 - General Administrative | P128: 0 | Q128: 0 | R128: 0 | S128: 0 | T128: 0 | V128: =P128+R128+S128+T128 -> 0
B129: 4 | C129: A | D129: B | E129: 1.2 | F129: PY2 | G129: SUB | H129: --- | I129: Corp Market Group Rollup | J129: Stand Alone Dental | K129: MLR Customers | L129: 50619 - Internal Capitation Pd - Other | M129: ='Essbase Input'!$D$19 -> IDB 2020 | N129: NO REINSURANCE | O129: All Other Projects | P129: 0 | Q129: 0 | R129: 0 | S129: 0 | T129: 0 | V129: 0
B130: 4 | C130: A | D130: B | E130: 1.2 | F130: PY2 | G130: SUB | H130: --- | I130: Corp Market Group Rollup | J130: Stand Alone Dental | K130: MLR Customers | L130: Rate Credits NonTaxable | M130: ='Essbase Input'!$D$19 -> IDB 2020 | N130: NO REINSURANCE | O130: All Other Projects | P130: 0 | Q130: 0 | R130: 0 | S130: 0 | T130: 0 | V130: 0 | W130: =V127-V128-V129-V130 -> 0
B131: 4 | C131: A | D131: B | E131: 2.1 | F131: PY2 | G131: ADD | H131: R | I131: Corp Market Group Rollup | J131: Stand Alone Dental | K131: MLR Customers | L131: Health Premiums Earned | M131: ='Essbase Input'!$D$19 -> IDB 2020 | N131: NO REINSURANCE | O131: All Other Projects | P131: 0 | Q131: 0 | R131: 0 | S131: 0 | T131: 0 | V131: =P131+Q131 -> 0 | W131: =V131 -> 0
B132: 4 | C132: A | D132: B | E132: 2.2 | F132: PY2 | G132: ADD | H132: --- | I132: Corp Market Group Rollup | J132: Stand Alone Dental | K132: MLR Customers | L132: Federal Taxes and Assessments | M132: IDB Periods | N132: Reinsurance | O132: All Other Projects | P132: 0 | Q132: 0 | R132: 0 | S132: 0 | T132: 0 | V132: =P132 -> 0
B133: 4 | C133: A | D133: B | E133: 2.2 | F133: PY2 | G133: ADD | H133: --- | I133: Corp Market Group Rollup | J133: Stand Alone Dental | K133: MLR Customers | L133: State Ins, Prem and Other Tax | M133: IDB Periods | N133: Reinsurance | O133: All Other Projects | P133: 0 | Q133: 0 | R133: 0 | S133: 0 | T133: 0 | V133: =P133 -> 0
B134: 4 | C134: A | D134: B | E134: 2.2 | F134: PY2 | G134: ADD | H134: --- | I134: Corp Market Group Rollup | J134: Stand Alone Dental | K134: MLR Customers | L134: Reg Authority Licenses & Fees | M134: IDB Periods | N134: Reinsurance | O134: All Other Projects | P134: 0 | Q134: 0 | R134: 0 | S134: 0 | T134: 0 | V134: 0 | W134: =SUM(V132:V134) -> 0
B135: 4 | C135: A | D135: B | E135: 3.1 | F135: PY2 | G135: ADD | H135: --- | I135: Corp Market Group Rollup | J135: Stand Alone Dental | K135: MLR Customers | L135: SHCE Member Months | M135: ='Essbase Input'!$D$19 -> IDB 2020 | N135: NO REINSURANCE | O135: All Other Projects | P135: 0 | Q135: 0 | R135: 0 | S135: 0 | T135: 0 | V135: =P135+Q135 -> 0 | W135: =V135 -> 0
A136: Non-UHG Stand Alone Dental MLR Customer | B136: 4 | C136: A | D136: B | E136: 1.2 | F136: PY2 | G136: ADD | H136: --- | I136: Non UnitedHealth Group Rollup | J136: Stand Alone Dental | K136: MLR Customers | L136: Total Incurred Claims | M136: ='Essbase Input'!$D$19 -> IDB 2020 | N136: NO REINSURANCE | O136: All Other Projects | P136: 0 | Q136: 0 | R136: 0 | S136: 0 | T136: 0 | V136: =P136+R136+S136+T136 -> 0
B137: 4 | C137: A | D137: B | E137: 1.2 | F137: PY2 | G137: SUB | H137: --- | I137: Non UnitedHealth Group Rollup | J137: Stand Alone Dental | K137: MLR Customers | L137: 50010 - Physician Cap Paid - External | M137: ='Essbase Input'!$D$19 -> IDB 2020 | N137: NO REINSURANCE | O137: 0000003413 - General Administrative | P137: 0 | Q137: 0 | R137: 0 | S137: 0 | T137: 0 | V137: =P137+R137+S137+T137 -> 0
B138: 4 | C138: A | D138: B | E138: 1.2 | F138: PY2 | G138: SUB | H138: --- | I138: Non UnitedHealth Group Rollup | J138: Stand Alone Dental | K138: MLR Customers | L138: 50619 - Internal Capitation Pd - Other | M138: ='Essbase Input'!$D$19 -> IDB 2020 | N138: NO REINSURANCE | O138: All Other Projects | P138: 0 | Q138: 0 | R138: 0 | S138: 0 | T138: 0 | V138: 0
B139: 4 | C139: A | D139: B | E139: 1.2 | F139: PY2 | G139: SUB | H139: --- | I139: Non UnitedHealth Group Rollup | J139: Stand Alone Dental | K139: MLR Customers | L139: Rate Credits NonTaxable | M139: ='Essbase Input'!$D$19 -> IDB 2020 | N139: NO REINSURANCE | O139: All Other Projects | P139: 0 | Q139: 0 | R139: 0 | S139: 0 | T139: 0 | V139: 0 | W139: =V136-V137-V138-V139 -> 0
B140: 4 | C140: A | D140: B | E140: 2.1 | F140: PY2 | G140: ADD | H140: R | I140: Non UnitedHealth Group Rollup | J140: Stand Alone Dental | K140: MLR Customers | L140: Health Premiums Earned | M140: ='Essbase Input'!$D$19 -> IDB 2020 | N140: NO REINSURANCE | O140: All Other Projects | P140: 0 | Q140: 0 | R140: 0 | S140: 0 | T140: 0 | V140: =P140+Q140 -> 0 | W140: =V140 -> 0
B141: 4 | C141: A | D141: B | E141: 2.2 | F141: PY2 | G141: ADD | H141: --- | I141: Non UnitedHealth Group Rollup | J141: Stand Alone Dental | K141: MLR Customers | L141: Federal Taxes and Assessments | M141: IDB Periods | N141: Reinsurance | O141: All Other Projects | P141: 0 | Q141: 0 | R141: 0 | S141: 0 | T141: 0 | V141: =P141 -> 0
B142: 4 | C142: A | D142: B | E142: 2.2 | F142: PY2 | G142: ADD | H142: --- | I142: Non UnitedHealth Group Rollup | J142: Stand Alone Dental | K142: MLR Customers | L142: State Ins, Prem and Other Tax | M142: IDB Periods | N142: Reinsurance | O142: All Other Projects | P142: 0 | Q142: 0 | R142: 0 | S142: 0 | T142: 0 | V142: =P142 -> 0
B143: 4 | C143: A | D143: B | E143: 2.2 | F143: PY2 | G143: ADD | H143: --- | I143: Non UnitedHealth Group Rollup | J143: Stand Alone Dental | K143: MLR Customers | L143: Reg Authority Licenses & Fees | M143: IDB Periods | N143: Reinsurance | O143: All Other Projects | P143: 0 | Q143: 0 | R143: 0 | S143: 0 | T143: 0 | V143: 0 | W143: =SUM(V141:V143) -> 0
B144: 4 | C144: A | D144: B | E144: 3.1 | F144: PY2 | G144: ADD | H144: --- | I144: Non UnitedHealth Group Rollup | J144: Stand Alone Dental | K144: MLR Customers | L144: SHCE Member Months | M144: ='Essbase Input'!$D$19 -> IDB 2020 | N144: NO REINSURANCE | O144: All Other Projects | P144: 0 | Q144: 0 | R144: 0 | S144: 0 | T144: 0 | V144: =P144+Q144 -> 0 | W144: =V144 -> 0
A145: All OUs p306155 MLR Customers | B145: 4 | E145: 1.2 | F145: PY2 | G145: ADD | H145: --- | I145: Operating Units | J145: 306155 - Package Savings Disc - Vision | K145: MLR Customers | L145: Total Incurred Claims | M145: ='Essbase Input'!$D$19 -> IDB 2020 | N145: NO REINSURANCE | O145: All Other Projects | P145: 0 | Q145: 0 | R145: 0 | S145: 0 | T145: 0 | V145: =P145+R145+S145+T145 -> 0
B146: 4 | E146: 1.2 | F146: PY2 | G146: SUB | H146: --- | I146: Operating Units | J146: 306155 - Package Savings Disc - Vision | K146: MLR Customers | L146: 50010 - Physician Cap Paid - External | M146: ='Essbase Input'!$D$19 -> IDB 2020 | N146: NO REINSURANCE | O146: 0000003413 - General Administrative | P146: 0 | Q146: 0 | R146: 0 | S146: 0 | T146: 0 | V146: =P146+R146+S146+T146 -> 0
B147: 4 | E147: 1.2 | F147: PY2 | G147: SUB | H147: --- | I147: Operating Units | J147: 306155 - Package Savings Disc - Vision | K147: MLR Customers | L147: 50619 - Internal Capitation Pd - Other | M147: ='Essbase Input'!$D$19 -> IDB 2020 | N147: NO REINSURANCE | O147: All Other Projects | P147: 0 | Q147: 0 | R147: 0 | S147: 0 | T147: 0 | V147: 0
B148: 4 | E148: 1.2 | F148: PY2 | G148: SUB | H148: --- | I148: Operating Units | J148: 306155 - Package Savings Disc - Vision | K148: MLR Customers | L148: Rate Credits NonTaxable | M148: ='Essbase Input'!$D$19 -> IDB 2020 | N148: NO REINSURANCE | O148: All Other Projects | P148: 0 | Q148: 0 | R148: 0 | S148: 0 | T148: 0 | V148: 0 | W148: =V145-V146-V147-V148 -> 0
B149: 4 | E149: 2.1 | F149: PY2 | G149: ADD | H149: R | I149: Operating Units | J149: 306155 - Package Savings Disc - Vision | K149: MLR Customers | L149: Health Premiums Earned | M149: ='Essbase Input'!$D$19 -> IDB 2020 | N149: NO REINSURANCE | O149: All Other Projects | P149: 0 | Q149: 0 | R149: 0 | S149: 0 | T149: 0 | V149: =P149+Q149 -> 0 | W149: =V149 -> 0
B150: 4 | E150: 2.2 | F150: PY2 | G150: ADD | H150: --- | I150: Operating Units | J150: 306155 - Package Savings Disc - Vision | K150: MLR Customers | L150: Federal Taxes and Assessments | M150: IDB Periods | N150: Reinsurance | O150: All Other Projects | P150: 0 | Q150: 0 | R150: 0 | S150: 0 | T150: 0 | V150: =P150 -> 0
B151: 4 | E151: 2.2 | F151: PY2 | G151: ADD | H151: --- | I151: Operating Units | J151: 306155 - Package Savings Disc - Vision | K151: MLR Customers | L151: State Ins, Prem and Other Tax | M151: IDB Periods | N151: Reinsurance | O151: All Other Projects | P151: 0 | Q151: 0 | R151: 0 | S151: 0 | T151: 0 | V151: =P151 -> 0
B152: 4 | E152: 2.2 | F152: PY2 | G152: ADD | H152: --- | I152: Operating Units | J152: 306155 - Package Savings Disc - Vision | K152: MLR Customers | L152: Reg Authority Licenses & Fees | M152: IDB Periods | N152: Reinsurance | O152: All Other Projects | P152: 0 | Q152: 0 | R152: 0 | S152: 0 | T152: 0 | V152: 0 | W152: =SUM(V150:V152) -> 0
B153: 4 | E153: 3.1 | F153: PY2 | G153: ADD | H153: --- | I153: Operating Units | J153: 306155 - Package Savings Disc - Vision | K153: MLR Customers | L153: SHCE Member Months | M153: ='Essbase Input'!$D$19 -> IDB 2020 | N153: NO REINSURANCE | O153: All Other Projects | P153: 0 | Q153: 0 | R153: 0 | S153: 0 | T153: 0 | V153: =P153+Q153 -> 0 | W153: =V153 -> 0
A154: All OUs p306156 MLR Customers | B154: 4 | E154: 1.2 | F154: PY2 | G154: ADD | H154: --- | I154: Operating Units | J154: 306156 - Package Savings - Dental | K154: MLR Customers | L154: Total Incurred Claims | M154: ='Essbase Input'!$D$19 -> IDB 2020 | N154: NO REINSURANCE | O154: All Other Projects | P154: 0 | Q154: 0 | R154: 0 | S154: 0 | T154: 0 | V154: =P154+R154+S154+T154 -> 0
B155: 4 | E155: 1.2 | F155: PY2 | G155: SUB | H155: --- | I155: Operating Units | J155: 306156 - Package Savings - Dental | K155: MLR Customers | L155: 50010 - Physician Cap Paid - External | M155: ='Essbase Input'!$D$19 -> IDB 2020 | N155: NO REINSURANCE | O155: 0000003413 - General Administrative | P155: 0 | Q155: 0 | R155: 0 | S155: 0 | T155: 0 | V155: =P155+R155+S155+T155 -> 0
B156: 4 | E156: 1.2 | F156: PY2 | G156: SUB | H156: --- | I156: Operating Units | J156: 306156 - Package Savings - Dental | K156: MLR Customers | L156: 50619 - Internal Capitation Pd - Other | M156: ='Essbase Input'!$D$19 -> IDB 2020 | N156: NO REINSURANCE | O156: All Other Projects | P156: 0 | Q156: 0 | R156: 0 | S156: 0 | T156: 0 | V156: 0
B157: 4 | E157: 1.2 | F157: PY2 | G157: SUB | H157: --- | I157: Operating Units | J157: 306156 - Package Savings - Dental | K157: MLR Customers | L157: Rate Credits NonTaxable | M157: ='Essbase Input'!$D$19 -> IDB 2020 | N157: NO REINSURANCE | O157: All Other Projects | P157: 0 | Q157: 0 | R157: 0 | S157: 0 | T157: 0 | V157: 0 | W157: =V154-V155-V156-V157 -> 0
B158: 4 | E158: 2.1 | F158: PY2 | G158: ADD | H158: R | I158: Operating Units | J158: 306156 - Package Savings - Dental | K158: MLR Customers | L158: Health Premiums Earned | M158: ='Essbase Input'!$D$19 -> IDB 2020 | N158: NO REINSURANCE | O158: All Other Projects | P158: 0 | Q158: 0 | R158: 0 | S158: 0 | T158: 0 | V158: =P158+Q158 -> 0 | W158: =V158 -> 0
B159: 4 | E159: 2.2 | F159: PY2 | G159: ADD | H159: --- | I159: Operating Units | J159: 306156 - Package Savings - Dental | K159: MLR Customers | L159: Federal Taxes and Assessments | M159: IDB Periods | N159: Reinsurance | O159: All Other Projects | P159: 0 | Q159: 0 | R159: 0 | S159: 0 | T159: 0 | V159: =P159 -> 0
B160: 4 | E160: 2.2 | F160: PY2 | G160: ADD | H160: --- | I160: Operating Units | J160: 306156 - Package Savings - Dental | K160: MLR Customers | L160: State Ins, Prem and Other Tax | M160: IDB Periods | N160: Reinsurance | O160: All Other Projects | P160: 0 | Q160: 0 | R160: 0 | S160: 0 | T160: 0 | V160: =P160 -> 0
B161: 4 | E161: 2.2 | F161: PY2 | G161: ADD | H161: --- | I161: Operating Units | J161: 306156 - Package Savings - Dental | K161: MLR Customers | L161: Reg Authority Licenses & Fees | M161: IDB Periods | N161: Reinsurance | O161: All Other Projects | P161: 0 | Q161: 0 | R161: 0 | S161: 0 | T161: 0 | V161: 0 | W161: =SUM(V159:V161) -> 0
B162: 4 | E162: 3.1 | F162: PY2 | G162: ADD | H162: --- | I162: Operating Units | J162: 306156 - Package Savings - Dental | K162: MLR Customers | L162: SHCE Member Months | M162: ='Essbase Input'!$D$19 -> IDB 2020 | N162: NO REINSURANCE | O162: All Other Projects | P162: 0 | Q162: 0 | R162: 0 | S162: 0 | T162: 0 | V162: =P162+Q162 -> 0 | W162: =V162 -> 0
A163: All OUs p305402 MLR Customers | B163: 4 | E163: 1.2 | F163: PY2 | G163: ADD | H163: --- | I163: Operating Units | J163: 305402 - Managed Transplant Risk SD | K163: MLR Customers | L163: Total Incurred Claims | M163: ='Essbase Input'!$D$19 -> IDB 2020 | N163: NO REINSURANCE | O163: All Other Projects | P163: 0 | Q163: 0 | R163: 0 | S163: 0 | T163: 0 | V163: =P163+R163+S163+T163 -> 0
B164: 4 | E164: 1.2 | F164: PY2 | G164: SUB | H164: --- | I164: Operating Units | J164: 305402 - Managed Transplant Risk SD | K164: MLR Customers | L164: 50010 - Physician Cap Paid - External | M164: ='Essbase Input'!$D$19 -> IDB 2020 | N164: NO REINSURANCE | O164: 0000003413 - General Administrative | P164: 0 | Q164: 0 | R164: 0 | S164: 0 | T164: 0 | V164: =P164+R164+S164+T164 -> 0
B165: 4 | E165: 1.2 | F165: PY2 | G165: SUB | H165: --- | I165: Operating Units | J165: 305402 - Managed Transplant Risk SD | K165: MLR Customers | L165: 50619 - Internal Capitation Pd - Other | M165: ='Essbase Input'!$D$19 -> IDB 2020 | N165: NO REINSURANCE | O165: All Other Projects | P165: 0 | Q165: 0 | R165: 0 | S165: 0 | T165: 0 | V165: 0
B166: 4 | E166: 1.2 | F166: PY2 | G166: SUB | H166: --- | I166: Operating Units | J166: 305402 - Managed Transplant Risk SD | K166: MLR Customers | L166: Rate Credits NonTaxable | M166: ='Essbase Input'!$D$19 -> IDB 2020 | N166: NO REINSURANCE | O166: All Other Projects | P166: 0 | Q166: 0 | R166: 0 | S166: 0 | T166: 0 | V166: 0 | W166: =V163-V164-V165-V166 -> 0
B167: 4 | E167: 2.1 | F167: PY2 | G167: ADD | H167: R | I167: Operating Units | J167: 305402 - Managed Transplant Risk SD | K167: MLR Customers | L167: Health Premiums Earned | M167: ='Essbase Input'!$D$19 -> IDB 2020 | N167: NO REINSURANCE | O167: All Other Projects | P167: 0 | Q167: 0 | R167: 0 | S167: 0 | T167: 0 | V167: =P167+Q167 -> 0 | W167: =V167 -> 0
B168: 4 | E168: 2.2 | F168: PY2 | G168: ADD | H168: --- | I168: Operating Units | J168: 305402 - Managed Transplant Risk SD | K168: MLR Customers | L168: Federal Taxes and Assessments | M168: IDB Periods | N168: Reinsurance | O168: All Other Projects | P168: 0 | Q168: 0 | R168: 0 | S168: 0 | T168: 0 | V168: =P168 -> 0
B169: 4 | E169: 2.2 | F169: PY2 | G169: ADD | H169: --- | I169: Operating Units | J169: 305402 - Managed Transplant Risk SD | K169: MLR Customers | L169: State Ins, Prem and Other Tax | M169: IDB Periods | N169: Reinsurance | O169: All Other Projects | P169: 0 | Q169: 0 | R169: 0 | S169: 0 | T169: 0 | V169: =P169 -> 0
B170: 4 | E170: 2.2 | F170: PY2 | G170: ADD | H170: --- | I170: Operating Units | J170: 305402 - Managed Transplant Risk SD | K170: MLR Customers | L170: Reg Authority Licenses & Fees | M170: IDB Periods | N170: Reinsurance | O170: All Other Projects | P170: 0 | Q170: 0 | R170: 0 | S170: 0 | T170: 0 | V170: 0 | W170: =SUM(V168:V170) -> 0
B171: 4 | E171: 3.1 | F171: PY2 | G171: ADD | H171: --- | I171: Operating Units | J171: 305402 - Managed Transplant Risk SD | K171: MLR Customers | L171: SHCE Member Months | M171: ='Essbase Input'!$D$19 -> IDB 2020 | N171: NO REINSURANCE | O171: All Other Projects | P171: 0 | Q171: 0 | R171: 0 | S171: 0 | T171: 0 | V171: =P171+Q171 -> 0 | W171: =V171 -> 0
A172: All OUs p430083 MLR Customers | B172: 4 | E172: 1.2 | F172: PY2 | G172: ADD | H172: --- | I172: Operating Units | J172: 430083 - PBM ePrescribe | K172: MLR Customers | L172: Total Incurred Claims | M172: ='Essbase Input'!$D$19 -> IDB 2020 | N172: NO REINSURANCE | O172: All Other Projects | P172: 0 | Q172: 0 | R172: 0 | S172: 0 | T172: 0 | V172: =P172+R172+S172+T172 -> 0
B173: 4 | E173: 1.2 | F173: PY2 | G173: SUB | H173: --- | I173: Operating Units | J173: 430083 - PBM ePrescribe | K173: MLR Customers | L173: 50010 - Physician Cap Paid - External | M173: ='Essbase Input'!$D$19 -> IDB 2020 | N173: NO REINSURANCE | O173: 0000003413 - General Administrative | P173: 0 | Q173: 0 | R173: 0 | S173: 0 | T173: 0 | V173: =P173+R173+S173+T173 -> 0
B174: 4 | E174: 1.2 | F174: PY2 | G174: SUB | H174: --- | I174: Operating Units | J174: 430083 - PBM ePrescribe | K174: MLR Customers | L174: 50619 - Internal Capitation Pd - Other | M174: ='Essbase Input'!$D$19 -> IDB 2020 | N174: NO REINSURANCE | O174: All Other Projects | P174: 0 | Q174: 0 | R174: 0 | S174: 0 | T174: 0 | V174: 0
B175: 4 | E175: 1.2 | F175: PY2 | G175: SUB | H175: --- | I175: Operating Units | J175: 430083 - PBM ePrescribe | K175: MLR Customers | L175: Rate Credits NonTaxable | M175: ='Essbase Input'!$D$19 -> IDB 2020 | N175: NO REINSURANCE | O175: All Other Projects | P175: 0 | Q175: 0 | R175: 0 | S175: 0 | T175: 0 | V175: 0 | W175: =V172-V173-V174-V175 -> 0
B176: 4 | E176: 2.1 | F176: PY2 | G176: ADD | H176: R | I176: Operating Units | J176: 430083 - PBM ePrescribe | K176: MLR Customers | L176: Health Premiums Earned | M176: ='Essbase Input'!$D$19 -> IDB 2020 | N176: NO REINSURANCE | O176: All Other Projects | P176: 0 | Q176: 0 | R176: 0 | S176: 0 | T176: 0 | V176: =P176+Q176 -> 0 | W176: =V176 -> 0
B177: 4 | E177: 2.2 | F177: PY2 | G177: ADD | H177: --- | I177: Operating Units | J177: 430083 - PBM ePrescribe | K177: MLR Customers | L177: Federal Taxes and Assessments | M177: IDB Periods | N177: Reinsurance | O177: All Other Projects | P177: 0 | Q177: 0 | R177: 0 | S177: 0 | T177: 0 | V177: =P177 -> 0
B178: 4 | E178: 2.2 | F178: PY2 | G178: ADD | H178: --- | I178: Operating Units | J178: 430083 - PBM ePrescribe | K178: MLR Customers | L178: State Ins, Prem and Other Tax | M178: IDB Periods | N178: Reinsurance | O178: All Other Projects | P178: 0 | Q178: 0 | R178: 0 | S178: 0 | T178: 0 | V178: =P178 -> 0
B179: 4 | E179: 2.2 | F179: PY2 | G179: ADD | H179: --- | I179: Operating Units | J179: 430083 - PBM ePrescribe | K179: MLR Customers | L179: Reg Authority Licenses & Fees | M179: IDB Periods | N179: Reinsurance | O179: All Other Projects | P179: 0 | Q179: 0 | R179: 0 | S179: 0 | T179: 0 | V179: 0 | W179: =SUM(V177:V179) -> 0
B180: 4 | E180: 3.1 | F180: PY2 | G180: ADD | H180: --- | I180: Operating Units | J180: 430083 - PBM ePrescribe | K180: MLR Customers | L180: SHCE Member Months | M180: ='Essbase Input'!$D$19 -> IDB 2020 | N180: NO REINSURANCE | O180: All Other Projects | P180: 0 | Q180: 0 | R180: 0 | S180: 0 | T180: 0 | V180: =P180+Q180 -> 0 | W180: =V180 -> 0
A181: All OUs p430084 MLR Customers | B181: 4 | E181: 1.2 | F181: PY2 | G181: ADD | H181: --- | I181: Operating Units | J181: 430084 - PreCheck My Script Fee | K181: MLR Customers | L181: Total Incurred Claims | M181: ='Essbase Input'!$D$19 -> IDB 2020 | N181: NO REINSURANCE | O181: All Other Projects | P181: 0 | Q181: 0 | R181: 0 | S181: 0 | T181: 0 | V181: =P181+R181+S181+T181 -> 0
B182: 4 | E182: 1.2 | F182: PY2 | G182: SUB | H182: --- | I182: Operating Units | J182: 430084 - PreCheck My Script Fee | K182: MLR Customers | L182: 50010 - Physician Cap Paid - External | M182: ='Essbase Input'!$D$19 -> IDB 2020 | N182: NO REINSURANCE | O182: 0000003413 - General Administrative | P182: 0 | Q182: 0 | R182: 0 | S182: 0 | T182: 0 | V182: =P182+R182+S182+T182 -> 0
B183: 4 | E183: 1.2 | F183: PY2 | G183: SUB | H183: --- | I183: Operating Units | J183: 430084 - PreCheck My Script Fee | K183: MLR Customers | L183: 50619 - Internal Capitation Pd - Other | M183: ='Essbase Input'!$D$19 -> IDB 2020 | N183: NO REINSURANCE | O183: All Other Projects | P183: 0 | Q183: 0 | R183: 0 | S183: 0 | T183: 0 | V183: 0
B184: 4 | E184: 1.2 | F184: PY2 | G184: SUB | H184: --- | I184: Operating Units | J184: 430084 - PreCheck My Script Fee | K184: MLR Customers | L184: Rate Credits NonTaxable | M184: ='Essbase Input'!$D$19 -> IDB 2020 | N184: NO REINSURANCE | O184: All Other Projects | P184: 0 | Q184: 0 | R184: 0 | S184: 0 | T184: 0 | V184: 0 | W184: =V181-V182-V183-V184 -> 0
B185: 4 | E185: 2.1 | F185: PY2 | G185: ADD | H185: R | I185: Operating Units | J185: 430084 - PreCheck My Script Fee | K185: MLR Customers | L185: Health Premiums Earned | M185: ='Essbase Input'!$D$19 -> IDB 2020 | N185: NO REINSURANCE | O185: All Other Projects | P185: 0 | Q185: 0 | R185: 0 | S185: 0 | T185: 0 | V185: =P185+Q185 -> 0 | W185: =V185 -> 0
B186: 4 | E186: 2.2 | F186: PY2 | G186: ADD | H186: --- | I186: Operating Units | J186: 430084 - PreCheck My Script Fee | K186: MLR Customers | L186: Federal Taxes and Assessments | M186: IDB Periods | N186: Reinsurance | O186: All Other Projects | P186: 0 | Q186: 0 | R186: 0 | S186: 0 | T186: 0 | V186: =P186 -> 0
B187: 4 | E187: 2.2 | F187: PY2 | G187: ADD | H187: --- | I187: Operating Units | J187: 430084 - PreCheck My Script Fee | K187: MLR Customers | L187: State Ins, Prem and Other Tax | M187: IDB Periods | N187: Reinsurance | O187: All Other Projects | P187: 0 | Q187: 0 | R187: 0 | S187: 0 | T187: 0 | V187: =P187 -> 0
B188: 4 | E188: 2.2 | F188: PY2 | G188: ADD | H188: --- | I188: Operating Units | J188: 430084 - PreCheck My Script Fee | K188: MLR Customers | L188: Reg Authority Licenses & Fees | M188: IDB Periods | N188: Reinsurance | O188: All Other Projects | P188: 0 | Q188: 0 | R188: 0 | S188: 0 | T188: 0 | V188: 0 | W188: =SUM(V186:V188) -> 0
B189: 4 | E189: 3.1 | F189: PY2 | G189: ADD | H189: --- | I189: Operating Units | J189: 430084 - PreCheck My Script Fee | K189: MLR Customers | L189: SHCE Member Months | M189: ='Essbase Input'!$D$19 -> IDB 2020 | N189: NO REINSURANCE | O189: All Other Projects | P189: 0 | Q189: 0 | R189: 0 | S189: 0 | T189: 0 | V189: =P189+Q189 -> 0 | W189: =V189 -> 0
A190: All OUs p430087 MLR Customers | B190: 4 | E190: 1.2 | F190: PY2 | G190: ADD | H190: --- | I190: Operating Units | J190: 430087 - PBM EGWP | K190: MLR Customers | L190: Total Incurred Claims | M190: ='Essbase Input'!$D$19 -> IDB 2020 | N190: NO REINSURANCE | O190: All Other Projects | P190: 0 | Q190: 0 | R190: 0 | S190: 0 | T190: 0 | V190: =P190+R190+S190+T190 -> 0
B191: 4 | E191: 1.2 | F191: PY2 | G191: SUB | H191: --- | I191: Operating Units | J191: 430087 - PBM EGWP | K191: MLR Customers | L191: 50010 - Physician Cap Paid - External | M191: ='Essbase Input'!$D$19 -> IDB 2020 | N191: NO REINSURANCE | O191: 0000003413 - General Administrative | P191: 0 | Q191: 0 | R191: 0 | S191: 0 | T191: 0 | V191: =P191+R191+S191+T191 -> 0
B192: 4 | E192: 1.2 | F192: PY2 | G192: SUB | H192: --- | I192: Operating Units | J192: 430087 - PBM EGWP | K192: MLR Customers | L192: 50619 - Internal Capitation Pd - Other | M192: ='Essbase Input'!$D$19 -> IDB 2020 | N192: NO REINSURANCE | O192: All Other Projects | P192: 0 | Q192: 0 | R192: 0 | S192: 0 | T192: 0 | V192: 0
B193: 4 | E193: 1.2 | F193: PY2 | G193: SUB | H193: --- | I193: Operating Units | J193: 430087 - PBM EGWP | K193: MLR Customers | L193: Rate Credits NonTaxable | M193: ='Essbase Input'!$D$19 -> IDB 2020 | N193: NO REINSURANCE | O193: All Other Projects | P193: 0 | Q193: 0 | R193: 0 | S193: 0 | T193: 0 | V193: 0 | W193: =V190-V191-V192-V193 -> 0
B194: 4 | E194: 2.1 | F194: PY2 | G194: ADD | H194: R | I194: Operating Units | J194: 430087 - PBM EGWP | K194: MLR Customers | L194: Health Premiums Earned | M194: ='Essbase Input'!$D$19 -> IDB 2020 | N194: NO REINSURANCE | O194: All Other Projects | P194: 0 | Q194: 0 | R194: 0 | S194: 0 | T194: 0 | V194: =P194+Q194 -> 0 | W194: =V194 -> 0
B195: 4 | E195: 2.2 | F195: PY2 | G195: ADD | H195: --- | I195: Operating Units | J195: 430087 - PBM EGWP | K195: MLR Customers | L195: Federal Taxes and Assessments | M195: IDB Periods | N195: Reinsurance | O195: All Other Projects | P195: 0 | Q195: 0 | R195: 0 | S195: 0 | T195: 0 | V195: =P195 -> 0
B196: 4 | E196: 2.2 | F196: PY2 | G196: ADD | H196: --- | I196: Operating Units | J196: 430087 - PBM EGWP | K196: MLR Customers | L196: State Ins, Prem and Other Tax | M196: IDB Periods | N196: Reinsurance | O196: All Other Projects | P196: 0 | Q196: 0 | R196: 0 | S196: 0 | T196: 0 | V196: =P196 -> 0
B197: 4 | E197: 2.2 | F197: PY2 | G197: ADD | H197: --- | I197: Operating Units | J197: 430087 - PBM EGWP | K197: MLR Customers | L197: Reg Authority Licenses & Fees | M197: IDB Periods | N197: Reinsurance | O197: All Other Projects | P197: 0 | Q197: 0 | R197: 0 | S197: 0 | T197: 0 | V197: 0 | W197: =SUM(V195:V197) -> 0
B198: 4 | E198: 3.1 | F198: PY2 | G198: ADD | H198: --- | I198: Operating Units | J198: 430087 - PBM EGWP | K198: MLR Customers | L198: SHCE Member Months | M198: ='Essbase Input'!$D$19 -> IDB 2020 | N198: NO REINSURANCE | O198: All Other Projects | P198: 0 | Q198: 0 | R198: 0 | S198: 0 | T198: 0 | V198: =P198+Q198 -> 0 | W198: =V198 -> 0
A199: All OUs p430088 MLR Customers | B199: 4 | E199: 1.2 | F199: PY2 | G199: ADD | H199: --- | I199: Operating Units | J199: 430088 - PBM ECOB | K199: MLR Customers | L199: Total Incurred Claims | M199: ='Essbase Input'!$D$19 -> IDB 2020 | N199: NO REINSURANCE | O199: All Other Projects | P199: 0 | Q199: 0 | R199: 0 | S199: 0 | T199: 0 | V199: =P199+R199+S199+T199 -> 0
B200: 4 | E200: 1.2 | F200: PY2 | G200: SUB | H200: --- | I200: Operating Units | J200: 430088 - PBM ECOB | K200: MLR Customers | L200: 50010 - Physician Cap Paid - External | M200: ='Essbase Input'!$D$19 -> IDB 2020 | N200: NO REINSURANCE | O200: 0000003413 - General Administrative | P200: 0 | Q200: 0 | R200: 0 | S200: 0 | T200: 0 | V200: =P200+R200+S200+T200 -> 0
... 22 more rows

Sheet EB PT 4 PY1 (hidden)
B1: Part | C1: REF1 | D1: REF2 | E1: Ln | F1: Col | G1: Adj | H1: Rev | I1: -OU | J1: -Prod | K1: -Cust | L1: ="Account" -> Account | M1: ="IDB Period" -> IDB Period | N1: ="Reinsurance" -> Reinsurance | O1: ="Project" -> Project | P1: 1 | Q1: 1 | R1: 2 | S1: 3
P2: Views | Q2: Views | R2: Views | S2: Views
P3: Sources | Q3: Sources | R3: Sources | S3: Sources
P4: Departments | Q4: Departments | R4: Departments | S4: Departments
P5: NAIC Supp HC Exhibit | Q5: NAIC Supp HC Exhibit | R5: NAIC Supp HC Exhibit | S5: NAIC Supp HC Exhibit
P6: ='Essbase Input'!$C$8 -> UnitedHealthcare Life Ins Co | Q6: ='Essbase Input'!$C$8 -> UnitedHealthcare Life Ins Co | R6: ='Essbase Input'!$C$8 -> UnitedHealthcare Life Ins Co | S6: ='Essbase Input'!$C$8 -> UnitedHealthcare Life Ins Co
P7: ='Essbase Input'!$C$9 -> California - CA | Q7: ='Essbase Input'!$C$9 -> California - CA | R7: ='Essbase Input'!$C$9 -> California - CA | S7: ='Essbase Input'!$C$9 -> California - CA
P8: ='Essbase Input'!$C$18 -> 2021 | Q8: ='Essbase Input'!$C$17 -> 2022 | R8: ='Essbase Input'!$C$17 -> 2022 | S8: ='Essbase Input'!$C$16 -> 2023
P9: Total Year | Q9: March_Bal | R9: Total Year | S9: March_Bal
A10: CMS MLR | B10: 4 | E10: 1.2- | F10: PY1 | G10: ADD | H10: --- | I10: Operating Units | J10: Other Health Business | K10: MLR Customers | L10: Total Incurred Claims | M10: ='Essbase Input'!$D$18 -> IDB 2021 | N10: NO REINSURANCE | O10: All Other Projects | P10: 94396.64 | Q10: -1900.69 | R10: -2043.05 | S10: -38.65 | V10: =P10+R10+S10+T10 -> 92314.94
B11: 4 | E11: 1.2- | F11: PY1 | G11: SUB | H11: --- | I11: Operating Units | J11: Other Health Business | K11: MLR Customers | L11: 50010 - Physician Cap Paid - External | M11: ='Essbase Input'!$D$18 -> IDB 2021 | N11: NO REINSURANCE | O11: 0000003413 - General Administrative | P11: 0 | Q11: 0 | R11: 0 | S11: 0 | V11: =P11+R11+S11+T11 -> 0
B12: 4 | E12: 1.2- | F12: PY1 | G12: SUB | H12: --- | I12: Operating Units | J12: Other Health Business | K12: MLR Customers | L12: 50619 - Internal Capitation Pd - Other | M12: ='Essbase Input'!$D$18 -> IDB 2021 | N12: NO REINSURANCE | O12: All Other Projects | P12: 0 | Q12: 0 | R12: 0 | S12: 0 | V12: 0
B13: 4 | E13: 1.2- | F13: PY1 | G13: SUB | H13: --- | I13: Operating Units | J13: Other Health Business | K13: MLR Customers | L13: Rate Credits NonTaxable | M13: ='Essbase Input'!$D$18 -> IDB 2021 | N13: NO REINSURANCE | O13: All Other Projects | P13: 0 | Q13: 0 | R13: 0 | S13: 0 | V13: 0 | W13: =V10-V11-V12-V13 -> 92314.94
B14: 4 | E14: 2.1- | F14: PY1 | G14: ADD | H14: R | I14: Operating Units | J14: Other Health Business | K14: MLR Customers | L14: Health Premiums Earned | M14: ='Essbase Input'!$D$18 -> IDB 2021 | N14: NO REINSURANCE | O14: All Other Projects | P14: -175173.12 | Q14: -207.94 | R14: -176.59 | S14: 0 | V14: =P14+Q14 -> -175381.06 | W14: =V14 -> -175381.06
B15: 4 | E15: 2.2- | F15: PY1 | G15: ADD | H15: --- | I15: Operating Units | J15: Other Health Business | K15: MLR Customers | L15: Federal Taxes and Assessments | M15: IDB Periods | N15: Reinsurance | O15: All Other Projects | P15: 5047.68 | Q15: 1706.25 | R15: 6223.48 | S15: -106.92 | V15: =P15 -> 5047.68
B16: 4 | E16: 2.2- | F16: PY1 | G16: ADD | H16: --- | I16: Operating Units | J16: Other Health Business | K16: MLR Customers | L16: State Ins, Prem and Other Tax | M16: IDB Periods | N16: Reinsurance | O16: All Other Projects | P16: 17599.78 | Q16: 996.53 | R16: 8856.77 | S16: 827.5 | V16: =P16 -> 17599.78
B17: 4 | E17: 2.2- | F17: PY1 | G17: ADD | H17: --- | I17: Operating Units | J17: Other Health Business | K17: MLR Customers | L17: Reg Authority Licenses & Fees | M17: IDB Periods | N17: Reinsurance | O17: All Other Projects | P17: 0 | Q17: 0 | R17: 0 | S17: 0 | V17: 0 | W17: =SUM(V15:V17) -> 22647.46
B18: 4 | E18: 3.1- | F18: PY1 | G18: ADD | H18: --- | I18: Operating Units | J18: Other Health Business | K18: MLR Customers | L18: SHCE Member Months | M18: ='Essbase Input'!$D$18 -> IDB 2021 | N18: NO REINSURANCE | O18: All Other Projects | P18: 4887 | Q18: 8 | R18: -8 | S18: 0 | V18: =P18+Q18 -> 4895 | W18: =V18 -> 4895
A19: GRI | B19: 4 | E19: 1.2- | F19: PY1 | G19: ADD | H19: --- | I19: Operating Units | J19: Stand Alone Dental | K19: MLR Customers | L19: Total Incurred Claims | M19: ='Essbase Input'!$D$18 -> IDB 2021 | N19: NO REINSURANCE | O19: All Other Projects | P19: 87437.68 | Q19: -647.46 | R19: -768.98 | S19: -38.47 | V19: =P19+R19+S19+T19 -> 86630.23
B20: 4 | E20: 1.2- | F20: PY1 | G20: SUB | H20: --- | I20: Operating Units | J20: Stand Alone Dental | K20: MLR Customers | L20: 50010 - Physician Cap Paid - External | M20: ='Essbase Input'!$D$18 -> IDB 2021 | N20: NO REINSURANCE | O20: 0000003413 - General Administrative | P20: 0 | Q20: 0 | R20: 0 | S20: 0 | V20: =P20+R20+S20+T20 -> 0
B21: 4 | E21: 1.2- | F21: PY1 | G21: SUB | H21: --- | I21: Operating Units | J21: Stand Alone Dental | K21: MLR Customers | L21: 50619 - Internal Capitation Pd - Other | M21: ='Essbase Input'!$D$18 -> IDB 2021 | N21: NO REINSURANCE | O21: All Other Projects | P21: 0 | Q21: 0 | R21: 0 | S21: 0 | V21: 0
B22: 4 | E22: 1.2- | F22: PY1 | G22: SUB | H22: --- | I22: Operating Units | J22: Stand Alone Dental | K22: MLR Customers | L22: Rate Credits NonTaxable | M22: ='Essbase Input'!$D$18 -> IDB 2021 | N22: NO REINSURANCE | O22: All Other Projects | P22: 0 | Q22: 0 | R22: 0 | S22: 0 | V22: 0 | W22: =V19-V20-V21-V22 -> 86630.23
B23: 4 | E23: 2.1- | F23: PY1 | G23: ADD | H23: R | I23: Operating Units | J23: Stand Alone Dental | K23: MLR Customers | L23: Health Premiums Earned | M23: ='Essbase Input'!$D$18 -> IDB 2021 | N23: NO REINSURANCE | O23: All Other Projects | P23: -162005.72 | Q23: -189.04 | R23: -163.79 | S23: 0 | V23: =P23+Q23 -> -162194.76 | W23: =V23 -> -162194.76
B24: 4 | E24: 2.2- | F24: PY1 | G24: ADD | H24: --- | I24: Operating Units | J24: Stand Alone Dental | K24: MLR Customers | L24: Federal Taxes and Assessments | M24: IDB Periods | N24: Reinsurance | O24: All Other Projects | P24: 4458.39 | Q24: 1757.38 | R24: 5568.76 | S24: -178.7 | V24: =P24 -> 4458.39
B25: 4 | E25: 2.2- | F25: PY1 | G25: ADD | H25: --- | I25: Operating Units | J25: Stand Alone Dental | K25: MLR Customers | L25: State Ins, Prem and Other Tax | M25: IDB Periods | N25: Reinsurance | O25: All Other Projects | P25: 17544.13 | Q25: 925.87 | R25: 8599.42 | S25: 768.99 | V25: =P25 -> 17544.13
B26: 4 | E26: 2.2- | F26: PY1 | G26: ADD | H26: --- | I26: Operating Units | J26: Stand Alone Dental | K26: MLR Customers | L26: Reg Authority Licenses & Fees | M26: IDB Periods | N26: Reinsurance | O26: All Other Projects | P26: 0 | Q26: 0 | R26: 0 | S26: 0 | V26: 0 | W26: =SUM(V24:V26) -> 22002.52
B27: 4 | E27: 3.1- | F27: PY1 | G27: ADD | H27: --- | I27: Operating Units | J27: Stand Alone Dental | K27: MLR Customers | L27: SHCE Member Months | M27: ='Essbase Input'!$D$18 -> IDB 2021 | N27: NO REINSURANCE | O27: All Other Projects | P27: 3345 | Q27: 5 | R27: 3 | S27: 0 | V27: =P27+Q27 -> 3350 | W27: =V27 -> 3350
A28: SAD/Ind | B28: 4 | E28: 1.2- | F28: PY1 | G28: ADD | H28: --- | I28: UnitedHealthcare Domestic | J28: Stand Alone Dental | K28: Individual | L28: Total Incurred Claims | M28: ='Essbase Input'!$D$18 -> IDB 2021 | N28: NO REINSURANCE | O28: All Other Projects | P28: 0 | Q28: 0 | R28: 0 | S28: 0 | V28: =P28+R28+S28+T28 -> 0
B29: 4 | E29: 1.2- | F29: PY1 | G29: SUB | H29: --- | I29: UnitedHealthcare Domestic | J29: Stand Alone Dental | K29: Individual | L29: 50010 - Physician Cap Paid - External | M29: ='Essbase Input'!$D$18 -> IDB 2021 | N29: NO REINSURANCE | O29: 0000003413 - General Administrative | P29: 0 | Q29: 0 | R29: 0 | S29: 0 | V29: =P29+R29+S29+T29 -> 0
B30: 4 | E30: 1.2- | F30: PY1 | G30: SUB | H30: --- | I30: UnitedHealthcare Domestic | J30: Stand Alone Dental | K30: Individual | L30: 50619 - Internal Capitation Pd - Other | M30: ='Essbase Input'!$D$18 -> IDB 2021 | N30: NO REINSURANCE | O30: All Other Projects | P30: 0 | Q30: 0 | R30: 0 | S30: 0 | V30: 0
B31: 4 | E31: 1.2- | F31: PY1 | G31: SUB | H31: --- | I31: UnitedHealthcare Domestic | J31: Stand Alone Dental | K31: Individual | L31: Rate Credits NonTaxable | M31: ='Essbase Input'!$D$18 -> IDB 2021 | N31: NO REINSURANCE | O31: All Other Projects | P31: 0 | Q31: 0 | R31: 0 | S31: 0 | V31: 0 | W31: =V28-V29-V30-V31 -> 0
B32: 4 | E32: 2.1- | F32: PY1 | G32: ADD | H32: R | I32: UnitedHealthcare Domestic | J32: Stand Alone Dental | K32: Individual | L32: Health Premiums Earned | M32: ='Essbase Input'!$D$18 -> IDB 2021 | N32: NO REINSURANCE | O32: All Other Projects | P32: 0 | Q32: 0 | R32: 0 | S32: 0 | V32: =P32+Q32 -> 0 | W32: =V32 -> 0
B33: 4 | E33: 2.2- | F33: PY1 | G33: ADD | H33: --- | I33: UnitedHealthcare Domestic | J33: Stand Alone Dental | K33: Individual | L33: Federal Taxes and Assessments | M33: IDB Periods | N33: Reinsurance | O33: All Other Projects | P33: 0 | Q33: 0 | R33: 0 | S33: 0 | V33: =P33 -> 0
B34: 4 | E34: 2.2- | F34: PY1 | G34: ADD | H34: --- | I34: UnitedHealthcare Domestic | J34: Stand Alone Dental | K34: Individual | L34: State Ins, Prem and Other Tax | M34: IDB Periods | N34: Reinsurance | O34: All Other Projects | P34: 35.01 | Q34: 8.7 | R34: 30.24 | S34: 7.77 | V34: =P34 -> 35.01
B35: 4 | E35: 2.2- | F35: PY1 | G35: ADD | H35: --- | I35: UnitedHealthcare Domestic | J35: Stand Alone Dental | K35: Individual | L35: Reg Authority Licenses & Fees | M35: IDB Periods | N35: Reinsurance | O35: All Other Projects | P35: 0 | Q35: 0 | R35: 0 | S35: 0 | V35: 0 | W35: =SUM(V33:V35) -> 35.01
B36: 4 | E36: 3.1- | F36: PY1 | G36: ADD | H36: --- | I36: UnitedHealthcare Domestic | J36: Stand Alone Dental | K36: Individual | L36: SHCE Member Months | M36: ='Essbase Input'!$D$18 -> IDB 2021 | N36: NO REINSURANCE | O36: All Other Projects | P36: 0 | Q36: 0 | R36: 0 | S36: 0 | V36: =P36+Q36 -> 0 | W36: =V36 -> 0
A37: SAD/SG | B37: 4 | E37: 1.2- | F37: PY1 | G37: ADD | H37: --- | I37: UnitedHealthcare Domestic | J37: Stand Alone Dental | K37: Small Group Employer | L37: Total Incurred Claims | M37: ='Essbase Input'!$D$18 -> IDB 2021 | N37: NO REINSURANCE | O37: All Other Projects | P37: 0 | Q37: 0 | R37: 0 | S37: 0 | V37: =P37+R37+S37+T37 -> 0
B38: 4 | E38: 1.2- | F38: PY1 | G38: SUB | H38: --- | I38: UnitedHealthcare Domestic | J38: Stand Alone Dental | K38: Small Group Employer | L38: 50010 - Physician Cap Paid - External | M38: ='Essbase Input'!$D$18 -> IDB 2021 | N38: NO REINSURANCE | O38: 0000003413 - General Administrative | P38: 0 | Q38: 0 | R38: 0 | S38: 0 | V38: =P38+R38+S38+T38 -> 0
B39: 4 | E39: 1.2- | F39: PY1 | G39: SUB | H39: --- | I39: UnitedHealthcare Domestic | J39: Stand Alone Dental | K39: Small Group Employer | L39: 50619 - Internal Capitation Pd - Other | M39: ='Essbase Input'!$D$18 -> IDB 2021 | N39: NO REINSURANCE | O39: All Other Projects | P39: 0 | Q39: 0 | R39: 0 | S39: 0 | V39: 0
B40: 4 | E40: 1.2- | F40: PY1 | G40: SUB | H40: --- | I40: UnitedHealthcare Domestic | J40: Stand Alone Dental | K40: Small Group Employer | L40: Rate Credits NonTaxable | M40: ='Essbase Input'!$D$18 -> IDB 2021 | N40: NO REINSURANCE | O40: All Other Projects | P40: 0 | Q40: 0 | R40: 0 | S40: 0 | V40: 0 | W40: =V37-V38-V39-V40 -> 0
B41: 4 | E41: 2.1- | F41: PY1 | G41: ADD | H41: R | I41: UnitedHealthcare Domestic | J41: Stand Alone Dental | K41: Small Group Employer | L41: Health Premiums Earned | M41: ='Essbase Input'!$D$18 -> IDB 2021 | N41: NO REINSURANCE | O41: All Other Projects | P41: 0 | Q41: 0 | R41: 0 | S41: 0 | V41: =P41+Q41 -> 0 | W41: =V41 -> 0
B42: 4 | E42: 2.2- | F42: PY1 | G42: ADD | H42: --- | I42: UnitedHealthcare Domestic | J42: Stand Alone Dental | K42: Small Group Employer | L42: Federal Taxes and Assessments | M42: IDB Periods | N42: Reinsurance | O42: All Other Projects | P42: 0 | Q42: 0 | R42: 0 | S42: 0 | V42: =P42 -> 0
B43: 4 | E43: 2.2- | F43: PY1 | G43: ADD | H43: --- | I43: UnitedHealthcare Domestic | J43: Stand Alone Dental | K43: Small Group Employer | L43: State Ins, Prem and Other Tax | M43: IDB Periods | N43: Reinsurance | O43: All Other Projects | P43: 0 | Q43: 0 | R43: 0 | S43: 0 | V43: =P43 -> 0
B44: 4 | E44: 2.2- | F44: PY1 | G44: ADD | H44: --- | I44: UnitedHealthcare Domestic | J44: Stand Alone Dental | K44: Small Group Employer | L44: Reg Authority Licenses & Fees | M44: IDB Periods | N44: Reinsurance | O44: All Other Projects | P44: 0 | Q44: 0 | R44: 0 | S44: 0 | V44: 0 | W44: =SUM(V42:V44) -> 0
B45: 4 | E45: 3.1- | F45: PY1 | G45: ADD | H45: --- | I45: UnitedHealthcare Domestic | J45: Stand Alone Dental | K45: Small Group Employer | L45: SHCE Member Months | M45: ='Essbase Input'!$D$18 -> IDB 2021 | N45: NO REINSURANCE | O45: All Other Projects | P45: 0 | Q45: 0 | R45: 0 | S45: 0 | V45: =P45+Q45 -> 0 | W45: =V45 -> 0
A46: SAD/LG | B46: 4 | E46: 1.2- | F46: PY1 | G46: ADD | H46: --- | I46: UnitedHealthcare Domestic | J46: Stand Alone Dental | K46: Large Group Employer | L46: Total Incurred Claims | M46: ='Essbase Input'!$D$18 -> IDB 2021 | N46: NO REINSURANCE | O46: All Other Projects | P46: 0 | Q46: 0 | R46: 0 | S46: 0 | V46: =P46+R46+S46+T46 -> 0
B47: 4 | E47: 1.2- | F47: PY1 | G47: SUB | H47: --- | I47: UnitedHealthcare Domestic | J47: Stand Alone Dental | K47: Large Group Employer | L47: 50010 - Physician Cap Paid - External | M47: ='Essbase Input'!$D$18 -> IDB 2021 | N47: NO REINSURANCE | O47: 0000003413 - General Administrative | P47: 0 | Q47: 0 | R47: 0 | S47: 0 | V47: =P47+R47+S47+T47 -> 0
B48: 4 | E48: 1.2- | F48: PY1 | G48: SUB | H48: --- | I48: UnitedHealthcare Domestic | J48: Stand Alone Dental | K48: Large Group Employer | L48: 50619 - Internal Capitation Pd - Other | M48: ='Essbase Input'!$D$18 -> IDB 2021 | N48: NO REINSURANCE | O48: All Other Projects | P48: 0 | Q48: 0 | R48: 0 | S48: 0 | V48: 0
B49: 4 | E49: 1.2- | F49: PY1 | G49: SUB | H49: --- | I49: UnitedHealthcare Domestic | J49: Stand Alone Dental | K49: Large Group Employer | L49: Rate Credits NonTaxable | M49: ='Essbase Input'!$D$18 -> IDB 2021 | N49: NO REINSURANCE | O49: All Other Projects | P49: 0 | Q49: 0 | R49: 0 | S49: 0 | V49: 0 | W49: =V46-V47-V48-V49 -> 0
B50: 4 | E50: 2.1- | F50: PY1 | G50: ADD | H50: R | I50: UnitedHealthcare Domestic | J50: Stand Alone Dental | K50: Large Group Employer | L50: Health Premiums Earned | M50: ='Essbase Input'!$D$18 -> IDB 2021 | N50: NO REINSURANCE | O50: All Other Projects | P50: 0 | Q50: 0 | R50: 0 | S50: 0 | V50: =P50+Q50 -> 0 | W50: =V50 -> 0
B51: 4 | E51: 2.2- | F51: PY1 | G51: ADD | H51: --- | I51: UnitedHealthcare Domestic | J51: Stand Alone Dental | K51: Large Group Employer | L51: Federal Taxes and Assessments | M51: IDB Periods | N51: Reinsurance | O51: All Other Projects | P51: 4458.39 | Q51: 1757.38 | R51: 5568.76 | S51: -178.7 | V51: =P51 -> 4458.39
B52: 4 | E52: 2.2- | F52: PY1 | G52: ADD | H52: --- | I52: UnitedHealthcare Domestic | J52: Stand Alone Dental | K52: Large Group Employer | L52: State Ins, Prem and Other Tax | M52: IDB Periods | N52: Reinsurance | O52: All Other Projects | P52: 0 | Q52: 0 | R52: 0 | S52: 0 | V52: =P52 -> 0
B53: 4 | E53: 2.2- | F53: PY1 | G53: ADD | H53: --- | I53: UnitedHealthcare Domestic | J53: Stand Alone Dental | K53: Large Group Employer | L53: Reg Authority Licenses & Fees | M53: IDB Periods | N53: Reinsurance | O53: All Other Projects | P53: 0 | Q53: 0 | R53: 0 | S53: 0 | V53: 0 | W53: =SUM(V51:V53) -> 4458.39
B54: 4 | E54: 3.1- | F54: PY1 | G54: ADD | H54: --- | I54: UnitedHealthcare Domestic | J54: Stand Alone Dental | K54: Large Group Employer | L54: SHCE Member Months | M54: ='Essbase Input'!$D$18 -> IDB 2021 | N54: NO REINSURANCE | O54: All Other Projects | P54: 0 | Q54: 0 | R54: 0 | S54: 0 | V54: =P54+Q54 -> 0 | W54: =V54 -> 0
A55: Vision | B55: 4 | E55: 1.2 | F55: PY1 | G55: ADD | H55: --- | I55: Operating Units | J55: Stand Alone Vision | K55: MLR Customers | L55: Total Incurred Claims | M55: ='Essbase Input'!$D$18 -> IDB 2021 | N55: NO REINSURANCE | O55: All Other Projects | P55: 6958.96 | Q55: -1253.23 | R55: -1274.07 | S55: -0.18 | V55: =P55+R55+S55+T55 -> 5684.71
B56: 4 | E56: 1.2 | F56: PY1 | G56: SUB | H56: --- | I56: Operating Units | J56: Stand Alone Vision | K56: MLR Customers | L56: 50010 - Physician Cap Paid - External | M56: ='Essbase Input'!$D$18 -> IDB 2021 | N56: NO REINSURANCE | O56: 0000003413 - General Administrative | P56: 0 | Q56: 0 | R56: 0 | S56: 0 | V56: =P56+R56+S56+T56 -> 0
B57: 4 | E57: 1.2 | F57: PY1 | G57: SUB | H57: --- | I57: Operating Units | J57: Stand Alone Vision | K57: MLR Customers | L57: 50619 - Internal Capitation Pd - Other | M57: ='Essbase Input'!$D$18 -> IDB 2021 | N57: NO REINSURANCE | O57: All Other Projects | P57: 0 | Q57: 0 | R57: 0 | S57: 0 | V57: 0
B58: 4 | E58: 1.2 | F58: PY1 | G58: SUB | H58: --- | I58: Operating Units | J58: Stand Alone Vision | K58: MLR Customers | L58: Rate Credits NonTaxable | M58: ='Essbase Input'!$D$18 -> IDB 2021 | N58: NO REINSURANCE | O58: All Other Projects | P58: 0 | Q58: 0 | R58: 0 | S58: 0 | V58: 0 | W58: =V55-V56-V57-V58 -> 5684.71
B59: 4 | E59: 2.1 | F59: PY1 | G59: ADD | H59: R | I59: Operating Units | J59: Stand Alone Vision | K59: MLR Customers | L59: Health Premiums Earned | M59: ='Essbase Input'!$D$18 -> IDB 2021 | N59: NO REINSURANCE | O59: All Other Projects | P59: -13167.4 | Q59: -18.9 | R59: -12.8 | S59: 0 | V59: =P59+Q59 -> -13186.3 | W59: =V59 -> -13186.3
B60: 4 | E60: 2.2 | F60: PY1 | G60: ADD | H60: --- | I60: Operating Units | J60: Stand Alone Vision | K60: MLR Customers | L60: Federal Taxes and Assessments | M60: IDB Periods | N60: Reinsurance | O60: All Other Projects | P60: 589.29 | Q60: -49.66 | R60: 798.31 | S60: 336.15 | V60: =P60 -> 589.29
B61: 4 | E61: 2.2 | F61: PY1 | G61: ADD | H61: --- | I61: Operating Units | J61: Stand Alone Vision | K61: MLR Customers | L61: State Ins, Prem and Other Tax | M61: IDB Periods | N61: Reinsurance | O61: All Other Projects | P61: 55.65 | Q61: 70.66 | R61: 257.35 | S61: 58.51 | V61: =P61 -> 55.65
B62: 4 | E62: 2.2 | F62: PY1 | G62: ADD | H62: --- | I62: Operating Units | J62: Stand Alone Vision | K62: MLR Customers | L62: Reg Authority Licenses & Fees | M62: IDB Periods | N62: Reinsurance | O62: All Other Projects | P62: 0 | Q62: 0 | R62: 0 | S62: 0 | V62: 0 | W62: =SUM(V60:V62) -> 644.94
B63: 4 | E63: 3.1 | F63: PY1 | G63: ADD | H63: --- | I63: Operating Units | J63: Stand Alone Vision | K63: MLR Customers | L63: SHCE Member Months | M63: ='Essbase Input'!$D$18 -> IDB 2021 | N63: NO REINSURANCE | O63: All Other Projects | P63: 1542 | Q63: 3 | R63: -11 | S63: 0 | V63: =P63+Q63 -> 1545 | W63: =V63 -> 1545
A64: Life/Disability | B64: 4 | E64: 1.2 | F64: PY1 | G64: ADD | H64: --- | I64: Operating Units | J64: Non Stand Alone Dental/Vision | K64: MLR Customers | L64: Total Incurred Claims | M64: ='Essbase Input'!$D$18 -> IDB 2021 | N64: NO REINSURANCE | O64: All Other Projects | P64: 0 | Q64: 0 | R64: 0 | S64: 0 | V64: =P64+R64+S64+T64 -> 0
B65: 4 | E65: 1.2 | F65: PY1 | G65: SUB | H65: --- | I65: Operating Units | J65: Non Stand Alone Dental/Vision | K65: MLR Customers | L65: 50010 - Physician Cap Paid - External | M65: ='Essbase Input'!$D$18 -> IDB 2021 | N65: NO REINSURANCE | O65: 0000003413 - General Administrative | P65: 0 | Q65: 0 | R65: 0 | S65: 0 | V65: =P65+R65+S65+T65 -> 0
B66: 4 | E66: 1.2 | F66: PY1 | G66: SUB | H66: --- | I66: Operating Units | J66: Non Stand Alone Dental/Vision | K66: MLR Customers | L66: 50619 - Internal Capitation Pd - Other | M66: ='Essbase Input'!$D$18 -> IDB 2021 | N66: NO REINSURANCE | O66: All Other Projects | P66: 0 | Q66: 0 | R66: 0 | S66: 0 | V66: 0
B67: 4 | E67: 1.2 | F67: PY1 | G67: SUB | H67: --- | I67: Operating Units | J67: Non Stand Alone Dental/Vision | K67: MLR Customers | L67: Rate Credits NonTaxable | M67: ='Essbase Input'!$D$18 -> IDB 2021 | N67: NO REINSURANCE | O67: All Other Projects | P67: 0 | Q67: 0 | R67: 0 | S67: 0 | V67: 0 | W67: =V64-V65-V66-V67 -> 0
B68: 4 | E68: 2.1 | F68: PY1 | G68: ADD | H68: R | I68: Operating Units | J68: Non Stand Alone Dental/Vision | K68: MLR Customers | L68: Health Premiums Earned | M68: ='Essbase Input'!$D$18 -> IDB 2021 | N68: NO REINSURANCE | O68: All Other Projects | P68: 0 | Q68: 0 | R68: 0 | S68: 0 | V68: =P68+Q68 -> 0 | W68: =V68 -> 0
B69: 4 | E69: 2.2 | F69: PY1 | G69: ADD | H69: --- | I69: Operating Units | J69: Non Stand Alone Dental/Vision | K69: MLR Customers | L69: Federal Taxes and Assessments | M69: IDB Periods | N69: Reinsurance | O69: All Other Projects | P69: 0 | Q69: -1.47 | R69: -143.59 | S69: -264.37 | V69: =P69 -> 0
B70: 4 | E70: 2.2 | F70: PY1 | G70: ADD | H70: --- | I70: Operating Units | J70: Non Stand Alone Dental/Vision | K70: MLR Customers | L70: State Ins, Prem and Other Tax | M70: IDB Periods | N70: Reinsurance | O70: All Other Projects | P70: 0 | Q70: 0 | R70: 0 | S70: 0 | V70: =P70 -> 0
B71: 4 | E71: 2.2 | F71: PY1 | G71: ADD | H71: --- | I71: Operating Units | J71: Non Stand Alone Dental/Vision | K71: MLR Customers | L71: Reg Authority Licenses & Fees | M71: IDB Periods | N71: Reinsurance | O71: All Other Projects | P71: 0 | Q71: 0 | R71: 0 | S71: 0 | V71: 0 | W71: =SUM(V69:V71) -> 0
B72: 4 | E72: 3.1 | F72: PY1 | G72: ADD | H72: --- | I72: Operating Units | J72: Non Stand Alone Dental/Vision | K72: MLR Customers | L72: SHCE Member Months | M72: ='Essbase Input'!$D$18 -> IDB 2021 | N72: NO REINSURANCE | O72: All Other Projects | P72: 0 | Q72: 0 | R72: 0 | S72: 0 | V72: =P72+Q72 -> 0 | W72: =V72 -> 0
A73: Oth Bus (excl by Stat) | B73: 4 | E73: 1.2 | F73: PY1 | G73: ADD | H73: --- | I73: Operating Units | J73: Other Bus(excluded by Statute) | K73: MLR Customers | L73: Total Incurred Claims | M73: ='Essbase Input'!$D$18 -> IDB 2021 | N73: NO REINSURANCE | O73: All Other Projects | P73: 0 | Q73: 0 | R73: 0 | S73: 0 | V73: =P73+R73+S73+T73 -> 0
B74: 4 | E74: 1.2 | F74: PY1 | G74: SUB | H74: --- | I74: Operating Units | J74: Other Bus(excluded by Statute) | K74: MLR Customers | L74: 50010 - Physician Cap Paid - External | M74: ='Essbase Input'!$D$18 -> IDB 2021 | N74: NO REINSURANCE | O74: 0000003413 - General Administrative | P74: 0 | Q74: 0 | R74: 0 | S74: 0 | V74: =P74+R74+S74+T74 -> 0
B75: 4 | E75: 1.2 | F75: PY1 | G75: SUB | H75: --- | I75: Operating Units | J75: Other Bus(excluded by Statute) | K75: MLR Customers | L75: 50619 - Internal Capitation Pd - Other | M75: ='Essbase Input'!$D$18 -> IDB 2021 | N75: NO REINSURANCE | O75: All Other Projects | P75: 0 | Q75: 0 | R75: 0 | S75: 0 | V75: 0
B76: 4 | E76: 1.2 | F76: PY1 | G76: SUB | H76: --- | I76: Operating Units | J76: Other Bus(excluded by Statute) | K76: MLR Customers | L76: Rate Credits NonTaxable | M76: ='Essbase Input'!$D$18 -> IDB 2021 | N76: NO REINSURANCE | O76: All Other Projects | P76: 0 | Q76: 0 | R76: 0 | S76: 0 | V76: 0 | W76: =V73-V74-V75-V76 -> 0
B77: 4 | E77: 2.1 | F77: PY1 | G77: ADD | H77: R | I77: Operating Units | J77: Other Bus(excluded by Statute) | K77: MLR Customers | L77: Health Premiums Earned | M77: ='Essbase Input'!$D$18 -> IDB 2021 | N77: NO REINSURANCE | O77: All Other Projects | P77: 0 | Q77: 0 | R77: 0 | S77: 0 | V77: =P77+Q77 -> 0 | W77: =V77 -> 0
B78: 4 | E78: 2.2 | F78: PY1 | G78: ADD | H78: --- | I78: Operating Units | J78: Other Bus(excluded by Statute) | K78: MLR Customers | L78: Federal Taxes and Assessments | M78: IDB Periods | N78: Reinsurance | O78: All Other Projects | P78: 0 | Q78: 0 | R78: 0 | S78: 0 | V78: =P78 -> 0
B79: 4 | E79: 2.2 | F79: PY1 | G79: ADD | H79: --- | I79: Operating Units | J79: Other Bus(excluded by Statute) | K79: MLR Customers | L79: State Ins, Prem and Other Tax | M79: IDB Periods | N79: Reinsurance | O79: All Other Projects | P79: 0 | Q79: 0 | R79: 0 | S79: 0 | V79: =P79 -> 0
B80: 4 | E80: 2.2 | F80: PY1 | G80: ADD | H80: --- | I80: Operating Units | J80: Other Bus(excluded by Statute) | K80: MLR Customers | L80: Reg Authority Licenses & Fees | M80: IDB Periods | N80: Reinsurance | O80: All Other Projects | P80: 0 | Q80: 0 | R80: 0 | S80: 0 | V80: 0 | W80: =SUM(V78:V80) -> 0
B81: 4 | E81: 3.1 | F81: PY1 | G81: ADD | H81: --- | I81: Operating Units | J81: Other Bus(excluded by Statute) | K81: MLR Customers | L81: SHCE Member Months | M81: ='Essbase Input'!$D$18 -> IDB 2021 | N81: NO REINSURANCE | O81: All Other Projects | P81: 0 | Q81: 0 | R81: 0 | S81: 0 | V81: =P81+Q81 -> 0 | W81: =V81 -> 0
A82: UHC Domestic Stand Alone Dental Blank Cust | B82: 4 | C82: A | E82: 1.2 | F82: PY1 | G82: ADD | H82: --- | I82: UnitedHealthcare Domestic | J82: Stand Alone Dental | K82: Blank Customer | L82: Total Incurred Claims | M82: ='Essbase Input'!$D$18 -> IDB 2021 | N82: NO REINSURANCE | O82: All Other Projects | P82: 0 | Q82: 0 | R82: 0 | S82: 0 | V82: =P82+R82+S82+T82 -> 0
B83: 4 | C83: A | E83: 1.2 | F83: PY1 | G83: SUB | H83: --- | I83: UnitedHealthcare Domestic | J83: Stand Alone Dental | K83: Blank Customer | L83: 50010 - Physician Cap Paid - External | M83: ='Essbase Input'!$D$18 -> IDB 2021 | N83: NO REINSURANCE | O83: 0000003413 - General Administrative | P83: 0 | Q83: 0 | R83: 0 | S83: 0 | V83: =P83+R83+S83+T83 -> 0
B84: 4 | C84: A | E84: 1.2 | F84: PY1 | G84: SUB | H84: --- | I84: UnitedHealthcare Domestic | J84: Stand Alone Dental | K84: Blank Customer | L84: 50619 - Internal Capitation Pd - Other | M84: ='Essbase Input'!$D$18 -> IDB 2021 | N84: NO REINSURANCE | O84: All Other Projects | P84: 0 | Q84: 0 | R84: 0 | S84: 0 | V84: 0
B85: 4 | C85: A | E85: 1.2 | F85: PY1 | G85: SUB | H85: --- | I85: UnitedHealthcare Domestic | J85: Stand Alone Dental | K85: Blank Customer | L85: Rate Credits NonTaxable | M85: ='Essbase Input'!$D$18 -> IDB 2021 | N85: NO REINSURANCE | O85: All Other Projects | P85: 0 | Q85: 0 | R85: 0 | S85: 0 | V85: 0 | W85: =V82-V83-V84-V85 -> 0
B86: 4 | C86: A | E86: 2.1 | F86: PY1 | G86: ADD | H86: R | I86: UnitedHealthcare Domestic | J86: Stand Alone Dental | K86: Blank Customer | L86: Health Premiums Earned | M86: ='Essbase Input'!$D$18 -> IDB 2021 | N86: NO REINSURANCE | O86: All Other Projects | P86: 0 | Q86: 0 | R86: 0 | S86: 0 | V86: =P86+Q86 -> 0 | W86: =V86 -> 0
B87: 4 | C87: A | E87: 2.2 | F87: PY1 | G87: ADD | H87: --- | I87: UnitedHealthcare Domestic | J87: Stand Alone Dental | K87: Blank Customer | L87: Federal Taxes and Assessments | M87: IDB Periods | N87: Reinsurance | O87: All Other Projects | P87: 0 | Q87: 0 | R87: 0 | S87: 0 | V87: =P87 -> 0
B88: 4 | C88: A | E88: 2.2 | F88: PY1 | G88: ADD | H88: --- | I88: UnitedHealthcare Domestic | J88: Stand Alone Dental | K88: Blank Customer | L88: State Ins, Prem and Other Tax | M88: IDB Periods | N88: Reinsurance | O88: All Other Projects | P88: 0 | Q88: 0 | R88: 0 | S88: 0 | V88: =P88 -> 0
B89: 4 | C89: A | E89: 2.2 | F89: PY1 | G89: ADD | H89: --- | I89: UnitedHealthcare Domestic | J89: Stand Alone Dental | K89: Blank Customer | L89: Reg Authority Licenses & Fees | M89: IDB Periods | N89: Reinsurance | O89: All Other Projects | P89: 0 | Q89: 0 | R89: 0 | S89: 0 | V89: 0 | W89: =SUM(V87:V89) -> 0
B90: 4 | C90: A | E90: 3.1 | F90: PY1 | G90: ADD | H90: --- | I90: UnitedHealthcare Domestic | J90: Stand Alone Dental | K90: Blank Customer | L90: SHCE Member Months | M90: ='Essbase Input'!$D$18 -> IDB 2021 | N90: NO REINSURANCE | O90: All Other Projects | P90: 0 | Q90: 0 | R90: 0 | S90: 0 | V90: =P90+Q90 -> 0 | W90: =V90 -> 0
A91: UHC Domestic Stand Alone Dental Not Comp Health | B91: 4 | C91: A | E91: 1.2 | F91: PY1 | G91: ADD | H91: --- | I91: UnitedHealthcare Domestic | J91: Stand Alone Dental | K91: Not Comp Health Coverage | L91: Total Incurred Claims | M91: ='Essbase Input'!$D$18 -> IDB 2021 | N91: NO REINSURANCE | O91: All Other Projects | P91: 87437.68 | Q91: -647.46 | R91: -768.98 | S91: -38.47 | V91: =P91+R91+S91+T91 -> 86630.23
B92: 4 | C92: A | E92: 1.2 | F92: PY1 | G92: SUB | H92: --- | I92: UnitedHealthcare Domestic | J92: Stand Alone Dental | K92: Not Comp Health Coverage | L92: 50010 - Physician Cap Paid - External | M92: ='Essbase Input'!$D$18 -> IDB 2021 | N92: NO REINSURANCE | O92: 0000003413 - General Administrative | P92: 0 | Q92: 0 | R92: 0 | S92: 0 | V92: =P92+R92+S92+T92 -> 0
B93: 4 | C93: A | E93: 1.2 | F93: PY1 | G93: SUB | H93: --- | I93: UnitedHealthcare Domestic | J93: Stand Alone Dental | K93: Not Comp Health Coverage | L93: 50619 - Internal Capitation Pd - Other | M93: ='Essbase Input'!$D$18 -> IDB 2021 | N93: NO REINSURANCE | O93: All Other Projects | P93: 0 | Q93: 0 | R93: 0 | S93: 0 | V93: 0
B94: 4 | C94: A | E94: 1.2 | F94: PY1 | G94: SUB | H94: --- | I94: UnitedHealthcare Domestic | J94: Stand Alone Dental | K94: Not Comp Health Coverage | L94: Rate Credits NonTaxable | M94: ='Essbase Input'!$D$18 -> IDB 2021 | N94: NO REINSURANCE | O94: All Other Projects | P94: 0 | Q94: 0 | R94: 0 | S94: 0 | V94: 0 | W94: =V91-V92-V93-V94 -> 86630.23
B95: 4 | C95: A | E95: 2.1 | F95: PY1 | G95: ADD | H95: R | I95: UnitedHealthcare Domestic | J95: Stand Alone Dental | K95: Not Comp Health Coverage | L95: Health Premiums Earned | M95: ='Essbase Input'!$D$18 -> IDB 2021 | N95: NO REINSURANCE | O95: All Other Projects | P95: -162005.72 | Q95: -189.04 | R95: -163.79 | S95: 0 | V95: =P95+Q95 -> -162194.76 | W95: =V95 -> -162194.76
B96: 4 | C96: A | E96: 2.2 | F96: PY1 | G96: ADD | H96: --- | I96: UnitedHealthcare Domestic | J96: Stand Alone Dental | K96: Not Comp Health Coverage | L96: Federal Taxes and Assessments | M96: IDB Periods | N96: Reinsurance | O96: All Other Projects | P96: 0 | Q96: 0 | R96: 0 | S96: 0 | V96: =P96 -> 0
B97: 4 | C97: A | E97: 2.2 | F97: PY1 | G97: ADD | H97: --- | I97: UnitedHealthcare Domestic | J97: Stand Alone Dental | K97: Not Comp Health Coverage | L97: State Ins, Prem and Other Tax | M97: IDB Periods | N97: Reinsurance | O97: All Other Projects | P97: 17509.12 | Q97: 917.17 | R97: 8569.18 | S97: 761.22 | V97: =P97 -> 17509.12
B98: 4 | C98: A | E98: 2.2 | F98: PY1 | G98: ADD | H98: --- | I98: UnitedHealthcare Domestic | J98: Stand Alone Dental | K98: Not Comp Health Coverage | L98: Reg Authority Licenses & Fees | M98: IDB Periods | N98: Reinsurance | O98: All Other Projects | P98: 0 | Q98: 0 | R98: 0 | S98: 0 | V98: 0 | W98: =SUM(V96:V98) -> 17509.12
B99: 4 | C99: A | E99: 3.1 | F99: PY1 | G99: ADD | H99: --- | I99: UnitedHealthcare Domestic | J99: Stand Alone Dental | K99: Not Comp Health Coverage | L99: SHCE Member Months | M99: ='Essbase Input'!$D$18 -> IDB 2021 | N99: NO REINSURANCE | O99: All Other Projects | P99: 3345 | Q99: 5 | R99: 3 | S99: 0 | V99: =P99+Q99 -> 3350 | W99: =V99 -> 3350
A100: UHC International Stand Alone Dental MLR Customer | B100: 4 | C100: A | D100: B | E100: 1.2 | F100: PY1 | G100: ADD | H100: --- | I100: UnitedHealthcare International | J100: Stand Alone Dental | K100: MLR Customers | L100: Total Incurred Claims | M100: ='Essbase Input'!$D$18 -> IDB 2021 | N100: NO REINSURANCE | O100: All Other Projects | P100: 0 | Q100: 0 | R100: 0 | S100: 0 | V100: =P100+R100+S100+T100 -> 0
B101: 4 | C101: A | D101: B | E101: 1.2 | F101: PY1 | G101: SUB | H101: --- | I101: UnitedHealthcare International | J101: Stand Alone Dental | K101: MLR Customers | L101: 50010 - Physician Cap Paid - External | M101: ='Essbase Input'!$D$18 -> IDB 2021 | N101: NO REINSURANCE | O101: 0000003413 - General Administrative | P101: 0 | Q101: 0 | R101: 0 | S101: 0 | V101: =P101+R101+S101+T101 -> 0
B102: 4 | C102: A | D102: B | E102: 1.2 | F102: PY1 | G102: SUB | H102: --- | I102: UnitedHealthcare International | J102: Stand Alone Dental | K102: MLR Customers | L102: 50619 - Internal Capitation Pd - Other | M102: ='Essbase Input'!$D$18 -> IDB 2021 | N102: NO REINSURANCE | O102: All Other Projects | P102: 0 | Q102: 0 | R102: 0 | S102: 0 | V102: 0
B103: 4 | C103: A | D103: B | E103: 1.2 | F103: PY1 | G103: SUB | H103: --- | I103: UnitedHealthcare International | J103: Stand Alone Dental | K103: MLR Customers | L103: Rate Credits NonTaxable | M103: ='Essbase Input'!$D$18 -> IDB 2021 | N103: NO REINSURANCE | O103: All Other Projects | P103: 0 | Q103: 0 | R103: 0 | S103: 0 | V103: 0 | W103: =V100-V101-V102-V103 -> 0
B104: 4 | C104: A | D104: B | E104: 2.1 | F104: PY1 | G104: ADD | H104: R | I104: UnitedHealthcare International | J104: Stand Alone Dental | K104: MLR Customers | L104: Health Premiums Earned | M104: ='Essbase Input'!$D$18 -> IDB 2021 | N104: NO REINSURANCE | O104: All Other Projects | P104: 0 | Q104: 0 | R104: 0 | S104: 0 | V104: =P104+Q104 -> 0 | W104: =V104 -> 0
B105: 4 | C105: A | D105: B | E105: 2.2 | F105: PY1 | G105: ADD | H105: --- | I105: UnitedHealthcare International | J105: Stand Alone Dental | K105: MLR Customers | L105: Federal Taxes and Assessments | M105: IDB Periods | N105: Reinsurance | O105: All Other Projects | P105: 0 | Q105: 0 | R105: 0 | S105: 0 | V105: =P105 -> 0
B106: 4 | C106: A | D106: B | E106: 2.2 | F106: PY1 | G106: ADD | H106: --- | I106: UnitedHealthcare International | J106: Stand Alone Dental | K106: MLR Customers | L106: State Ins, Prem and Other Tax | M106: IDB Periods | N106: Reinsurance | O106: All Other Projects | P106: 0 | Q106: 0 | R106: 0 | S106: 0 | V106: =P106 -> 0
B107: 4 | C107: A | D107: B | E107: 2.2 | F107: PY1 | G107: ADD | H107: --- | I107: UnitedHealthcare International | J107: Stand Alone Dental | K107: MLR Customers | L107: Reg Authority Licenses & Fees | M107: IDB Periods | N107: Reinsurance | O107: All Other Projects | P107: 0 | Q107: 0 | R107: 0 | S107: 0 | V107: 0 | W107: =SUM(V105:V107) -> 0
B108: 4 | C108: A | D108: B | E108: 3.1 | F108: PY1 | G108: ADD | H108: --- | I108: UnitedHealthcare International | J108: Stand Alone Dental | K108: MLR Customers | L108: SHCE Member Months | M108: ='Essbase Input'!$D$18 -> IDB 2021 | N108: NO REINSURANCE | O108: All Other Projects | P108: 0 | Q108: 0 | R108: 0 | S108: 0 | V108: =P108+Q108 -> 0 | W108: =V108 -> 0
A109: Optum Stand Alone Dental MLR Customer | B109: 4 | C109: A | D109: B | E109: 1.2 | F109: PY1 | G109: ADD | H109: --- | I109: Optum | J109: Stand Alone Dental | K109: MLR Customers | L109: Total Incurred Claims | M109: ='Essbase Input'!$D$18 -> IDB 2021 | N109: NO REINSURANCE | O109: All Other Projects | P109: 0 | Q109: 0 | R109: 0 | S109: 0 | V109: =P109+R109+S109+T109 -> 0
B110: 4 | C110: A | D110: B | E110: 1.2 | F110: PY1 | G110: SUB | H110: --- | I110: Optum | J110: Stand Alone Dental | K110: MLR Customers | L110: 50010 - Physician Cap Paid - External | M110: ='Essbase Input'!$D$18 -> IDB 2021 | N110: NO REINSURANCE | O110: 0000003413 - General Administrative | P110: 0 | Q110: 0 | R110: 0 | S110: 0 | V110: =P110+R110+S110+T110 -> 0
B111: 4 | C111: A | D111: B | E111: 1.2 | F111: PY1 | G111: SUB | H111: --- | I111: Optum | J111: Stand Alone Dental | K111: MLR Customers | L111: 50619 - Internal Capitation Pd - Other | M111: ='Essbase Input'!$D$18 -> IDB 2021 | N111: NO REINSURANCE | O111: All Other Projects | P111: 0 | Q111: 0 | R111: 0 | S111: 0 | V111: 0
B112: 4 | C112: A | D112: B | E112: 1.2 | F112: PY1 | G112: SUB | H112: --- | I112: Optum | J112: Stand Alone Dental | K112: MLR Customers | L112: Rate Credits NonTaxable | M112: ='Essbase Input'!$D$18 -> IDB 2021 | N112: NO REINSURANCE | O112: All Other Projects | P112: 0 | Q112: 0 | R112: 0 | S112: 0 | V112: 0 | W112: =V109-V110-V111-V112 -> 0
B113: 4 | C113: A | D113: B | E113: 2.1 | F113: PY1 | G113: ADD | H113: R | I113: Optum | J113: Stand Alone Dental | K113: MLR Customers | L113: Health Premiums Earned | M113: ='Essbase Input'!$D$18 -> IDB 2021 | N113: NO REINSURANCE | O113: All Other Projects | P113: 0 | Q113: 0 | R113: 0 | S113: 0 | V113: =P113+Q113 -> 0 | W113: =V113 -> 0
B114: 4 | C114: A | D114: B | E114: 2.2 | F114: PY1 | G114: ADD | H114: --- | I114: Optum | J114: Stand Alone Dental | K114: MLR Customers | L114: Federal Taxes and Assessments | M114: IDB Periods | N114: Reinsurance | O114: All Other Projects | P114: 0 | Q114: 0 | R114: 0 | S114: 0 | V114: =P114 -> 0
B115: 4 | C115: A | D115: B | E115: 2.2 | F115: PY1 | G115: ADD | H115: --- | I115: Optum | J115: Stand Alone Dental | K115: MLR Customers | L115: State Ins, Prem and Other Tax | M115: IDB Periods | N115: Reinsurance | O115: All Other Projects | P115: 0 | Q115: 0 | R115: 0 | S115: 0 | V115: =P115 -> 0
B116: 4 | C116: A | D116: B | E116: 2.2 | F116: PY1 | G116: ADD | H116: --- | I116: Optum | J116: Stand Alone Dental | K116: MLR Customers | L116: Reg Authority Licenses & Fees | M116: IDB Periods | N116: Reinsurance | O116: All Other Projects | P116: 0 | Q116: 0 | R116: 0 | S116: 0 | V116: 0 | W116: =SUM(V114:V116) -> 0
B117: 4 | C117: A | D117: B | E117: 3.1 | F117: PY1 | G117: ADD | H117: --- | I117: Optum | J117: Stand Alone Dental | K117: MLR Customers | L117: SHCE Member Months | M117: ='Essbase Input'!$D$18 -> IDB 2021 | N117: NO REINSURANCE | O117: All Other Projects | P117: 0 | Q117: 0 | R117: 0 | S117: 0 | V117: =P117+Q117 -> 0 | W117: =V117 -> 0
A118: Elims Mkt Grp Stand Alone Dental MLR Customer | B118: 4 | C118: A | D118: B | E118: 1.2 | F118: PY1 | G118: ADD | H118: --- | I118: Eliminations Market Group | J118: Stand Alone Dental | K118: MLR Customers | L118: Total Incurred Claims | M118: ='Essbase Input'!$D$18 -> IDB 2021 | N118: NO REINSURANCE | O118: All Other Projects | P118: 0 | Q118: 0 | R118: 0 | S118: 0 | V118: =P118+R118+S118+T118 -> 0
B119: 4 | C119: A | D119: B | E119: 1.2 | F119: PY1 | G119: SUB | H119: --- | I119: Eliminations Market Group | J119: Stand Alone Dental | K119: MLR Customers | L119: 50010 - Physician Cap Paid - External | M119: ='Essbase Input'!$D$18 -> IDB 2021 | N119: NO REINSURANCE | O119: 0000003413 - General Administrative | P119: 0 | Q119: 0 | R119: 0 | S119: 0 | V119: =P119+R119+S119+T119 -> 0
B120: 4 | C120: A | D120: B | E120: 1.2 | F120: PY1 | G120: SUB | H120: --- | I120: Eliminations Market Group | J120: Stand Alone Dental | K120: MLR Customers | L120: 50619 - Internal Capitation Pd - Other | M120: ='Essbase Input'!$D$18 -> IDB 2021 | N120: NO REINSURANCE | O120: All Other Projects | P120: 0 | Q120: 0 | R120: 0 | S120: 0 | V120: 0
B121: 4 | C121: A | D121: B | E121: 1.2 | F121: PY1 | G121: SUB | H121: --- | I121: Eliminations Market Group | J121: Stand Alone Dental | K121: MLR Customers | L121: Rate Credits NonTaxable | M121: ='Essbase Input'!$D$18 -> IDB 2021 | N121: NO REINSURANCE | O121: All Other Projects | P121: 0 | Q121: 0 | R121: 0 | S121: 0 | V121: 0 | W121: =V118-V119-V120-V121 -> 0
B122: 4 | C122: A | D122: B | E122: 2.1 | F122: PY1 | G122: ADD | H122: R | I122: Eliminations Market Group | J122: Stand Alone Dental | K122: MLR Customers | L122: Health Premiums Earned | M122: ='Essbase Input'!$D$18 -> IDB 2021 | N122: NO REINSURANCE | O122: All Other Projects | P122: 0 | Q122: 0 | R122: 0 | S122: 0 | V122: =P122+Q122 -> 0 | W122: =V122 -> 0
B123: 4 | C123: A | D123: B | E123: 2.2 | F123: PY1 | G123: ADD | H123: --- | I123: Eliminations Market Group | J123: Stand Alone Dental | K123: MLR Customers | L123: Federal Taxes and Assessments | M123: IDB Periods | N123: Reinsurance | O123: All Other Projects | P123: 0 | Q123: 0 | R123: 0 | S123: 0 | V123: =P123 -> 0
B124: 4 | C124: A | D124: B | E124: 2.2 | F124: PY1 | G124: ADD | H124: --- | I124: Eliminations Market Group | J124: Stand Alone Dental | K124: MLR Customers | L124: State Ins, Prem and Other Tax | M124: IDB Periods | N124: Reinsurance | O124: All Other Projects | P124: 0 | Q124: 0 | R124: 0 | S124: 0 | V124: =P124 -> 0
B125: 4 | C125: A | D125: B | E125: 2.2 | F125: PY1 | G125: ADD | H125: --- | I125: Eliminations Market Group | J125: Stand Alone Dental | K125: MLR Customers | L125: Reg Authority Licenses & Fees | M125: IDB Periods | N125: Reinsurance | O125: All Other Projects | P125: 0 | Q125: 0 | R125: 0 | S125: 0 | V125: 0 | W125: =SUM(V123:V125) -> 0
B126: 4 | C126: A | D126: B | E126: 3.1 | F126: PY1 | G126: ADD | H126: --- | I126: Eliminations Market Group | J126: Stand Alone Dental | K126: MLR Customers | L126: SHCE Member Months | M126: ='Essbase Input'!$D$18 -> IDB 2021 | N126: NO REINSURANCE | O126: All Other Projects | P126: 0 | Q126: 0 | R126: 0 | S126: 0 | V126: =P126+Q126 -> 0 | W126: =V126 -> 0
A127: Corp Mkt Grp Stand Alone Dental MLR Customer | B127: 4 | C127: A | D127: B | E127: 1.2 | F127: PY1 | G127: ADD | H127: --- | I127: Corp Market Group Rollup | J127: Stand Alone Dental | K127: MLR Customers | L127: Total Incurred Claims | M127: ='Essbase Input'!$D$18 -> IDB 2021 | N127: NO REINSURANCE | O127: All Other Projects | P127: 0 | Q127: 0 | R127: 0 | S127: 0 | V127: =P127+R127+S127+T127 -> 0
B128: 4 | C128: A | D128: B | E128: 1.2 | F128: PY1 | G128: SUB | H128: --- | I128: Corp Market Group Rollup | J128: Stand Alone Dental | K128: MLR Customers | L128: 50010 - Physician Cap Paid - External | M128: ='Essbase Input'!$D$18 -> IDB 2021 | N128: NO REINSURANCE | O128: 0000003413 - General Administrative | P128: 0 | Q128: 0 | R128: 0 | S128: 0 | V128: =P128+R128+S128+T128 -> 0
B129: 4 | C129: A | D129: B | E129: 1.2 | F129: PY1 | G129: SUB | H129: --- | I129: Corp Market Group Rollup | J129: Stand Alone Dental | K129: MLR Customers | L129: 50619 - Internal Capitation Pd - Other | M129: ='Essbase Input'!$D$18 -> IDB 2021 | N129: NO REINSURANCE | O129: All Other Projects | P129: 0 | Q129: 0 | R129: 0 | S129: 0 | V129: 0
B130: 4 | C130: A | D130: B | E130: 1.2 | F130: PY1 | G130: SUB | H130: --- | I130: Corp Market Group Rollup | J130: Stand Alone Dental | K130: MLR Customers | L130: Rate Credits NonTaxable | M130: ='Essbase Input'!$D$18 -> IDB 2021 | N130: NO REINSURANCE | O130: All Other Projects | P130: 0 | Q130: 0 | R130: 0 | S130: 0 | V130: 0 | W130: =V127-V128-V129-V130 -> 0
B131: 4 | C131: A | D131: B | E131: 2.1 | F131: PY1 | G131: ADD | H131: R | I131: Corp Market Group Rollup | J131: Stand Alone Dental | K131: MLR Customers | L131: Health Premiums Earned | M131: ='Essbase Input'!$D$18 -> IDB 2021 | N131: NO REINSURANCE | O131: All Other Projects | P131: 0 | Q131: 0 | R131: 0 | S131: 0 | V131: =P131+Q131 -> 0 | W131: =V131 -> 0
B132: 4 | C132: A | D132: B | E132: 2.2 | F132: PY1 | G132: ADD | H132: --- | I132: Corp Market Group Rollup | J132: Stand Alone Dental | K132: MLR Customers | L132: Federal Taxes and Assessments | M132: IDB Periods | N132: Reinsurance | O132: All Other Projects | P132: 0 | Q132: 0 | R132: 0 | S132: 0 | V132: =P132 -> 0
B133: 4 | C133: A | D133: B | E133: 2.2 | F133: PY1 | G133: ADD | H133: --- | I133: Corp Market Group Rollup | J133: Stand Alone Dental | K133: MLR Customers | L133: State Ins, Prem and Other Tax | M133: IDB Periods | N133: Reinsurance | O133: All Other Projects | P133: 0 | Q133: 0 | R133: 0 | S133: 0 | V133: =P133 -> 0
B134: 4 | C134: A | D134: B | E134: 2.2 | F134: PY1 | G134: ADD | H134: --- | I134: Corp Market Group Rollup | J134: Stand Alone Dental | K134: MLR Customers | L134: Reg Authority Licenses & Fees | M134: IDB Periods | N134: Reinsurance | O134: All Other Projects | P134: 0 | Q134: 0 | R134: 0 | S134: 0 | V134: 0 | W134: =SUM(V132:V134) -> 0
B135: 4 | C135: A | D135: B | E135: 3.1 | F135: PY1 | G135: ADD | H135: --- | I135: Corp Market Group Rollup | J135: Stand Alone Dental | K135: MLR Customers | L135: SHCE Member Months | M135: ='Essbase Input'!$D$18 -> IDB 2021 | N135: NO REINSURANCE | O135: All Other Projects | P135: 0 | Q135: 0 | R135: 0 | S135: 0 | V135: =P135+Q135 -> 0 | W135: =V135 -> 0
A136: Non-UHG Stand Alone Dental MLR Customer | B136: 4 | C136: A | D136: B | E136: 1.2 | F136: PY1 | G136: ADD | H136: --- | I136: Non UnitedHealth Group Rollup | J136: Stand Alone Dental | K136: MLR Customers | L136: Total Incurred Claims | M136: ='Essbase Input'!$D$18 -> IDB 2021 | N136: NO REINSURANCE | O136: All Other Projects | P136: 0 | Q136: 0 | R136: 0 | S136: 0 | V136: =P136+R136+S136+T136 -> 0
B137: 4 | C137: A | D137: B | E137: 1.2 | F137: PY1 | G137: SUB | H137: --- | I137: Non UnitedHealth Group Rollup | J137: Stand Alone Dental | K137: MLR Customers | L137: 50010 - Physician Cap Paid - External | M137: ='Essbase Input'!$D$18 -> IDB 2021 | N137: NO REINSURANCE | O137: 0000003413 - General Administrative | P137: 0 | Q137: 0 | R137: 0 | S137: 0 | V137: =P137+R137+S137+T137 -> 0
B138: 4 | C138: A | D138: B | E138: 1.2 | F138: PY1 | G138: SUB | H138: --- | I138: Non UnitedHealth Group Rollup | J138: Stand Alone Dental | K138: MLR Customers | L138: 50619 - Internal Capitation Pd - Other | M138: ='Essbase Input'!$D$18 -> IDB 2021 | N138: NO REINSURANCE | O138: All Other Projects | P138: 0 | Q138: 0 | R138: 0 | S138: 0 | V138: 0
B139: 4 | C139: A | D139: B | E139: 1.2 | F139: PY1 | G139: SUB | H139: --- | I139: Non UnitedHealth Group Rollup | J139: Stand Alone Dental | K139: MLR Customers | L139: Rate Credits NonTaxable | M139: ='Essbase Input'!$D$18 -> IDB 2021 | N139: NO REINSURANCE | O139: All Other Projects | P139: 0 | Q139: 0 | R139: 0 | S139: 0 | V139: 0 | W139: =V136-V137-V138-V139 -> 0
B140: 4 | C140: A | D140: B | E140: 2.1 | F140: PY1 | G140: ADD | H140: R | I140: Non UnitedHealth Group Rollup | J140: Stand Alone Dental | K140: MLR Customers | L140: Health Premiums Earned | M140: ='Essbase Input'!$D$18 -> IDB 2021 | N140: NO REINSURANCE | O140: All Other Projects | P140: 0 | Q140: 0 | R140: 0 | S140: 0 | V140: =P140+Q140 -> 0 | W140: =V140 -> 0
B141: 4 | C141: A | D141: B | E141: 2.2 | F141: PY1 | G141: ADD | H141: --- | I141: Non UnitedHealth Group Rollup | J141: Stand Alone Dental | K141: MLR Customers | L141: Federal Taxes and Assessments | M141: IDB Periods | N141: Reinsurance | O141: All Other Projects | P141: 0 | Q141: 0 | R141: 0 | S141: 0 | V141: =P141 -> 0
B142: 4 | C142: A | D142: B | E142: 2.2 | F142: PY1 | G142: ADD | H142: --- | I142: Non UnitedHealth Group Rollup | J142: Stand Alone Dental | K142: MLR Customers | L142: State Ins, Prem and Other Tax | M142: IDB Periods | N142: Reinsurance | O142: All Other Projects | P142: 0 | Q142: 0 | R142: 0 | S142: 0 | V142: =P142 -> 0
B143: 4 | C143: A | D143: B | E143: 2.2 | F143: PY1 | G143: ADD | H143: --- | I143: Non UnitedHealth Group Rollup | J143: Stand Alone Dental | K143: MLR Customers | L143: Reg Authority Licenses & Fees | M143: IDB Periods | N143: Reinsurance | O143: All Other Projects | P143: 0 | Q143: 0 | R143: 0 | S143: 0 | V143: 0 | W143: =SUM(V141:V143) -> 0
B144: 4 | C144: A | D144: B | E144: 3.1 | F144: PY1 | G144: ADD | H144: --- | I144: Non UnitedHealth Group Rollup | J144: Stand Alone Dental | K144: MLR Customers | L144: SHCE Member Months | M144: ='Essbase Input'!$D$18 -> IDB 2021 | N144: NO REINSURANCE | O144: All Other Projects | P144: 0 | Q144: 0 | R144: 0 | S144: 0 | V144: =P144+Q144 -> 0 | W144: =V144 -> 0
A145: All OUs p306155 MLR Customers | B145: 4 | E145: 1.2 | F145: PY1 | G145: ADD | H145: --- | I145: Operating Units | J145: 306155 - Package Savings Disc - Vision | K145: MLR Customers | L145: Total Incurred Claims | M145: ='Essbase Input'!$D$18 -> IDB 2021 | N145: NO REINSURANCE | O145: All Other Projects | P145: 0 | Q145: 0 | R145: 0 | S145: 0 | V145: =P145+R145+S145+T145 -> 0
B146: 4 | E146: 1.2 | F146: PY1 | G146: SUB | H146: --- | I146: Operating Units | J146: 306155 - Package Savings Disc - Vision | K146: MLR Customers | L146: 50010 - Physician Cap Paid - External | M146: ='Essbase Input'!$D$18 -> IDB 2021 | N146: NO REINSURANCE | O146: 0000003413 - General Administrative | P146: 0 | Q146: 0 | R146: 0 | S146: 0 | V146: =P146+R146+S146+T146 -> 0
B147: 4 | E147: 1.2 | F147: PY1 | G147: SUB | H147: --- | I147: Operating Units | J147: 306155 - Package Savings Disc - Vision | K147: MLR Customers | L147: 50619 - Internal Capitation Pd - Other | M147: ='Essbase Input'!$D$18 -> IDB 2021 | N147: NO REINSURANCE | O147: All Other Projects | P147: 0 | Q147: 0 | R147: 0 | S147: 0 | V147: 0
B148: 4 | E148: 1.2 | F148: PY1 | G148: SUB | H148: --- | I148: Operating Units | J148: 306155 - Package Savings Disc - Vision | K148: MLR Customers | L148: Rate Credits NonTaxable | M148: ='Essbase Input'!$D$18 -> IDB 2021 | N148: NO REINSURANCE | O148: All Other Projects | P148: 0 | Q148: 0 | R148: 0 | S148: 0 | V148: 0 | W148: =V145-V146-V147-V148 -> 0
B149: 4 | E149: 2.1 | F149: PY1 | G149: ADD | H149: R | I149: Operating Units | J149: 306155 - Package Savings Disc - Vision | K149: MLR Customers | L149: Health Premiums Earned | M149: ='Essbase Input'!$D$18 -> IDB 2021 | N149: NO REINSURANCE | O149: All Other Projects | P149: 0 | Q149: 0 | R149: 0 | S149: 0 | V149: =P149+Q149 -> 0 | W149: =V149 -> 0
B150: 4 | E150: 2.2 | F150: PY1 | G150: ADD | H150: --- | I150: Operating Units | J150: 306155 - Package Savings Disc - Vision | K150: MLR Customers | L150: Federal Taxes and Assessments | M150: IDB Periods | N150: Reinsurance | O150: All Other Projects | P150: 0 | Q150: 0 | R150: 0 | S150: 0 | V150: =P150 -> 0
B151: 4 | E151: 2.2 | F151: PY1 | G151: ADD | H151: --- | I151: Operating Units | J151: 306155 - Package Savings Disc - Vision | K151: MLR Customers | L151: State Ins, Prem and Other Tax | M151: IDB Periods | N151: Reinsurance | O151: All Other Projects | P151: 0 | Q151: 0 | R151: 0 | S151: 0 | V151: =P151 -> 0
B152: 4 | E152: 2.2 | F152: PY1 | G152: ADD | H152: --- | I152: Operating Units | J152: 306155 - Package Savings Disc - Vision | K152: MLR Customers | L152: Reg Authority Licenses & Fees | M152: IDB Periods | N152: Reinsurance | O152: All Other Projects | P152: 0 | Q152: 0 | R152: 0 | S152: 0 | V152: 0 | W152: =SUM(V150:V152) -> 0
B153: 4 | E153: 3.1 | F153: PY1 | G153: ADD | H153: --- | I153: Operating Units | J153: 306155 - Package Savings Disc - Vision | K153: MLR Customers | L153: SHCE Member Months | M153: ='Essbase Input'!$D$18 -> IDB 2021 | N153: NO REINSURANCE | O153: All Other Projects | P153: 0 | Q153: 0 | R153: 0 | S153: 0 | V153: =P153+Q153 -> 0 | W153: =V153 -> 0
A154: All OUs p306156 MLR Customers | B154: 4 | E154: 1.2 | F154: PY1 | G154: ADD | H154: --- | I154: Operating Units | J154: 306156 - Package Savings - Dental | K154: MLR Customers | L154: Total Incurred Claims | M154: ='Essbase Input'!$D$18 -> IDB 2021 | N154: NO REINSURANCE | O154: All Other Projects | P154: 0 | Q154: 0 | R154: 0 | S154: 0 | V154: =P154+R154+S154+T154 -> 0
B155: 4 | E155: 1.2 | F155: PY1 | G155: SUB | H155: --- | I155: Operating Units | J155: 306156 - Package Savings - Dental | K155: MLR Customers | L155: 50010 - Physician Cap Paid - External | M155: ='Essbase Input'!$D$18 -> IDB 2021 | N155: NO REINSURANCE | O155: 0000003413 - General Administrative | P155: 0 | Q155: 0 | R155: 0 | S155: 0 | V155: =P155+R155+S155+T155 -> 0
B156: 4 | E156: 1.2 | F156: PY1 | G156: SUB | H156: --- | I156: Operating Units | J156: 306156 - Package Savings - Dental | K156: MLR Customers | L156: 50619 - Internal Capitation Pd - Other | M156: ='Essbase Input'!$D$18 -> IDB 2021 | N156: NO REINSURANCE | O156: All Other Projects | P156: 0 | Q156: 0 | R156: 0 | S156: 0 | V156: 0
B157: 4 | E157: 1.2 | F157: PY1 | G157: SUB | H157: --- | I157: Operating Units | J157: 306156 - Package Savings - Dental | K157: MLR Customers | L157: Rate Credits NonTaxable | M157: ='Essbase Input'!$D$18 -> IDB 2021 | N157: NO REINSURANCE | O157: All Other Projects | P157: 0 | Q157: 0 | R157: 0 | S157: 0 | V157: 0 | W157: =V154-V155-V156-V157 -> 0
B158: 4 | E158: 2.1 | F158: PY1 | G158: ADD | H158: R | I158: Operating Units | J158: 306156 - Package Savings - Dental | K158: MLR Customers | L158: Health Premiums Earned | M158: ='Essbase Input'!$D$18 -> IDB 2021 | N158: NO REINSURANCE | O158: All Other Projects | P158: 0 | Q158: 0 | R158: 0 | S158: 0 | V158: =P158+Q158 -> 0 | W158: =V158 -> 0
B159: 4 | E159: 2.2 | F159: PY1 | G159: ADD | H159: --- | I159: Operating Units | J159: 306156 - Package Savings - Dental | K159: MLR Customers | L159: Federal Taxes and Assessments | M159: IDB Periods | N159: Reinsurance | O159: All Other Projects | P159: 0 | Q159: 0 | R159: 0 | S159: 0 | V159: =P159 -> 0
B160: 4 | E160: 2.2 | F160: PY1 | G160: ADD | H160: --- | I160: Operating Units | J160: 306156 - Package Savings - Dental | K160: MLR Customers | L160: State Ins, Prem and Other Tax | M160: IDB Periods | N160: Reinsurance | O160: All Other Projects | P160: 0 | Q160: 0 | R160: 0 | S160: 0 | V160: =P160 -> 0
B161: 4 | E161: 2.2 | F161: PY1 | G161: ADD | H161: --- | I161: Operating Units | J161: 306156 - Package Savings - Dental | K161: MLR Customers | L161: Reg Authority Licenses & Fees | M161: IDB Periods | N161: Reinsurance | O161: All Other Projects | P161: 0 | Q161: 0 | R161: 0 | S161: 0 | V161: 0 | W161: =SUM(V159:V161) -> 0
B162: 4 | E162: 3.1 | F162: PY1 | G162: ADD | H162: --- | I162: Operating Units | J162: 306156 - Package Savings - Dental | K162: MLR Customers | L162: SHCE Member Months | M162: ='Essbase Input'!$D$18 -> IDB 2021 | N162: NO REINSURANCE | O162: All Other Projects | P162: 0 | Q162: 0 | R162: 0 | S162: 0 | V162: =P162+Q162 -> 0 | W162: =V162 -> 0
A163: All OUs p305402 MLR Customers | B163: 4 | E163: 1.2 | F163: PY1 | G163: ADD | H163: --- | I163: Operating Units | J163: 305402 - Managed Transplant Risk SD | K163: MLR Customers | L163: Total Incurred Claims | M163: ='Essbase Input'!$D$18 -> IDB 2021 | N163: NO REINSURANCE | O163: All Other Projects | P163: 0 | Q163: 0 | R163: 0 | S163: 0 | V163: =P163+R163+S163+T163 -> 0
B164: 4 | E164: 1.2 | F164: PY1 | G164: SUB | H164: --- | I164: Operating Units | J164: 305402 - Managed Transplant Risk SD | K164: MLR Customers | L164: 50010 - Physician Cap Paid - External | M164: ='Essbase Input'!$D$18 -> IDB 2021 | N164: NO REINSURANCE | O164: 0000003413 - General Administrative | P164: 0 | Q164: 0 | R164: 0 | S164: 0 | V164: =P164+R164+S164+T164 -> 0
B165: 4 | E165: 1.2 | F165: PY1 | G165: SUB | H165: --- | I165: Operating Units | J165: 305402 - Managed Transplant Risk SD | K165: MLR Customers | L165: 50619 - Internal Capitation Pd - Other | M165: ='Essbase Input'!$D$18 -> IDB 2021 | N165: NO REINSURANCE | O165: All Other Projects | P165: 0 | Q165: 0 | R165: 0 | S165: 0 | V165: 0
B166: 4 | E166: 1.2 | F166: PY1 | G166: SUB | H166: --- | I166: Operating Units | J166: 305402 - Managed Transplant Risk SD | K166: MLR Customers | L166: Rate Credits NonTaxable | M166: ='Essbase Input'!$D$18 -> IDB 2021 | N166: NO REINSURANCE | O166: All Other Projects | P166: 0 | Q166: 0 | R166: 0 | S166: 0 | V166: 0 | W166: =V163-V164-V165-V166 -> 0
B167: 4 | E167: 2.1 | F167: PY1 | G167: ADD | H167: R | I167: Operating Units | J167: 305402 - Managed Transplant Risk SD | K167: MLR Customers | L167: Health Premiums Earned | M167: ='Essbase Input'!$D$18 -> IDB 2021 | N167: NO REINSURANCE | O167: All Other Projects | P167: 0 | Q167: 0 | R167: 0 | S167: 0 | V167: =P167+Q167 -> 0 | W167: =V167 -> 0
B168: 4 | E168: 2.2 | F168: PY1 | G168: ADD | H168: --- | I168: Operating Units | J168: 305402 - Managed Transplant Risk SD | K168: MLR Customers | L168: Federal Taxes and Assessments | M168: IDB Periods | N168: Reinsurance | O168: All Other Projects | P168: 0 | Q168: 0 | R168: 0 | S168: 0 | V168: =P168 -> 0
B169: 4 | E169: 2.2 | F169: PY1 | G169: ADD | H169: --- | I169: Operating Units | J169: 305402 - Managed Transplant Risk SD | K169: MLR Customers | L169: State Ins, Prem and Other Tax | M169: IDB Periods | N169: Reinsurance | O169: All Other Projects | P169: 0 | Q169: 0 | R169: 0 | S169: 0 | V169: =P169 -> 0
B170: 4 | E170: 2.2 | F170: PY1 | G170: ADD | H170: --- | I170: Operating Units | J170: 305402 - Managed Transplant Risk SD | K170: MLR Customers | L170: Reg Authority Licenses & Fees | M170: IDB Periods | N170: Reinsurance | O170: All Other Projects | P170: 0 | Q170: 0 | R170: 0 | S170: 0 | V170: 0 | W170: =SUM(V168:V170) -> 0
B171: 4 | E171: 3.1 | F171: PY1 | G171: ADD | H171: --- | I171: Operating Units | J171: 305402 - Managed Transplant Risk SD | K171: MLR Customers | L171: SHCE Member Months | M171: ='Essbase Input'!$D$18 -> IDB 2021 | N171: NO REINSURANCE | O171: All Other Projects | P171: 0 | Q171: 0 | R171: 0 | S171: 0 | V171: =P171+Q171 -> 0 | W171: =V171 -> 0
A172: All OUs p430083 MLR Customers | B172: 4 | E172: 1.2 | F172: PY1 | G172: ADD | H172: --- | I172: Operating Units | J172: 430083 - PBM ePrescribe | K172: MLR Customers | L172: Total Incurred Claims | M172: ='Essbase Input'!$D$18 -> IDB 2021 | N172: NO REINSURANCE | O172: All Other Projects | P172: 0 | Q172: 0 | R172: 0 | S172: 0 | V172: =P172+R172+S172+T172 -> 0
B173: 4 | E173: 1.2 | F173: PY1 | G173: SUB | H173: --- | I173: Operating Units | J173: 430083 - PBM ePrescribe | K173: MLR Customers | L173: 50010 - Physician Cap Paid - External | M173: ='Essbase Input'!$D$18 -> IDB 2021 | N173: NO REINSURANCE | O173: 0000003413 - General Administrative | P173: 0 | Q173: 0 | R173: 0 | S173: 0 | V173: =P173+R173+S173+T173 -> 0
B174: 4 | E174: 1.2 | F174: PY1 | G174: SUB | H174: --- | I174: Operating Units | J174: 430083 - PBM ePrescribe | K174: MLR Customers | L174: 50619 - Internal Capitation Pd - Other | M174: ='Essbase Input'!$D$18 -> IDB 2021 | N174: NO REINSURANCE | O174: All Other Projects | P174: 0 | Q174: 0 | R174: 0 | S174: 0 | V174: 0
B175: 4 | E175: 1.2 | F175: PY1 | G175: SUB | H175: --- | I175: Operating Units | J175: 430083 - PBM ePrescribe | K175: MLR Customers | L175: Rate Credits NonTaxable | M175: ='Essbase Input'!$D$18 -> IDB 2021 | N175: NO REINSURANCE | O175: All Other Projects | P175: 0 | Q175: 0 | R175: 0 | S175: 0 | V175: 0 | W175: =V172-V173-V174-V175 -> 0
B176: 4 | E176: 2.1 | F176: PY1 | G176: ADD | H176: R | I176: Operating Units | J176: 430083 - PBM ePrescribe | K176: MLR Customers | L176: Health Premiums Earned | M176: ='Essbase Input'!$D$18 -> IDB 2021 | N176: NO REINSURANCE | O176: All Other Projects | P176: 0 | Q176: 0 | R176: 0 | S176: 0 | V176: =P176+Q176 -> 0 | W176: =V176 -> 0
B177: 4 | E177: 2.2 | F177: PY1 | G177: ADD | H177: --- | I177: Operating Units | J177: 430083 - PBM ePrescribe | K177: MLR Customers | L177: Federal Taxes and Assessments | M177: IDB Periods | N177: Reinsurance | O177: All Other Projects | P177: 0 | Q177: 0 | R177: 0 | S177: 0 | V177: =P177 -> 0
B178: 4 | E178: 2.2 | F178: PY1 | G178: ADD | H178: --- | I178: Operating Units | J178: 430083 - PBM ePrescribe | K178: MLR Customers | L178: State Ins, Prem and Other Tax | M178: IDB Periods | N178: Reinsurance | O178: All Other Projects | P178: 0 | Q178: 0 | R178: 0 | S178: 0 | V178: =P178 -> 0
B179: 4 | E179: 2.2 | F179: PY1 | G179: ADD | H179: --- | I179: Operating Units | J179: 430083 - PBM ePrescribe | K179: MLR Customers | L179: Reg Authority Licenses & Fees | M179: IDB Periods | N179: Reinsurance | O179: All Other Projects | P179: 0 | Q179: 0 | R179: 0 | S179: 0 | V179: 0 | W179: =SUM(V177:V179) -> 0
B180: 4 | E180: 3.1 | F180: PY1 | G180: ADD | H180: --- | I180: Operating Units | J180: 430083 - PBM ePrescribe | K180: MLR Customers | L180: SHCE Member Months | M180: ='Essbase Input'!$D$18 -> IDB 2021 | N180: NO REINSURANCE | O180: All Other Projects | P180: 0 | Q180: 0 | R180: 0 | S180: 0 | V180: =P180+Q180 -> 0 | W180: =V180 -> 0
A181: All OUs p430084 MLR Customers | B181: 4 | E181: 1.2 | F181: PY1 | G181: ADD | H181: --- | I181: Operating Units | J181: 430084 - PreCheck My Script Fee | K181: MLR Customers | L181: Total Incurred Claims | M181: ='Essbase Input'!$D$18 -> IDB 2021 | N181: NO REINSURANCE | O181: All Other Projects | P181: 0 | Q181: 0 | R181: 0 | S181: 0 | V181: =P181+R181+S181+T181 -> 0
B182: 4 | E182: 1.2 | F182: PY1 | G182: SUB | H182: --- | I182: Operating Units | J182: 430084 - PreCheck My Script Fee | K182: MLR Customers | L182: 50010 - Physician Cap Paid - External | M182: ='Essbase Input'!$D$18 -> IDB 2021 | N182: NO REINSURANCE | O182: 0000003413 - General Administrative | P182: 0 | Q182: 0 | R182: 0 | S182: 0 | V182: =P182+R182+S182+T182 -> 0
B183: 4 | E183: 1.2 | F183: PY1 | G183: SUB | H183: --- | I183: Operating Units | J183: 430084 - PreCheck My Script Fee | K183: MLR Customers | L183: 50619 - Internal Capitation Pd - Other | M183: ='Essbase Input'!$D$18 -> IDB 2021 | N183: NO REINSURANCE | O183: All Other Projects | P183: 0 | Q183: 0 | R183: 0 | S183: 0 | V183: 0
B184: 4 | E184: 1.2 | F184: PY1 | G184: SUB | H184: --- | I184: Operating Units | J184: 430084 - PreCheck My Script Fee | K184: MLR Customers | L184: Rate Credits NonTaxable | M184: ='Essbase Input'!$D$18 -> IDB 2021 | N184: NO REINSURANCE | O184: All Other Projects | P184: 0 | Q184: 0 | R184: 0 | S184: 0 | V184: 0 | W184: =V181-V182-V183-V184 -> 0
B185: 4 | E185: 2.1 | F185: PY1 | G185: ADD | H185: R | I185: Operating Units | J185: 430084 - PreCheck My Script Fee | K185: MLR Customers | L185: Health Premiums Earned | M185: ='Essbase Input'!$D$18 -> IDB 2021 | N185: NO REINSURANCE | O185: All Other Projects | P185: 0 | Q185: 0 | R185: 0 | S185: 0 | V185: =P185+Q185 -> 0 | W185: =V185 -> 0
B186: 4 | E186: 2.2 | F186: PY1 | G186: ADD | H186: --- | I186: Operating Units | J186: 430084 - PreCheck My Script Fee | K186: MLR Customers | L186: Federal Taxes and Assessments | M186: IDB Periods | N186: Reinsurance | O186: All Other Projects | P186: 0 | Q186: 0 | R186: 0 | S186: 0 | V186: =P186 -> 0
B187: 4 | E187: 2.2 | F187: PY1 | G187: ADD | H187: --- | I187: Operating Units | J187: 430084 - PreCheck My Script Fee | K187: MLR Customers | L187: State Ins, Prem and Other Tax | M187: IDB Periods | N187: Reinsurance | O187: All Other Projects | P187: 0 | Q187: 0 | R187: 0 | S187: 0 | V187: =P187 -> 0
B188: 4 | E188: 2.2 | F188: PY1 | G188: ADD | H188: --- | I188: Operating Units | J188: 430084 - PreCheck My Script Fee | K188: MLR Customers | L188: Reg Authority Licenses & Fees | M188: IDB Periods | N188: Reinsurance | O188: All Other Projects | P188: 0 | Q188: 0 | R188: 0 | S188: 0 | V188: 0 | W188: =SUM(V186:V188) -> 0
B189: 4 | E189: 3.1 | F189: PY1 | G189: ADD | H189: --- | I189: Operating Units | J189: 430084 - PreCheck My Script Fee | K189: MLR Customers | L189: SHCE Member Months | M189: ='Essbase Input'!$D$18 -> IDB 2021 | N189: NO REINSURANCE | O189: All Other Projects | P189: 0 | Q189: 0 | R189: 0 | S189: 0 | V189: =P189+Q189 -> 0 | W189: =V189 -> 0
A190: All OUs p430087 MLR Customers | B190: 4 | E190: 1.2 | F190: PY1 | G190: ADD | H190: --- | I190: Operating Units | J190: 430087 - PBM EGWP | K190: MLR Customers | L190: Total Incurred Claims | M190: ='Essbase Input'!$D$18 -> IDB 2021 | N190: NO REINSURANCE | O190: All Other Projects | P190: 0 | Q190: 0 | R190: 0 | S190: 0 | V190: =P190+R190+S190+T190 -> 0
B191: 4 | E191: 1.2 | F191: PY1 | G191: SUB | H191: --- | I191: Operating Units | J191: 430087 - PBM EGWP | K191: MLR Customers | L191: 50010 - Physician Cap Paid - External | M191: ='Essbase Input'!$D$18 -> IDB 2021 | N191: NO REINSURANCE | O191: 0000003413 - General Administrative | P191: 0 | Q191: 0 | R191: 0 | S191: 0 | V191: =P191+R191+S191+T191 -> 0
B192: 4 | E192: 1.2 | F192: PY1 | G192: SUB | H192: --- | I192: Operating Units | J192: 430087 - PBM EGWP | K192: MLR Customers | L192: 50619 - Internal Capitation Pd - Other | M192: ='Essbase Input'!$D$18 -> IDB 2021 | N192: NO REINSURANCE | O192: All Other Projects | P192: 0 | Q192: 0 | R192: 0 | S192: 0 | V192: 0
B193: 4 | E193: 1.2 | F193: PY1 | G193: SUB | H193: --- | I193: Operating Units | J193: 430087 - PBM EGWP | K193: MLR Customers | L193: Rate Credits NonTaxable | M193: ='Essbase Input'!$D$18 -> IDB 2021 | N193: NO REINSURANCE | O193: All Other Projects | P193: 0 | Q193: 0 | R193: 0 | S193: 0 | V193: 0 | W193: =V190-V191-V192-V193 -> 0
B194: 4 | E194: 2.1 | F194: PY1 | G194: ADD | H194: R | I194: Operating Units | J194: 430087 - PBM EGWP | K194: MLR Customers | L194: Health Premiums Earned | M194: ='Essbase Input'!$D$18 -> IDB 2021 | N194: NO REINSURANCE | O194: All Other Projects | P194: 0 | Q194: 0 | R194: 0 | S194: 0 | V194: =P194+Q194 -> 0 | W194: =V194 -> 0
B195: 4 | E195: 2.2 | F195: PY1 | G195: ADD | H195: --- | I195: Operating Units | J195: 430087 - PBM EGWP | K195: MLR Customers | L195: Federal Taxes and Assessments | M195: IDB Periods | N195: Reinsurance | O195: All Other Projects | P195: 0 | Q195: 0 | R195: 0 | S195: 0 | V195: =P195 -> 0
B196: 4 | E196: 2.2 | F196: PY1 | G196: ADD | H196: --- | I196: Operating Units | J196: 430087 - PBM EGWP | K196: MLR Customers | L196: State Ins, Prem and Other Tax | M196: IDB Periods | N196: Reinsurance | O196: All Other Projects | P196: 0 | Q196: 0 | R196: 0 | S196: 0 | V196: =P196 -> 0
B197: 4 | E197: 2.2 | F197: PY1 | G197: ADD | H197: --- | I197: Operating Units | J197: 430087 - PBM EGWP | K197: MLR Customers | L197: Reg Authority Licenses & Fees | M197: IDB Periods | N197: Reinsurance | O197: All Other Projects | P197: 0 | Q197: 0 | R197: 0 | S197: 0 | V197: 0 | W197: =SUM(V195:V197) -> 0
B198: 4 | E198: 3.1 | F198: PY1 | G198: ADD | H198: --- | I198: Operating Units | J198: 430087 - PBM EGWP | K198: MLR Customers | L198: SHCE Member Months | M198: ='Essbase Input'!$D$18 -> IDB 2021 | N198: NO REINSURANCE | O198: All Other Projects | P198: 0 | Q198: 0 | R198: 0 | S198: 0 | V198: =P198+Q198 -> 0 | W198: =V198 -> 0
A199: All OUs p430088 MLR Customers | B199: 4 | E199: 1.2 | F199: PY1 | G199: ADD | H199: --- | I199: Operating Units | J199: 430088 - PBM ECOB | K199: MLR Customers | L199: Total Incurred Claims | M199: ='Essbase Input'!$D$18 -> IDB 2021 | N199: NO REINSURANCE | O199: All Other Projects | P199: 0 | Q199: 0 | R199: 0 | S199: 0 | V199: =P199+R199+S199+T199 -> 0
B200: 4 | E200: 1.2 | F200: PY1 | G200: SUB | H200: --- | I200: Operating Units | J200: 430088 - PBM ECOB | K200: MLR Customers | L200: 50010 - Physician Cap Paid - External | M200: ='Essbase Input'!$D$18 -> IDB 2021 | N200: NO REINSURANCE | O200: 0000003413 - General Administrative | P200: 0 | Q200: 0 | R200: 0 | S200: 0 | V200: =P200+R200+S200+T200 -> 0
... 22 more rows

Sheet EB PT 4 CY (hidden)
B1: Part | C1: REF1 | D1: REF2 | E1: Ln | F1: Col | G1: Adj | H1: Rev | I1: -OU | J1: -Prod | K1: -Cust | L1: ="Account" -> Account | M1: ="IDB Period" -> IDB Period | N1: ="Reinsurance" -> Reinsurance | O1: ="Project" -> Project | P1: 1 | Q1: 1
P2: Views | Q2: Views
P3: Sources | Q3: Sources
P4: Departments | Q4: Departments
P5: NAIC Supp HC Exhibit | Q5: NAIC Supp HC Exhibit
P6: ='Essbase Input'!$C$8 -> UnitedHealthcare Life Ins Co | Q6: ='Essbase Input'!$C$8 -> UnitedHealthcare Life Ins Co
P7: ='Essbase Input'!$C$9 -> California - CA | Q7: ='Essbase Input'!$C$9 -> California - CA
P8: ='Essbase Input'!$C$17 -> 2022 | Q8: ='Essbase Input'!$C$16 -> 2023
P9: Total Year | Q9: March_Bal
A10: CMS MLR | B10: 4 | E10: 1.2- | F10: CY | G10: ADD | H10: --- | I10: Operating Units | J10: Other Health Business | K10: MLR Customers | L10: Total Incurred Claims | M10: ='Essbase Input'!$D$17 -> IDB 2022 | N10: NO REINSURANCE | O10: All Other Projects | P10: 82442.75 | Q10: 3506.83 | V10: =P10+Q10 -> 85949.58
B11: 4 | E11: 1.2- | F11: CY | G11: SUB | H11: --- | I11: Operating Units | J11: Other Health Business | K11: MLR Customers | L11: 50010 - Physician Cap Paid - External | M11: ='Essbase Input'!$D$17 -> IDB 2022 | N11: NO REINSURANCE | O11: 0000003413 - General Administrative | P11: 0 | Q11: 0 | V11: =P11+Q11 -> 0
B12: 4 | E12: 1.2- | F12: CY | G12: SUB | H12: --- | I12: Operating Units | J12: Other Health Business | K12: MLR Customers | L12: 50619 - Internal Capitation Pd - Other | M12: ='Essbase Input'!$D$17 -> IDB 2022 | N12: NO REINSURANCE | O12: All Other Projects | P12: 0 | Q12: 0 | V12: =P12+Q12 -> 0
B13: 4 | E13: 1.2- | F13: CY | G13: SUB | H13: --- | I13: Operating Units | J13: Other Health Business | K13: MLR Customers | L13: Rate Credits NonTaxable | M13: ='Essbase Input'!$D$17 -> IDB 2022 | N13: NO REINSURANCE | O13: All Other Projects | P13: 0 | Q13: 0 | V13: =P13+Q13 -> 0 | W13: =V10-V11-V12-V13 -> 85949.58
B14: 4 | E14: 2.1- | F14: CY | G14: ADD | H14: R | I14: Operating Units | J14: Other Health Business | K14: MLR Customers | L14: Health Premiums Earned | M14: ='Essbase Input'!$D$17 -> IDB 2022 | N14: NO REINSURANCE | O14: All Other Projects | P14: -156028.83 | Q14: 186.73 | V14: =P14+Q14 -> -155842.1 | W14: =V14 -> -155842.1
B15: 4 | E15: 2.2- | F15: CY | G15: ADD | H15: --- | I15: Operating Units | J15: Other Health Business | K15: MLR Customers | L15: Federal Taxes and Assessments | M15: IDB Periods | N15: Reinsurance | O15: All Other Projects | P15: 6223.48 | Q15: -106.92 | V15: =P15 -> 6223.48
B16: 4 | E16: 2.2- | F16: CY | G16: ADD | H16: --- | I16: Operating Units | J16: Other Health Business | K16: MLR Customers | L16: State Ins, Prem and Other Tax | M16: IDB Periods | N16: Reinsurance | O16: All Other Projects | P16: 8856.77 | Q16: 827.5 | V16: =P16 -> 8856.77
B17: 4 | E17: 2.2- | F17: CY | G17: ADD | H17: --- | I17: Operating Units | J17: Other Health Business | K17: MLR Customers | L17: Reg Authority Licenses & Fees | M17: IDB Periods | N17: Reinsurance | O17: All Other Projects | P17: 0 | Q17: 0 | V17: 0 | W17: =SUM(V15:V17) -> 15080.25
B18: 4 | E18: 3.1- | F18: CY | G18: ADD | H18: --- | I18: Operating Units | J18: Other Health Business | K18: MLR Customers | L18: SHCE Member Months | M18: ='Essbase Input'!$D$17 -> IDB 2022 | N18: NO REINSURANCE | O18: All Other Projects | P18: 4196 | Q18: -10 | V18: =P18+Q18 -> 4186 | W18: =V18 -> 4186
A19: GRI | B19: 4 | E19: 1.2- | F19: CY | G19: ADD | H19: --- | I19: Operating Units | J19: Stand Alone Dental | K19: MLR Customers | L19: Total Incurred Claims | M19: ='Essbase Input'!$D$17 -> IDB 2022 | N19: NO REINSURANCE | O19: All Other Projects | P19: 76499.89 | Q19: 3559.21 | V19: 80059.1
B20: 4 | E20: 1.2- | F20: CY | G20: SUB | H20: --- | I20: Operating Units | J20: Stand Alone Dental | K20: MLR Customers | L20: 50010 - Physician Cap Paid - External | M20: ='Essbase Input'!$D$17 -> IDB 2022 | N20: NO REINSURANCE | O20: 0000003413 - General Administrative | P20: 0 | Q20: 0 | V20: 0
B21: 4 | E21: 1.2- | F21: CY | G21: SUB | H21: --- | I21: Operating Units | J21: Stand Alone Dental | K21: MLR Customers | L21: 50619 - Internal Capitation Pd - Other | M21: ='Essbase Input'!$D$17 -> IDB 2022 | N21: NO REINSURANCE | O21: All Other Projects | P21: 0 | Q21: 0 | V21: 0
B22: 4 | E22: 1.2- | F22: CY | G22: SUB | H22: --- | I22: Operating Units | J22: Stand Alone Dental | K22: MLR Customers | L22: Rate Credits NonTaxable | M22: ='Essbase Input'!$D$17 -> IDB 2022 | N22: NO REINSURANCE | O22: All Other Projects | P22: 0 | Q22: 0 | V22: 0 | W22: =V19-V20-V21-V22 -> 80059.1
B23: 4 | E23: 2.1- | F23: CY | G23: ADD | H23: R | I23: Operating Units | J23: Stand Alone Dental | K23: MLR Customers | L23: Health Premiums Earned | M23: ='Essbase Input'!$D$17 -> IDB 2022 | N23: NO REINSURANCE | O23: All Other Projects | P23: -145153.69 | Q23: 133.17 | V23: -145020.52 | W23: =V23 -> -145020.52
B24: 4 | E24: 2.2- | F24: CY | G24: ADD | H24: --- | I24: Operating Units | J24: Stand Alone Dental | K24: MLR Customers | L24: Federal Taxes and Assessments | M24: IDB Periods | N24: Reinsurance | O24: All Other Projects | P24: 5568.76 | Q24: -178.7 | V24: =P24 -> 5568.76
B25: 4 | E25: 2.2- | F25: CY | G25: ADD | H25: --- | I25: Operating Units | J25: Stand Alone Dental | K25: MLR Customers | L25: State Ins, Prem and Other Tax | M25: IDB Periods | N25: Reinsurance | O25: All Other Projects | P25: 8599.42 | Q25: 768.99 | V25: =P25 -> 8599.42
B26: 4 | E26: 2.2- | F26: CY | G26: ADD | H26: --- | I26: Operating Units | J26: Stand Alone Dental | K26: MLR Customers | L26: Reg Authority Licenses & Fees | M26: IDB Periods | N26: Reinsurance | O26: All Other Projects | P26: 0 | Q26: 0 | V26: 0 | W26: =SUM(V24:V26) -> 14168.18
B27: 4 | E27: 3.1- | F27: CY | G27: ADD | H27: --- | I27: Operating Units | J27: Stand Alone Dental | K27: MLR Customers | L27: SHCE Member Months | M27: ='Essbase Input'!$D$17 -> IDB 2022 | N27: NO REINSURANCE | O27: All Other Projects | P27: 2908 | Q27: -3 | V27: =P27+Q27 -> 2905 | W27: =V27 -> 2905
A28: SAD/Ind | B28: 4 | E28: 1.2- | F28: CY | G28: ADD | H28: --- | I28: UnitedHealthcare Domestic | J28: Stand Alone Dental | K28: Individual | L28: Total Incurred Claims | M28: ='Essbase Input'!$D$17 -> IDB 2022 | N28: NO REINSURANCE | O28: All Other Projects | P28: 0 | Q28: 0 | V28: 0
B29: 4 | E29: 1.2- | F29: CY | G29: SUB | H29: --- | I29: UnitedHealthcare Domestic | J29: Stand Alone Dental | K29: Individual | L29: 50010 - Physician Cap Paid - External | M29: ='Essbase Input'!$D$17 -> IDB 2022 | N29: NO REINSURANCE | O29: 0000003413 - General Administrative | P29: 0 | Q29: 0 | V29: 0
B30: 4 | E30: 1.2- | F30: CY | G30: SUB | H30: --- | I30: UnitedHealthcare Domestic | J30: Stand Alone Dental | K30: Individual | L30: 50619 - Internal Capitation Pd - Other | M30: ='Essbase Input'!$D$17 -> IDB 2022 | N30: NO REINSURANCE | O30: All Other Projects | P30: 0 | Q30: 0 | V30: 0
B31: 4 | E31: 1.2- | F31: CY | G31: SUB | H31: --- | I31: UnitedHealthcare Domestic | J31: Stand Alone Dental | K31: Individual | L31: Rate Credits NonTaxable | M31: ='Essbase Input'!$D$17 -> IDB 2022 | N31: NO REINSURANCE | O31: All Other Projects | P31: 0 | Q31: 0 | V31: 0 | W31: =V28-V29-V30-V31 -> 0
B32: 4 | E32: 2.1- | F32: CY | G32: ADD | H32: R | I32: UnitedHealthcare Domestic | J32: Stand Alone Dental | K32: Individual | L32: Health Premiums Earned | M32: ='Essbase Input'!$D$17 -> IDB 2022 | N32: NO REINSURANCE | O32: All Other Projects | P32: 0 | Q32: 0 | V32: 0 | W32: =V32 -> 0
B33: 4 | E33: 2.2- | F33: CY | G33: ADD | H33: --- | I33: UnitedHealthcare Domestic | J33: Stand Alone Dental | K33: Individual | L33: Federal Taxes and Assessments | M33: IDB Periods | N33: Reinsurance | O33: All Other Projects | P33: 0 | Q33: 0 | V33: =P33 -> 0
B34: 4 | E34: 2.2- | F34: CY | G34: ADD | H34: --- | I34: UnitedHealthcare Domestic | J34: Stand Alone Dental | K34: Individual | L34: State Ins, Prem and Other Tax | M34: IDB Periods | N34: Reinsurance | O34: All Other Projects | P34: 30.24 | Q34: 7.77 | V34: =P34 -> 30.24
B35: 4 | E35: 2.2- | F35: CY | G35: ADD | H35: --- | I35: UnitedHealthcare Domestic | J35: Stand Alone Dental | K35: Individual | L35: Reg Authority Licenses & Fees | M35: IDB Periods | N35: Reinsurance | O35: All Other Projects | P35: 0 | Q35: 0 | V35: 0 | W35: =SUM(V33:V35) -> 30.24
B36: 4 | E36: 3.1- | F36: CY | G36: ADD | H36: --- | I36: UnitedHealthcare Domestic | J36: Stand Alone Dental | K36: Individual | L36: SHCE Member Months | M36: ='Essbase Input'!$D$17 -> IDB 2022 | N36: NO REINSURANCE | O36: All Other Projects | P36: 0 | Q36: 0 | V36: =P36+Q36 -> 0 | W36: =V36 -> 0
A37: SAD/SG | B37: 4 | E37: 1.2- | F37: CY | G37: ADD | H37: --- | I37: UnitedHealthcare Domestic | J37: Stand Alone Dental | K37: Small Group Employer | L37: Total Incurred Claims | M37: ='Essbase Input'!$D$17 -> IDB 2022 | N37: NO REINSURANCE | O37: All Other Projects | P37: 0 | Q37: 0 | V37: 0
B38: 4 | E38: 1.2- | F38: CY | G38: SUB | H38: --- | I38: UnitedHealthcare Domestic | J38: Stand Alone Dental | K38: Small Group Employer | L38: 50010 - Physician Cap Paid - External | M38: ='Essbase Input'!$D$17 -> IDB 2022 | N38: NO REINSURANCE | O38: 0000003413 - General Administrative | P38: 0 | Q38: 0 | V38: 0
B39: 4 | E39: 1.2- | F39: CY | G39: SUB | H39: --- | I39: UnitedHealthcare Domestic | J39: Stand Alone Dental | K39: Small Group Employer | L39: 50619 - Internal Capitation Pd - Other | M39: ='Essbase Input'!$D$17 -> IDB 2022 | N39: NO REINSURANCE | O39: All Other Projects | P39: 0 | Q39: 0 | V39: 0
B40: 4 | E40: 1.2- | F40: CY | G40: SUB | H40: --- | I40: UnitedHealthcare Domestic | J40: Stand Alone Dental | K40: Small Group Employer | L40: Rate Credits NonTaxable | M40: ='Essbase Input'!$D$17 -> IDB 2022 | N40: NO REINSURANCE | O40: All Other Projects | P40: 0 | Q40: 0 | V40: 0 | W40: =V37-V38-V39-V40 -> 0
B41: 4 | E41: 2.1- | F41: CY | G41: ADD | H41: R | I41: UnitedHealthcare Domestic | J41: Stand Alone Dental | K41: Small Group Employer | L41: Health Premiums Earned | M41: ='Essbase Input'!$D$17 -> IDB 2022 | N41: NO REINSURANCE | O41: All Other Projects | P41: 0 | Q41: 0 | V41: 0 | W41: =V41 -> 0
B42: 4 | E42: 2.2- | F42: CY | G42: ADD | H42: --- | I42: UnitedHealthcare Domestic | J42: Stand Alone Dental | K42: Small Group Employer | L42: Federal Taxes and Assessments | M42: IDB Periods | N42: Reinsurance | O42: All Other Projects | P42: 0 | Q42: 0 | V42: =P42 -> 0
B43: 4 | E43: 2.2- | F43: CY | G43: ADD | H43: --- | I43: UnitedHealthcare Domestic | J43: Stand Alone Dental | K43: Small Group Employer | L43: State Ins, Prem and Other Tax | M43: IDB Periods | N43: Reinsurance | O43: All Other Projects | P43: 0 | Q43: 0 | V43: =P43 -> 0
B44: 4 | E44: 2.2- | F44: CY | G44: ADD | H44: --- | I44: UnitedHealthcare Domestic | J44: Stand Alone Dental | K44: Small Group Employer | L44: Reg Authority Licenses & Fees | M44: IDB Periods | N44: Reinsurance | O44: All Other Projects | P44: 0 | Q44: 0 | V44: 0 | W44: =SUM(V42:V44) -> 0
B45: 4 | E45: 3.1- | F45: CY | G45: ADD | H45: --- | I45: UnitedHealthcare Domestic | J45: Stand Alone Dental | K45: Small Group Employer | L45: SHCE Member Months | M45: ='Essbase Input'!$D$17 -> IDB 2022 | N45: NO REINSURANCE | O45: All Other Projects | P45: 0 | Q45: 0 | V45: =P45+Q45 -> 0 | W45: =V45 -> 0
A46: SAD/LG | B46: 4 | E46: 1.2- | F46: CY | G46: ADD | H46: --- | I46: UnitedHealthcare Domestic | J46: Stand Alone Dental | K46: Large Group Employer | L46: Total Incurred Claims | M46: ='Essbase Input'!$D$17 -> IDB 2022 | N46: NO REINSURANCE | O46: All Other Projects | P46: 0 | Q46: 0 | V46: 0
B47: 4 | E47: 1.2- | F47: CY | G47: SUB | H47: --- | I47: UnitedHealthcare Domestic | J47: Stand Alone Dental | K47: Large Group Employer | L47: 50010 - Physician Cap Paid - External | M47: ='Essbase Input'!$D$17 -> IDB 2022 | N47: NO REINSURANCE | O47: 0000003413 - General Administrative | P47: 0 | Q47: 0 | V47: 0
B48: 4 | E48: 1.2- | F48: CY | G48: SUB | H48: --- | I48: UnitedHealthcare Domestic | J48: Stand Alone Dental | K48: Large Group Employer | L48: 50619 - Internal Capitation Pd - Other | M48: ='Essbase Input'!$D$17 -> IDB 2022 | N48: NO REINSURANCE | O48: All Other Projects | P48: 0 | Q48: 0 | V48: 0
B49: 4 | E49: 1.2- | F49: CY | G49: SUB | H49: --- | I49: UnitedHealthcare Domestic | J49: Stand Alone Dental | K49: Large Group Employer | L49: Rate Credits NonTaxable | M49: ='Essbase Input'!$D$17 -> IDB 2022 | N49: NO REINSURANCE | O49: All Other Projects | P49: 0 | Q49: 0 | V49: 0 | W49: =V46-V47-V48-V49 -> 0
B50: 4 | E50: 2.1- | F50: CY | G50: ADD | H50: R | I50: UnitedHealthcare Domestic | J50: Stand Alone Dental | K50: Large Group Employer | L50: Health Premiums Earned | M50: ='Essbase Input'!$D$17 -> IDB 2022 | N50: NO REINSURANCE | O50: All Other Projects | P50: 0 | Q50: 0 | V50: 0 | W50: =V50 -> 0
B51: 4 | E51: 2.2- | F51: CY | G51: ADD | H51: --- | I51: UnitedHealthcare Domestic | J51: Stand Alone Dental | K51: Large Group Employer | L51: Federal Taxes and Assessments | M51: IDB Periods | N51: Reinsurance | O51: All Other Projects | P51: 5568.76 | Q51: -178.7 | V51: =P51 -> 5568.76
B52: 4 | E52: 2.2- | F52: CY | G52: ADD | H52: --- | I52: UnitedHealthcare Domestic | J52: Stand Alone Dental | K52: Large Group Employer | L52: State Ins, Prem and Other Tax | M52: IDB Periods | N52: Reinsurance | O52: All Other Projects | P52: 0 | Q52: 0 | V52: =P52 -> 0
B53: 4 | E53: 2.2- | F53: CY | G53: ADD | H53: --- | I53: UnitedHealthcare Domestic | J53: Stand Alone Dental | K53: Large Group Employer | L53: Reg Authority Licenses & Fees | M53: IDB Periods | N53: Reinsurance | O53: All Other Projects | P53: 0 | Q53: 0 | V53: 0 | W53: =SUM(V51:V53) -> 5568.76
B54: 4 | E54: 3.1- | F54: CY | G54: ADD | H54: --- | I54: UnitedHealthcare Domestic | J54: Stand Alone Dental | K54: Large Group Employer | L54: SHCE Member Months | M54: ='Essbase Input'!$D$17 -> IDB 2022 | N54: NO REINSURANCE | O54: All Other Projects | P54: 0 | Q54: 0 | V54: =P54+Q54 -> 0 | W54: =V54 -> 0
A55: Vision | B55: 4 | E55: 1.2 | F55: CY | G55: ADD | H55: --- | I55: Operating Units | J55: Stand Alone Vision | K55: MLR Customers | L55: Total Incurred Claims | M55: ='Essbase Input'!$D$17 -> IDB 2022 | N55: NO REINSURANCE | O55: All Other Projects | P55: 5942.86 | Q55: -52.38 | V55: 5890.48
B56: 4 | E56: 1.2 | F56: CY | G56: SUB | H56: --- | I56: Operating Units | J56: Stand Alone Vision | K56: MLR Customers | L56: 50010 - Physician Cap Paid - External | M56: ='Essbase Input'!$D$17 -> IDB 2022 | N56: NO REINSURANCE | O56: 0000003413 - General Administrative | P56: 0 | Q56: 0 | V56: 0
B57: 4 | E57: 1.2 | F57: CY | G57: SUB | H57: --- | I57: Operating Units | J57: Stand Alone Vision | K57: MLR Customers | L57: 50619 - Internal Capitation Pd - Other | M57: ='Essbase Input'!$D$17 -> IDB 2022 | N57: NO REINSURANCE | O57: All Other Projects | P57: 0 | Q57: 0 | V57: 0
B58: 4 | E58: 1.2 | F58: CY | G58: SUB | H58: --- | I58: Operating Units | J58: Stand Alone Vision | K58: MLR Customers | L58: Rate Credits NonTaxable | M58: ='Essbase Input'!$D$17 -> IDB 2022 | N58: NO REINSURANCE | O58: All Other Projects | P58: 0 | Q58: 0 | V58: 0 | W58: =V55-V56-V57-V58 -> 5890.48
B59: 4 | E59: 2.1 | F59: CY | G59: ADD | H59: R | I59: Operating Units | J59: Stand Alone Vision | K59: MLR Customers | L59: Health Premiums Earned | M59: ='Essbase Input'!$D$17 -> IDB 2022 | N59: NO REINSURANCE | O59: All Other Projects | P59: -10875.14 | Q59: 53.56 | V59: -10821.58 | W59: =V59 -> -10821.58
B60: 4 | E60: 2.2 | F60: CY | G60: ADD | H60: --- | I60: Operating Units | J60: Stand Alone Vision | K60: MLR Customers | L60: Federal Taxes and Assessments | M60: IDB Periods | N60: Reinsurance | O60: All Other Projects | P60: 798.31 | Q60: 336.15 | V60: =P60 -> 798.31
B61: 4 | E61: 2.2 | F61: CY | G61: ADD | H61: --- | I61: Operating Units | J61: Stand Alone Vision | K61: MLR Customers | L61: State Ins, Prem and Other Tax | M61: IDB Periods | N61: Reinsurance | O61: All Other Projects | P61: 257.35 | Q61: 58.51 | V61: =P61 -> 257.35
B62: 4 | E62: 2.2 | F62: CY | G62: ADD | H62: --- | I62: Operating Units | J62: Stand Alone Vision | K62: MLR Customers | L62: Reg Authority Licenses & Fees | M62: IDB Periods | N62: Reinsurance | O62: All Other Projects | P62: 0 | Q62: 0 | V62: 0 | W62: =SUM(V60:V62) -> 1055.66
B63: 4 | E63: 3.1 | F63: CY | G63: ADD | H63: --- | I63: Operating Units | J63: Stand Alone Vision | K63: MLR Customers | L63: SHCE Member Months | M63: ='Essbase Input'!$D$17 -> IDB 2022 | N63: NO REINSURANCE | O63: All Other Projects | P63: 1288 | Q63: -7 | V63: =P63+Q63 -> 1281 | W63: =V63 -> 1281
A64: Life/Disability | B64: 4 | E64: 1.2 | F64: CY | G64: ADD | H64: --- | I64: Operating Units | J64: Non Stand Alone Dental/Vision | K64: MLR Customers | L64: Total Incurred Claims | M64: ='Essbase Input'!$D$17 -> IDB 2022 | N64: NO REINSURANCE | O64: All Other Projects | P64: 0 | Q64: 0 | V64: 0
B65: 4 | E65: 1.2 | F65: CY | G65: SUB | H65: --- | I65: Operating Units | J65: Non Stand Alone Dental/Vision | K65: MLR Customers | L65: 50010 - Physician Cap Paid - External | M65: ='Essbase Input'!$D$17 -> IDB 2022 | N65: NO REINSURANCE | O65: 0000003413 - General Administrative | P65: 0 | Q65: 0 | V65: 0
B66: 4 | E66: 1.2 | F66: CY | G66: SUB | H66: --- | I66: Operating Units | J66: Non Stand Alone Dental/Vision | K66: MLR Customers | L66: 50619 - Internal Capitation Pd - Other | M66: ='Essbase Input'!$D$17 -> IDB 2022 | N66: NO REINSURANCE | O66: All Other Projects | P66: 0 | Q66: 0 | V66: 0
B67: 4 | E67: 1.2 | F67: CY | G67: SUB | H67: --- | I67: Operating Units | J67: Non Stand Alone Dental/Vision | K67: MLR Customers | L67: Rate Credits NonTaxable | M67: ='Essbase Input'!$D$17 -> IDB 2022 | N67: NO REINSURANCE | O67: All Other Projects | P67: 0 | Q67: 0 | V67: 0 | W67: =V64-V65-V66-V67 -> 0
B68: 4 | E68: 2.1 | F68: CY | G68: ADD | H68: R | I68: Operating Units | J68: Non Stand Alone Dental/Vision | K68: MLR Customers | L68: Health Premiums Earned | M68: ='Essbase Input'!$D$17 -> IDB 2022 | N68: NO REINSURANCE | O68: All Other Projects | P68: 0 | Q68: 0 | V68: 0 | W68: =V68 -> 0
B69: 4 | E69: 2.2 | F69: CY | G69: ADD | H69: --- | I69: Operating Units | J69: Non Stand Alone Dental/Vision | K69: MLR Customers | L69: Federal Taxes and Assessments | M69: IDB Periods | N69: Reinsurance | O69: All Other Projects | P69: -143.59 | Q69: -264.37 | V69: =P69 -> -143.59
B70: 4 | E70: 2.2 | F70: CY | G70: ADD | H70: --- | I70: Operating Units | J70: Non Stand Alone Dental/Vision | K70: MLR Customers | L70: State Ins, Prem and Other Tax | M70: IDB Periods | N70: Reinsurance | O70: All Other Projects | P70: 0 | Q70: 0 | V70: =P70 -> 0
B71: 4 | E71: 2.2 | F71: CY | G71: ADD | H71: --- | I71: Operating Units | J71: Non Stand Alone Dental/Vision | K71: MLR Customers | L71: Reg Authority Licenses & Fees | M71: IDB Periods | N71: Reinsurance | O71: All Other Projects | P71: 0 | Q71: 0 | V71: 0 | W71: =SUM(V69:V71) -> -143.59
B72: 4 | E72: 3.1 | F72: CY | G72: ADD | H72: --- | I72: Operating Units | J72: Non Stand Alone Dental/Vision | K72: MLR Customers | L72: SHCE Member Months | M72: ='Essbase Input'!$D$17 -> IDB 2022 | N72: NO REINSURANCE | O72: All Other Projects | P72: 0 | Q72: 0 | V72: =P72+Q72 -> 0 | W72: =V72 -> 0
A73: Oth Bus (excl by Stat) | B73: 4 | E73: 1.2 | F73: CY | G73: ADD | H73: --- | I73: Operating Units | J73: Other Bus(excluded by Statute) | K73: MLR Customers | L73: Total Incurred Claims | M73: ='Essbase Input'!$D$17 -> IDB 2022 | N73: NO REINSURANCE | O73: All Other Projects | P73: 0 | Q73: 0 | V73: 0
B74: 4 | E74: 1.2 | F74: CY | G74: SUB | H74: --- | I74: Operating Units | J74: Other Bus(excluded by Statute) | K74: MLR Customers | L74: 50010 - Physician Cap Paid - External | M74: ='Essbase Input'!$D$17 -> IDB 2022 | N74: NO REINSURANCE | O74: 0000003413 - General Administrative | P74: 0 | Q74: 0 | V74: 0
B75: 4 | E75: 1.2 | F75: CY | G75: SUB | H75: --- | I75: Operating Units | J75: Other Bus(excluded by Statute) | K75: MLR Customers | L75: 50619 - Internal Capitation Pd - Other | M75: ='Essbase Input'!$D$17 -> IDB 2022 | N75: NO REINSURANCE | O75: All Other Projects | P75: 0 | Q75: 0 | V75: 0
B76: 4 | E76: 1.2 | F76: CY | G76: SUB | H76: --- | I76: Operating Units | J76: Other Bus(excluded by Statute) | K76: MLR Customers | L76: Rate Credits NonTaxable | M76: ='Essbase Input'!$D$17 -> IDB 2022 | N76: NO REINSURANCE | O76: All Other Projects | P76: 0 | Q76: 0 | V76: 0 | W76: =V73-V74-V75-V76 -> 0
B77: 4 | E77: 2.1 | F77: CY | G77: ADD | H77: R | I77: Operating Units | J77: Other Bus(excluded by Statute) | K77: MLR Customers | L77: Health Premiums Earned | M77: ='Essbase Input'!$D$17 -> IDB 2022 | N77: NO REINSURANCE | O77: All Other Projects | P77: 0 | Q77: 0 | V77: 0 | W77: =V77 -> 0
B78: 4 | E78: 2.2 | F78: CY | G78: ADD | H78: --- | I78: Operating Units | J78: Other Bus(excluded by Statute) | K78: MLR Customers | L78: Federal Taxes and Assessments | M78: IDB Periods | N78: Reinsurance | O78: All Other Projects | P78: 0 | Q78: 0 | V78: =P78 -> 0
B79: 4 | E79: 2.2 | F79: CY | G79: ADD | H79: --- | I79: Operating Units | J79: Other Bus(excluded by Statute) | K79: MLR Customers | L79: State Ins, Prem and Other Tax | M79: IDB Periods | N79: Reinsurance | O79: All Other Projects | P79: 0 | Q79: 0 | V79: =P79 -> 0
B80: 4 | E80: 2.2 | F80: CY | G80: ADD | H80: --- | I80: Operating Units | J80: Other Bus(excluded by Statute) | K80: MLR Customers | L80: Reg Authority Licenses & Fees | M80: IDB Periods | N80: Reinsurance | O80: All Other Projects | P80: 0 | Q80: 0 | V80: 0 | W80: =SUM(V78:V80) -> 0
